Workbook

Sheet Указания
A1: - Единствено полетата, които трябва да попълните, са разрешени за редакция. В случай, че опитате да редактирате друго поле, ще ви излезе съобщение за грешка. - Полетата са защитени от въвеждане на некоректни данни. Например: въвели сте текст вместо цифра; наименованито на ЛЗ не съответства на списъка, както е зададен; несъществуващо и/или некоректно име на община или населено място. В такъв случай или ще получите съобщение за грешка, или полето ще се оцвети в червено. - При определяне на минималните потребности и Вашите предложения за разпределяне на ресурсите в областта, ако стойността надвишава или нарушава съотношенията, определени в Методиката, е възможно да се оцвети в червено. - Колоните, чиито наименования са оцветени в оранжево, служат за Ваша справка и са във Ваша помощ при определяне на потребностите на областта. - Спазвайте последователността на попълване на таблиците, тъй като много от тях са свързани и зависят от данните в предходни таблици.
A2: ПРИЛОЖЕНИЕ | B2: РАЗДЕЛ | C2: No таблица в приложението | D2: Име на таблицата | E2: Таблица в този файл | F2: Попълване | G2: Забележки
A3: ПРИЛОЖЕНИЕ 1 | B3: РАЗДЕЛ I | C3: Таблица 1. | D3: Демографска структура | E3: I_1 | F3: Ръчно | G3: Изберете името на Вашата област от списъка в поле <А1>! Изключително важно е да започнете попълването на Приложенията от тази таблица, за да бъдат коректни останалите таблици и списъци!
A4: ПРИЛОЖЕНИЕ 1 | B4: РАЗДЕЛ I | C4: Таблица 2. | D4: Заболеваемост по групи заболявания и по възраст | E4: I_2 | F4: Ръчно | G4: Въведете данни за <Регистрирана заболеваемост> по възрастови групи.
A5: ПРИЛОЖЕНИЕ 1 | B5: РАЗДЕЛ I | C5: Таблица 3. | D5: Хоспитализирана заболеваемост на населението | E5: I_3 | F5: Автоматично
A6: ПРИЛОЖЕНИЕ 1 | B6: РАЗДЕЛ II | C6: Таблица 1. | D6: Вид, брой, дейност и разпределение на съществуващите лечебни заведения | E6: II_1 | F6: Автоматично | G6: Таблицата се попълва автоматично на база на данните, въведени в следващите 3 таблици!
A7: ПРИЛОЖЕНИЕ 1 | B7: РАЗДЕЛ II | D7: Детайлни данни за регистрираните ЛЗ в ПИМП | E7: II_ПИМП | F7: Ръчно | G7: За да бъдат коректни данните в обобщената таблица, използвайте наименования на ЛЗ и общините, съответстващи на тези в падащите списъци. Таблиците позволяват копиране от други, но първо ги приведете в съответствие с посочените наименования и критерии!
A8: ПРИЛОЖЕНИЕ 1 | B8: РАЗДЕЛ II | D8: Детайлни данни за регистрираните ЛЗ в СИМП | E8: II_СИМП | F8: Ръчно
A9: ПРИЛОЖЕНИЕ 1 | B9: РАЗДЕЛ II | D9: Детайлни данни за регистрираните ЛЗ за болнична помощ | E9: II_ЛЗ | F9: Ръчно
A10: ПРИЛОЖЕНИЕ 1 | B10: РАЗДЕЛ III | C10: Таблица 1. | D10: Необходим минимален брой лекари и лекари по дентална медицина по специалности | E10: III_1 | F10: Ръчно | G10: Въведете данни в колона <Брой специалисти>. Данните в другите колони се изчисляват автоматично и са за Ваша справка
A11: ПРИЛОЖЕНИЕ 1 | B11: РАЗДЕЛ III | C11: Таблица 2. | D11: Необходим минимален брой специалисти от професионално направление "Здравни грижи" | E11: III_2 | F11: Ръчно | G11: Въведете данни в колона <Брой специалисти>.
A12: ПРИЛОЖЕНИЕ 1 | B12: РАЗДЕЛ IV | C12: Таблица 1. | D12: Брой на практикуващите лекари и лекари по дентална медицина по специалности | E12: IV_1 | F12: Ръчно | G12: Въведете данни в колони <Практикуващи само в ИМП> и <Практикуващи и в ЛЗ, и в ИМП>
A13: ПРИЛОЖЕНИЕ 1 | B13: РАЗДЕЛ IV | C13: Таблица 2. | D13: Брой на специалистите от професионално направление "Здравни грижи" | E13: IV_2 | F13: Ръчно | G13: Въведете брой на специалистите по Здравни грижи в ПИМП и СИМП
A14: ПРИЛОЖЕНИЕ 1 | B14: РАЗДЕЛ V | C14: Таблица 1. | D14: Брой на съществуващите легла за болнично лечение по видове | E14: V_1 | F14: Автоматично | G14: Таблицата се попълва автоматично на база на данните, въведени в таблица V_2a
A15: ПРИЛОЖЕНИЕ 1 | B15: РАЗДЕЛ V | C15: Таблица 2. | D15: Осъществявани медицински дейности по видове и нива на компетентност общо за областта | E15: V_2 | F15: Автоматично | G15: Таблицата се попълва автоматично на база на данните, въведени в таблица V_2a
A16: ПРИЛОЖЕНИЕ 1 | B16: РАЗДЕЛ V | D16: Данни за осъществяваните медицински дейности по лечебни заведения по видове и нива на компетентност | E16: V_2a | F16: Ръчно | G16: Въвеждат се данни за всяко ЛЗ за болнична помощ (според Методиката) за броя на леглата по медицински дейности и нива на компетентност. Моля, леглата на специализираните болници за продължително лечение, да се попълват като легла за продължително лечение, независимо от специализацията на лечебното заведение. След като попълните данни за избрано ЛЗ, с бутон <ДОБАВЕТЕ ЛЕЧЕБНО ЗАВЕДЕНИЕ> добавяте празна таблица, за да продължите със следващото.
A17: ПРИЛОЖЕНИЕ 1 | B17: РАЗДЕЛ VI | C17: Таблица 1. | D17: Високотехнологични дейности и апаратура по вид, брой и разпределение | E17: VI | F17: Ръчно | G17: Въвеждат се данни за всяко ЛЗ, в което се извършват и/или което разполага с описаните високотехнологични дейности/апаратура
A18: ПРИЛОЖЕНИЕ 2 | C18: Таблица 1. | D18: Предложение за разпределението на брой легла по видове | E18: ПРИЛОЖЕНИЕ 2 - 1 | F18: Автоматично | G18: Попълва се автоматично въз основа да данните, въведени в <ПРИЛОЖЕНИЕ 2 - 2>
A19: ПРИЛОЖЕНИЕ 2 | C19: Таблица 2. | D19: Предложение за разпределението на брой легла по медицински специалности и нива на компетентност | E19: ПРИЛОЖЕНИЕ 2 - 2 | F19: Ръчно | G19: За Ваше улеснение в допълнителните колони са указани наличностите, както сте ги въвели в таблица V_2, и някои указания от Методиката. В червено се маркират полетата, които надвишават максималния брой легла и/или съотношението по нива не е спазено.
A20: ПРИЛОЖЕНИЕ 3 | C20: Таблица 1. | D20: Предложение за броя и разпределението на лекарите и лекарите по дентална медицина в ПИМП по общини | E20: ПРИЛОЖЕНИЕ 3 - 1 | F20: Ръчно | G20: Въведете Вашите предложения за лекари в ПИМП по общини. За Ваша справка са посочени усреднения брой спрямо населението на общината и коефициентите в Методиката.
A21: ПРИЛОЖЕНИЕ 3 | C21: Таблица 2. | D21: Предложение за броя и разпределението на лекарите и лекарите по дентална медицина по специалности в СИМП | E21: ПРИЛОЖЕНИЕ 3 - 2 | F21: Ръчно | G21: Въведете Вашите предложения за лекари в СИМП по общини. За Ваша справка са посочени въведените от Вас наличности и минималния брой, според Методиката. Добавен е и Калкулатор, който на база извършените прегледи през годината и средния брой прегледи на час, ще изчисли в колона <Брой специалисти> необходимия брой, както е посочно в Методиката. След това, може да коригирате стойността по Ваша преценка.
A22: ПРИЛОЖЕНИЕ 3 | C22: Таблица 3. | D22: Предложение за броя и разпределението на специалистите от професионално направление "Здравни грижи" | E22: ПРИЛОЖЕНИЕ 3 - 3 | F22: Ръчно | G22: Въведете Вашите предложения за необходимия брой специалисти от направление "Здравни грижи"

Sheet I_1
A1: ДОБРИЧ | M1: Обратно към УКАЗАНИЯТА
B2: РАЗДЕЛ I. ЗДРАВНО – ДЕМОГРАФСКИ ДАННИ
M3: Таблица 1. Демографска структура
C4: Население | K4: Естествен прираст на 1000 души население
A5: Област | B5: Общини | C5: Население | D5: Мъже % | E5: Жени % | F5: В градовете % | G5: В селата % | H5: Под трудоспособна възраст % | I5: В трудоспособна възраст % | J5: Над трудоспособна възраст % | K5: Живородени | L5: Умрели | M5: Естествен прираст
A6: ОБЩО ЗА СТРАНАТА | B6: ОБЩО ЗА СТРАНАТА | C6: 7,202,198 | D6: 49% | E6: 51% | F6: 73% | G6: 27% | H6: 15% | I6: 61% | J6: 24% | K6: 9.38 | L6: 15.13 | M6: -5.74
A7: БЛАГОЕВГРАД | B7: БЛАГОЕВГРАД ОБЛАСТ | C7: 315,577 | D7: 49% | E7: 51% | F7: 60% | G7: 40% | H7: 15% | I7: 64% | J7: 21% | K7: 9.35 | L7: 12.90 | M7: -3.56
A8: БЛАГОЕВГРАД | B8: Банско | C8: 12,784 | D8: 49% | E8: 51% | F8: 91% | G8: 9% | H8: 13% | I8: 62% | J8: 24% | K8: 9.15 | L8: 16.43 | M8: -7.27
A9: БЛАГОЕВГРАД | B9: Белица | C9: 9,706 | D9: 49% | E9: 51% | F9: 33% | G9: 67% | H9: 19% | I9: 63% | J9: 18% | K9: 11.23 | L9: 11.75 | M9: -0.52
A10: БЛАГОЕВГРАД | B10: Благоевград | C10: 76,571 | D10: 48% | E10: 52% | F10: 92% | G10: 8% | H10: 14% | I10: 67% | J10: 19% | K10: 10.26 | L10: 11.26 | M10: -0.99
A11: БЛАГОЕВГРАД | B11: Гоце Делчев | C11: 30,587 | D11: 49% | E11: 51% | F11: 62% | G11: 38% | H11: 17% | I11: 64% | J11: 19% | K11: 9.91 | L11: 11.64 | M11: -1.73
A12: БЛАГОЕВГРАД | B12: Гърмен | C12: 14,846 | D12: 50% | E12: 50% | F12: 0% | G12: 100% | H12: 20% | I12: 65% | J12: 15% | K12: 11.32 | L12: 9.36 | M12: 1.95
A13: БЛАГОЕВГРАД | B13: Кресна | C13: 5,421 | D13: 51% | E13: 49% | F13: 63% | G13: 37% | H13: 13% | I13: 59% | J13: 29% | K13: 6.46 | L13: 21.40 | M13: -14.94
A14: БЛАГОЕВГРАД | B14: Петрич | C14: 52,328 | D14: 49% | E14: 51% | F14: 54% | G14: 46% | H14: 15% | I14: 62% | J14: 23% | K14: 8.39 | L14: 13.40 | M14: -5.01
A15: БЛАГОЕВГРАД | B15: Разлог | C15: 20,065 | D15: 49% | E15: 51% | F15: 59% | G15: 41% | H15: 15% | I15: 61% | J15: 24% | K15: 9.67 | L15: 15.20 | M15: -5.53
A16: БЛАГОЕВГРАД | B16: Сандански | C16: 39,099 | D16: 49% | E16: 51% | F16: 66% | G16: 34% | H16: 15% | I16: 62% | J16: 24% | K16: 9.28 | L16: 13.38 | M16: -4.09
A17: БЛАГОЕВГРАД | B17: Сатовча | C17: 14,829 | D17: 50% | E17: 50% | F17: 0% | G17: 100% | H17: 16% | I17: 66% | J17: 18% | K17: 9.31 | L17: 10.59 | M17: -1.28
A18: БЛАГОЕВГРАД | B18: Симитли | C18: 13,909 | D18: 50% | E18: 50% | F18: 47% | G18: 53% | H18: 14% | I18: 63% | J18: 23% | K18: 7.41 | L18: 14.45 | M18: -7.05
A19: БЛАГОЕВГРАД | B19: Струмяни | C19: 5,433 | D19: 49% | E19: 51% | F19: 0% | G19: 100% | H19: 15% | I19: 52% | J19: 33% | K19: 9.57 | L19: 21.17 | M19: -11.60
A20: БЛАГОЕВГРАД | B20: Хаджидимово | C20: 9,613 | D20: 51% | E20: 49% | F20: 27% | G20: 73% | H20: 15% | I20: 61% | J20: 24% | K20: 6.14 | L20: 14.67 | M20: -8.53
A21: БЛАГОЕВГРАД | B21: Якоруда | C21: 10,386 | D21: 49% | E21: 51% | F21: 53% | G21: 47% | H21: 16% | I21: 64% | J21: 20% | K21: 8.09 | L21: 12.71 | M21: -4.62
A22: БУРГАС | B22: БУРГАС ОБЛАСТ | C22: 414,184 | D22: 49% | E22: 51% | F22: 75% | G22: 25% | H22: 16% | I22: 62% | J22: 22% | K22: 10.17 | L22: 13.38 | M22: -3.21
A23: БУРГАС | B23: Айтос | C23: 28,327 | D23: 49% | E23: 51% | F23: 69% | G23: 31% | H23: 18% | I23: 62% | J23: 20% | K23: 12.07 | L23: 13.91 | M23: -1.84
A24: БУРГАС | B24: Бургас | C24: 211,033 | D24: 48% | E24: 52% | F24: 95% | G24: 5% | H24: 16% | I24: 64% | J24: 21% | K24: 9.52 | L24: 11.22 | M24: -1.71
A25: БУРГАС | B25: Камено | C25: 10,133 | D25: 50% | E25: 50% | F25: 42% | G25: 58% | H25: 17% | I25: 55% | J25: 28% | K25: 9.97 | L25: 20.63 | M25: -10.66
A26: БУРГАС | B26: Карнобат | C26: 24,213 | D26: 49% | E26: 51% | F26: 74% | G26: 26% | H26: 16% | I26: 58% | J26: 26% | K26: 9.95 | L26: 17.18 | M26: -7.23
A27: БУРГАС | B27: Малко Търново | C27: 3,621 | D27: 48% | E27: 52% | F27: 62% | G27: 38% | H27: 13% | I27: 50% | J27: 37% | K27: 8.01 | L27: 24.58 | M27: -16.57
A28: БУРГАС | B28: Несебър | C28: 25,729 | D28: 50% | E28: 50% | F28: 68% | G28: 32% | H28: 16% | I28: 64% | J28: 20% | K28: 12.79 | L28: 10.84 | M28: 1.94
A29: БУРГАС | B29: Поморие | C29: 27,623 | D29: 49% | E29: 51% | F29: 69% | G29: 31% | H29: 16% | I29: 62% | J29: 21% | K29: 10.25 | L29: 14.34 | M29: -4.09
A30: БУРГАС | B30: Приморско | C30: 6,078 | D30: 49% | E30: 51% | F30: 65% | G30: 35% | H30: 15% | I30: 61% | J30: 24% | K30: 11.02 | L30: 16.62 | M30: -5.59
A31: БУРГАС | B31: Руен | C31: 28,482 | D31: 50% | E31: 50% | F31: 0% | G31: 100% | H31: 19% | I31: 64% | J31: 17% | K31: 11.34 | L31: 10.36 | M31: 0.98
A32: БУРГАС | B32: Созопол | C32: 12,678 | D32: 50% | E32: 50% | F32: 50% | G32: 50% | H32: 15% | I32: 59% | J32: 26% | K32: 8.44 | L32: 19.32 | M32: -10.88
A33: БУРГАС | B33: Средец | C33: 14,812 | D33: 49% | E33: 51% | F33: 60% | G33: 40% | H33: 17% | I33: 56% | J33: 27% | K33: 11.27 | L33: 23.70 | M33: -12.42
A34: БУРГАС | B34: Сунгурларе | C34: 12,021 | D34: 49% | E34: 51% | F34: 26% | G34: 74% | H34: 17% | I34: 56% | J34: 27% | K34: 10.81 | L34: 19.97 | M34: -9.15
A35: БУРГАС | B35: Царево | C35: 9,434 | D35: 49% | E35: 51% | F35: 77% | G35: 23% | H35: 15% | I35: 61% | J35: 23% | K35: 8.90 | L35: 16.64 | M35: -7.74
A36: ВАРНА | B36: ВАРНА ОБЛАСТ | C36: 473,804 | D36: 49% | E36: 51% | F36: 84% | G36: 16% | H36: 16% | I36: 63% | J36: 21% | K36: 9.85 | L36: 12.53 | M36: -2.68
A37: ВАРНА | B37: Аврен | C37: 9,098 | D37: 50% | E37: 50% | F37: 0% | G37: 100% | H37: 16% | I37: 54% | J37: 30% | K37: 10.11 | L37: 20.66 | M37: -10.55
A38: ВАРНА | B38: Аксаково | C38: 20,647 | D38: 49% | E38: 51% | F38: 58% | G38: 42% | H38: 17% | I38: 59% | J38: 23% | K38: 9.54 | L38: 16.90 | M38: -7.36
A39: ВАРНА | B39: Белослав | C39: 10,745 | D39: 50% | E39: 50% | F39: 71% | G39: 29% | H39: 16% | I39: 63% | J39: 22% | K39: 9.49 | L39: 14.05 | M39: -4.56
A40: ВАРНА | B40: Бяла | C40: 3,297 | D40: 51% | E40: 49% | F40: 63% | G40: 37% | H40: 16% | I40: 57% | J40: 27% | K40: 11.53 | L40: 20.62 | M40: -9.10
A41: ВАРНА | B41: Варна | C41: 344,775 | D41: 49% | E41: 51% | F41: 97% | G41: 3% | H41: 15% | I41: 65% | J41: 20% | K41: 10.11 | L41: 10.49 | M41: -0.38
A42: ВАРНА | B42: Ветрино | C42: 5,054 | D42: 49% | E42: 51% | F42: 0% | G42: 100% | H42: 11% | I42: 51% | J42: 38% | K42: 4.55 | L42: 25.33 | M42: -20.78
A43: ВАРНА | B43: Вълчи дол | C43: 9,604 | D43: 50% | E43: 50% | F43: 32% | G43: 68% | H43: 15% | I43: 54% | J43: 31% | K43: 9.06 | L43: 24.16 | M43: -15.10
A44: ВАРНА | B44: Девня | C44: 8,670 | D44: 50% | E44: 50% | F44: 92% | G44: 8% | H44: 17% | I44: 62% | J44: 21% | K44: 8.54 | L44: 16.72 | M44: -8.19
A45: ВАРНА | B45: Долни чифлик | C45: 19,075 | D45: 49% | E45: 51% | F45: 34% | G45: 66% | H45: 20% | I45: 61% | J45: 20% | K45: 11.01 | L45: 14.73 | M45: -3.72
A46: ВАРНА | B46: Дългопол | C46: 13,768 | D46: 50% | E46: 50% | F46: 34% | G46: 66% | H46: 17% | I46: 60% | J46: 24% | K46: 8.64 | L46: 16.27 | M46: -7.63
A47: ВАРНА | B47: Провадия | C47: 21,700 | D47: 50% | E47: 50% | F47: 58% | G47: 42% | H47: 16% | I47: 58% | J47: 26% | K47: 7.79 | L47: 18.99 | M47: -11.20
A48: ВАРНА | B48: Суворово | C48: 7,371 | D48: 50% | E48: 50% | F48: 62% | G48: 38% | H48: 17% | I48: 57% | J48: 26% | K48: 9.50 | L48: 19.67 | M48: -10.18
A49: ВЕЛИКО ТЪРНОВО | B49: ВЕЛИКО ТЪРНОВО ОБЛАСТ | C49: 247,782 | D49: 48% | E49: 52% | F49: 70% | G49: 30% | H49: 13% | I49: 61% | J49: 26% | K49: 8.83 | L49: 17.13 | M49: -8.30
A50: ВЕЛИКО ТЪРНОВО | B50: Велико Търново | C50: 87,771 | D50: 48% | E50: 52% | F50: 85% | G50: 15% | H50: 13% | I50: 65% | J50: 23% | K50: 8.93 | L50: 12.51 | M50: -3.58
A51: ВЕЛИКО ТЪРНОВО | B51: Горна Оряховица | C51: 44,334 | D51: 48% | E51: 52% | F51: 75% | G51: 25% | H51: 13% | I51: 60% | J51: 27% | K51: 7.87 | L51: 16.96 | M51: -9.09
A52: ВЕЛИКО ТЪРНОВО | B52: Елена | C52: 8,988 | D52: 49% | E52: 51% | F52: 58% | G52: 42% | H52: 14% | I52: 58% | J52: 28% | K52: 7.57 | L52: 19.14 | M52: -11.57
A53: ВЕЛИКО ТЪРНОВО | B53: Златарица | C53: 3,851 | D53: 50% | E53: 50% | F53: 54% | G53: 46% | H53: 15% | I53: 55% | J53: 30% | K53: 9.35 | L53: 22.07 | M53: -12.72
A54: ВЕЛИКО ТЪРНОВО | B54: Лясковец | C54: 12,664 | D54: 48% | E54: 52% | F54: 62% | G54: 38% | H54: 12% | I54: 58% | J54: 30% | K54: 7.50 | L54: 21.08 | M54: -13.58
A55: ВЕЛИКО ТЪРНОВО | B55: Павликени | C55: 22,464 | D55: 49% | E55: 51% | F55: 53% | G55: 47% | H55: 13% | I55: 54% | J55: 33% | K55: 7.66 | L55: 21.81 | M55: -14.16
A56: ВЕЛИКО ТЪРНОВО | B56: Полски Тръмбеш | C56: 13,416 | D56: 49% | E56: 51% | F56: 31% | G56: 69% | H56: 14% | I56: 51% | J56: 35% | K56: 6.93 | L56: 25.04 | M56: -18.11
A57: ВЕЛИКО ТЪРНОВО | B57: Свищов | C57: 39,574 | D57: 49% | E57: 51% | F57: 71% | G57: 29% | H57: 11% | I57: 64% | J57: 25% | K57: 10.28 | L57: 17.18 | M57: -6.90
A58: ВЕЛИКО ТЪРНОВО | B58: Стражица | C58: 12,331 | D58: 50% | E58: 50% | F58: 36% | G58: 64% | H58: 19% | I58: 56% | J58: 25% | K58: 13.14 | L58: 22.06 | M58: -8.92
A59: ВЕЛИКО ТЪРНОВО | B59: Сухиндол | C59: 2,389 | D59: 48% | E59: 52% | F59: 72% | G59: 28% | H59: 13% | I59: 51% | J59: 36% | K59: 8.79 | L59: 38.51 | M59: -29.72
A60: ВИДИН | B60: ВИДИН ОБЛАСТ | C60: 93,361 | D60: 49% | E60: 51% | F60: 64% | G60: 36% | H60: 13% | I60: 54% | J60: 33% | K60: 7.05 | L60: 22.49 | M60: -15.45
A61: ВИДИН | B61: Белоградчик | C61: 6,162 | D61: 49% | E61: 51% | F61: 80% | G61: 20% | H61: 15% | I61: 55% | J61: 30% | K61: 8.76 | L61: 22.23 | M61: -13.47
A62: ВИДИН | B62: Бойница | C62: 1,126 | D62: 45% | E62: 55% | F62: 0% | G62: 100% | H62: 5% | I62: 34% | J62: 61% | K62: 2.66 | L62: 53.29 | M62: -50.62
A63: ВИДИН | B63: Брегово | C63: 5,091 | D63: 51% | E63: 49% | F63: 46% | G63: 54% | H63: 10% | I63: 49% | J63: 41% | K63: 6.68 | L63: 31.43 | M63: -24.75
A64: ВИДИН | B64: Видин | C64: 59,039 | D64: 49% | E64: 51% | F64: 80% | G64: 20% | H64: 13% | I64: 58% | J64: 29% | K64: 7.01 | L64: 16.97 | M64: -9.96
A65: ВИДИН | B65: Грамада | C65: 1,811 | D65: 49% | E65: 51% | F65: 75% | G65: 25% | H65: 11% | I65: 39% | J65: 50% | K65: 8.28 | L65: 39.76 | M65: -31.47
A66: ВИДИН | B66: Димово | C66: 5,977 | D66: 49% | E66: 51% | F66: 19% | G66: 81% | H66: 16% | I66: 48% | J66: 36% | K66: 8.53 | L66: 32.29 | M66: -23.76
A67: ВИДИН | B67: Кула | C67: 4,197 | D67: 48% | E67: 52% | F67: 70% | G67: 30% | H67: 10% | I67: 49% | J67: 41% | K67: 3.81 | L67: 30.50 | M67: -26.69
A68: ВИДИН | B68: Макреш | C68: 1,401 | D68: 49% | E68: 51% | F68: 0% | G68: 100% | H68: 8% | I68: 38% | J68: 54% | K68: 5.00 | L68: 47.11 | M68: -42.11
A69: ВИДИН | B69: Ново село | C69: 2,725 | D69: 48% | E69: 52% | F69: 0% | G69: 100% | H69: 10% | I69: 41% | J69: 49% | K69: 5.87 | L69: 40.00 | M69: -34.13
A70: ВИДИН | B70: Ружинци | C70: 3,919 | D70: 49% | E70: 51% | F70: 0% | G70: 100% | H70: 15% | I70: 49% | J70: 36% | K70: 8.42 | L70: 29.85 | M70: -21.43
A71: ВИДИН | B71: Чупрене | C71: 1,913 | D71: 49% | E71: 51% | F71: 0% | G71: 100% | H71: 13% | I71: 46% | J71: 41% | K71: 7.84 | L71: 29.27 | M71: -21.43
A72: ВРАЦА | B72: ВРАЦА ОБЛАСТ | C72: 175,169 | D72: 49% | E72: 51% | F72: 59% | G72: 41% | H72: 14% | I72: 59% | J72: 27% | K72: 8.57 | L72: 19.51 | M72: -10.94
A73: ВРАЦА | B73: Борован | C73: 5,411 | D73: 50% | E73: 50% | F73: 0% | G73: 100% | H73: 18% | I73: 51% | J73: 31% | K73: 9.79 | L73: 24.03 | M73: -14.23
A74: ВРАЦА | B74: Бяла Слатина | C74: 23,200 | D74: 49% | E74: 51% | F74: 46% | G74: 54% | H74: 17% | I74: 55% | J74: 27% | K74: 10.17 | L74: 19.57 | M74: -9.40
A75: ВРАЦА | B75: Враца | C75: 69,100 | D75: 49% | E75: 51% | F75: 82% | G75: 18% | H75: 14% | I75: 62% | J75: 24% | K75: 7.47 | L75: 15.70 | M75: -8.23
A76: ВРАЦА | B76: Козлодуй | C76: 20,394 | D76: 49% | E76: 51% | F76: 62% | G76: 38% | H76: 16% | I76: 65% | J76: 18% | K76: 9.66 | L76: 14.22 | M76: -4.56
A77: ВРАЦА | B77: Криводол | C77: 8,913 | D77: 50% | E77: 50% | F77: 32% | G77: 68% | H77: 13% | I77: 48% | J77: 39% | K77: 7.97 | L77: 32.31 | M77: -24.35
A78: ВРАЦА | B78: Мездра | C78: 20,118 | D78: 49% | E78: 51% | F78: 51% | G78: 49% | H78: 12% | I78: 58% | J78: 29% | K78: 8.10 | L78: 20.83 | M78: -12.72
A79: ВРАЦА | B79: Мизия | C79: 6,904 | D79: 50% | E79: 50% | F79: 43% | G79: 57% | H79: 13% | I79: 56% | J79: 32% | K79: 8.26 | L79: 25.49 | M79: -17.24
A80: ВРАЦА | B80: Оряхово | C80: 10,583 | D80: 49% | E80: 51% | F80: 45% | G80: 55% | H80: 14% | I80: 52% | J80: 34% | K80: 9.64 | L80: 24.10 | M80: -14.46
A81: ВРАЦА | B81: Роман | C81: 5,843 | D81: 50% | E81: 50% | F81: 46% | G81: 54% | H81: 14% | I81: 55% | J81: 31% | K81: 10.27 | L81: 24.47 | M81: -14.21
A82: ВРАЦА | B82: Хайредин | C82: 4,703 | D82: 49% | E82: 51% | F82: 0% | G82: 100% | H82: 12% | I82: 50% | J82: 38% | K82: 9.99 | L82: 37.85 | M82: -27.85
A83: ГАБРОВО | B83: ГАБРОВО ОБЛАСТ | C83: 116,351 | D83: 48% | E83: 52% | F83: 82% | G83: 18% | H83: 12% | I83: 56% | J83: 32% | K83: 6.66 | L83: 18.35 | M83: -11.69
A84: ГАБРОВО | B84: Габрово | C84: 61,893 | D84: 48% | E84: 52% | F84: 90% | G84: 10% | H84: 12% | I84: 57% | J84: 31% | K84: 6.48 | L84: 16.96 | M84: -10.49
A85: ГАБРОВО | B85: Дряново | C85: 9,234 | D85: 48% | E85: 52% | F85: 77% | G85: 23% | H85: 12% | I85: 54% | J85: 35% | K85: 6.61 | L85: 21.44 | M85: -14.84
A86: ГАБРОВО | B86: Севлиево | C86: 34,143 | D86: 49% | E86: 51% | F86: 64% | G86: 36% | H86: 14% | I86: 56% | J86: 30% | K86: 7.67 | L86: 20.21 | M86: -12.54
A87: ГАБРОВО | B87: Трявна | C87: 11,081 | D87: 48% | E87: 52% | F87: 95% | G87: 5% | H87: 10% | I87: 55% | J87: 34% | K87: 4.60 | L87: 17.78 | M87: -13.18
A88: ДОБРИЧ | B88: ДОБРИЧ ОБЛАСТ | C88: 182,808 | D88: 49% | E88: 51% | F88: 69% | G88: 31% | H88: 15% | I88: 61% | J88: 24% | K88: 8.54 | L88: 15.98 | M88: -7.44
A89: ДОБРИЧ | B89: Балчик | C89: 20,055 | D89: 50% | E89: 50% | F89: 58% | G89: 42% | H89: 15% | I89: 61% | J89: 23% | K89: 8.68 | L89: 15.91 | M89: -7.23
A90: ДОБРИЧ | B90: Генерал Тошево | C90: 14,162 | D90: 49% | E90: 51% | F90: 46% | G90: 54% | H90: 14% | I90: 55% | J90: 31% | K90: 8.19 | L90: 23.16 | M90: -14.97
A91: ДОБРИЧ | B91: Добрич-селска | C91: 21,142 | D91: 50% | E91: 50% | F91: 0% | G91: 100% | H91: 17% | I91: 54% | J91: 29% | K91: 8.18 | L91: 23.41 | M91: -15.23
A92: ДОБРИЧ | B92: Добрич | C92: 87,817 | D92: 48% | E92: 52% | F92: 100% | G92: 0% | H92: 14% | I92: 63% | J92: 22% | K92: 8.07 | L92: 12.42 | M92: -4.35
A93: ДОБРИЧ | B93: Каварна | C93: 14,757 | D93: 48% | E93: 52% | F93: 76% | G93: 24% | H93: 15% | I93: 60% | J93: 25% | K93: 8.88 | L93: 15.04 | M93: -6.17
A94: ДОБРИЧ | B94: Крушари | C94: 4,343 | D94: 51% | E94: 49% | F94: 0% | G94: 100% | H94: 19% | I94: 57% | J94: 24% | K94: 12.89 | L94: 22.33 | M94: -9.44
A95: ДОБРИЧ | B95: Тервел | C95: 15,767 | D95: 50% | E95: 50% | F95: 37% | G95: 63% | H95: 18% | I95: 61% | J95: 21% | K95: 11.35 | L95: 15.79 | M95: -4.44
A96: ДОБРИЧ | B96: Шабла | C96: 4,765 | D96: 49% | E96: 51% | F96: 69% | G96: 31% | H96: 11% | I96: 55% | J96: 34% | K96: 5.04 | L96: 25.39 | M96: -20.36
A97: КЪРДЖАЛИ | B97: КЪРДЖАЛИ ОБЛАСТ | C97: 152,053 | D97: 50% | E97: 50% | F97: 41% | G97: 59% | H97: 15% | I97: 63% | J97: 22% | K97: 9.36 | L97: 11.90 | M97: -2.55
A98: КЪРДЖАЛИ | B98: Ардино | C98: 11,956 | D98: 50% | E98: 50% | F98: 30% | G98: 70% | H98: 11% | I98: 63% | J98: 26% | K98: 6.52 | L98: 13.30 | M98: -6.77
A99: КЪРДЖАЛИ | B99: Джебел | C99: 8,248 | D99: 51% | E99: 49% | F99: 38% | G99: 62% | H99: 14% | I99: 65% | J99: 20% | K99: 10.06 | L99: 11.64 | M99: -1.58
A100: КЪРДЖАЛИ | B100: Кирково | C100: 21,535 | D100: 50% | E100: 50% | F100: 0% | G100: 100% | H100: 13% | I100: 62% | J100: 25% | K100: 7.85 | L100: 14.21 | M100: -6.36
A101: КЪРДЖАЛИ | B101: Крумовград | C101: 17,398 | D101: 51% | E101: 49% | F101: 28% | G101: 72% | H101: 16% | I101: 61% | J101: 23% | K101: 9.02 | L101: 13.22 | M101: -4.20
A102: КЪРДЖАЛИ | B102: Кърджали | C102: 67,794 | D102: 49% | E102: 51% | F102: 64% | G102: 36% | H102: 17% | I102: 63% | J102: 20% | K102: 10.96 | L102: 10.81 | M102: 0.15
A103: КЪРДЖАЛИ | B103: Момчилград | C103: 15,906 | D103: 51% | E103: 49% | F103: 49% | G103: 51% | H103: 14% | I103: 65% | J103: 21% | K103: 7.61 | L103: 11.07 | M103: -3.46
A104: КЪРДЖАЛИ | B104: Черноочене | C104: 9,216 | D104: 51% | E104: 49% | F104: 0% | G104: 100% | H104: 14% | I104: 62% | J104: 24% | K104: 7.81 | L104: 11.94 | M104: -4.12
A105: КЮСТЕНДИЛ | B105: КЮСТЕНДИЛ ОБЛАСТ | C105: 127,969 | D105: 49% | E105: 51% | F105: 69% | G105: 31% | H105: 13% | I105: 57% | J105: 30% | K105: 7.70 | L105: 19.22 | M105: -11.51
A106: КЮСТЕНДИЛ | B106: Бобов дол | C106: 8,280 | D106: 53% | E106: 47% | F106: 65% | G106: 35% | H106: 11% | I106: 60% | J106: 29% | K106: 6.76 | L106: 20.53 | M106: -13.77
A107: КЮСТЕНДИЛ | B107: Бобошево | C107: 2,721 | D107: 48% | E107: 52% | F107: 43% | G107: 57% | H107: 9% | I107: 51% | J107: 41% | K107: 8.82 | L107: 30.87 | M107: -22.05
A108: КЮСТЕНДИЛ | B108: Дупница | C108: 42,470 | D108: 48% | E108: 52% | F108: 75% | G108: 25% | H108: 14% | I108: 59% | J108: 27% | K108: 8.81 | L108: 17.00 | M108: -8.19
A109: КЮСТЕНДИЛ | B109: Кочериново | C109: 4,786 | D109: 48% | E109: 52% | F109: 46% | G109: 54% | H109: 10% | I109: 50% | J109: 40% | K109: 4.60 | L109: 30.51 | M109: -25.91
A110: КЮСТЕНДИЛ | B110: Кюстендил | C110: 56,911 | D110: 48% | E110: 52% | F110: 74% | G110: 26% | H110: 13% | I110: 58% | J110: 29% | K110: 7.54 | L110: 18.06 | M110: -10.53
A111: КЮСТЕНДИЛ | B111: Невестино | C111: 2,369 | D111: 50% | E111: 50% | F111: 0% | G111: 100% | H111: 4% | I111: 38% | J111: 58% | K111: 2.11 | L111: 41.37 | M111: -39.26
A112: КЮСТЕНДИЛ | B112: Рила | C112: 2,689 | D112: 49% | E112: 51% | F112: 85% | G112: 15% | H112: 11% | I112: 53% | J112: 36% | K112: 7.44 | L112: 22.69 | M112: -15.25
A113: КЮСТЕНДИЛ | B113: Сапарева баня | C113: 7,118 | D113: 50% | E113: 50% | F113: 52% | G113: 48% | H113: 12% | I113: 58% | J113: 30% | K113: 7.45 | L113: 16.86 | M113: -9.41
A114: КЮСТЕНДИЛ | B114: Трекляно | C114: 625 | D114: 51% | E114: 49% | F114: 0% | G114: 100% | H114: 5% | I114: 41% | J114: 54% | K114: 4.80 | L114: 48.00 | M114: -43.20
A115: ЛОВЕЧ | B115: ЛОВЕЧ ОБЛАСТ | C115: 133,513 | D115: 49% | E115: 51% | F115: 63% | G115: 37% | H115: 14% | I115: 56% | J115: 30% | K115: 8.00 | L115: 19.25 | M115: -11.25
A116: ЛОВЕЧ | B116: Априлци | C116: 3,114 | D116: 49% | E116: 51% | F116: 90% | G116: 10% | H116: 9% | I116: 51% | J116: 40% | K116: 5.46 | L116: 25.69 | M116: -20.23
A117: ЛОВЕЧ | B117: Летница | C117: 3,567 | D117: 49% | E117: 51% | F117: 71% | G117: 29% | H117: 16% | I117: 50% | J117: 34% | K117: 9.81 | L117: 28.03 | M117: -18.22
A118: ЛОВЕЧ | B118: Ловеч | C118: 46,761 | D118: 49% | E118: 51% | F118: 74% | G118: 26% | H118: 12% | I118: 57% | J118: 31% | K118: 6.95 | L118: 17.62 | M118: -10.67
A119: ЛОВЕЧ | B119: Луковит | C119: 17,186 | D119: 49% | E119: 51% | F119: 51% | G119: 49% | H119: 20% | I119: 54% | J119: 26% | K119: 11.70 | L119: 18.45 | M119: -6.75
A120: ЛОВЕЧ | B120: Тетевен | C120: 20,257 | D120: 49% | E120: 51% | F120: 46% | G120: 54% | H120: 16% | I120: 59% | J120: 26% | K120: 8.24 | L120: 18.36 | M120: -10.12
A121: ЛОВЕЧ | B121: Троян | C121: 30,579 | D121: 48% | E121: 52% | F121: 66% | G121: 34% | H121: 12% | I121: 56% | J121: 32% | K121: 5.69 | L121: 18.61 | M121: -12.92
A122: ЛОВЕЧ | B122: Угърчин | C122: 6,032 | D122: 49% | E122: 51% | F122: 41% | G122: 59% | H122: 18% | I122: 47% | J122: 35% | K122: 12.10 | L122: 34.15 | M122: -22.05
A123: ЛОВЕЧ | B123: Ябланица | C123: 6,017 | D123: 50% | E123: 50% | F123: 46% | G123: 54% | H123: 22% | I123: 53% | J123: 25% | K123: 12.63 | L123: 16.95 | M123: -4.32
A124: МОНТАНА | B124: МОНТАНА ОБЛАСТ | C124: 139,350 | D124: 49% | E124: 51% | F124: 64% | G124: 36% | H124: 14% | I124: 56% | J124: 30% | K124: 8.52 | L124: 21.44 | M124: -12.92
A125: МОНТАНА | B125: Берковица | C125: 17,547 | D125: 49% | E125: 51% | F125: 73% | G125: 27% | H125: 14% | I125: 55% | J125: 30% | K125: 8.15 | L125: 22.06 | M125: -13.91
A126: МОНТАНА | B126: Бойчиновци | C126: 8,664 | D126: 50% | E126: 50% | F126: 16% | G126: 84% | H126: 15% | I126: 50% | J126: 35% | K126: 8.54 | L126: 30.47 | M126: -21.93
A127: МОНТАНА | B127: Брусарци | C127: 4,675 | D127: 50% | E127: 50% | F127: 23% | G127: 77% | H127: 13% | I127: 50% | J127: 37% | K127: 6.63 | L127: 29.52 | M127: -22.89
A128: МОНТАНА | B128: Вълчедръм | C128: 9,225 | D128: 49% | E128: 51% | F128: 37% | G128: 63% | H128: 16% | I128: 51% | J128: 34% | K128: 9.54 | L128: 25.47 | M128: -15.93
A129: МОНТАНА | B129: Вършец | C129: 7,704 | D129: 49% | E129: 51% | F129: 78% | G129: 22% | H129: 17% | I129: 53% | J129: 30% | K129: 11.94 | L129: 19.73 | M129: -7.79
A130: МОНТАНА | B130: Георги Дамяново | C130: 2,490 | D130: 51% | E130: 49% | F130: 0% | G130: 100% | H130: 8% | I130: 43% | J130: 49% | K130: 7.23 | L130: 34.14 | M130: -26.91
A131: МОНТАНА | B131: Лом | C131: 26,744 | D131: 48% | E131: 52% | F131: 80% | G131: 20% | H131: 15% | I131: 57% | J131: 28% | K131: 8.56 | L131: 21.31 | M131: -12.75
A132: МОНТАНА | B132: Медковец | C132: 3,724 | D132: 49% | E132: 51% | F132: 0% | G132: 100% | H132: 14% | I132: 47% | J132: 39% | K132: 9.67 | L132: 33.30 | M132: -23.63
A133: МОНТАНА | B133: Монтана | C133: 51,013 | D133: 49% | E133: 51% | F133: 82% | G133: 18% | H133: 14% | I133: 61% | J133: 25% | K133: 8.31 | L133: 16.02 | M133: -7.70
A134: МОНТАНА | B134: Чипровци | C134: 3,393 | D134: 49% | E134: 51% | F134: 51% | G134: 49% | H134: 7% | I134: 48% | J134: 45% | K134: 3.54 | L134: 26.23 | M134: -22.69
A135: МОНТАНА | B135: Якимово | C135: 4,171 | D135: 49% | E135: 51% | F135: 0% | G135: 100% | H135: 17% | I135: 48% | J135: 36% | K135: 9.59 | L135: 30.45 | M135: -20.86
A136: ПАЗАРДЖИК | B136: ПАЗАРДЖИК ОБЛАСТ | C136: 266,549 | D136: 49% | E136: 51% | F136: 62% | G136: 38% | H136: 16% | I136: 61% | J136: 23% | K136: 9.72 | L136: 15.05 | M136: -5.32
A137: ПАЗАРДЖИК | B137: Батак | C137: 5,709 | D137: 50% | E137: 50% | F137: 53% | G137: 47% | H137: 12% | I137: 62% | J137: 26% | K137: 6.66 | L137: 19.27 | M137: -12.61
A138: ПАЗАРДЖИК | B138: Белово | C138: 8,313 | D138: 49% | E138: 51% | F138: 44% | G138: 56% | H138: 11% | I138: 60% | J138: 29% | K138: 6.26 | L138: 20.81 | M138: -14.56
A139: ПАЗАРДЖИК | B139: Брацигово | C139: 9,125 | D139: 49% | E139: 51% | F139: 43% | G139: 57% | H139: 14% | I139: 55% | J139: 30% | K139: 7.56 | L139: 18.30 | M139: -10.74
A140: ПАЗАРДЖИК | B140: Велинград | C140: =39785-4870 -> 34,915 | D140: 48% | E140: 52% | F140: 64% | G140: 36% | H140: 17% | I140: 62% | J140: 20% | K140: 10.28 | L140: 13.45 | M140: -3.17
A141: ПАЗАРДЖИК | B141: Лесичово | C141: 5,356 | D141: 49% | E141: 51% | F141: 0% | G141: 100% | H141: 16% | I141: 54% | J141: 31% | K141: 10.27 | L141: 25.02 | M141: -14.75
A142: ПАЗАРДЖИК | B142: Пазарджик | C142: 111,551 | D142: 49% | E142: 51% | F142: 63% | G142: 37% | H142: 16% | I142: 62% | J142: 22% | K142: 9.59 | L142: 13.66 | M142: -4.07
A143: ПАЗАРДЖИК | B143: Панагюрище | C143: 23,921 | D143: 49% | E143: 51% | F143: 71% | G143: 29% | H143: 13% | I143: 61% | J143: 26% | K143: 8.28 | L143: 17.35 | M143: -9.07
A144: ПАЗАРДЖИК | B144: Пещера | C144: 18,477 | D144: 49% | E144: 51% | F144: 89% | G144: 11% | H144: 18% | I144: 60% | J144: 22% | K144: 12.61 | L144: 12.88 | M144: -0.27
A145: ПАЗАРДЖИК | B145: Ракитово | C145: 14,849 | D145: 50% | E145: 50% | F145: 82% | G145: 18% | H145: 19% | I145: 63% | J145: 18% | K145: 11.92 | L145: 13.06 | M145: -1.14
A146: ПАЗАРДЖИК | B146: Септември | C146: 24,797 | D146: 50% | E146: 50% | F146: 43% | G146: 57% | H146: 16% | I146: 61% | J146: 22% | K146: 10.08 | L146: 16.94 | M146: -6.86
A147: ПАЗАРДЖИК | B147: Стрелча | C147: 4,666 | D147: 48% | E147: 52% | F147: 84% | G147: 16% | H147: 12% | I147: 56% | J147: 32% | K147: 8.79 | L147: 21.65 | M147: -12.86
A148: ПАЗАРДЖИК | B148: Сърница | C148: 4,870
A149: ПЕРНИК | B149: ПЕРНИК ОБЛАСТ | C149: 127,048 | D149: 49% | E149: 51% | F149: 79% | G149: 21% | H149: 13% | I149: 59% | J149: 28% | K149: 7.39 | L149: 18.62 | M149: -11.23
A150: ПЕРНИК | B150: Брезник | C150: 6,492 | D150: 49% | E150: 51% | F150: 62% | G150: 38% | H150: 10% | I150: 53% | J150: 37% | K150: 6.47 | L150: 34.04 | M150: -27.57
A151: ПЕРНИК | B151: Земен | C151: 2,659 | D151: 50% | E151: 50% | F151: 62% | G151: 38% | H151: 7% | I151: 48% | J151: 45% | K151: 5.64 | L151: 31.21 | M151: -25.57
A152: ПЕРНИК | B152: Ковачевци | C152: 1,560 | D152: 51% | E152: 49% | F152: 0% | G152: 100% | H152: 6% | I152: 40% | J152: 54% | K152: 7.05 | L152: 57.69 | M152: -50.64
A153: ПЕРНИК | B153: Перник | C153: 92,544 | D153: 49% | E153: 51% | F153: 85% | G153: 15% | H153: 13% | I153: 61% | J153: 25% | K153: 7.60 | L153: 15.65 | M153: -8.05
A154: ПЕРНИК | B154: Радомир | C154: 19,763 | D154: 49% | E154: 51% | F154: 70% | G154: 30% | H154: 12% | I154: 56% | J154: 32% | K154: 7.08 | L154: 20.34 | M154: -13.26
A155: ПЕРНИК | B155: Трън | C155: 4,030 | D155: 50% | E155: 50% | F155: 58% | G155: 42% | H155: 12% | I155: 50% | J155: 38% | K155: 6.95 | L155: 30.27 | M155: -23.33
A156: ПЛЕВЕН | B156: ПЛЕВЕН ОБЛАСТ | C156: 255,749 | D156: 49% | E156: 51% | F156: 67% | G156: 33% | H156: 14% | I156: 57% | J156: 29% | K156: 8.73 | L156: 18.85 | M156: -10.12
A157: ПЛЕВЕН | B157: Белене | C157: 9,439 | D157: 53% | E157: 47% | F157: 83% | G157: 17% | H157: 11% | I157: 61% | J157: 29% | K157: 4.13 | L157: 17.90 | M157: -13.77
A158: ПЛЕВЕН | B158: Гулянци | C158: 11,308 | D158: 49% | E158: 51% | F158: 27% | G158: 73% | H158: 11% | I158: 47% | J158: 42% | K158: 7.34 | L158: 29.98 | M158: -22.64
A159: ПЛЕВЕН | B159: Долна Митрополия | C159: 18,990 | D159: 49% | E159: 51% | F159: 37% | G159: 63% | H159: 14% | I159: 50% | J159: 36% | K159: 10.27 | L159: 25.80 | M159: -15.53
A160: ПЛЕВЕН | B160: Долни Дъбник | C160: 11,137 | D160: 49% | E160: 51% | F160: 36% | G160: 64% | H160: 17% | I160: 51% | J160: 32% | K160: 10.95 | L160: 22.72 | M160: -11.76
A161: ПЛЕВЕН | B161: Искър | C161: 6,474 | D161: 50% | E161: 50% | F161: 46% | G161: 54% | H161: 15% | I161: 52% | J161: 33% | K161: 10.19 | L161: 24.10 | M161: -13.90
A162: ПЛЕВЕН | B162: Кнежа | C162: 12,977 | D162: 49% | E162: 51% | F162: 76% | G162: 24% | H162: 16% | I162: 56% | J162: 29% | K162: 9.86 | L162: 21.35 | M162: -11.48
A163: ПЛЕВЕН | B163: Левски | C163: 18,776 | D163: 49% | E163: 51% | F163: 50% | G163: 50% | H163: 13% | I163: 55% | J163: 32% | K163: 7.78 | L163: 24.07 | M163: -16.30
A164: ПЛЕВЕН | B164: Никопол | C164: 8,684 | D164: 50% | E164: 50% | F164: 36% | G164: 64% | H164: 12% | I164: 48% | J164: 40% | K164: 6.79 | L164: 25.79 | M164: -19.00
A165: ПЛЕВЕН | B165: Плевен | C165: 125,623 | D165: 48% | E165: 52% | F165: 84% | G165: 16% | H165: 15% | I165: 60% | J165: 25% | K165: 8.68 | L165: 13.97 | M165: -5.29
A166: ПЛЕВЕН | B166: Пордим | C166: 5,963 | D166: 49% | E166: 51% | F166: 33% | G166: 67% | H166: 13% | I166: 48% | J166: 38% | K166: 7.88 | L166: 28.68 | M166: -20.79
A167: ПЛЕВЕН | B167: Червен бряг | C167: 26,378 | D167: 50% | E167: 50% | F167: 59% | G167: 41% | H167: 15% | I167: 57% | J167: 28% | K167: 9.74 | L167: 20.28 | M167: -10.54
A168: ПЛОВДИВ | B168: ПЛОВДИВ ОБЛАСТ | C168: 675,586 | D168: 48% | E168: 52% | F168: 75% | G168: 25% | H168: 15% | I168: 61% | J168: 24% | K168: 9.82 | L168: 14.16 | M168: -4.33
A169: ПЛОВДИВ | B169: Асеновград | C169: 62,685 | D169: 48% | E169: 52% | F169: 80% | G169: 20% | H169: 14% | I169: 61% | J169: 24% | K169: 9.76 | L169: 14.41 | M169: -4.64
A170: ПЛОВДИВ | B170: Брезово | C170: 6,848 | D170: 49% | E170: 51% | F170: 26% | G170: 74% | H170: 12% | I170: 48% | J170: 40% | K170: 7.16 | L170: 32.13 | M170: -24.97
A171: ПЛОВДИВ | B171: Калояново | C171: 11,342 | D171: 49% | E171: 51% | F171: 0% | G171: 100% | H171: 12% | I171: 53% | J171: 35% | K171: 8.38 | L171: 25.04 | M171: -16.66
A172: ПЛОВДИВ | B172: Карлово | C172: 50,609 | D172: 48% | E172: 52% | F172: 59% | G172: 41% | H172: 15% | I172: 59% | J172: 26% | K172: 9.78 | L172: 15.65 | M172: -5.87
A173: ПЛОВДИВ | B173: Кричим | C173: 8,190 | D173: 49% | E173: 51% | F173: 100% | G173: 0% | H173: 18% | I173: 61% | J173: 21% | K173: 9.40 | L173: 11.84 | M173: -2.44
A174: ПЛОВДИВ | B174: Куклен | C174: 6,337 | D174: 48% | E174: 52% | F174: 92% | G174: 8% | H174: 14% | I174: 60% | J174: 26% | K174: 9.47 | L174: 13.73 | M174: -4.26
A175: ПЛОВДИВ | B175: Лъки | C175: 2,739 | D175: 49% | E175: 51% | F175: 74% | G175: 26% | H175: 9% | I175: 61% | J175: 30% | K175: 5.48 | L175: 18.99 | M175: -13.51
A176: ПЛОВДИВ | B176: Марица | C176: 31,649 | D176: 50% | E176: 50% | F176: 0% | G176: 100% | H176: 16% | I176: 59% | J176: 25% | K176: 9.83 | L176: 14.19 | M176: -4.36
A177: ПЛОВДИВ | B177: Перущица | C177: 4,931 | D177: 49% | E177: 51% | F177: 100% | G177: 0% | H177: 16% | I177: 59% | J177: 24% | K177: 10.34 | L177: 14.60 | M177: -4.26
A178: ПЛОВДИВ | B178: Пловдив | C178: 341,567 | D178: 48% | E178: 52% | F178: 100% | G178: 0% | H178: 15% | I178: 64% | J178: 21% | K178: 10.42 | L178: 11.54 | M178: -1.12
A179: ПЛОВДИВ | B179: Първомай | C179: 24,830 | D179: 48% | E179: 52% | F179: 52% | G179: 48% | H179: 13% | I179: 56% | J179: 31% | K179: 9.46 | L179: 20.54 | M179: -11.08
A180: ПЛОВДИВ | B180: Раковски | C180: 25,863 | D180: 49% | E180: 51% | F180: 58% | G180: 42% | H180: 16% | I180: 61% | J180: 23% | K180: 12.14 | L180: 15.89 | M180: -3.75
A181: ПЛОВДИВ | B181: Родопи | C181: 31,449 | D181: 49% | E181: 51% | F181: 0% | G181: 100% | H181: 12% | I181: 59% | J181: 29% | K181: 6.42 | L181: 16.92 | M181: -10.49
A182: ПЛОВДИВ | B182: Садово | C182: 15,043 | D182: 50% | E182: 50% | F182: 17% | G182: 83% | H182: 16% | I182: 58% | J182: 26% | K182: 8.91 | L182: 19.15 | M182: -10.24
A183: ПЛОВДИВ | B183: Сопот | C183: 9,511 | D183: 48% | E183: 52% | F183: 89% | G183: 11% | H183: 14% | I183: 63% | J183: 24% | K183: 8.20 | L183: 11.46 | M183: -3.26
A184: ПЛОВДИВ | B184: Стамболийски | C184: 20,232 | D184: 49% | E184: 51% | F184: 55% | G184: 45% | H184: 17% | I184: 59% | J184: 24% | K184: 10.58 | L184: 15.32 | M184: -4.74
A185: ПЛОВДИВ | B185: Съединение | C185: 10,066 | D185: 49% | E185: 51% | F185: 55% | G185: 45% | H185: 13% | I185: 54% | J185: 34% | K185: 8.05 | L185: 23.05 | M185: -15.00
A186: ПЛОВДИВ | B186: Хисаря | C186: 11,695 | D186: 48% | E186: 52% | F186: 58% | G186: 42% | H186: 10% | I186: 53% | J186: 37% | K186: 4.53 | L186: 23.34 | M186: -18.81
A187: РАЗГРАД | B187: РАЗГРАД ОБЛАСТ | C187: 119,048 | D187: 49% | E187: 51% | F187: 47% | G187: 53% | H187: 15% | I187: 61% | J187: 24% | K187: 8.74 | L187: 16.39 | M187: -7.64
A188: РАЗГРАД | B188: Завет | C188: 10,038 | D188: 50% | E188: 50% | F188: 29% | G188: 71% | H188: 15% | I188: 62% | J188: 23% | K188: 10.76 | L188: 17.43 | M188: -6.67
A189: РАЗГРАД | B189: Исперих | C189: 21,590 | D189: 50% | E189: 50% | F189: 39% | G189: 61% | H189: 16% | I189: 62% | J189: 22% | K189: 7.69 | L189: 13.71 | M189: -6.02
A190: РАЗГРАД | B190: Кубрат | C190: 17,243 | D190: 49% | E190: 51% | F190: 40% | G190: 60% | H190: 14% | I190: 58% | J190: 27% | K190: 9.80 | L190: 19.66 | M190: -9.86
A191: РАЗГРАД | B191: Лозница | C191: 8,829 | D191: 50% | E191: 50% | F191: 24% | G191: 76% | H191: 15% | I191: 63% | J191: 22% | K191: 8.15 | L191: 17.78 | M191: -9.63
A192: РАЗГРАД | B192: Разград | C192: 48,914 | D192: 48% | E192: 52% | F192: 66% | G192: 34% | H192: 15% | I192: 62% | J192: 24% | K192: 8.48 | L192: 15.01 | M192: -6.52
A193: РАЗГРАД | B193: Самуил | C193: 6,645 | D193: 51% | E193: 49% | F193: 0% | G193: 100% | H193: 15% | I193: 62% | J193: 24% | K193: 9.63 | L193: 20.17 | M193: -10.53
A194: РАЗГРАД | B194: Цар Калоян | C194: 5,789 | D194: 49% | E194: 51% | F194: 61% | G194: 39% | H194: 13% | I194: 60% | J194: 27% | K194: 8.12 | L194: 20.04 | M194: -11.92
A195: РУСЕ | B195: РУСЕ ОБЛАСТ | C195: 227,685 | D195: 49% | E195: 51% | F195: 77% | G195: 23% | H195: 13% | I195: 61% | J195: 26% | K195: 8.23 | L195: 16.75 | M195: -8.52
A196: РУСЕ | B196: Борово | C196: 5,674 | D196: 49% | E196: 51% | F196: 34% | G196: 66% | H196: 12% | I196: 52% | J196: 36% | K196: 8.99 | L196: 29.78 | M196: -20.80
A197: РУСЕ | B197: Бяла | C197: 12,677 | D197: 49% | E197: 51% | F197: 63% | G197: 37% | H197: 14% | I197: 55% | J197: 30% | K197: 7.81 | L197: 17.83 | M197: -10.02
A198: РУСЕ | B198: Ветово | C198: 11,828 | D198: 50% | E198: 50% | F198: 75% | G198: 25% | H198: 15% | I198: 60% | J198: 25% | K198: 9.38 | L198: 18.85 | M198: -9.47
A199: РУСЕ | B199: Две могили | C199: 8,735 | D199: 49% | E199: 51% | F199: 46% | G199: 54% | H199: 13% | I199: 56% | J199: 32% | K199: 7.78 | L199: 26.10 | M199: -18.32
A200: РУСЕ | B200: Иваново | C200: 8,832 | D200: 49% | E200: 51% | F200: 0% | G200: 100% | H200: 9% | I200: 49% | J200: 42% | K200: 5.21 | L200: 28.42 | M200: -23.21
... 99 more rows

Sheet I_2
A1: =I_1!$A$1 -> ДОБРИЧ | C1: =VLOOKUP($A$1,I_1!$A$6:$C$299,3,0) -> 182,808 | D1: 30918 | G1: 152826 | J1: =SUM(D1:H1) -> 183744 | K1: Обратно към УКАЗАНИЯТА
A2: РАЗДЕЛ I. ЗДРАВНО – ДЕМОГРАФСКИ ДАННИ
K3: Таблица 2. Заболеваемост по групи заболявания и по възраст
C4: ДЕЦА ОТ 0 ДО 17-ГОДИШНА ВЪЗРАСТ | F4: ЛИЦА НАД 18 ГОДИНИ | I4: ОБЩО
A5: КЛАС ЗАБОЛЯВАНИЯ ПО МКБ-10 | C5: Регистрирани заболявания | D5: На 100 хил. души | E5: Отн. дял % | F5: Регистрирани заболявания | G5: На 100 хил. души | H5: Отн. дял % | I5: Регистрирани заболявания | J5: На 100 хил. души | K5: Отн. дял %
A6: I | B6: Някои инфекциозни и паразитни болести | C6: 4,685 | D6: =C6/(D$1/100000) -> 15,152.99 | E6: =IFERROR(C6/C$27,0) -> 10.18 % | F6: 4,143 | G6: =F6/(G$1/100000) -> 2,710.93 | H6: =IFERROR(F6/F$27,0) -> 2.98 % | I6: =SUM(C6,F6) -> 8,828 | J6: =I6/(J$1/100000) -> 4,804.51 | K6: =IFERROR(I6/I$27,0) -> 4.77 %
A7: II | B7: Новообразувания | C7: 134 | D7: =C7/(D$1/100000) -> 433.40 | E7: =IFERROR(C7/C$27,0) -> 0.29 % | F7: 3,484 | G7: 2,279.72 | H7: =IFERROR(F7/F$27,0) -> 2.50 % | I7: =SUM(C7,F7) -> 3,618 | J7: 1,969.04 | K7: =IFERROR(I7/I$27,0) -> 1.95 %
A8: III | B8: Болести на кръвта, кръвотворните органи и отделни нарушения, включващи имунния механизъм | C8: 113 | D8: 365.48 | E8: 0.25 % | F8: 408 | G8: 266.97 | H8: 0.29 % | I8: 521 | J8: 283.55 | K8: 0.28 %
A9: IV | B9: Болести на ендокринната система, разстройства на храненето и на обмяната на веществата | C9: 293 | D9: 947.67 | E9: 0.64 % | F9: 3,783 | G9: 2,475.36 | H9: 2.72 % | I9: 4,076 | J9: 2,218.30 | K9: 2.20 %
A10: V | B10: Психични и поведенчески разстройства | C10: 217 | D10: 701.86 | E10: 0.47 % | F10: 2,321 | G10: 1,518.72 | H10: 1.67 % | I10: 2,538 | J10: 1,381.27 | K10: 1.37 %
A11: VI | B11: Болести на нервната система | C11: 249 | D11: 805.36 | E11: 0.54 % | F11: 8,153 | G11: 5,334.83 | H11: 5.86 % | I11: 8,402 | J11: 4,572.67 | K11: 4.54 %
A12: VII | B12: Болести на окото и придатъците му | C12: 2,590 | D12: 8,377.00 | E12: 5.63 % | F12: 11,265 | G12: 7,371.13 | H12: 8.09 % | I12: 13,855 | J12: 7,540.38 | K12: 7.48 %
A13: VIII | B13: Болести на ухото и мастоидния израстък | C13: 1,950 | D13: 6,307.01 | E13: 4.24 % | F13: 6,107 | G13: 3,996.05 | H13: 4.39 % | I13: 8,057 | J13: 4,384.91 | K13: 4.35 %
A14: IХ | B14: Болести на органите на кръвообращението | C14: 140 | D14: 452.81 | E14: 0.30 % | F14: 13,717 | G14: 8,975.57 | H14: 9.86 % | I14: 13,857 | J14: 7,541.47 | K14: 7.48 %
A15: Х | B15: Болести на дихателната система | C15: 19,082 | D15: 61,718.09 | E15: 41.46 % | F15: 23,517 | G15: 15,388.09 | H15: 16.90 % | I15: 42,599 | J15: 23,183.89 | K15: 23.00 %
A16: ХI | B16: Болести на храносмилателната система | C16: 1,399 | D16: 4,524.87 | E16: 3.04 % | F16: 6,882 | G16: 4,503.16 | H16: 4.94 % | I16: 8,281 | J16: 4,506.81 | K16: 4.47 %
A17: ХII | B17: Болести на кожата и подкожната тъкан | C17: 3,202 | D17: 10,356.43 | E17: 6.96 % | F17: 6,672 | G17: 4,365.75 | H17: 4.79 % | I17: 9,874 | J17: 5,373.78 | K17: 5.33 %
A18: ХIII | B18: Болести на костно-мускулната сис­тема и на съединителната тъкан | C18: 467 | D18: 1,510.45 | E18: 1.01 % | F18: 10,163 | G18: 6,650.05 | H18: 7.30 % | I18: 10,630 | J18: 5,785.22 | K18: 5.74 %
A19: ХIV | B19: Болести на пикочо-половата система | C19: 1,764 | D19: 5,705.41 | E19: 3.83 % | F19: 13,307 | G19: 8,707.29 | H19: 9.56 % | I19: 15,071 | J19: 8,202.17 | K19: 8.14 %
A20: ХV | B20: Бременност, раждане и послеродов период | C20: 110 | D20: 355.78 | E20: 0.24 % | F20: 217 | G20: 141.99 | H20: 0.16 % | I20: 327 | J20: 177.96 | K20: 0.18 %
A21: ХVI | B21: Някои състояния, възникващи през перинаталния период | C21: 117 | D21: 378.42 | E21: 0.25 % | G21: 0 | H21: 0 | I21: 117 | J21: 63.68 | K21: 0.06 %
A22: ХVII | B22: Вродени аномалии [пороци на развитието], деформации и хромозомни аберации | C22: 170 | D22: 549.84 | E22: 0.37 % | F22: 44 | G22: 28.79 | H22: 0.03 % | I22: 214 | J22: 116.47 | K22: 0.12 %
A23: ХVIII | B23: Симптоми, признаци и отклонения от нормата | C23: 2,287 | D23: 7,396.99 | E23: 4.97 % | F23: 2,841 | G23: 1,858.98 | H23: 2.04 % | I23: 5,128 | J23: 2,790.84 | K23: 2.77 %
A24: ХIX | B24: Травми, отравяния и някои други последици от въздействието на външни причини | C24: 1,963 | D24: 6,349.05 | E24: 4.27 % | F24: 7,958 | G24: 5,207.23 | H24: 5.72 % | I24: 9,921 | J24: 5,399.36 | K24: 5.36 %
A25: XX | B25: Външни причини за заболеваемост и смъртност | C25: 1,963 | D25: 6,349.05 | E25: =IFERROR(C25/C$27,0) -> 4.27 % | F25: 7,958 | G25: 5,207.23 | H25: =IFERROR(F25/F$27,0) -> 5.72 % | I25: =SUM(C25,F25) -> 9,921 | J25: 5,399.36 | K25: =IFERROR(I25/I$27,0) -> 5.36 %
A26: XXI | B26: Фактори, влияещи върху здравното състояние на населението и контакта със здравните служби | C26: 3,126 | D26: 10,110.62 | E26: 6.79 % | F26: 6,237 | G26: 4,081.11 | H26: 4.48 % | I26: 9,363 | J26: 5,095.68 | K26: 5.06 %
A27: ОБЩО | C27: =SUM(C6:C26) -> 46,021 | D27: 148,848.57 | E27: =SUM(E6:E26) -> 100.00 % | F27: =SUM(F6:F26) -> 139,177 | G27: 91,068.93 | H27: =SUM(H6:H26) -> 100.00 % | I27: 185,198 | J27: 100,791.32 | K27: =SUM(K6:K26) -> 100.00 %

Sheet I_3
A1: =I_1!$A$1 -> ДОБРИЧ | C1: =VLOOKUP($A$1,I_1!$A$6:$C$299,3,0) -> 182,808 | F1: Обратно към УКАЗАНИЯТА
A2: РАЗДЕЛ I. ЗДРАВНО – ДЕМОГРАФСКИ ДАННИ
E3: Таблица 3. Хоспитализирана заболеваемост на населението
A4: КЛАС ЗАБОЛЯВАНИЯ ПО МКБ-10 | C4: Хоспитализирани случаи | D4: На 100 хил. души | E4: Отн. дял % | F4: ОБЩО ЗА СТРАНАТА На 100 хил. души
A5: I | B5: Някои инфекциозни и паразитни болести | C5: =INDEX(хоспитализации1!$C$5:$AE$25,MATCH($A5,хоспитализации!$A$5:$A$25,0),MATCH($A$1,хоспитализации!$C$3:$AE$3,0)) -> 819 | D5: =INDEX(хоспитализации!$C$5:$AE$25,MATCH($A5,хоспитализации!$A$5:$A$25,0),MATCH($A$1,хоспитализации!$C$3:$AE$3,0)) -> 445.70 | E5: =IFERROR(C5/C$26,0) -> 2.80 % | F5: =INDEX(хоспитализации!$C$5:$AE$25,MATCH($A5,хоспитализации!$A$5:$A$25,0),1) -> 691.30
A6: II | B6: Новообразувания | C6: =INDEX(хоспитализации1!$C$5:$AE$25,MATCH($A6,хоспитализации!$A$5:$A$25,0),MATCH($A$1,хоспитализации!$C$3:$AE$3,0)) -> 597 | D6: =INDEX(хоспитализации!$C$5:$AE$25,MATCH($A6,хоспитализации!$A$5:$A$25,0),MATCH($A$1,хоспитализации!$C$3:$AE$3,0)) -> 324.90 | E6: =IFERROR(C6/C$26,0) -> 2.04 % | F6: =INDEX(хоспитализации!$C$5:$AE$25,MATCH($A6,хоспитализации!$A$5:$A$25,0),1) -> 2,209.50
A7: III | B7: Болести на кръвта, кръвотворните органи и отделни нарушения, включващи имунния механизъм | C7: =INDEX(хоспитализации1!$C$5:$AE$25,MATCH($A7,хоспитализации!$A$5:$A$25,0),MATCH($A$1,хоспитализации!$C$3:$AE$3,0)) -> 34 | D7: =INDEX(хоспитализации!$C$5:$AE$25,MATCH($A7,хоспитализации!$A$5:$A$25,0),MATCH($A$1,хоспитализации!$C$3:$AE$3,0)) -> 18.50 | E7: 0.12 % | F7: =INDEX(хоспитализации!$C$5:$AE$25,MATCH($A7,хоспитализации!$A$5:$A$25,0),1) -> 250.00
A8: IV | B8: Болести на ендокринната система, разстройства на храненето и на обмяната на веществата | C8: =INDEX(хоспитализации1!$C$5:$AE$25,MATCH($A8,хоспитализации!$A$5:$A$25,0),MATCH($A$1,хоспитализации!$C$3:$AE$3,0)) -> 878 | D8: =INDEX(хоспитализации!$C$5:$AE$25,MATCH($A8,хоспитализации!$A$5:$A$25,0),MATCH($A$1,хоспитализации!$C$3:$AE$3,0)) -> 477.80 | E8: 3.00 % | F8: =INDEX(хоспитализации!$C$5:$AE$25,MATCH($A8,хоспитализации!$A$5:$A$25,0),1) -> 951.80
A9: V | B9: Психични и поведенчески разстройства | C9: =INDEX(хоспитализации1!$C$5:$AE$25,MATCH($A9,хоспитализации!$A$5:$A$25,0),MATCH($A$1,хоспитализации!$C$3:$AE$3,0)) -> 2,356 | D9: =INDEX(хоспитализации!$C$5:$AE$25,MATCH($A9,хоспитализации!$A$5:$A$25,0),MATCH($A$1,хоспитализации!$C$3:$AE$3,0)) -> 1,282.20 | E9: 8.04 % | F9: =INDEX(хоспитализации!$C$5:$AE$25,MATCH($A9,хоспитализации!$A$5:$A$25,0),1) -> 760.70
A10: VI | B10: Болести на нервната система | C10: =INDEX(хоспитализации1!$C$5:$AE$25,MATCH($A10,хоспитализации!$A$5:$A$25,0),MATCH($A$1,хоспитализации!$C$3:$AE$3,0)) -> 787 | D10: =INDEX(хоспитализации!$C$5:$AE$25,MATCH($A10,хоспитализации!$A$5:$A$25,0),MATCH($A$1,хоспитализации!$C$3:$AE$3,0)) -> 428.30 | E10: 2.69 % | F10: =INDEX(хоспитализации!$C$5:$AE$25,MATCH($A10,хоспитализации!$A$5:$A$25,0),1) -> 1,045.80
A11: VII | B11: Болести на окото и придатъците му | C11: =INDEX(хоспитализации1!$C$5:$AE$25,MATCH($A11,хоспитализации!$A$5:$A$25,0),MATCH($A$1,хоспитализации!$C$3:$AE$3,0)) -> 206 | D11: =INDEX(хоспитализации!$C$5:$AE$25,MATCH($A11,хоспитализации!$A$5:$A$25,0),MATCH($A$1,хоспитализации!$C$3:$AE$3,0)) -> 112.10 | E11: 0.70 % | F11: =INDEX(хоспитализации!$C$5:$AE$25,MATCH($A11,хоспитализации!$A$5:$A$25,0),1) -> 1,008.20
A12: VIII | B12: Болести на ухото и мастоидния израстък | C12: =INDEX(хоспитализации1!$C$5:$AE$25,MATCH($A12,хоспитализации!$A$5:$A$25,0),MATCH($A$1,хоспитализации!$C$3:$AE$3,0)) -> 925 | D12: =INDEX(хоспитализации!$C$5:$AE$25,MATCH($A12,хоспитализации!$A$5:$A$25,0),MATCH($A$1,хоспитализации!$C$3:$AE$3,0)) -> 503.40 | E12: 3.16 % | F12: =INDEX(хоспитализации!$C$5:$AE$25,MATCH($A12,хоспитализации!$A$5:$A$25,0),1) -> 546.00
A13: IХ | B13: Болести на органите на кръвообращението | C13: =INDEX(хоспитализации1!$C$5:$AE$25,MATCH($A13,хоспитализации!$A$5:$A$25,0),MATCH($A$1,хоспитализации!$C$3:$AE$3,0)) -> 3,884 | D13: =INDEX(хоспитализации!$C$5:$AE$25,MATCH($A13,хоспитализации!$A$5:$A$25,0),MATCH($A$1,хоспитализации!$C$3:$AE$3,0)) -> 2,113.80 | E13: 13.26 % | F13: =INDEX(хоспитализации!$C$5:$AE$25,MATCH($A13,хоспитализации!$A$5:$A$25,0),1) -> 4,444.60
A14: Х | B14: Болести на дихателната система | C14: =INDEX(хоспитализации1!$C$5:$AE$25,MATCH($A14,хоспитализации!$A$5:$A$25,0),MATCH($A$1,хоспитализации!$C$3:$AE$3,0)) -> 3,498 | D14: =INDEX(хоспитализации!$C$5:$AE$25,MATCH($A14,хоспитализации!$A$5:$A$25,0),MATCH($A$1,хоспитализации!$C$3:$AE$3,0)) -> 1,903.70 | E14: 11.94 % | F14: =INDEX(хоспитализации!$C$5:$AE$25,MATCH($A14,хоспитализации!$A$5:$A$25,0),1) -> 3,322.00
A15: ХI | B15: Болести на храносмилателната система | C15: =INDEX(хоспитализации1!$C$5:$AE$25,MATCH($A15,хоспитализации!$A$5:$A$25,0),MATCH($A$1,хоспитализации!$C$3:$AE$3,0)) -> 1,995 | D15: =INDEX(хоспитализации!$C$5:$AE$25,MATCH($A15,хоспитализации!$A$5:$A$25,0),MATCH($A$1,хоспитализации!$C$3:$AE$3,0)) -> 1,085.70 | E15: 6.81 % | F15: =INDEX(хоспитализации!$C$5:$AE$25,MATCH($A15,хоспитализации!$A$5:$A$25,0),1) -> 2,764.10
A16: ХII | B16: Болести на кожата и подкожната тъкан | C16: =INDEX(хоспитализации1!$C$5:$AE$25,MATCH($A16,хоспитализации!$A$5:$A$25,0),MATCH($A$1,хоспитализации!$C$3:$AE$3,0)) -> 502 | D16: =INDEX(хоспитализации!$C$5:$AE$25,MATCH($A16,хоспитализации!$A$5:$A$25,0),MATCH($A$1,хоспитализации!$C$3:$AE$3,0)) -> 273.20 | E16: 1.71 % | F16: =INDEX(хоспитализации!$C$5:$AE$25,MATCH($A16,хоспитализации!$A$5:$A$25,0),1) -> 649.90
A17: ХIII | B17: Болести на костно-мускулната сис­тема и на съединителната тъкан | C17: =INDEX(хоспитализации1!$C$5:$AE$25,MATCH($A17,хоспитализации!$A$5:$A$25,0),MATCH($A$1,хоспитализации!$C$3:$AE$3,0)) -> 1,682 | D17: =INDEX(хоспитализации!$C$5:$AE$25,MATCH($A17,хоспитализации!$A$5:$A$25,0),MATCH($A$1,хоспитализации!$C$3:$AE$3,0)) -> 915.40 | E17: 5.74 % | F17: =INDEX(хоспитализации!$C$5:$AE$25,MATCH($A17,хоспитализации!$A$5:$A$25,0),1) -> 1,740.70
A18: ХIV | B18: Болести на пикочо-половата система | C18: =INDEX(хоспитализации1!$C$5:$AE$25,MATCH($A18,хоспитализации!$A$5:$A$25,0),MATCH($A$1,хоспитализации!$C$3:$AE$3,0)) -> 1,957 | D18: =INDEX(хоспитализации!$C$5:$AE$25,MATCH($A18,хоспитализации!$A$5:$A$25,0),MATCH($A$1,хоспитализации!$C$3:$AE$3,0)) -> 1,065.10 | E18: 6.68 % | F18: =INDEX(хоспитализации!$C$5:$AE$25,MATCH($A18,хоспитализации!$A$5:$A$25,0),1) -> 2,314.80
A19: ХV | B19: Бременност, раждане и послеродов период | C19: =INDEX(хоспитализации1!$C$5:$AE$25,MATCH($A19,хоспитализации!$A$5:$A$25,0),MATCH($A$1,хоспитализации!$C$3:$AE$3,0)) -> 2,671 | D19: =INDEX(хоспитализации!$C$5:$AE$25,MATCH($A19,хоспитализации!$A$5:$A$25,0),MATCH($A$1,хоспитализации!$C$3:$AE$3,0)) -> 1,453.70 | E19: 9.12 % | F19: =INDEX(хоспитализации!$C$5:$AE$25,MATCH($A19,хоспитализации!$A$5:$A$25,0),1) -> 1,911.30
A20: ХVI | B20: Някои състояния, възникващи през перинаталния период | C20: =INDEX(хоспитализации1!$C$5:$AE$25,MATCH($A20,хоспитализации!$A$5:$A$25,0),MATCH($A$1,хоспитализации!$C$3:$AE$3,0)) -> 606 | D20: =INDEX(хоспитализации!$C$5:$AE$25,MATCH($A20,хоспитализации!$A$5:$A$25,0),MATCH($A$1,хоспитализации!$C$3:$AE$3,0)) -> 329.80 | E20: 2.07 % | F20: =INDEX(хоспитализации!$C$5:$AE$25,MATCH($A20,хоспитализации!$A$5:$A$25,0),1) -> 344.00
A21: ХVII | B21: Вродени аномалии [пороци на развитието], деформации и хромозомни аберации | C21: =INDEX(хоспитализации1!$C$5:$AE$25,MATCH($A21,хоспитализации!$A$5:$A$25,0),MATCH($A$1,хоспитализации!$C$3:$AE$3,0)) -> 19 | D21: =INDEX(хоспитализации!$C$5:$AE$25,MATCH($A21,хоспитализации!$A$5:$A$25,0),MATCH($A$1,хоспитализации!$C$3:$AE$3,0)) -> 10.30 | E21: 0.06 % | F21: =INDEX(хоспитализации!$C$5:$AE$25,MATCH($A21,хоспитализации!$A$5:$A$25,0),1) -> 88.50
A22: ХVIII | B22: Симптоми, признаци и отклонения от нормата | C22: =INDEX(хоспитализации1!$C$5:$AE$25,MATCH($A22,хоспитализации!$A$5:$A$25,0),MATCH($A$1,хоспитализации!$C$3:$AE$3,0)) -> 160 | D22: =INDEX(хоспитализации!$C$5:$AE$25,MATCH($A22,хоспитализации!$A$5:$A$25,0),MATCH($A$1,хоспитализации!$C$3:$AE$3,0)) -> 87.10 | E22: 0.55 % | F22: =INDEX(хоспитализации!$C$5:$AE$25,MATCH($A22,хоспитализации!$A$5:$A$25,0),1) -> 280.40
A23: ХIX | B23: Травми, отравяния и някои други последици от въздействието на външни причини | C23: =INDEX(хоспитализации1!$C$5:$AE$25,MATCH($A23,хоспитализации!$A$5:$A$25,0),MATCH($A$1,хоспитализации!$C$3:$AE$3,0)) -> 1,888 | D23: =INDEX(хоспитализации!$C$5:$AE$25,MATCH($A23,хоспитализации!$A$5:$A$25,0),MATCH($A$1,хоспитализации!$C$3:$AE$3,0)) -> 1,027.50 | E23: 6.45 % | F23: =INDEX(хоспитализации!$C$5:$AE$25,MATCH($A23,хоспитализации!$A$5:$A$25,0),1) -> 1,609.40
A24: XX | B24: Външни причини за заболеваемост и смъртност | C24: =INDEX(хоспитализации1!$C$5:$AE$25,MATCH($A24,хоспитализации!$A$5:$A$25,0),MATCH($A$1,хоспитализации!$C$3:$AE$3,0)) -> 0 | D24: =INDEX(хоспитализации!$C$5:$AE$25,MATCH($A24,хоспитализации!$A$5:$A$25,0),MATCH($A$1,хоспитализации!$C$3:$AE$3,0)) -> 0 | E24: =IFERROR(C24/C$26,0) -> 0 | F24: =INDEX(хоспитализации!$C$5:$AE$25,MATCH($A24,хоспитализации!$A$5:$A$25,0),1) -> 0
A25: XXI | B25: Фактори, влияещи върху здравното състояние на населението и контакта със здравните служби | C25: =INDEX(хоспитализации1!$C$5:$AE$25,MATCH($A25,хоспитализации!$A$5:$A$25,0),MATCH($A$1,хоспитализации!$C$3:$AE$3,0)) -> 3,823 | D25: =INDEX(хоспитализации!$C$5:$AE$25,MATCH($A25,хоспитализации!$A$5:$A$25,0),MATCH($A$1,хоспитализации!$C$3:$AE$3,0)) -> 2,080.60 | E25: 13.05 % | F25: =INDEX(хоспитализации!$C$5:$AE$25,MATCH($A25,хоспитализации!$A$5:$A$25,0),1) -> 5,228.30
A26: ОБЩО | C26: =SUM(C5:C25) -> 29,287 | D26: =SUM(D5:D25) -> 15,938.80 | E26: =SUM(E5:E25) -> 100.00 % | F26: =SUM(F5:F25) -> 32,161.30

Sheet II_1
A1: =I_1!$A$1 -> ДОБРИЧ | B1: =VLOOKUP($A$1,I_1!$A$6:$C$299,3,0) -> 182,808 | C1: Обратно към УКАЗАНИЯТА | E1: 1 | F1: 2 | G1: 3 | H1: 4 | I1: 5 | J1: 6 | K1: 7 | L1: 8 | M1: 9 | N1: 10 | O1: 11 | P1: 12 | Q1: 13 | R1: 14 | S1: 15 | T1: 16 | U1: 17 | V1: 18 | W1: 19 | X1: 20 | Y1: 21 | Z1: 22 | AA1: 22
A2: РАЗДЕЛ II. ВИД, БРОЙ, ДЕЙНОСТИ И РАЗПРЕДЕЛЕНИЕ НА СЪЩЕСТВУВАЩИТЕ ЛЕЧЕБНИ ЗАВЕДЕНИЯ
A3: Таблица 1. Вид, брой, дейност и разпределение на съществуващите лечебни заведения
A4: ВИД ЛЕЧЕБНО ЗАВЕДЕНИЕ | B4: АБРЕВИАТУРА | C4: ="ОБЛАСТ "&A1 -> ОБЛАСТ ДОБРИЧ | D4: на 100 хил. души население | E4: =IF(F1<COUNTIF(I_1!$A$6:$A$299,II_1!$A$1)+1,INDEX(I_1!$B$6:$B$299,MATCH(II_1!$A$1,I_1!$A$6:$A$299,0)+II_1!E$1,1),0) -> Балчик | F4: =IF(G1<COUNTIF(I_1!$A$6:$A$299,II_1!$A$1)+1,INDEX(I_1!$B$6:$B$299,MATCH(II_1!$A$1,I_1!$A$6:$A$299,0)+II_1!F$1,1),0) -> Генерал Тошево | G4: =IF(H1<COUNTIF(I_1!$A$6:$A$299,II_1!$A$1)+1,INDEX(I_1!$B$6:$B$299,MATCH(II_1!$A$1,I_1!$A$6:$A$299,0)+II_1!G$1,1),0) -> Добрич-селска | H4: =IF(I1<COUNTIF(I_1!$A$6:$A$299,II_1!$A$1)+1,INDEX(I_1!$B$6:$B$299,MATCH(II_1!$A$1,I_1!$A$6:$A$299,0)+II_1!H$1,1),0) -> Добрич | I4: =IF(J1<COUNTIF(I_1!$A$6:$A$299,II_1!$A$1)+1,INDEX(I_1!$B$6:$B$299,MATCH(II_1!$A$1,I_1!$A$6:$A$299,0)+II_1!I$1,1),0) -> Каварна | J4: =IF(K1<COUNTIF(I_1!$A$6:$A$299,II_1!$A$1)+1,INDEX(I_1!$B$6:$B$299,MATCH(II_1!$A$1,I_1!$A$6:$A$299,0)+II_1!J$1,1),0) -> Крушари | K4: =IF(L1<COUNTIF(I_1!$A$6:$A$299,II_1!$A$1)+1,INDEX(I_1!$B$6:$B$299,MATCH(II_1!$A$1,I_1!$A$6:$A$299,0)+II_1!K$1,1),0) -> Тервел | L4: =IF(M1<COUNTIF(I_1!$A$6:$A$299,II_1!$A$1)+1,INDEX(I_1!$B$6:$B$299,MATCH(II_1!$A$1,I_1!$A$6:$A$299,0)+II_1!L$1,1),0) -> Шабла | M4: =IF(N1<COUNTIF(I_1!$A$6:$A$299,II_1!$A$1)+1,INDEX(I_1!$B$6:$B$299,MATCH(II_1!$A$1,I_1!$A$6:$A$299,0)+II_1!M$1,1),0) -> 0 | N4: =IF(O1<COUNTIF(I_1!$A$6:$A$299,II_1!$A$1)+1,INDEX(I_1!$B$6:$B$299,MATCH(II_1!$A$1,I_1!$A$6:$A$299,0)+II_1!N$1,1),0) -> 0 | O4: =IF(P1<COUNTIF(I_1!$A$6:$A$299,II_1!$A$1)+1,INDEX(I_1!$B$6:$B$299,MATCH(II_1!$A$1,I_1!$A$6:$A$299,0)+II_1!O$1,1),0) -> 0 | P4: =IF(Q1<COUNTIF(I_1!$A$6:$A$299,II_1!$A$1)+1,INDEX(I_1!$B$6:$B$299,MATCH(II_1!$A$1,I_1!$A$6:$A$299,0)+II_1!P$1,1),0) -> 0 | Q4: =IF(R1<COUNTIF(I_1!$A$6:$A$299,II_1!$A$1)+1,INDEX(I_1!$B$6:$B$299,MATCH(II_1!$A$1,I_1!$A$6:$A$299,0)+II_1!Q$1,1),0) -> 0 | R4: =IF(S1<COUNTIF(I_1!$A$6:$A$299,II_1!$A$1)+1,INDEX(I_1!$B$6:$B$299,MATCH(II_1!$A$1,I_1!$A$6:$A$299,0)+II_1!R$1,1),0) -> 0 | S4: =IF(T1<COUNTIF(I_1!$A$6:$A$299,II_1!$A$1)+1,INDEX(I_1!$B$6:$B$299,MATCH(II_1!$A$1,I_1!$A$6:$A$299,0)+II_1!S$1,1),0) -> 0 | T4: =IF(U1<COUNTIF(I_1!$A$6:$A$299,II_1!$A$1)+1,INDEX(I_1!$B$6:$B$299,MATCH(II_1!$A$1,I_1!$A$6:$A$299,0)+II_1!T$1,1),0) -> 0 | U4: =IF(V1<COUNTIF(I_1!$A$6:$A$299,II_1!$A$1)+1,INDEX(I_1!$B$6:$B$299,MATCH(II_1!$A$1,I_1!$A$6:$A$299,0)+II_1!U$1,1),0) -> 0 | V4: =IF(W1<COUNTIF(I_1!$A$6:$A$299,II_1!$A$1)+1,INDEX(I_1!$B$6:$B$299,MATCH(II_1!$A$1,I_1!$A$6:$A$299,0)+II_1!V$1,1),0) -> 0 | W4: =IF(X1<COUNTIF(I_1!$A$6:$A$299,II_1!$A$1)+1,INDEX(I_1!$B$6:$B$299,MATCH(II_1!$A$1,I_1!$A$6:$A$299,0)+II_1!W$1,1),0) -> 0 | X4: =IF(Y1<COUNTIF(I_1!$A$6:$A$299,II_1!$A$1)+1,INDEX(I_1!$B$6:$B$299,MATCH(II_1!$A$1,I_1!$A$6:$A$299,0)+II_1!X$1,1),0) -> 0 | Y4: =IF(Z1<COUNTIF(I_1!$A$6:$A$299,II_1!$A$1)+1,INDEX(I_1!$B$6:$B$299,MATCH(II_1!$A$1,I_1!$A$6:$A$299,0)+II_1!Y$1,1),0) -> 0 | Z4: =IF(AA1<COUNTIF(I_1!$A$6:$A$299,II_1!$A$1)+1,INDEX(I_1!$B$6:$B$299,MATCH(II_1!$A$1,I_1!$A$6:$A$299,0)+II_1!Z$1,1),0) -> 0 | AA4: =COUNTIF(E4:Z4,"<>0") -> 8
A5: ПЪРВИЧНА ИЗВЪНБОЛНИЧНА ПОМОЩ | C5: =SUM(C6:C9) -> 224 | D5: =C5/($B$1/100000) -> 122.53 | E5: =SUM(E6:E9) -> 25 | F5: 19 | G5: 16 | H5: 123 | I5: 16 | J5: 5 | K5: 15 | L5: 5 | M5: 0 | N5: 0 | O5: 0 | P5: 0 | Q5: 0 | R5: 0 | S5: 0 | T5: 0 | U5: 0 | V5: 0 | W5: 0 | X5: 0 | Y5: 0 | Z5: 0
A6: Индивидуална практика за първична извънболнична медицинска помощ | B6: ИППИМП | C6: =SUM(E6:Z6) -> 99 | D6: 54.16 | E6: =IF(E$4<>"",COUNTIFS(tbl_PIMP[ОБЩИНА],II_1!E$4,tbl_PIMP[ВИД НА ЛЗ],II_1!$B6),"") -> 13 | F6: =IF(F$4<>"",COUNTIFS(tbl_PIMP[ОБЩИНА],II_1!F$4,tbl_PIMP[ВИД НА ЛЗ],II_1!$B6),"") -> 11 | G6: =IF(G$4<>"",COUNTIFS(tbl_PIMP[ОБЩИНА],II_1!G$4,tbl_PIMP[ВИД НА ЛЗ],II_1!$B6),"") -> 9 | H6: =IF(H$4<>"",COUNTIFS(tbl_PIMP[ОБЩИНА],II_1!H$4,tbl_PIMP[ВИД НА ЛЗ],II_1!$B6),"") -> 40 | I6: =IF(I$4<>"",COUNTIFS(tbl_PIMP[ОБЩИНА],II_1!I$4,tbl_PIMP[ВИД НА ЛЗ],II_1!$B6),"") -> 8 | J6: =IF(J$4<>"",COUNTIFS(tbl_PIMP[ОБЩИНА],II_1!J$4,tbl_PIMP[ВИД НА ЛЗ],II_1!$B6),"") -> 4 | K6: =IF(K$4<>"",COUNTIFS(tbl_PIMP[ОБЩИНА],II_1!K$4,tbl_PIMP[ВИД НА ЛЗ],II_1!$B6),"") -> 10 | L6: =IF(L$4<>"",COUNTIFS(tbl_PIMP[ОБЩИНА],II_1!L$4,tbl_PIMP[ВИД НА ЛЗ],II_1!$B6),"") -> 4 | M6: =IF(M$4<>"",COUNTIFS(tbl_PIMP[ОБЩИНА],II_1!M$4,tbl_PIMP[ВИД НА ЛЗ],II_1!$B6),"") -> 0 | N6: =IF(N$4<>"",COUNTIFS(tbl_PIMP[ОБЩИНА],II_1!N$4,tbl_PIMP[ВИД НА ЛЗ],II_1!$B6),"") -> 0 | O6: =IF(O$4<>"",COUNTIFS(tbl_PIMP[ОБЩИНА],II_1!O$4,tbl_PIMP[ВИД НА ЛЗ],II_1!$B6),"") -> 0 | P6: =IF(P$4<>"",COUNTIFS(tbl_PIMP[ОБЩИНА],II_1!P$4,tbl_PIMP[ВИД НА ЛЗ],II_1!$B6),"") -> 0 | Q6: =IF(Q$4<>"",COUNTIFS(tbl_PIMP[ОБЩИНА],II_1!Q$4,tbl_PIMP[ВИД НА ЛЗ],II_1!$B6),"") -> 0 | R6: =IF(R$4<>"",COUNTIFS(tbl_PIMP[ОБЩИНА],II_1!R$4,tbl_PIMP[ВИД НА ЛЗ],II_1!$B6),"") -> 0 | S6: =IF(S$4<>"",COUNTIFS(tbl_PIMP[ОБЩИНА],II_1!S$4,tbl_PIMP[ВИД НА ЛЗ],II_1!$B6),"") -> 0 | T6: =IF(T$4<>"",COUNTIFS(tbl_PIMP[ОБЩИНА],II_1!T$4,tbl_PIMP[ВИД НА ЛЗ],II_1!$B6),"") -> 0 | U6: =IF(U$4<>"",COUNTIFS(tbl_PIMP[ОБЩИНА],II_1!U$4,tbl_PIMP[ВИД НА ЛЗ],II_1!$B6),"") -> 0 | V6: =IF(V$4<>"",COUNTIFS(tbl_PIMP[ОБЩИНА],II_1!V$4,tbl_PIMP[ВИД НА ЛЗ],II_1!$B6),"") -> 0 | W6: =IF(W$4<>"",COUNTIFS(tbl_PIMP[ОБЩИНА],II_1!W$4,tbl_PIMP[ВИД НА ЛЗ],II_1!$B6),"") -> 0 | X6: =IF(X$4<>"",COUNTIFS(tbl_PIMP[ОБЩИНА],II_1!X$4,tbl_PIMP[ВИД НА ЛЗ],II_1!$B6),"") -> 0 | Y6: =IF(Y$4<>"",COUNTIFS(tbl_PIMP[ОБЩИНА],II_1!Y$4,tbl_PIMP[ВИД НА ЛЗ],II_1!$B6),"") -> 0 | Z6: =IF(Z$4<>"",COUNTIFS(tbl_PIMP[ОБЩИНА],II_1!Z$4,tbl_PIMP[ВИД НА ЛЗ],II_1!$B6),"") -> 0
A7: Индивидуална практика за първична извънболнична медицинска помощ - дентална медицина | B7: ИППИМП – ДМ | C7: =SUM(E7:Z7) -> 98 | D7: 53.61 | E7: =IF(E$4<>"",COUNTIFS(tbl_PIMP[ОБЩИНА],II_1!E$4,tbl_PIMP[ВИД НА ЛЗ],II_1!$B7),"") -> 6 | F7: =IF(F$4<>"",COUNTIFS(tbl_PIMP[ОБЩИНА],II_1!F$4,tbl_PIMP[ВИД НА ЛЗ],II_1!$B7),"") -> 8 | G7: =IF(G$4<>"",COUNTIFS(tbl_PIMP[ОБЩИНА],II_1!G$4,tbl_PIMP[ВИД НА ЛЗ],II_1!$B7),"") -> 4 | H7: =IF(H$4<>"",COUNTIFS(tbl_PIMP[ОБЩИНА],II_1!H$4,tbl_PIMP[ВИД НА ЛЗ],II_1!$B7),"") -> 68 | I7: =IF(I$4<>"",COUNTIFS(tbl_PIMP[ОБЩИНА],II_1!I$4,tbl_PIMP[ВИД НА ЛЗ],II_1!$B7),"") -> 7 | J7: =IF(J$4<>"",COUNTIFS(tbl_PIMP[ОБЩИНА],II_1!J$4,tbl_PIMP[ВИД НА ЛЗ],II_1!$B7),"") -> 1 | K7: =IF(K$4<>"",COUNTIFS(tbl_PIMP[ОБЩИНА],II_1!K$4,tbl_PIMP[ВИД НА ЛЗ],II_1!$B7),"") -> 3 | L7: =IF(L$4<>"",COUNTIFS(tbl_PIMP[ОБЩИНА],II_1!L$4,tbl_PIMP[ВИД НА ЛЗ],II_1!$B7),"") -> 1 | M7: =IF(M$4<>"",COUNTIFS(tbl_PIMP[ОБЩИНА],II_1!M$4,tbl_PIMP[ВИД НА ЛЗ],II_1!$B7),"") -> 0 | N7: =IF(N$4<>"",COUNTIFS(tbl_PIMP[ОБЩИНА],II_1!N$4,tbl_PIMP[ВИД НА ЛЗ],II_1!$B7),"") -> 0 | O7: =IF(O$4<>"",COUNTIFS(tbl_PIMP[ОБЩИНА],II_1!O$4,tbl_PIMP[ВИД НА ЛЗ],II_1!$B7),"") -> 0 | P7: =IF(P$4<>"",COUNTIFS(tbl_PIMP[ОБЩИНА],II_1!P$4,tbl_PIMP[ВИД НА ЛЗ],II_1!$B7),"") -> 0 | Q7: =IF(Q$4<>"",COUNTIFS(tbl_PIMP[ОБЩИНА],II_1!Q$4,tbl_PIMP[ВИД НА ЛЗ],II_1!$B7),"") -> 0 | R7: =IF(R$4<>"",COUNTIFS(tbl_PIMP[ОБЩИНА],II_1!R$4,tbl_PIMP[ВИД НА ЛЗ],II_1!$B7),"") -> 0 | S7: =IF(S$4<>"",COUNTIFS(tbl_PIMP[ОБЩИНА],II_1!S$4,tbl_PIMP[ВИД НА ЛЗ],II_1!$B7),"") -> 0 | T7: =IF(T$4<>"",COUNTIFS(tbl_PIMP[ОБЩИНА],II_1!T$4,tbl_PIMP[ВИД НА ЛЗ],II_1!$B7),"") -> 0 | U7: =IF(U$4<>"",COUNTIFS(tbl_PIMP[ОБЩИНА],II_1!U$4,tbl_PIMP[ВИД НА ЛЗ],II_1!$B7),"") -> 0 | V7: =IF(V$4<>"",COUNTIFS(tbl_PIMP[ОБЩИНА],II_1!V$4,tbl_PIMP[ВИД НА ЛЗ],II_1!$B7),"") -> 0 | W7: =IF(W$4<>"",COUNTIFS(tbl_PIMP[ОБЩИНА],II_1!W$4,tbl_PIMP[ВИД НА ЛЗ],II_1!$B7),"") -> 0 | X7: =IF(X$4<>"",COUNTIFS(tbl_PIMP[ОБЩИНА],II_1!X$4,tbl_PIMP[ВИД НА ЛЗ],II_1!$B7),"") -> 0 | Y7: =IF(Y$4<>"",COUNTIFS(tbl_PIMP[ОБЩИНА],II_1!Y$4,tbl_PIMP[ВИД НА ЛЗ],II_1!$B7),"") -> 0 | Z7: =IF(Z$4<>"",COUNTIFS(tbl_PIMP[ОБЩИНА],II_1!Z$4,tbl_PIMP[ВИД НА ЛЗ],II_1!$B7),"") -> 0
A8: Групова практика за първична извънболнична медицинска помощ | B8: ГППИМП | C8: =SUM(E8:Z8) -> 10 | D8: 5.47 | E8: =IF(E$4<>"",COUNTIFS(tbl_PIMP[ОБЩИНА],II_1!E$4,tbl_PIMP[ВИД НА ЛЗ],II_1!$B8),"") -> 2 | F8: =IF(F$4<>"",COUNTIFS(tbl_PIMP[ОБЩИНА],II_1!F$4,tbl_PIMP[ВИД НА ЛЗ],II_1!$B8),"") -> 0 | G8: =IF(G$4<>"",COUNTIFS(tbl_PIMP[ОБЩИНА],II_1!G$4,tbl_PIMP[ВИД НА ЛЗ],II_1!$B8),"") -> 3 | H8: =IF(H$4<>"",COUNTIFS(tbl_PIMP[ОБЩИНА],II_1!H$4,tbl_PIMP[ВИД НА ЛЗ],II_1!$B8),"") -> 5 | I8: =IF(I$4<>"",COUNTIFS(tbl_PIMP[ОБЩИНА],II_1!I$4,tbl_PIMP[ВИД НА ЛЗ],II_1!$B8),"") -> 0 | J8: =IF(J$4<>"",COUNTIFS(tbl_PIMP[ОБЩИНА],II_1!J$4,tbl_PIMP[ВИД НА ЛЗ],II_1!$B8),"") -> 0 | K8: =IF(K$4<>"",COUNTIFS(tbl_PIMP[ОБЩИНА],II_1!K$4,tbl_PIMP[ВИД НА ЛЗ],II_1!$B8),"") -> 0 | L8: =IF(L$4<>"",COUNTIFS(tbl_PIMP[ОБЩИНА],II_1!L$4,tbl_PIMP[ВИД НА ЛЗ],II_1!$B8),"") -> 0 | M8: =IF(M$4<>"",COUNTIFS(tbl_PIMP[ОБЩИНА],II_1!M$4,tbl_PIMP[ВИД НА ЛЗ],II_1!$B8),"") -> 0 | N8: =IF(N$4<>"",COUNTIFS(tbl_PIMP[ОБЩИНА],II_1!N$4,tbl_PIMP[ВИД НА ЛЗ],II_1!$B8),"") -> 0 | O8: =IF(O$4<>"",COUNTIFS(tbl_PIMP[ОБЩИНА],II_1!O$4,tbl_PIMP[ВИД НА ЛЗ],II_1!$B8),"") -> 0 | P8: =IF(P$4<>"",COUNTIFS(tbl_PIMP[ОБЩИНА],II_1!P$4,tbl_PIMP[ВИД НА ЛЗ],II_1!$B8),"") -> 0 | Q8: =IF(Q$4<>"",COUNTIFS(tbl_PIMP[ОБЩИНА],II_1!Q$4,tbl_PIMP[ВИД НА ЛЗ],II_1!$B8),"") -> 0 | R8: =IF(R$4<>"",COUNTIFS(tbl_PIMP[ОБЩИНА],II_1!R$4,tbl_PIMP[ВИД НА ЛЗ],II_1!$B8),"") -> 0 | S8: =IF(S$4<>"",COUNTIFS(tbl_PIMP[ОБЩИНА],II_1!S$4,tbl_PIMP[ВИД НА ЛЗ],II_1!$B8),"") -> 0 | T8: =IF(T$4<>"",COUNTIFS(tbl_PIMP[ОБЩИНА],II_1!T$4,tbl_PIMP[ВИД НА ЛЗ],II_1!$B8),"") -> 0 | U8: =IF(U$4<>"",COUNTIFS(tbl_PIMP[ОБЩИНА],II_1!U$4,tbl_PIMP[ВИД НА ЛЗ],II_1!$B8),"") -> 0 | V8: =IF(V$4<>"",COUNTIFS(tbl_PIMP[ОБЩИНА],II_1!V$4,tbl_PIMP[ВИД НА ЛЗ],II_1!$B8),"") -> 0 | W8: =IF(W$4<>"",COUNTIFS(tbl_PIMP[ОБЩИНА],II_1!W$4,tbl_PIMP[ВИД НА ЛЗ],II_1!$B8),"") -> 0 | X8: =IF(X$4<>"",COUNTIFS(tbl_PIMP[ОБЩИНА],II_1!X$4,tbl_PIMP[ВИД НА ЛЗ],II_1!$B8),"") -> 0 | Y8: =IF(Y$4<>"",COUNTIFS(tbl_PIMP[ОБЩИНА],II_1!Y$4,tbl_PIMP[ВИД НА ЛЗ],II_1!$B8),"") -> 0 | Z8: =IF(Z$4<>"",COUNTIFS(tbl_PIMP[ОБЩИНА],II_1!Z$4,tbl_PIMP[ВИД НА ЛЗ],II_1!$B8),"") -> 0
A9: Групова практика за първична извънболнична медицинска помощ - дентална медицина | B9: ГППИМП – ДМ | C9: =SUM(E9:Z9) -> 17 | D9: 9.30 | E9: =IF(E$4<>"",COUNTIFS(tbl_PIMP[ОБЩИНА],II_1!E$4,tbl_PIMP[ВИД НА ЛЗ],II_1!$B9),"") -> 4 | F9: =IF(F$4<>"",COUNTIFS(tbl_PIMP[ОБЩИНА],II_1!F$4,tbl_PIMP[ВИД НА ЛЗ],II_1!$B9),"") -> 0 | G9: =IF(G$4<>"",COUNTIFS(tbl_PIMP[ОБЩИНА],II_1!G$4,tbl_PIMP[ВИД НА ЛЗ],II_1!$B9),"") -> 0 | H9: =IF(H$4<>"",COUNTIFS(tbl_PIMP[ОБЩИНА],II_1!H$4,tbl_PIMP[ВИД НА ЛЗ],II_1!$B9),"") -> 10 | I9: =IF(I$4<>"",COUNTIFS(tbl_PIMP[ОБЩИНА],II_1!I$4,tbl_PIMP[ВИД НА ЛЗ],II_1!$B9),"") -> 1 | J9: =IF(J$4<>"",COUNTIFS(tbl_PIMP[ОБЩИНА],II_1!J$4,tbl_PIMP[ВИД НА ЛЗ],II_1!$B9),"") -> 0 | K9: =IF(K$4<>"",COUNTIFS(tbl_PIMP[ОБЩИНА],II_1!K$4,tbl_PIMP[ВИД НА ЛЗ],II_1!$B9),"") -> 2 | L9: =IF(L$4<>"",COUNTIFS(tbl_PIMP[ОБЩИНА],II_1!L$4,tbl_PIMP[ВИД НА ЛЗ],II_1!$B9),"") -> 0 | M9: =IF(M$4<>"",COUNTIFS(tbl_PIMP[ОБЩИНА],II_1!M$4,tbl_PIMP[ВИД НА ЛЗ],II_1!$B9),"") -> 0 | N9: =IF(N$4<>"",COUNTIFS(tbl_PIMP[ОБЩИНА],II_1!N$4,tbl_PIMP[ВИД НА ЛЗ],II_1!$B9),"") -> 0 | O9: =IF(O$4<>"",COUNTIFS(tbl_PIMP[ОБЩИНА],II_1!O$4,tbl_PIMP[ВИД НА ЛЗ],II_1!$B9),"") -> 0 | P9: =IF(P$4<>"",COUNTIFS(tbl_PIMP[ОБЩИНА],II_1!P$4,tbl_PIMP[ВИД НА ЛЗ],II_1!$B9),"") -> 0 | Q9: =IF(Q$4<>"",COUNTIFS(tbl_PIMP[ОБЩИНА],II_1!Q$4,tbl_PIMP[ВИД НА ЛЗ],II_1!$B9),"") -> 0 | R9: =IF(R$4<>"",COUNTIFS(tbl_PIMP[ОБЩИНА],II_1!R$4,tbl_PIMP[ВИД НА ЛЗ],II_1!$B9),"") -> 0 | S9: =IF(S$4<>"",COUNTIFS(tbl_PIMP[ОБЩИНА],II_1!S$4,tbl_PIMP[ВИД НА ЛЗ],II_1!$B9),"") -> 0 | T9: =IF(T$4<>"",COUNTIFS(tbl_PIMP[ОБЩИНА],II_1!T$4,tbl_PIMP[ВИД НА ЛЗ],II_1!$B9),"") -> 0 | U9: =IF(U$4<>"",COUNTIFS(tbl_PIMP[ОБЩИНА],II_1!U$4,tbl_PIMP[ВИД НА ЛЗ],II_1!$B9),"") -> 0 | V9: =IF(V$4<>"",COUNTIFS(tbl_PIMP[ОБЩИНА],II_1!V$4,tbl_PIMP[ВИД НА ЛЗ],II_1!$B9),"") -> 0 | W9: =IF(W$4<>"",COUNTIFS(tbl_PIMP[ОБЩИНА],II_1!W$4,tbl_PIMP[ВИД НА ЛЗ],II_1!$B9),"") -> 0 | X9: =IF(X$4<>"",COUNTIFS(tbl_PIMP[ОБЩИНА],II_1!X$4,tbl_PIMP[ВИД НА ЛЗ],II_1!$B9),"") -> 0 | Y9: =IF(Y$4<>"",COUNTIFS(tbl_PIMP[ОБЩИНА],II_1!Y$4,tbl_PIMP[ВИД НА ЛЗ],II_1!$B9),"") -> 0 | Z9: =IF(Z$4<>"",COUNTIFS(tbl_PIMP[ОБЩИНА],II_1!Z$4,tbl_PIMP[ВИД НА ЛЗ],II_1!$B9),"") -> 0
A10: СПЕЦИАЛИЗИРАНА ИЗВЪНБОЛНИЧНА ПОМОЩ | C10: =SUM(C11:C20) -> 129 | D10: 70.57 | E10: =SUM(E11:E20) -> 21 | F10: 2 | G10: 0 | H10: 96 | I10: 6 | J10: 0 | K10: 4 | L10: 0 | M10: 0 | N10: 0 | O10: 0 | P10: 0 | Q10: 0 | R10: 0 | S10: 0 | T10: 0 | U10: 0 | V10: 0 | W10: 0 | X10: 0 | Y10: 0 | Z10: 0
A11: Индивидуална практика за специализирана извънболнична медицинска помощ | B11: ИПСИМП | C11: =SUM(E11:Z11) -> 88 | D11: 48.14 | E11: =IF(E$4<>"",COUNTIFS(tbl_SIMP[ОБЩИНА],II_1!E$4,tbl_SIMP[ВИД НА ЛЗ],II_1!$B11),"") -> 15 | F11: =IF(F$4<>"",COUNTIFS(tbl_SIMP[ОБЩИНА],II_1!F$4,tbl_SIMP[ВИД НА ЛЗ],II_1!$B11),"") -> 1 | G11: =IF(G$4<>"",COUNTIFS(tbl_SIMP[ОБЩИНА],II_1!G$4,tbl_SIMP[ВИД НА ЛЗ],II_1!$B11),"") -> 0 | H11: =IF(H$4<>"",COUNTIFS(tbl_SIMP[ОБЩИНА],II_1!H$4,tbl_SIMP[ВИД НА ЛЗ],II_1!$B11),"") -> 67 | I11: =IF(I$4<>"",COUNTIFS(tbl_SIMP[ОБЩИНА],II_1!I$4,tbl_SIMP[ВИД НА ЛЗ],II_1!$B11),"") -> 3 | J11: =IF(J$4<>"",COUNTIFS(tbl_SIMP[ОБЩИНА],II_1!J$4,tbl_SIMP[ВИД НА ЛЗ],II_1!$B11),"") -> 0 | K11: =IF(K$4<>"",COUNTIFS(tbl_SIMP[ОБЩИНА],II_1!K$4,tbl_SIMP[ВИД НА ЛЗ],II_1!$B11),"") -> 2 | L11: =IF(L$4<>"",COUNTIFS(tbl_SIMP[ОБЩИНА],II_1!L$4,tbl_SIMP[ВИД НА ЛЗ],II_1!$B11),"") -> 0 | M11: =IF(M$4<>"",COUNTIFS(tbl_SIMP[ОБЩИНА],II_1!M$4,tbl_SIMP[ВИД НА ЛЗ],II_1!$B11),"") -> 0 | N11: =IF(N$4<>"",COUNTIFS(tbl_SIMP[ОБЩИНА],II_1!N$4,tbl_SIMP[ВИД НА ЛЗ],II_1!$B11),"") -> 0 | O11: =IF(O$4<>"",COUNTIFS(tbl_SIMP[ОБЩИНА],II_1!O$4,tbl_SIMP[ВИД НА ЛЗ],II_1!$B11),"") -> 0 | P11: =IF(P$4<>"",COUNTIFS(tbl_SIMP[ОБЩИНА],II_1!P$4,tbl_SIMP[ВИД НА ЛЗ],II_1!$B11),"") -> 0 | Q11: =IF(Q$4<>"",COUNTIFS(tbl_SIMP[ОБЩИНА],II_1!Q$4,tbl_SIMP[ВИД НА ЛЗ],II_1!$B11),"") -> 0 | R11: =IF(R$4<>"",COUNTIFS(tbl_SIMP[ОБЩИНА],II_1!R$4,tbl_SIMP[ВИД НА ЛЗ],II_1!$B11),"") -> 0 | S11: =IF(S$4<>"",COUNTIFS(tbl_SIMP[ОБЩИНА],II_1!S$4,tbl_SIMP[ВИД НА ЛЗ],II_1!$B11),"") -> 0 | T11: =IF(T$4<>"",COUNTIFS(tbl_SIMP[ОБЩИНА],II_1!T$4,tbl_SIMP[ВИД НА ЛЗ],II_1!$B11),"") -> 0 | U11: =IF(U$4<>"",COUNTIFS(tbl_SIMP[ОБЩИНА],II_1!U$4,tbl_SIMP[ВИД НА ЛЗ],II_1!$B11),"") -> 0 | V11: =IF(V$4<>"",COUNTIFS(tbl_SIMP[ОБЩИНА],II_1!V$4,tbl_SIMP[ВИД НА ЛЗ],II_1!$B11),"") -> 0 | W11: =IF(W$4<>"",COUNTIFS(tbl_SIMP[ОБЩИНА],II_1!W$4,tbl_SIMP[ВИД НА ЛЗ],II_1!$B11),"") -> 0 | X11: =IF(X$4<>"",COUNTIFS(tbl_SIMP[ОБЩИНА],II_1!X$4,tbl_SIMP[ВИД НА ЛЗ],II_1!$B11),"") -> 0 | Y11: =IF(Y$4<>"",COUNTIFS(tbl_SIMP[ОБЩИНА],II_1!Y$4,tbl_SIMP[ВИД НА ЛЗ],II_1!$B11),"") -> 0 | Z11: =IF(Z$4<>"",COUNTIFS(tbl_SIMP[ОБЩИНА],II_1!Z$4,tbl_SIMP[ВИД НА ЛЗ],II_1!$B11),"") -> 0
A12: Групова практика за специализирана извънболнична медицинска помощ | B12: ГПСИМП | C12: 2 | D12: 1.09 | E12: =IF(E$4<>"",COUNTIFS(tbl_SIMP[ОБЩИНА],II_1!E$4,tbl_SIMP[ВИД НА ЛЗ],II_1!$B12),"") -> 0 | F12: =IF(F$4<>"",COUNTIFS(tbl_SIMP[ОБЩИНА],II_1!F$4,tbl_SIMP[ВИД НА ЛЗ],II_1!$B12),"") -> 0 | G12: =IF(G$4<>"",COUNTIFS(tbl_SIMP[ОБЩИНА],II_1!G$4,tbl_SIMP[ВИД НА ЛЗ],II_1!$B12),"") -> 0 | H12: =IF(H$4<>"",COUNTIFS(tbl_SIMP[ОБЩИНА],II_1!H$4,tbl_SIMP[ВИД НА ЛЗ],II_1!$B12),"") -> 2 | I12: =IF(I$4<>"",COUNTIFS(tbl_SIMP[ОБЩИНА],II_1!I$4,tbl_SIMP[ВИД НА ЛЗ],II_1!$B12),"") -> 0 | J12: =IF(J$4<>"",COUNTIFS(tbl_SIMP[ОБЩИНА],II_1!J$4,tbl_SIMP[ВИД НА ЛЗ],II_1!$B12),"") -> 0 | K12: =IF(K$4<>"",COUNTIFS(tbl_SIMP[ОБЩИНА],II_1!K$4,tbl_SIMP[ВИД НА ЛЗ],II_1!$B12),"") -> 0 | L12: =IF(L$4<>"",COUNTIFS(tbl_SIMP[ОБЩИНА],II_1!L$4,tbl_SIMP[ВИД НА ЛЗ],II_1!$B12),"") -> 0 | M12: =IF(M$4<>"",COUNTIFS(tbl_SIMP[ОБЩИНА],II_1!M$4,tbl_SIMP[ВИД НА ЛЗ],II_1!$B12),"") -> 0 | N12: =IF(N$4<>"",COUNTIFS(tbl_SIMP[ОБЩИНА],II_1!N$4,tbl_SIMP[ВИД НА ЛЗ],II_1!$B12),"") -> 0 | O12: =IF(O$4<>"",COUNTIFS(tbl_SIMP[ОБЩИНА],II_1!O$4,tbl_SIMP[ВИД НА ЛЗ],II_1!$B12),"") -> 0 | P12: =IF(P$4<>"",COUNTIFS(tbl_SIMP[ОБЩИНА],II_1!P$4,tbl_SIMP[ВИД НА ЛЗ],II_1!$B12),"") -> 0 | Q12: =IF(Q$4<>"",COUNTIFS(tbl_SIMP[ОБЩИНА],II_1!Q$4,tbl_SIMP[ВИД НА ЛЗ],II_1!$B12),"") -> 0 | R12: =IF(R$4<>"",COUNTIFS(tbl_SIMP[ОБЩИНА],II_1!R$4,tbl_SIMP[ВИД НА ЛЗ],II_1!$B12),"") -> 0 | S12: =IF(S$4<>"",COUNTIFS(tbl_SIMP[ОБЩИНА],II_1!S$4,tbl_SIMP[ВИД НА ЛЗ],II_1!$B12),"") -> 0 | T12: =IF(T$4<>"",COUNTIFS(tbl_SIMP[ОБЩИНА],II_1!T$4,tbl_SIMP[ВИД НА ЛЗ],II_1!$B12),"") -> 0 | U12: =IF(U$4<>"",COUNTIFS(tbl_SIMP[ОБЩИНА],II_1!U$4,tbl_SIMP[ВИД НА ЛЗ],II_1!$B12),"") -> 0 | V12: =IF(V$4<>"",COUNTIFS(tbl_SIMP[ОБЩИНА],II_1!V$4,tbl_SIMP[ВИД НА ЛЗ],II_1!$B12),"") -> 0 | W12: =IF(W$4<>"",COUNTIFS(tbl_SIMP[ОБЩИНА],II_1!W$4,tbl_SIMP[ВИД НА ЛЗ],II_1!$B12),"") -> 0 | X12: =IF(X$4<>"",COUNTIFS(tbl_SIMP[ОБЩИНА],II_1!X$4,tbl_SIMP[ВИД НА ЛЗ],II_1!$B12),"") -> 0 | Y12: =IF(Y$4<>"",COUNTIFS(tbl_SIMP[ОБЩИНА],II_1!Y$4,tbl_SIMP[ВИД НА ЛЗ],II_1!$B12),"") -> 0 | Z12: =IF(Z$4<>"",COUNTIFS(tbl_SIMP[ОБЩИНА],II_1!Z$4,tbl_SIMP[ВИД НА ЛЗ],II_1!$B12),"") -> 0
A13: Индивидуална практика за специализирана извънболнична медицинска помощ - дентална медицина | B13: ИПСИДП | C13: 1 | D13: 0.55 | E13: =IF(E$4<>"",COUNTIFS(tbl_SIMP[ОБЩИНА],II_1!E$4,tbl_SIMP[ВИД НА ЛЗ],II_1!$B13),"") -> 0 | F13: =IF(F$4<>"",COUNTIFS(tbl_SIMP[ОБЩИНА],II_1!F$4,tbl_SIMP[ВИД НА ЛЗ],II_1!$B13),"") -> 0 | G13: =IF(G$4<>"",COUNTIFS(tbl_SIMP[ОБЩИНА],II_1!G$4,tbl_SIMP[ВИД НА ЛЗ],II_1!$B13),"") -> 0 | H13: =IF(H$4<>"",COUNTIFS(tbl_SIMP[ОБЩИНА],II_1!H$4,tbl_SIMP[ВИД НА ЛЗ],II_1!$B13),"") -> 1 | I13: =IF(I$4<>"",COUNTIFS(tbl_SIMP[ОБЩИНА],II_1!I$4,tbl_SIMP[ВИД НА ЛЗ],II_1!$B13),"") -> 0 | J13: =IF(J$4<>"",COUNTIFS(tbl_SIMP[ОБЩИНА],II_1!J$4,tbl_SIMP[ВИД НА ЛЗ],II_1!$B13),"") -> 0 | K13: =IF(K$4<>"",COUNTIFS(tbl_SIMP[ОБЩИНА],II_1!K$4,tbl_SIMP[ВИД НА ЛЗ],II_1!$B13),"") -> 0 | L13: =IF(L$4<>"",COUNTIFS(tbl_SIMP[ОБЩИНА],II_1!L$4,tbl_SIMP[ВИД НА ЛЗ],II_1!$B13),"") -> 0 | M13: =IF(M$4<>"",COUNTIFS(tbl_SIMP[ОБЩИНА],II_1!M$4,tbl_SIMP[ВИД НА ЛЗ],II_1!$B13),"") -> 0 | N13: =IF(N$4<>"",COUNTIFS(tbl_SIMP[ОБЩИНА],II_1!N$4,tbl_SIMP[ВИД НА ЛЗ],II_1!$B13),"") -> 0 | O13: =IF(O$4<>"",COUNTIFS(tbl_SIMP[ОБЩИНА],II_1!O$4,tbl_SIMP[ВИД НА ЛЗ],II_1!$B13),"") -> 0 | P13: =IF(P$4<>"",COUNTIFS(tbl_SIMP[ОБЩИНА],II_1!P$4,tbl_SIMP[ВИД НА ЛЗ],II_1!$B13),"") -> 0 | Q13: =IF(Q$4<>"",COUNTIFS(tbl_SIMP[ОБЩИНА],II_1!Q$4,tbl_SIMP[ВИД НА ЛЗ],II_1!$B13),"") -> 0 | R13: =IF(R$4<>"",COUNTIFS(tbl_SIMP[ОБЩИНА],II_1!R$4,tbl_SIMP[ВИД НА ЛЗ],II_1!$B13),"") -> 0 | S13: =IF(S$4<>"",COUNTIFS(tbl_SIMP[ОБЩИНА],II_1!S$4,tbl_SIMP[ВИД НА ЛЗ],II_1!$B13),"") -> 0 | T13: =IF(T$4<>"",COUNTIFS(tbl_SIMP[ОБЩИНА],II_1!T$4,tbl_SIMP[ВИД НА ЛЗ],II_1!$B13),"") -> 0 | U13: =IF(U$4<>"",COUNTIFS(tbl_SIMP[ОБЩИНА],II_1!U$4,tbl_SIMP[ВИД НА ЛЗ],II_1!$B13),"") -> 0 | V13: =IF(V$4<>"",COUNTIFS(tbl_SIMP[ОБЩИНА],II_1!V$4,tbl_SIMP[ВИД НА ЛЗ],II_1!$B13),"") -> 0 | W13: =IF(W$4<>"",COUNTIFS(tbl_SIMP[ОБЩИНА],II_1!W$4,tbl_SIMP[ВИД НА ЛЗ],II_1!$B13),"") -> 0 | X13: =IF(X$4<>"",COUNTIFS(tbl_SIMP[ОБЩИНА],II_1!X$4,tbl_SIMP[ВИД НА ЛЗ],II_1!$B13),"") -> 0 | Y13: =IF(Y$4<>"",COUNTIFS(tbl_SIMP[ОБЩИНА],II_1!Y$4,tbl_SIMP[ВИД НА ЛЗ],II_1!$B13),"") -> 0 | Z13: =IF(Z$4<>"",COUNTIFS(tbl_SIMP[ОБЩИНА],II_1!Z$4,tbl_SIMP[ВИД НА ЛЗ],II_1!$B13),"") -> 0
A14: Групова практика за специализирана извънболнична медицинска помощ - дентална медицина | B14: ГПСИДП | C14: 0 | D14: 0 | E14: =IF(E$4<>"",COUNTIFS(tbl_SIMP[ОБЩИНА],II_1!E$4,tbl_SIMP[ВИД НА ЛЗ],II_1!$B14),"") -> 0 | F14: =IF(F$4<>"",COUNTIFS(tbl_SIMP[ОБЩИНА],II_1!F$4,tbl_SIMP[ВИД НА ЛЗ],II_1!$B14),"") -> 0 | G14: =IF(G$4<>"",COUNTIFS(tbl_SIMP[ОБЩИНА],II_1!G$4,tbl_SIMP[ВИД НА ЛЗ],II_1!$B14),"") -> 0 | H14: =IF(H$4<>"",COUNTIFS(tbl_SIMP[ОБЩИНА],II_1!H$4,tbl_SIMP[ВИД НА ЛЗ],II_1!$B14),"") -> 0 | I14: =IF(I$4<>"",COUNTIFS(tbl_SIMP[ОБЩИНА],II_1!I$4,tbl_SIMP[ВИД НА ЛЗ],II_1!$B14),"") -> 0 | J14: =IF(J$4<>"",COUNTIFS(tbl_SIMP[ОБЩИНА],II_1!J$4,tbl_SIMP[ВИД НА ЛЗ],II_1!$B14),"") -> 0 | K14: =IF(K$4<>"",COUNTIFS(tbl_SIMP[ОБЩИНА],II_1!K$4,tbl_SIMP[ВИД НА ЛЗ],II_1!$B14),"") -> 0 | L14: =IF(L$4<>"",COUNTIFS(tbl_SIMP[ОБЩИНА],II_1!L$4,tbl_SIMP[ВИД НА ЛЗ],II_1!$B14),"") -> 0 | M14: =IF(M$4<>"",COUNTIFS(tbl_SIMP[ОБЩИНА],II_1!M$4,tbl_SIMP[ВИД НА ЛЗ],II_1!$B14),"") -> 0 | N14: =IF(N$4<>"",COUNTIFS(tbl_SIMP[ОБЩИНА],II_1!N$4,tbl_SIMP[ВИД НА ЛЗ],II_1!$B14),"") -> 0 | O14: =IF(O$4<>"",COUNTIFS(tbl_SIMP[ОБЩИНА],II_1!O$4,tbl_SIMP[ВИД НА ЛЗ],II_1!$B14),"") -> 0 | P14: =IF(P$4<>"",COUNTIFS(tbl_SIMP[ОБЩИНА],II_1!P$4,tbl_SIMP[ВИД НА ЛЗ],II_1!$B14),"") -> 0 | Q14: =IF(Q$4<>"",COUNTIFS(tbl_SIMP[ОБЩИНА],II_1!Q$4,tbl_SIMP[ВИД НА ЛЗ],II_1!$B14),"") -> 0 | R14: =IF(R$4<>"",COUNTIFS(tbl_SIMP[ОБЩИНА],II_1!R$4,tbl_SIMP[ВИД НА ЛЗ],II_1!$B14),"") -> 0 | S14: =IF(S$4<>"",COUNTIFS(tbl_SIMP[ОБЩИНА],II_1!S$4,tbl_SIMP[ВИД НА ЛЗ],II_1!$B14),"") -> 0 | T14: =IF(T$4<>"",COUNTIFS(tbl_SIMP[ОБЩИНА],II_1!T$4,tbl_SIMP[ВИД НА ЛЗ],II_1!$B14),"") -> 0 | U14: =IF(U$4<>"",COUNTIFS(tbl_SIMP[ОБЩИНА],II_1!U$4,tbl_SIMP[ВИД НА ЛЗ],II_1!$B14),"") -> 0 | V14: =IF(V$4<>"",COUNTIFS(tbl_SIMP[ОБЩИНА],II_1!V$4,tbl_SIMP[ВИД НА ЛЗ],II_1!$B14),"") -> 0 | W14: =IF(W$4<>"",COUNTIFS(tbl_SIMP[ОБЩИНА],II_1!W$4,tbl_SIMP[ВИД НА ЛЗ],II_1!$B14),"") -> 0 | X14: =IF(X$4<>"",COUNTIFS(tbl_SIMP[ОБЩИНА],II_1!X$4,tbl_SIMP[ВИД НА ЛЗ],II_1!$B14),"") -> 0 | Y14: =IF(Y$4<>"",COUNTIFS(tbl_SIMP[ОБЩИНА],II_1!Y$4,tbl_SIMP[ВИД НА ЛЗ],II_1!$B14),"") -> 0 | Z14: =IF(Z$4<>"",COUNTIFS(tbl_SIMP[ОБЩИНА],II_1!Z$4,tbl_SIMP[ВИД НА ЛЗ],II_1!$B14),"") -> 0
A15: Медицински център | B15: МЦ | C15: 13 | D15: 7.11 | E15: =IF(E$4<>"",COUNTIFS(tbl_SIMP[ОБЩИНА],II_1!E$4,tbl_SIMP[ВИД НА ЛЗ],II_1!$B15),"") -> 5 | F15: =IF(F$4<>"",COUNTIFS(tbl_SIMP[ОБЩИНА],II_1!F$4,tbl_SIMP[ВИД НА ЛЗ],II_1!$B15),"") -> 1 | G15: =IF(G$4<>"",COUNTIFS(tbl_SIMP[ОБЩИНА],II_1!G$4,tbl_SIMP[ВИД НА ЛЗ],II_1!$B15),"") -> 0 | H15: =IF(H$4<>"",COUNTIFS(tbl_SIMP[ОБЩИНА],II_1!H$4,tbl_SIMP[ВИД НА ЛЗ],II_1!$B15),"") -> 4 | I15: =IF(I$4<>"",COUNTIFS(tbl_SIMP[ОБЩИНА],II_1!I$4,tbl_SIMP[ВИД НА ЛЗ],II_1!$B15),"") -> 2 | J15: =IF(J$4<>"",COUNTIFS(tbl_SIMP[ОБЩИНА],II_1!J$4,tbl_SIMP[ВИД НА ЛЗ],II_1!$B15),"") -> 0 | K15: =IF(K$4<>"",COUNTIFS(tbl_SIMP[ОБЩИНА],II_1!K$4,tbl_SIMP[ВИД НА ЛЗ],II_1!$B15),"") -> 1 | L15: =IF(L$4<>"",COUNTIFS(tbl_SIMP[ОБЩИНА],II_1!L$4,tbl_SIMP[ВИД НА ЛЗ],II_1!$B15),"") -> 0 | M15: =IF(M$4<>"",COUNTIFS(tbl_SIMP[ОБЩИНА],II_1!M$4,tbl_SIMP[ВИД НА ЛЗ],II_1!$B15),"") -> 0 | N15: =IF(N$4<>"",COUNTIFS(tbl_SIMP[ОБЩИНА],II_1!N$4,tbl_SIMP[ВИД НА ЛЗ],II_1!$B15),"") -> 0 | O15: =IF(O$4<>"",COUNTIFS(tbl_SIMP[ОБЩИНА],II_1!O$4,tbl_SIMP[ВИД НА ЛЗ],II_1!$B15),"") -> 0 | P15: =IF(P$4<>"",COUNTIFS(tbl_SIMP[ОБЩИНА],II_1!P$4,tbl_SIMP[ВИД НА ЛЗ],II_1!$B15),"") -> 0 | Q15: =IF(Q$4<>"",COUNTIFS(tbl_SIMP[ОБЩИНА],II_1!Q$4,tbl_SIMP[ВИД НА ЛЗ],II_1!$B15),"") -> 0 | R15: =IF(R$4<>"",COUNTIFS(tbl_SIMP[ОБЩИНА],II_1!R$4,tbl_SIMP[ВИД НА ЛЗ],II_1!$B15),"") -> 0 | S15: =IF(S$4<>"",COUNTIFS(tbl_SIMP[ОБЩИНА],II_1!S$4,tbl_SIMP[ВИД НА ЛЗ],II_1!$B15),"") -> 0 | T15: =IF(T$4<>"",COUNTIFS(tbl_SIMP[ОБЩИНА],II_1!T$4,tbl_SIMP[ВИД НА ЛЗ],II_1!$B15),"") -> 0 | U15: =IF(U$4<>"",COUNTIFS(tbl_SIMP[ОБЩИНА],II_1!U$4,tbl_SIMP[ВИД НА ЛЗ],II_1!$B15),"") -> 0 | V15: =IF(V$4<>"",COUNTIFS(tbl_SIMP[ОБЩИНА],II_1!V$4,tbl_SIMP[ВИД НА ЛЗ],II_1!$B15),"") -> 0 | W15: =IF(W$4<>"",COUNTIFS(tbl_SIMP[ОБЩИНА],II_1!W$4,tbl_SIMP[ВИД НА ЛЗ],II_1!$B15),"") -> 0 | X15: =IF(X$4<>"",COUNTIFS(tbl_SIMP[ОБЩИНА],II_1!X$4,tbl_SIMP[ВИД НА ЛЗ],II_1!$B15),"") -> 0 | Y15: =IF(Y$4<>"",COUNTIFS(tbl_SIMP[ОБЩИНА],II_1!Y$4,tbl_SIMP[ВИД НА ЛЗ],II_1!$B15),"") -> 0 | Z15: =IF(Z$4<>"",COUNTIFS(tbl_SIMP[ОБЩИНА],II_1!Z$4,tbl_SIMP[ВИД НА ЛЗ],II_1!$B15),"") -> 0
A16: Медико дентален център | B16: МДЦ | C16: 0 | D16: 0 | E16: =IF(E$4<>"",COUNTIFS(tbl_SIMP[ОБЩИНА],II_1!E$4,tbl_SIMP[ВИД НА ЛЗ],II_1!$B16),"") -> 0 | F16: =IF(F$4<>"",COUNTIFS(tbl_SIMP[ОБЩИНА],II_1!F$4,tbl_SIMP[ВИД НА ЛЗ],II_1!$B16),"") -> 0 | G16: =IF(G$4<>"",COUNTIFS(tbl_SIMP[ОБЩИНА],II_1!G$4,tbl_SIMP[ВИД НА ЛЗ],II_1!$B16),"") -> 0 | H16: =IF(H$4<>"",COUNTIFS(tbl_SIMP[ОБЩИНА],II_1!H$4,tbl_SIMP[ВИД НА ЛЗ],II_1!$B16),"") -> 0 | I16: =IF(I$4<>"",COUNTIFS(tbl_SIMP[ОБЩИНА],II_1!I$4,tbl_SIMP[ВИД НА ЛЗ],II_1!$B16),"") -> 0 | J16: =IF(J$4<>"",COUNTIFS(tbl_SIMP[ОБЩИНА],II_1!J$4,tbl_SIMP[ВИД НА ЛЗ],II_1!$B16),"") -> 0 | K16: =IF(K$4<>"",COUNTIFS(tbl_SIMP[ОБЩИНА],II_1!K$4,tbl_SIMP[ВИД НА ЛЗ],II_1!$B16),"") -> 0 | L16: =IF(L$4<>"",COUNTIFS(tbl_SIMP[ОБЩИНА],II_1!L$4,tbl_SIMP[ВИД НА ЛЗ],II_1!$B16),"") -> 0 | M16: =IF(M$4<>"",COUNTIFS(tbl_SIMP[ОБЩИНА],II_1!M$4,tbl_SIMP[ВИД НА ЛЗ],II_1!$B16),"") -> 0 | N16: =IF(N$4<>"",COUNTIFS(tbl_SIMP[ОБЩИНА],II_1!N$4,tbl_SIMP[ВИД НА ЛЗ],II_1!$B16),"") -> 0 | O16: =IF(O$4<>"",COUNTIFS(tbl_SIMP[ОБЩИНА],II_1!O$4,tbl_SIMP[ВИД НА ЛЗ],II_1!$B16),"") -> 0 | P16: =IF(P$4<>"",COUNTIFS(tbl_SIMP[ОБЩИНА],II_1!P$4,tbl_SIMP[ВИД НА ЛЗ],II_1!$B16),"") -> 0 | Q16: =IF(Q$4<>"",COUNTIFS(tbl_SIMP[ОБЩИНА],II_1!Q$4,tbl_SIMP[ВИД НА ЛЗ],II_1!$B16),"") -> 0 | R16: =IF(R$4<>"",COUNTIFS(tbl_SIMP[ОБЩИНА],II_1!R$4,tbl_SIMP[ВИД НА ЛЗ],II_1!$B16),"") -> 0 | S16: =IF(S$4<>"",COUNTIFS(tbl_SIMP[ОБЩИНА],II_1!S$4,tbl_SIMP[ВИД НА ЛЗ],II_1!$B16),"") -> 0 | T16: =IF(T$4<>"",COUNTIFS(tbl_SIMP[ОБЩИНА],II_1!T$4,tbl_SIMP[ВИД НА ЛЗ],II_1!$B16),"") -> 0 | U16: =IF(U$4<>"",COUNTIFS(tbl_SIMP[ОБЩИНА],II_1!U$4,tbl_SIMP[ВИД НА ЛЗ],II_1!$B16),"") -> 0 | V16: =IF(V$4<>"",COUNTIFS(tbl_SIMP[ОБЩИНА],II_1!V$4,tbl_SIMP[ВИД НА ЛЗ],II_1!$B16),"") -> 0 | W16: =IF(W$4<>"",COUNTIFS(tbl_SIMP[ОБЩИНА],II_1!W$4,tbl_SIMP[ВИД НА ЛЗ],II_1!$B16),"") -> 0 | X16: =IF(X$4<>"",COUNTIFS(tbl_SIMP[ОБЩИНА],II_1!X$4,tbl_SIMP[ВИД НА ЛЗ],II_1!$B16),"") -> 0 | Y16: =IF(Y$4<>"",COUNTIFS(tbl_SIMP[ОБЩИНА],II_1!Y$4,tbl_SIMP[ВИД НА ЛЗ],II_1!$B16),"") -> 0 | Z16: =IF(Z$4<>"",COUNTIFS(tbl_SIMP[ОБЩИНА],II_1!Z$4,tbl_SIMP[ВИД НА ЛЗ],II_1!$B16),"") -> 0
A17: Дентален център | B17: ДЦ | C17: 1 | D17: 0.55 | E17: =IF(E$4<>"",COUNTIFS(tbl_SIMP[ОБЩИНА],II_1!E$4,tbl_SIMP[ВИД НА ЛЗ],II_1!$B17),"") -> 0 | F17: =IF(F$4<>"",COUNTIFS(tbl_SIMP[ОБЩИНА],II_1!F$4,tbl_SIMP[ВИД НА ЛЗ],II_1!$B17),"") -> 0 | G17: =IF(G$4<>"",COUNTIFS(tbl_SIMP[ОБЩИНА],II_1!G$4,tbl_SIMP[ВИД НА ЛЗ],II_1!$B17),"") -> 0 | H17: =IF(H$4<>"",COUNTIFS(tbl_SIMP[ОБЩИНА],II_1!H$4,tbl_SIMP[ВИД НА ЛЗ],II_1!$B17),"") -> 1 | I17: =IF(I$4<>"",COUNTIFS(tbl_SIMP[ОБЩИНА],II_1!I$4,tbl_SIMP[ВИД НА ЛЗ],II_1!$B17),"") -> 0 | J17: =IF(J$4<>"",COUNTIFS(tbl_SIMP[ОБЩИНА],II_1!J$4,tbl_SIMP[ВИД НА ЛЗ],II_1!$B17),"") -> 0 | K17: =IF(K$4<>"",COUNTIFS(tbl_SIMP[ОБЩИНА],II_1!K$4,tbl_SIMP[ВИД НА ЛЗ],II_1!$B17),"") -> 0 | L17: =IF(L$4<>"",COUNTIFS(tbl_SIMP[ОБЩИНА],II_1!L$4,tbl_SIMP[ВИД НА ЛЗ],II_1!$B17),"") -> 0 | M17: =IF(M$4<>"",COUNTIFS(tbl_SIMP[ОБЩИНА],II_1!M$4,tbl_SIMP[ВИД НА ЛЗ],II_1!$B17),"") -> 0 | N17: =IF(N$4<>"",COUNTIFS(tbl_SIMP[ОБЩИНА],II_1!N$4,tbl_SIMP[ВИД НА ЛЗ],II_1!$B17),"") -> 0 | O17: =IF(O$4<>"",COUNTIFS(tbl_SIMP[ОБЩИНА],II_1!O$4,tbl_SIMP[ВИД НА ЛЗ],II_1!$B17),"") -> 0 | P17: =IF(P$4<>"",COUNTIFS(tbl_SIMP[ОБЩИНА],II_1!P$4,tbl_SIMP[ВИД НА ЛЗ],II_1!$B17),"") -> 0 | Q17: =IF(Q$4<>"",COUNTIFS(tbl_SIMP[ОБЩИНА],II_1!Q$4,tbl_SIMP[ВИД НА ЛЗ],II_1!$B17),"") -> 0 | R17: =IF(R$4<>"",COUNTIFS(tbl_SIMP[ОБЩИНА],II_1!R$4,tbl_SIMP[ВИД НА ЛЗ],II_1!$B17),"") -> 0 | S17: =IF(S$4<>"",COUNTIFS(tbl_SIMP[ОБЩИНА],II_1!S$4,tbl_SIMP[ВИД НА ЛЗ],II_1!$B17),"") -> 0 | T17: =IF(T$4<>"",COUNTIFS(tbl_SIMP[ОБЩИНА],II_1!T$4,tbl_SIMP[ВИД НА ЛЗ],II_1!$B17),"") -> 0 | U17: =IF(U$4<>"",COUNTIFS(tbl_SIMP[ОБЩИНА],II_1!U$4,tbl_SIMP[ВИД НА ЛЗ],II_1!$B17),"") -> 0 | V17: =IF(V$4<>"",COUNTIFS(tbl_SIMP[ОБЩИНА],II_1!V$4,tbl_SIMP[ВИД НА ЛЗ],II_1!$B17),"") -> 0 | W17: =IF(W$4<>"",COUNTIFS(tbl_SIMP[ОБЩИНА],II_1!W$4,tbl_SIMP[ВИД НА ЛЗ],II_1!$B17),"") -> 0 | X17: =IF(X$4<>"",COUNTIFS(tbl_SIMP[ОБЩИНА],II_1!X$4,tbl_SIMP[ВИД НА ЛЗ],II_1!$B17),"") -> 0 | Y17: =IF(Y$4<>"",COUNTIFS(tbl_SIMP[ОБЩИНА],II_1!Y$4,tbl_SIMP[ВИД НА ЛЗ],II_1!$B17),"") -> 0 | Z17: =IF(Z$4<>"",COUNTIFS(tbl_SIMP[ОБЩИНА],II_1!Z$4,tbl_SIMP[ВИД НА ЛЗ],II_1!$B17),"") -> 0
A18: Диагностично-консултативен център | B18: ДКЦ | C18: 2 | D18: 1.09 | E18: =IF(E$4<>"",COUNTIFS(tbl_SIMP[ОБЩИНА],II_1!E$4,tbl_SIMP[ВИД НА ЛЗ],II_1!$B18),"") -> 0 | F18: =IF(F$4<>"",COUNTIFS(tbl_SIMP[ОБЩИНА],II_1!F$4,tbl_SIMP[ВИД НА ЛЗ],II_1!$B18),"") -> 0 | G18: =IF(G$4<>"",COUNTIFS(tbl_SIMP[ОБЩИНА],II_1!G$4,tbl_SIMP[ВИД НА ЛЗ],II_1!$B18),"") -> 0 | H18: =IF(H$4<>"",COUNTIFS(tbl_SIMP[ОБЩИНА],II_1!H$4,tbl_SIMP[ВИД НА ЛЗ],II_1!$B18),"") -> 2 | I18: =IF(I$4<>"",COUNTIFS(tbl_SIMP[ОБЩИНА],II_1!I$4,tbl_SIMP[ВИД НА ЛЗ],II_1!$B18),"") -> 0 | J18: =IF(J$4<>"",COUNTIFS(tbl_SIMP[ОБЩИНА],II_1!J$4,tbl_SIMP[ВИД НА ЛЗ],II_1!$B18),"") -> 0 | K18: =IF(K$4<>"",COUNTIFS(tbl_SIMP[ОБЩИНА],II_1!K$4,tbl_SIMP[ВИД НА ЛЗ],II_1!$B18),"") -> 0 | L18: =IF(L$4<>"",COUNTIFS(tbl_SIMP[ОБЩИНА],II_1!L$4,tbl_SIMP[ВИД НА ЛЗ],II_1!$B18),"") -> 0 | M18: =IF(M$4<>"",COUNTIFS(tbl_SIMP[ОБЩИНА],II_1!M$4,tbl_SIMP[ВИД НА ЛЗ],II_1!$B18),"") -> 0 | N18: =IF(N$4<>"",COUNTIFS(tbl_SIMP[ОБЩИНА],II_1!N$4,tbl_SIMP[ВИД НА ЛЗ],II_1!$B18),"") -> 0 | O18: =IF(O$4<>"",COUNTIFS(tbl_SIMP[ОБЩИНА],II_1!O$4,tbl_SIMP[ВИД НА ЛЗ],II_1!$B18),"") -> 0 | P18: =IF(P$4<>"",COUNTIFS(tbl_SIMP[ОБЩИНА],II_1!P$4,tbl_SIMP[ВИД НА ЛЗ],II_1!$B18),"") -> 0 | Q18: =IF(Q$4<>"",COUNTIFS(tbl_SIMP[ОБЩИНА],II_1!Q$4,tbl_SIMP[ВИД НА ЛЗ],II_1!$B18),"") -> 0 | R18: =IF(R$4<>"",COUNTIFS(tbl_SIMP[ОБЩИНА],II_1!R$4,tbl_SIMP[ВИД НА ЛЗ],II_1!$B18),"") -> 0 | S18: =IF(S$4<>"",COUNTIFS(tbl_SIMP[ОБЩИНА],II_1!S$4,tbl_SIMP[ВИД НА ЛЗ],II_1!$B18),"") -> 0 | T18: =IF(T$4<>"",COUNTIFS(tbl_SIMP[ОБЩИНА],II_1!T$4,tbl_SIMP[ВИД НА ЛЗ],II_1!$B18),"") -> 0 | U18: =IF(U$4<>"",COUNTIFS(tbl_SIMP[ОБЩИНА],II_1!U$4,tbl_SIMP[ВИД НА ЛЗ],II_1!$B18),"") -> 0 | V18: =IF(V$4<>"",COUNTIFS(tbl_SIMP[ОБЩИНА],II_1!V$4,tbl_SIMP[ВИД НА ЛЗ],II_1!$B18),"") -> 0 | W18: =IF(W$4<>"",COUNTIFS(tbl_SIMP[ОБЩИНА],II_1!W$4,tbl_SIMP[ВИД НА ЛЗ],II_1!$B18),"") -> 0 | X18: =IF(X$4<>"",COUNTIFS(tbl_SIMP[ОБЩИНА],II_1!X$4,tbl_SIMP[ВИД НА ЛЗ],II_1!$B18),"") -> 0 | Y18: =IF(Y$4<>"",COUNTIFS(tbl_SIMP[ОБЩИНА],II_1!Y$4,tbl_SIMP[ВИД НА ЛЗ],II_1!$B18),"") -> 0 | Z18: =IF(Z$4<>"",COUNTIFS(tbl_SIMP[ОБЩИНА],II_1!Z$4,tbl_SIMP[ВИД НА ЛЗ],II_1!$B18),"") -> 0
A19: Самостоятелна медико-диагностична лаборатория | B19: СМДЛ | C19: 4 | D19: 2.19 | E19: =IF(E$4<>"",COUNTIFS(tbl_SIMP[ОБЩИНА],II_1!E$4,tbl_SIMP[ВИД НА ЛЗ],II_1!$B19),"") -> 0 | F19: =IF(F$4<>"",COUNTIFS(tbl_SIMP[ОБЩИНА],II_1!F$4,tbl_SIMP[ВИД НА ЛЗ],II_1!$B19),"") -> 0 | G19: =IF(G$4<>"",COUNTIFS(tbl_SIMP[ОБЩИНА],II_1!G$4,tbl_SIMP[ВИД НА ЛЗ],II_1!$B19),"") -> 0 | H19: =IF(H$4<>"",COUNTIFS(tbl_SIMP[ОБЩИНА],II_1!H$4,tbl_SIMP[ВИД НА ЛЗ],II_1!$B19),"") -> 4 | I19: =IF(I$4<>"",COUNTIFS(tbl_SIMP[ОБЩИНА],II_1!I$4,tbl_SIMP[ВИД НА ЛЗ],II_1!$B19),"") -> 0 | J19: =IF(J$4<>"",COUNTIFS(tbl_SIMP[ОБЩИНА],II_1!J$4,tbl_SIMP[ВИД НА ЛЗ],II_1!$B19),"") -> 0 | K19: =IF(K$4<>"",COUNTIFS(tbl_SIMP[ОБЩИНА],II_1!K$4,tbl_SIMP[ВИД НА ЛЗ],II_1!$B19),"") -> 0 | L19: =IF(L$4<>"",COUNTIFS(tbl_SIMP[ОБЩИНА],II_1!L$4,tbl_SIMP[ВИД НА ЛЗ],II_1!$B19),"") -> 0 | M19: =IF(M$4<>"",COUNTIFS(tbl_SIMP[ОБЩИНА],II_1!M$4,tbl_SIMP[ВИД НА ЛЗ],II_1!$B19),"") -> 0 | N19: =IF(N$4<>"",COUNTIFS(tbl_SIMP[ОБЩИНА],II_1!N$4,tbl_SIMP[ВИД НА ЛЗ],II_1!$B19),"") -> 0 | O19: =IF(O$4<>"",COUNTIFS(tbl_SIMP[ОБЩИНА],II_1!O$4,tbl_SIMP[ВИД НА ЛЗ],II_1!$B19),"") -> 0 | P19: =IF(P$4<>"",COUNTIFS(tbl_SIMP[ОБЩИНА],II_1!P$4,tbl_SIMP[ВИД НА ЛЗ],II_1!$B19),"") -> 0 | Q19: =IF(Q$4<>"",COUNTIFS(tbl_SIMP[ОБЩИНА],II_1!Q$4,tbl_SIMP[ВИД НА ЛЗ],II_1!$B19),"") -> 0 | R19: =IF(R$4<>"",COUNTIFS(tbl_SIMP[ОБЩИНА],II_1!R$4,tbl_SIMP[ВИД НА ЛЗ],II_1!$B19),"") -> 0 | S19: =IF(S$4<>"",COUNTIFS(tbl_SIMP[ОБЩИНА],II_1!S$4,tbl_SIMP[ВИД НА ЛЗ],II_1!$B19),"") -> 0 | T19: =IF(T$4<>"",COUNTIFS(tbl_SIMP[ОБЩИНА],II_1!T$4,tbl_SIMP[ВИД НА ЛЗ],II_1!$B19),"") -> 0 | U19: =IF(U$4<>"",COUNTIFS(tbl_SIMP[ОБЩИНА],II_1!U$4,tbl_SIMP[ВИД НА ЛЗ],II_1!$B19),"") -> 0 | V19: =IF(V$4<>"",COUNTIFS(tbl_SIMP[ОБЩИНА],II_1!V$4,tbl_SIMP[ВИД НА ЛЗ],II_1!$B19),"") -> 0 | W19: =IF(W$4<>"",COUNTIFS(tbl_SIMP[ОБЩИНА],II_1!W$4,tbl_SIMP[ВИД НА ЛЗ],II_1!$B19),"") -> 0 | X19: =IF(X$4<>"",COUNTIFS(tbl_SIMP[ОБЩИНА],II_1!X$4,tbl_SIMP[ВИД НА ЛЗ],II_1!$B19),"") -> 0 | Y19: =IF(Y$4<>"",COUNTIFS(tbl_SIMP[ОБЩИНА],II_1!Y$4,tbl_SIMP[ВИД НА ЛЗ],II_1!$B19),"") -> 0 | Z19: =IF(Z$4<>"",COUNTIFS(tbl_SIMP[ОБЩИНА],II_1!Z$4,tbl_SIMP[ВИД НА ЛЗ],II_1!$B19),"") -> 0
A20: Самостоятелна медико-техническа лаборатория | B20: СМТЛ | C20: 18 | D20: 9.85 | E20: =IF(E$4<>"",COUNTIFS(tbl_SIMP[ОБЩИНА],II_1!E$4,tbl_SIMP[ВИД НА ЛЗ],II_1!$B20),"") -> 1 | F20: =IF(F$4<>"",COUNTIFS(tbl_SIMP[ОБЩИНА],II_1!F$4,tbl_SIMP[ВИД НА ЛЗ],II_1!$B20),"") -> 0 | G20: =IF(G$4<>"",COUNTIFS(tbl_SIMP[ОБЩИНА],II_1!G$4,tbl_SIMP[ВИД НА ЛЗ],II_1!$B20),"") -> 0 | H20: =IF(H$4<>"",COUNTIFS(tbl_SIMP[ОБЩИНА],II_1!H$4,tbl_SIMP[ВИД НА ЛЗ],II_1!$B20),"") -> 15 | I20: =IF(I$4<>"",COUNTIFS(tbl_SIMP[ОБЩИНА],II_1!I$4,tbl_SIMP[ВИД НА ЛЗ],II_1!$B20),"") -> 1 | J20: =IF(J$4<>"",COUNTIFS(tbl_SIMP[ОБЩИНА],II_1!J$4,tbl_SIMP[ВИД НА ЛЗ],II_1!$B20),"") -> 0 | K20: =IF(K$4<>"",COUNTIFS(tbl_SIMP[ОБЩИНА],II_1!K$4,tbl_SIMP[ВИД НА ЛЗ],II_1!$B20),"") -> 1 | L20: =IF(L$4<>"",COUNTIFS(tbl_SIMP[ОБЩИНА],II_1!L$4,tbl_SIMP[ВИД НА ЛЗ],II_1!$B20),"") -> 0 | M20: =IF(M$4<>"",COUNTIFS(tbl_SIMP[ОБЩИНА],II_1!M$4,tbl_SIMP[ВИД НА ЛЗ],II_1!$B20),"") -> 0 | N20: =IF(N$4<>"",COUNTIFS(tbl_SIMP[ОБЩИНА],II_1!N$4,tbl_SIMP[ВИД НА ЛЗ],II_1!$B20),"") -> 0 | O20: =IF(O$4<>"",COUNTIFS(tbl_SIMP[ОБЩИНА],II_1!O$4,tbl_SIMP[ВИД НА ЛЗ],II_1!$B20),"") -> 0 | P20: =IF(P$4<>"",COUNTIFS(tbl_SIMP[ОБЩИНА],II_1!P$4,tbl_SIMP[ВИД НА ЛЗ],II_1!$B20),"") -> 0 | Q20: =IF(Q$4<>"",COUNTIFS(tbl_SIMP[ОБЩИНА],II_1!Q$4,tbl_SIMP[ВИД НА ЛЗ],II_1!$B20),"") -> 0 | R20: =IF(R$4<>"",COUNTIFS(tbl_SIMP[ОБЩИНА],II_1!R$4,tbl_SIMP[ВИД НА ЛЗ],II_1!$B20),"") -> 0 | S20: =IF(S$4<>"",COUNTIFS(tbl_SIMP[ОБЩИНА],II_1!S$4,tbl_SIMP[ВИД НА ЛЗ],II_1!$B20),"") -> 0 | T20: =IF(T$4<>"",COUNTIFS(tbl_SIMP[ОБЩИНА],II_1!T$4,tbl_SIMP[ВИД НА ЛЗ],II_1!$B20),"") -> 0 | U20: =IF(U$4<>"",COUNTIFS(tbl_SIMP[ОБЩИНА],II_1!U$4,tbl_SIMP[ВИД НА ЛЗ],II_1!$B20),"") -> 0 | V20: =IF(V$4<>"",COUNTIFS(tbl_SIMP[ОБЩИНА],II_1!V$4,tbl_SIMP[ВИД НА ЛЗ],II_1!$B20),"") -> 0 | W20: =IF(W$4<>"",COUNTIFS(tbl_SIMP[ОБЩИНА],II_1!W$4,tbl_SIMP[ВИД НА ЛЗ],II_1!$B20),"") -> 0 | X20: =IF(X$4<>"",COUNTIFS(tbl_SIMP[ОБЩИНА],II_1!X$4,tbl_SIMP[ВИД НА ЛЗ],II_1!$B20),"") -> 0 | Y20: =IF(Y$4<>"",COUNTIFS(tbl_SIMP[ОБЩИНА],II_1!Y$4,tbl_SIMP[ВИД НА ЛЗ],II_1!$B20),"") -> 0 | Z20: =IF(Z$4<>"",COUNTIFS(tbl_SIMP[ОБЩИНА],II_1!Z$4,tbl_SIMP[ВИД НА ЛЗ],II_1!$B20),"") -> 0
A21: БОЛНИЧНА ПОМОЩ | C21: =SUM(C22:C27) -> 5 | D21: 2.74 | E21: =SUM(E22:E27) -> 3 | F21: 0 | G21: 0 | H21: 1 | I21: 1 | J21: 0 | K21: 0 | L21: 0 | M21: 0 | N21: 0 | O21: 0 | P21: 0 | Q21: 0 | R21: 0 | S21: 0 | T21: 0 | U21: 0 | V21: 0 | W21: 0 | X21: 0 | Y21: 0 | Z21: 0
A22: Многопрофилна болница за активно лечение | B22: МБАЛ | C22: =SUM(E22:Z22) -> 3 | D22: 1.64 | E22: =IF(E$4<>"",COUNTIFS(tbl_HOSP[ОБЩИНА],II_1!E$4,tbl_HOSP[ВИД НА ЛЗ],II_1!$B22),"") -> 1 | F22: =IF(F$4<>"",COUNTIFS(tbl_HOSP[ОБЩИНА],II_1!F$4,tbl_HOSP[ВИД НА ЛЗ],II_1!$B22),"") -> 0 | G22: =IF(G$4<>"",COUNTIFS(tbl_HOSP[ОБЩИНА],II_1!G$4,tbl_HOSP[ВИД НА ЛЗ],II_1!$B22),"") -> 0 | H22: =IF(H$4<>"",COUNTIFS(tbl_HOSP[ОБЩИНА],II_1!H$4,tbl_HOSP[ВИД НА ЛЗ],II_1!$B22),"") -> 1 | I22: =IF(I$4<>"",COUNTIFS(tbl_HOSP[ОБЩИНА],II_1!I$4,tbl_HOSP[ВИД НА ЛЗ],II_1!$B22),"") -> 1 | J22: =IF(J$4<>"",COUNTIFS(tbl_HOSP[ОБЩИНА],II_1!J$4,tbl_HOSP[ВИД НА ЛЗ],II_1!$B22),"") -> 0 | K22: =IF(K$4<>"",COUNTIFS(tbl_HOSP[ОБЩИНА],II_1!K$4,tbl_HOSP[ВИД НА ЛЗ],II_1!$B22),"") -> 0 | L22: =IF(L$4<>"",COUNTIFS(tbl_HOSP[ОБЩИНА],II_1!L$4,tbl_HOSP[ВИД НА ЛЗ],II_1!$B22),"") -> 0 | M22: =IF(M$4<>"",COUNTIFS(tbl_HOSP[ОБЩИНА],II_1!M$4,tbl_HOSP[ВИД НА ЛЗ],II_1!$B22),"") -> 0 | N22: =IF(N$4<>"",COUNTIFS(tbl_HOSP[ОБЩИНА],II_1!N$4,tbl_HOSP[ВИД НА ЛЗ],II_1!$B22),"") -> 0 | O22: =IF(O$4<>"",COUNTIFS(tbl_HOSP[ОБЩИНА],II_1!O$4,tbl_HOSP[ВИД НА ЛЗ],II_1!$B22),"") -> 0 | P22: =IF(P$4<>"",COUNTIFS(tbl_HOSP[ОБЩИНА],II_1!P$4,tbl_HOSP[ВИД НА ЛЗ],II_1!$B22),"") -> 0 | Q22: =IF(Q$4<>"",COUNTIFS(tbl_HOSP[ОБЩИНА],II_1!Q$4,tbl_HOSP[ВИД НА ЛЗ],II_1!$B22),"") -> 0 | R22: =IF(R$4<>"",COUNTIFS(tbl_HOSP[ОБЩИНА],II_1!R$4,tbl_HOSP[ВИД НА ЛЗ],II_1!$B22),"") -> 0 | S22: =IF(S$4<>"",COUNTIFS(tbl_HOSP[ОБЩИНА],II_1!S$4,tbl_HOSP[ВИД НА ЛЗ],II_1!$B22),"") -> 0 | T22: =IF(T$4<>"",COUNTIFS(tbl_HOSP[ОБЩИНА],II_1!T$4,tbl_HOSP[ВИД НА ЛЗ],II_1!$B22),"") -> 0 | U22: =IF(U$4<>"",COUNTIFS(tbl_HOSP[ОБЩИНА],II_1!U$4,tbl_HOSP[ВИД НА ЛЗ],II_1!$B22),"") -> 0 | V22: =IF(V$4<>"",COUNTIFS(tbl_HOSP[ОБЩИНА],II_1!V$4,tbl_HOSP[ВИД НА ЛЗ],II_1!$B22),"") -> 0 | W22: =IF(W$4<>"",COUNTIFS(tbl_HOSP[ОБЩИНА],II_1!W$4,tbl_HOSP[ВИД НА ЛЗ],II_1!$B22),"") -> 0 | X22: =IF(X$4<>"",COUNTIFS(tbl_HOSP[ОБЩИНА],II_1!X$4,tbl_HOSP[ВИД НА ЛЗ],II_1!$B22),"") -> 0 | Y22: =IF(Y$4<>"",COUNTIFS(tbl_HOSP[ОБЩИНА],II_1!Y$4,tbl_HOSP[ВИД НА ЛЗ],II_1!$B22),"") -> 0 | Z22: =IF(Z$4<>"",COUNTIFS(tbl_HOSP[ОБЩИНА],II_1!Z$4,tbl_HOSP[ВИД НА ЛЗ],II_1!$B22),"") -> 0
A23: Специализирана болница за активно лечение | B23: СБАЛ | C23: 0 | D23: 0 | E23: =IF(E$4<>"",COUNTIFS(tbl_HOSP[ОБЩИНА],II_1!E$4,tbl_HOSP[ВИД НА ЛЗ],II_1!$B23),"") -> 0 | F23: =IF(F$4<>"",COUNTIFS(tbl_HOSP[ОБЩИНА],II_1!F$4,tbl_HOSP[ВИД НА ЛЗ],II_1!$B23),"") -> 0 | G23: =IF(G$4<>"",COUNTIFS(tbl_HOSP[ОБЩИНА],II_1!G$4,tbl_HOSP[ВИД НА ЛЗ],II_1!$B23),"") -> 0 | H23: =IF(H$4<>"",COUNTIFS(tbl_HOSP[ОБЩИНА],II_1!H$4,tbl_HOSP[ВИД НА ЛЗ],II_1!$B23),"") -> 0 | I23: =IF(I$4<>"",COUNTIFS(tbl_HOSP[ОБЩИНА],II_1!I$4,tbl_HOSP[ВИД НА ЛЗ],II_1!$B23),"") -> 0 | J23: =IF(J$4<>"",COUNTIFS(tbl_HOSP[ОБЩИНА],II_1!J$4,tbl_HOSP[ВИД НА ЛЗ],II_1!$B23),"") -> 0 | K23: =IF(K$4<>"",COUNTIFS(tbl_HOSP[ОБЩИНА],II_1!K$4,tbl_HOSP[ВИД НА ЛЗ],II_1!$B23),"") -> 0 | L23: =IF(L$4<>"",COUNTIFS(tbl_HOSP[ОБЩИНА],II_1!L$4,tbl_HOSP[ВИД НА ЛЗ],II_1!$B23),"") -> 0 | M23: =IF(M$4<>"",COUNTIFS(tbl_HOSP[ОБЩИНА],II_1!M$4,tbl_HOSP[ВИД НА ЛЗ],II_1!$B23),"") -> 0 | N23: =IF(N$4<>"",COUNTIFS(tbl_HOSP[ОБЩИНА],II_1!N$4,tbl_HOSP[ВИД НА ЛЗ],II_1!$B23),"") -> 0 | O23: =IF(O$4<>"",COUNTIFS(tbl_HOSP[ОБЩИНА],II_1!O$4,tbl_HOSP[ВИД НА ЛЗ],II_1!$B23),"") -> 0 | P23: =IF(P$4<>"",COUNTIFS(tbl_HOSP[ОБЩИНА],II_1!P$4,tbl_HOSP[ВИД НА ЛЗ],II_1!$B23),"") -> 0 | Q23: =IF(Q$4<>"",COUNTIFS(tbl_HOSP[ОБЩИНА],II_1!Q$4,tbl_HOSP[ВИД НА ЛЗ],II_1!$B23),"") -> 0 | R23: =IF(R$4<>"",COUNTIFS(tbl_HOSP[ОБЩИНА],II_1!R$4,tbl_HOSP[ВИД НА ЛЗ],II_1!$B23),"") -> 0 | S23: =IF(S$4<>"",COUNTIFS(tbl_HOSP[ОБЩИНА],II_1!S$4,tbl_HOSP[ВИД НА ЛЗ],II_1!$B23),"") -> 0 | T23: =IF(T$4<>"",COUNTIFS(tbl_HOSP[ОБЩИНА],II_1!T$4,tbl_HOSP[ВИД НА ЛЗ],II_1!$B23),"") -> 0 | U23: =IF(U$4<>"",COUNTIFS(tbl_HOSP[ОБЩИНА],II_1!U$4,tbl_HOSP[ВИД НА ЛЗ],II_1!$B23),"") -> 0 | V23: =IF(V$4<>"",COUNTIFS(tbl_HOSP[ОБЩИНА],II_1!V$4,tbl_HOSP[ВИД НА ЛЗ],II_1!$B23),"") -> 0 | W23: =IF(W$4<>"",COUNTIFS(tbl_HOSP[ОБЩИНА],II_1!W$4,tbl_HOSP[ВИД НА ЛЗ],II_1!$B23),"") -> 0 | X23: =IF(X$4<>"",COUNTIFS(tbl_HOSP[ОБЩИНА],II_1!X$4,tbl_HOSP[ВИД НА ЛЗ],II_1!$B23),"") -> 0 | Y23: =IF(Y$4<>"",COUNTIFS(tbl_HOSP[ОБЩИНА],II_1!Y$4,tbl_HOSP[ВИД НА ЛЗ],II_1!$B23),"") -> 0 | Z23: =IF(Z$4<>"",COUNTIFS(tbl_HOSP[ОБЩИНА],II_1!Z$4,tbl_HOSP[ВИД НА ЛЗ],II_1!$B23),"") -> 0
A24: Болница за продължително лечение и рехабилитация | B24: БПЛР | C24: 0 | D24: 0 | E24: =IF(E$4<>"",COUNTIFS(tbl_HOSP[ОБЩИНА],II_1!E$4,tbl_HOSP[ВИД НА ЛЗ],II_1!$B24),"") -> 0 | F24: =IF(F$4<>"",COUNTIFS(tbl_HOSP[ОБЩИНА],II_1!F$4,tbl_HOSP[ВИД НА ЛЗ],II_1!$B24),"") -> 0 | G24: =IF(G$4<>"",COUNTIFS(tbl_HOSP[ОБЩИНА],II_1!G$4,tbl_HOSP[ВИД НА ЛЗ],II_1!$B24),"") -> 0 | H24: =IF(H$4<>"",COUNTIFS(tbl_HOSP[ОБЩИНА],II_1!H$4,tbl_HOSP[ВИД НА ЛЗ],II_1!$B24),"") -> 0 | I24: =IF(I$4<>"",COUNTIFS(tbl_HOSP[ОБЩИНА],II_1!I$4,tbl_HOSP[ВИД НА ЛЗ],II_1!$B24),"") -> 0 | J24: =IF(J$4<>"",COUNTIFS(tbl_HOSP[ОБЩИНА],II_1!J$4,tbl_HOSP[ВИД НА ЛЗ],II_1!$B24),"") -> 0 | K24: =IF(K$4<>"",COUNTIFS(tbl_HOSP[ОБЩИНА],II_1!K$4,tbl_HOSP[ВИД НА ЛЗ],II_1!$B24),"") -> 0 | L24: =IF(L$4<>"",COUNTIFS(tbl_HOSP[ОБЩИНА],II_1!L$4,tbl_HOSP[ВИД НА ЛЗ],II_1!$B24),"") -> 0 | M24: =IF(M$4<>"",COUNTIFS(tbl_HOSP[ОБЩИНА],II_1!M$4,tbl_HOSP[ВИД НА ЛЗ],II_1!$B24),"") -> 0 | N24: =IF(N$4<>"",COUNTIFS(tbl_HOSP[ОБЩИНА],II_1!N$4,tbl_HOSP[ВИД НА ЛЗ],II_1!$B24),"") -> 0 | O24: =IF(O$4<>"",COUNTIFS(tbl_HOSP[ОБЩИНА],II_1!O$4,tbl_HOSP[ВИД НА ЛЗ],II_1!$B24),"") -> 0 | P24: =IF(P$4<>"",COUNTIFS(tbl_HOSP[ОБЩИНА],II_1!P$4,tbl_HOSP[ВИД НА ЛЗ],II_1!$B24),"") -> 0 | Q24: =IF(Q$4<>"",COUNTIFS(tbl_HOSP[ОБЩИНА],II_1!Q$4,tbl_HOSP[ВИД НА ЛЗ],II_1!$B24),"") -> 0 | R24: =IF(R$4<>"",COUNTIFS(tbl_HOSP[ОБЩИНА],II_1!R$4,tbl_HOSP[ВИД НА ЛЗ],II_1!$B24),"") -> 0 | S24: =IF(S$4<>"",COUNTIFS(tbl_HOSP[ОБЩИНА],II_1!S$4,tbl_HOSP[ВИД НА ЛЗ],II_1!$B24),"") -> 0 | T24: =IF(T$4<>"",COUNTIFS(tbl_HOSP[ОБЩИНА],II_1!T$4,tbl_HOSP[ВИД НА ЛЗ],II_1!$B24),"") -> 0 | U24: =IF(U$4<>"",COUNTIFS(tbl_HOSP[ОБЩИНА],II_1!U$4,tbl_HOSP[ВИД НА ЛЗ],II_1!$B24),"") -> 0 | V24: =IF(V$4<>"",COUNTIFS(tbl_HOSP[ОБЩИНА],II_1!V$4,tbl_HOSP[ВИД НА ЛЗ],II_1!$B24),"") -> 0 | W24: =IF(W$4<>"",COUNTIFS(tbl_HOSP[ОБЩИНА],II_1!W$4,tbl_HOSP[ВИД НА ЛЗ],II_1!$B24),"") -> 0 | X24: =IF(X$4<>"",COUNTIFS(tbl_HOSP[ОБЩИНА],II_1!X$4,tbl_HOSP[ВИД НА ЛЗ],II_1!$B24),"") -> 0 | Y24: =IF(Y$4<>"",COUNTIFS(tbl_HOSP[ОБЩИНА],II_1!Y$4,tbl_HOSP[ВИД НА ЛЗ],II_1!$B24),"") -> 0 | Z24: =IF(Z$4<>"",COUNTIFS(tbl_HOSP[ОБЩИНА],II_1!Z$4,tbl_HOSP[ВИД НА ЛЗ],II_1!$B24),"") -> 0
A25: Болница за продължително лечение | B25: БПЛ | C25: 0 | D25: 0 | E25: =IF(E$4<>"",COUNTIFS(tbl_HOSP[ОБЩИНА],II_1!E$4,tbl_HOSP[ВИД НА ЛЗ],II_1!$B25),"") -> 0 | F25: =IF(F$4<>"",COUNTIFS(tbl_HOSP[ОБЩИНА],II_1!F$4,tbl_HOSP[ВИД НА ЛЗ],II_1!$B25),"") -> 0 | G25: =IF(G$4<>"",COUNTIFS(tbl_HOSP[ОБЩИНА],II_1!G$4,tbl_HOSP[ВИД НА ЛЗ],II_1!$B25),"") -> 0 | H25: =IF(H$4<>"",COUNTIFS(tbl_HOSP[ОБЩИНА],II_1!H$4,tbl_HOSP[ВИД НА ЛЗ],II_1!$B25),"") -> 0 | I25: =IF(I$4<>"",COUNTIFS(tbl_HOSP[ОБЩИНА],II_1!I$4,tbl_HOSP[ВИД НА ЛЗ],II_1!$B25),"") -> 0 | J25: =IF(J$4<>"",COUNTIFS(tbl_HOSP[ОБЩИНА],II_1!J$4,tbl_HOSP[ВИД НА ЛЗ],II_1!$B25),"") -> 0 | K25: =IF(K$4<>"",COUNTIFS(tbl_HOSP[ОБЩИНА],II_1!K$4,tbl_HOSP[ВИД НА ЛЗ],II_1!$B25),"") -> 0 | L25: =IF(L$4<>"",COUNTIFS(tbl_HOSP[ОБЩИНА],II_1!L$4,tbl_HOSP[ВИД НА ЛЗ],II_1!$B25),"") -> 0 | M25: =IF(M$4<>"",COUNTIFS(tbl_HOSP[ОБЩИНА],II_1!M$4,tbl_HOSP[ВИД НА ЛЗ],II_1!$B25),"") -> 0 | N25: =IF(N$4<>"",COUNTIFS(tbl_HOSP[ОБЩИНА],II_1!N$4,tbl_HOSP[ВИД НА ЛЗ],II_1!$B25),"") -> 0 | O25: =IF(O$4<>"",COUNTIFS(tbl_HOSP[ОБЩИНА],II_1!O$4,tbl_HOSP[ВИД НА ЛЗ],II_1!$B25),"") -> 0 | P25: =IF(P$4<>"",COUNTIFS(tbl_HOSP[ОБЩИНА],II_1!P$4,tbl_HOSP[ВИД НА ЛЗ],II_1!$B25),"") -> 0 | Q25: =IF(Q$4<>"",COUNTIFS(tbl_HOSP[ОБЩИНА],II_1!Q$4,tbl_HOSP[ВИД НА ЛЗ],II_1!$B25),"") -> 0 | R25: =IF(R$4<>"",COUNTIFS(tbl_HOSP[ОБЩИНА],II_1!R$4,tbl_HOSP[ВИД НА ЛЗ],II_1!$B25),"") -> 0 | S25: =IF(S$4<>"",COUNTIFS(tbl_HOSP[ОБЩИНА],II_1!S$4,tbl_HOSP[ВИД НА ЛЗ],II_1!$B25),"") -> 0 | T25: =IF(T$4<>"",COUNTIFS(tbl_HOSP[ОБЩИНА],II_1!T$4,tbl_HOSP[ВИД НА ЛЗ],II_1!$B25),"") -> 0 | U25: =IF(U$4<>"",COUNTIFS(tbl_HOSP[ОБЩИНА],II_1!U$4,tbl_HOSP[ВИД НА ЛЗ],II_1!$B25),"") -> 0 | V25: =IF(V$4<>"",COUNTIFS(tbl_HOSP[ОБЩИНА],II_1!V$4,tbl_HOSP[ВИД НА ЛЗ],II_1!$B25),"") -> 0 | W25: =IF(W$4<>"",COUNTIFS(tbl_HOSP[ОБЩИНА],II_1!W$4,tbl_HOSP[ВИД НА ЛЗ],II_1!$B25),"") -> 0 | X25: =IF(X$4<>"",COUNTIFS(tbl_HOSP[ОБЩИНА],II_1!X$4,tbl_HOSP[ВИД НА ЛЗ],II_1!$B25),"") -> 0 | Y25: =IF(Y$4<>"",COUNTIFS(tbl_HOSP[ОБЩИНА],II_1!Y$4,tbl_HOSP[ВИД НА ЛЗ],II_1!$B25),"") -> 0 | Z25: =IF(Z$4<>"",COUNTIFS(tbl_HOSP[ОБЩИНА],II_1!Z$4,tbl_HOSP[ВИД НА ЛЗ],II_1!$B25),"") -> 0
A26: Специализирана болница за рехабилитация | B26: СБР | C26: 1 | D26: 0.55 | E26: =IF(E$4<>"",COUNTIFS(tbl_HOSP[ОБЩИНА],II_1!E$4,tbl_HOSP[ВИД НА ЛЗ],II_1!$B26),"") -> 1 | F26: =IF(F$4<>"",COUNTIFS(tbl_HOSP[ОБЩИНА],II_1!F$4,tbl_HOSP[ВИД НА ЛЗ],II_1!$B26),"") -> 0 | G26: =IF(G$4<>"",COUNTIFS(tbl_HOSP[ОБЩИНА],II_1!G$4,tbl_HOSP[ВИД НА ЛЗ],II_1!$B26),"") -> 0 | H26: =IF(H$4<>"",COUNTIFS(tbl_HOSP[ОБЩИНА],II_1!H$4,tbl_HOSP[ВИД НА ЛЗ],II_1!$B26),"") -> 0 | I26: =IF(I$4<>"",COUNTIFS(tbl_HOSP[ОБЩИНА],II_1!I$4,tbl_HOSP[ВИД НА ЛЗ],II_1!$B26),"") -> 0 | J26: =IF(J$4<>"",COUNTIFS(tbl_HOSP[ОБЩИНА],II_1!J$4,tbl_HOSP[ВИД НА ЛЗ],II_1!$B26),"") -> 0 | K26: =IF(K$4<>"",COUNTIFS(tbl_HOSP[ОБЩИНА],II_1!K$4,tbl_HOSP[ВИД НА ЛЗ],II_1!$B26),"") -> 0 | L26: =IF(L$4<>"",COUNTIFS(tbl_HOSP[ОБЩИНА],II_1!L$4,tbl_HOSP[ВИД НА ЛЗ],II_1!$B26),"") -> 0 | M26: =IF(M$4<>"",COUNTIFS(tbl_HOSP[ОБЩИНА],II_1!M$4,tbl_HOSP[ВИД НА ЛЗ],II_1!$B26),"") -> 0 | N26: =IF(N$4<>"",COUNTIFS(tbl_HOSP[ОБЩИНА],II_1!N$4,tbl_HOSP[ВИД НА ЛЗ],II_1!$B26),"") -> 0 | O26: =IF(O$4<>"",COUNTIFS(tbl_HOSP[ОБЩИНА],II_1!O$4,tbl_HOSP[ВИД НА ЛЗ],II_1!$B26),"") -> 0 | P26: =IF(P$4<>"",COUNTIFS(tbl_HOSP[ОБЩИНА],II_1!P$4,tbl_HOSP[ВИД НА ЛЗ],II_1!$B26),"") -> 0 | Q26: =IF(Q$4<>"",COUNTIFS(tbl_HOSP[ОБЩИНА],II_1!Q$4,tbl_HOSP[ВИД НА ЛЗ],II_1!$B26),"") -> 0 | R26: =IF(R$4<>"",COUNTIFS(tbl_HOSP[ОБЩИНА],II_1!R$4,tbl_HOSP[ВИД НА ЛЗ],II_1!$B26),"") -> 0 | S26: =IF(S$4<>"",COUNTIFS(tbl_HOSP[ОБЩИНА],II_1!S$4,tbl_HOSP[ВИД НА ЛЗ],II_1!$B26),"") -> 0 | T26: =IF(T$4<>"",COUNTIFS(tbl_HOSP[ОБЩИНА],II_1!T$4,tbl_HOSP[ВИД НА ЛЗ],II_1!$B26),"") -> 0 | U26: =IF(U$4<>"",COUNTIFS(tbl_HOSP[ОБЩИНА],II_1!U$4,tbl_HOSP[ВИД НА ЛЗ],II_1!$B26),"") -> 0 | V26: =IF(V$4<>"",COUNTIFS(tbl_HOSP[ОБЩИНА],II_1!V$4,tbl_HOSP[ВИД НА ЛЗ],II_1!$B26),"") -> 0 | W26: =IF(W$4<>"",COUNTIFS(tbl_HOSP[ОБЩИНА],II_1!W$4,tbl_HOSP[ВИД НА ЛЗ],II_1!$B26),"") -> 0 | X26: =IF(X$4<>"",COUNTIFS(tbl_HOSP[ОБЩИНА],II_1!X$4,tbl_HOSP[ВИД НА ЛЗ],II_1!$B26),"") -> 0 | Y26: =IF(Y$4<>"",COUNTIFS(tbl_HOSP[ОБЩИНА],II_1!Y$4,tbl_HOSP[ВИД НА ЛЗ],II_1!$B26),"") -> 0 | Z26: =IF(Z$4<>"",COUNTIFS(tbl_HOSP[ОБЩИНА],II_1!Z$4,tbl_HOSP[ВИД НА ЛЗ],II_1!$B26),"") -> 0
A27: Държавна психиатрична болница | B27: ДБП | C27: 1 | D27: 0.55 | E27: =IF(E$4<>"",COUNTIFS(tbl_HOSP[ОБЩИНА],II_1!E$4,tbl_HOSP[ВИД НА ЛЗ],II_1!$B27),"") -> 1 | F27: =IF(F$4<>"",COUNTIFS(tbl_HOSP[ОБЩИНА],II_1!F$4,tbl_HOSP[ВИД НА ЛЗ],II_1!$B27),"") -> 0 | G27: =IF(G$4<>"",COUNTIFS(tbl_HOSP[ОБЩИНА],II_1!G$4,tbl_HOSP[ВИД НА ЛЗ],II_1!$B27),"") -> 0 | H27: =IF(H$4<>"",COUNTIFS(tbl_HOSP[ОБЩИНА],II_1!H$4,tbl_HOSP[ВИД НА ЛЗ],II_1!$B27),"") -> 0 | I27: =IF(I$4<>"",COUNTIFS(tbl_HOSP[ОБЩИНА],II_1!I$4,tbl_HOSP[ВИД НА ЛЗ],II_1!$B27),"") -> 0 | J27: =IF(J$4<>"",COUNTIFS(tbl_HOSP[ОБЩИНА],II_1!J$4,tbl_HOSP[ВИД НА ЛЗ],II_1!$B27),"") -> 0 | K27: =IF(K$4<>"",COUNTIFS(tbl_HOSP[ОБЩИНА],II_1!K$4,tbl_HOSP[ВИД НА ЛЗ],II_1!$B27),"") -> 0 | L27: =IF(L$4<>"",COUNTIFS(tbl_HOSP[ОБЩИНА],II_1!L$4,tbl_HOSP[ВИД НА ЛЗ],II_1!$B27),"") -> 0 | M27: =IF(M$4<>"",COUNTIFS(tbl_HOSP[ОБЩИНА],II_1!M$4,tbl_HOSP[ВИД НА ЛЗ],II_1!$B27),"") -> 0 | N27: =IF(N$4<>"",COUNTIFS(tbl_HOSP[ОБЩИНА],II_1!N$4,tbl_HOSP[ВИД НА ЛЗ],II_1!$B27),"") -> 0 | O27: =IF(O$4<>"",COUNTIFS(tbl_HOSP[ОБЩИНА],II_1!O$4,tbl_HOSP[ВИД НА ЛЗ],II_1!$B27),"") -> 0 | P27: =IF(P$4<>"",COUNTIFS(tbl_HOSP[ОБЩИНА],II_1!P$4,tbl_HOSP[ВИД НА ЛЗ],II_1!$B27),"") -> 0 | Q27: =IF(Q$4<>"",COUNTIFS(tbl_HOSP[ОБЩИНА],II_1!Q$4,tbl_HOSP[ВИД НА ЛЗ],II_1!$B27),"") -> 0 | R27: =IF(R$4<>"",COUNTIFS(tbl_HOSP[ОБЩИНА],II_1!R$4,tbl_HOSP[ВИД НА ЛЗ],II_1!$B27),"") -> 0 | S27: =IF(S$4<>"",COUNTIFS(tbl_HOSP[ОБЩИНА],II_1!S$4,tbl_HOSP[ВИД НА ЛЗ],II_1!$B27),"") -> 0 | T27: =IF(T$4<>"",COUNTIFS(tbl_HOSP[ОБЩИНА],II_1!T$4,tbl_HOSP[ВИД НА ЛЗ],II_1!$B27),"") -> 0 | U27: =IF(U$4<>"",COUNTIFS(tbl_HOSP[ОБЩИНА],II_1!U$4,tbl_HOSP[ВИД НА ЛЗ],II_1!$B27),"") -> 0 | V27: =IF(V$4<>"",COUNTIFS(tbl_HOSP[ОБЩИНА],II_1!V$4,tbl_HOSP[ВИД НА ЛЗ],II_1!$B27),"") -> 0 | W27: =IF(W$4<>"",COUNTIFS(tbl_HOSP[ОБЩИНА],II_1!W$4,tbl_HOSP[ВИД НА ЛЗ],II_1!$B27),"") -> 0 | X27: =IF(X$4<>"",COUNTIFS(tbl_HOSP[ОБЩИНА],II_1!X$4,tbl_HOSP[ВИД НА ЛЗ],II_1!$B27),"") -> 0 | Y27: =IF(Y$4<>"",COUNTIFS(tbl_HOSP[ОБЩИНА],II_1!Y$4,tbl_HOSP[ВИД НА ЛЗ],II_1!$B27),"") -> 0 | Z27: =IF(Z$4<>"",COUNTIFS(tbl_HOSP[ОБЩИНА],II_1!Z$4,tbl_HOSP[ВИД НА ЛЗ],II_1!$B27),"") -> 0
A28: ДРУГИ ЛЕЧЕБНИ ЗАВЕДЕНИЯ | C28: =SUM(C29:C37) -> 3 | D28: 1.64 | E28: =SUM(E29:E37) -> 0 | F28: 0 | G28: 0 | H28: 3 | I28: 0 | J28: 0 | K28: 0 | L28: 0 | M28: 0 | N28: 0 | O28: 0 | P28: 0 | Q28: 0 | R28: 0 | S28: 0 | T28: 0 | U28: 0 | V28: 0 | W28: 0 | X28: 0 | Y28: 0 | Z28: 0
A29: Център за спешна медицинска помощ | B29: ЦСМП - филиал | C29: =SUM(E29:Z29) -> 1 | D29: 0.55 | E29: =IF(E$4<>"",COUNTIFS(tbl_HOSP[ОБЩИНА],II_1!E$4,tbl_HOSP[ВИД НА ЛЗ],II_1!$B29),"") -> 0 | F29: =IF(F$4<>"",COUNTIFS(tbl_HOSP[ОБЩИНА],II_1!F$4,tbl_HOSP[ВИД НА ЛЗ],II_1!$B29),"") -> 0 | G29: =IF(G$4<>"",COUNTIFS(tbl_HOSP[ОБЩИНА],II_1!G$4,tbl_HOSP[ВИД НА ЛЗ],II_1!$B29),"") -> 0 | H29: =IF(H$4<>"",COUNTIFS(tbl_HOSP[ОБЩИНА],II_1!H$4,tbl_HOSP[ВИД НА ЛЗ],II_1!$B29),"") -> 1 | I29: =IF(I$4<>"",COUNTIFS(tbl_HOSP[ОБЩИНА],II_1!I$4,tbl_HOSP[ВИД НА ЛЗ],II_1!$B29),"") -> 0 | J29: =IF(J$4<>"",COUNTIFS(tbl_HOSP[ОБЩИНА],II_1!J$4,tbl_HOSP[ВИД НА ЛЗ],II_1!$B29),"") -> 0 | K29: =IF(K$4<>"",COUNTIFS(tbl_HOSP[ОБЩИНА],II_1!K$4,tbl_HOSP[ВИД НА ЛЗ],II_1!$B29),"") -> 0 | L29: =IF(L$4<>"",COUNTIFS(tbl_HOSP[ОБЩИНА],II_1!L$4,tbl_HOSP[ВИД НА ЛЗ],II_1!$B29),"") -> 0 | M29: =IF(M$4<>"",COUNTIFS(tbl_HOSP[ОБЩИНА],II_1!M$4,tbl_HOSP[ВИД НА ЛЗ],II_1!$B29),"") -> 0 | N29: =IF(N$4<>"",COUNTIFS(tbl_HOSP[ОБЩИНА],II_1!N$4,tbl_HOSP[ВИД НА ЛЗ],II_1!$B29),"") -> 0 | O29: =IF(O$4<>"",COUNTIFS(tbl_HOSP[ОБЩИНА],II_1!O$4,tbl_HOSP[ВИД НА ЛЗ],II_1!$B29),"") -> 0 | P29: =IF(P$4<>"",COUNTIFS(tbl_HOSP[ОБЩИНА],II_1!P$4,tbl_HOSP[ВИД НА ЛЗ],II_1!$B29),"") -> 0 | Q29: =IF(Q$4<>"",COUNTIFS(tbl_HOSP[ОБЩИНА],II_1!Q$4,tbl_HOSP[ВИД НА ЛЗ],II_1!$B29),"") -> 0 | R29: =IF(R$4<>"",COUNTIFS(tbl_HOSP[ОБЩИНА],II_1!R$4,tbl_HOSP[ВИД НА ЛЗ],II_1!$B29),"") -> 0 | S29: =IF(S$4<>"",COUNTIFS(tbl_HOSP[ОБЩИНА],II_1!S$4,tbl_HOSP[ВИД НА ЛЗ],II_1!$B29),"") -> 0 | T29: =IF(T$4<>"",COUNTIFS(tbl_HOSP[ОБЩИНА],II_1!T$4,tbl_HOSP[ВИД НА ЛЗ],II_1!$B29),"") -> 0 | U29: =IF(U$4<>"",COUNTIFS(tbl_HOSP[ОБЩИНА],II_1!U$4,tbl_HOSP[ВИД НА ЛЗ],II_1!$B29),"") -> 0 | V29: =IF(V$4<>"",COUNTIFS(tbl_HOSP[ОБЩИНА],II_1!V$4,tbl_HOSP[ВИД НА ЛЗ],II_1!$B29),"") -> 0 | W29: =IF(W$4<>"",COUNTIFS(tbl_HOSP[ОБЩИНА],II_1!W$4,tbl_HOSP[ВИД НА ЛЗ],II_1!$B29),"") -> 0 | X29: =IF(X$4<>"",COUNTIFS(tbl_HOSP[ОБЩИНА],II_1!X$4,tbl_HOSP[ВИД НА ЛЗ],II_1!$B29),"") -> 0 | Y29: =IF(Y$4<>"",COUNTIFS(tbl_HOSP[ОБЩИНА],II_1!Y$4,tbl_HOSP[ВИД НА ЛЗ],II_1!$B29),"") -> 0 | Z29: =IF(Z$4<>"",COUNTIFS(tbl_HOSP[ОБЩИНА],II_1!Z$4,tbl_HOSP[ВИД НА ЛЗ],II_1!$B29),"") -> 0
A30: Център по трансфузионна хематология | B30: ЦТХ | C30: 0 | D30: 0 | E30: =IF(E$4<>"",COUNTIFS(tbl_HOSP[ОБЩИНА],II_1!E$4,tbl_HOSP[ВИД НА ЛЗ],II_1!$B30),"") -> 0 | F30: =IF(F$4<>"",COUNTIFS(tbl_HOSP[ОБЩИНА],II_1!F$4,tbl_HOSP[ВИД НА ЛЗ],II_1!$B30),"") -> 0 | G30: =IF(G$4<>"",COUNTIFS(tbl_HOSP[ОБЩИНА],II_1!G$4,tbl_HOSP[ВИД НА ЛЗ],II_1!$B30),"") -> 0 | H30: =IF(H$4<>"",COUNTIFS(tbl_HOSP[ОБЩИНА],II_1!H$4,tbl_HOSP[ВИД НА ЛЗ],II_1!$B30),"") -> 0 | I30: =IF(I$4<>"",COUNTIFS(tbl_HOSP[ОБЩИНА],II_1!I$4,tbl_HOSP[ВИД НА ЛЗ],II_1!$B30),"") -> 0 | J30: =IF(J$4<>"",COUNTIFS(tbl_HOSP[ОБЩИНА],II_1!J$4,tbl_HOSP[ВИД НА ЛЗ],II_1!$B30),"") -> 0 | K30: =IF(K$4<>"",COUNTIFS(tbl_HOSP[ОБЩИНА],II_1!K$4,tbl_HOSP[ВИД НА ЛЗ],II_1!$B30),"") -> 0 | L30: =IF(L$4<>"",COUNTIFS(tbl_HOSP[ОБЩИНА],II_1!L$4,tbl_HOSP[ВИД НА ЛЗ],II_1!$B30),"") -> 0 | M30: =IF(M$4<>"",COUNTIFS(tbl_HOSP[ОБЩИНА],II_1!M$4,tbl_HOSP[ВИД НА ЛЗ],II_1!$B30),"") -> 0 | N30: =IF(N$4<>"",COUNTIFS(tbl_HOSP[ОБЩИНА],II_1!N$4,tbl_HOSP[ВИД НА ЛЗ],II_1!$B30),"") -> 0 | O30: =IF(O$4<>"",COUNTIFS(tbl_HOSP[ОБЩИНА],II_1!O$4,tbl_HOSP[ВИД НА ЛЗ],II_1!$B30),"") -> 0 | P30: =IF(P$4<>"",COUNTIFS(tbl_HOSP[ОБЩИНА],II_1!P$4,tbl_HOSP[ВИД НА ЛЗ],II_1!$B30),"") -> 0 | Q30: =IF(Q$4<>"",COUNTIFS(tbl_HOSP[ОБЩИНА],II_1!Q$4,tbl_HOSP[ВИД НА ЛЗ],II_1!$B30),"") -> 0 | R30: =IF(R$4<>"",COUNTIFS(tbl_HOSP[ОБЩИНА],II_1!R$4,tbl_HOSP[ВИД НА ЛЗ],II_1!$B30),"") -> 0 | S30: =IF(S$4<>"",COUNTIFS(tbl_HOSP[ОБЩИНА],II_1!S$4,tbl_HOSP[ВИД НА ЛЗ],II_1!$B30),"") -> 0 | T30: =IF(T$4<>"",COUNTIFS(tbl_HOSP[ОБЩИНА],II_1!T$4,tbl_HOSP[ВИД НА ЛЗ],II_1!$B30),"") -> 0 | U30: =IF(U$4<>"",COUNTIFS(tbl_HOSP[ОБЩИНА],II_1!U$4,tbl_HOSP[ВИД НА ЛЗ],II_1!$B30),"") -> 0 | V30: =IF(V$4<>"",COUNTIFS(tbl_HOSP[ОБЩИНА],II_1!V$4,tbl_HOSP[ВИД НА ЛЗ],II_1!$B30),"") -> 0 | W30: =IF(W$4<>"",COUNTIFS(tbl_HOSP[ОБЩИНА],II_1!W$4,tbl_HOSP[ВИД НА ЛЗ],II_1!$B30),"") -> 0 | X30: =IF(X$4<>"",COUNTIFS(tbl_HOSP[ОБЩИНА],II_1!X$4,tbl_HOSP[ВИД НА ЛЗ],II_1!$B30),"") -> 0 | Y30: =IF(Y$4<>"",COUNTIFS(tbl_HOSP[ОБЩИНА],II_1!Y$4,tbl_HOSP[ВИД НА ЛЗ],II_1!$B30),"") -> 0 | Z30: =IF(Z$4<>"",COUNTIFS(tbl_HOSP[ОБЩИНА],II_1!Z$4,tbl_HOSP[ВИД НА ЛЗ],II_1!$B30),"") -> 0
A31: Комплексен онкологичен център | B31: КОЦ | C31: 0 | D31: 0 | E31: =IF(E$4<>"",COUNTIFS(tbl_HOSP[ОБЩИНА],II_1!E$4,tbl_HOSP[ВИД НА ЛЗ],II_1!$B31),"") -> 0 | F31: =IF(F$4<>"",COUNTIFS(tbl_HOSP[ОБЩИНА],II_1!F$4,tbl_HOSP[ВИД НА ЛЗ],II_1!$B31),"") -> 0 | G31: =IF(G$4<>"",COUNTIFS(tbl_HOSP[ОБЩИНА],II_1!G$4,tbl_HOSP[ВИД НА ЛЗ],II_1!$B31),"") -> 0 | H31: =IF(H$4<>"",COUNTIFS(tbl_HOSP[ОБЩИНА],II_1!H$4,tbl_HOSP[ВИД НА ЛЗ],II_1!$B31),"") -> 0 | I31: =IF(I$4<>"",COUNTIFS(tbl_HOSP[ОБЩИНА],II_1!I$4,tbl_HOSP[ВИД НА ЛЗ],II_1!$B31),"") -> 0 | J31: =IF(J$4<>"",COUNTIFS(tbl_HOSP[ОБЩИНА],II_1!J$4,tbl_HOSP[ВИД НА ЛЗ],II_1!$B31),"") -> 0 | K31: =IF(K$4<>"",COUNTIFS(tbl_HOSP[ОБЩИНА],II_1!K$4,tbl_HOSP[ВИД НА ЛЗ],II_1!$B31),"") -> 0 | L31: =IF(L$4<>"",COUNTIFS(tbl_HOSP[ОБЩИНА],II_1!L$4,tbl_HOSP[ВИД НА ЛЗ],II_1!$B31),"") -> 0 | M31: =IF(M$4<>"",COUNTIFS(tbl_HOSP[ОБЩИНА],II_1!M$4,tbl_HOSP[ВИД НА ЛЗ],II_1!$B31),"") -> 0 | N31: =IF(N$4<>"",COUNTIFS(tbl_HOSP[ОБЩИНА],II_1!N$4,tbl_HOSP[ВИД НА ЛЗ],II_1!$B31),"") -> 0 | O31: =IF(O$4<>"",COUNTIFS(tbl_HOSP[ОБЩИНА],II_1!O$4,tbl_HOSP[ВИД НА ЛЗ],II_1!$B31),"") -> 0 | P31: =IF(P$4<>"",COUNTIFS(tbl_HOSP[ОБЩИНА],II_1!P$4,tbl_HOSP[ВИД НА ЛЗ],II_1!$B31),"") -> 0 | Q31: =IF(Q$4<>"",COUNTIFS(tbl_HOSP[ОБЩИНА],II_1!Q$4,tbl_HOSP[ВИД НА ЛЗ],II_1!$B31),"") -> 0 | R31: =IF(R$4<>"",COUNTIFS(tbl_HOSP[ОБЩИНА],II_1!R$4,tbl_HOSP[ВИД НА ЛЗ],II_1!$B31),"") -> 0 | S31: =IF(S$4<>"",COUNTIFS(tbl_HOSP[ОБЩИНА],II_1!S$4,tbl_HOSP[ВИД НА ЛЗ],II_1!$B31),"") -> 0 | T31: =IF(T$4<>"",COUNTIFS(tbl_HOSP[ОБЩИНА],II_1!T$4,tbl_HOSP[ВИД НА ЛЗ],II_1!$B31),"") -> 0 | U31: =IF(U$4<>"",COUNTIFS(tbl_HOSP[ОБЩИНА],II_1!U$4,tbl_HOSP[ВИД НА ЛЗ],II_1!$B31),"") -> 0 | V31: =IF(V$4<>"",COUNTIFS(tbl_HOSP[ОБЩИНА],II_1!V$4,tbl_HOSP[ВИД НА ЛЗ],II_1!$B31),"") -> 0 | W31: =IF(W$4<>"",COUNTIFS(tbl_HOSP[ОБЩИНА],II_1!W$4,tbl_HOSP[ВИД НА ЛЗ],II_1!$B31),"") -> 0 | X31: =IF(X$4<>"",COUNTIFS(tbl_HOSP[ОБЩИНА],II_1!X$4,tbl_HOSP[ВИД НА ЛЗ],II_1!$B31),"") -> 0 | Y31: =IF(Y$4<>"",COUNTIFS(tbl_HOSP[ОБЩИНА],II_1!Y$4,tbl_HOSP[ВИД НА ЛЗ],II_1!$B31),"") -> 0 | Z31: =IF(Z$4<>"",COUNTIFS(tbl_HOSP[ОБЩИНА],II_1!Z$4,tbl_HOSP[ВИД НА ЛЗ],II_1!$B31),"") -> 0
A32: Център за психично здраве | B32: ЦПЗ | C32: 1 | D32: 0.55 | E32: =IF(E$4<>"",COUNTIFS(tbl_HOSP[ОБЩИНА],II_1!E$4,tbl_HOSP[ВИД НА ЛЗ],II_1!$B32),"") -> 0 | F32: =IF(F$4<>"",COUNTIFS(tbl_HOSP[ОБЩИНА],II_1!F$4,tbl_HOSP[ВИД НА ЛЗ],II_1!$B32),"") -> 0 | G32: =IF(G$4<>"",COUNTIFS(tbl_HOSP[ОБЩИНА],II_1!G$4,tbl_HOSP[ВИД НА ЛЗ],II_1!$B32),"") -> 0 | H32: =IF(H$4<>"",COUNTIFS(tbl_HOSP[ОБЩИНА],II_1!H$4,tbl_HOSP[ВИД НА ЛЗ],II_1!$B32),"") -> 1 | I32: =IF(I$4<>"",COUNTIFS(tbl_HOSP[ОБЩИНА],II_1!I$4,tbl_HOSP[ВИД НА ЛЗ],II_1!$B32),"") -> 0 | J32: =IF(J$4<>"",COUNTIFS(tbl_HOSP[ОБЩИНА],II_1!J$4,tbl_HOSP[ВИД НА ЛЗ],II_1!$B32),"") -> 0 | K32: =IF(K$4<>"",COUNTIFS(tbl_HOSP[ОБЩИНА],II_1!K$4,tbl_HOSP[ВИД НА ЛЗ],II_1!$B32),"") -> 0 | L32: =IF(L$4<>"",COUNTIFS(tbl_HOSP[ОБЩИНА],II_1!L$4,tbl_HOSP[ВИД НА ЛЗ],II_1!$B32),"") -> 0 | M32: =IF(M$4<>"",COUNTIFS(tbl_HOSP[ОБЩИНА],II_1!M$4,tbl_HOSP[ВИД НА ЛЗ],II_1!$B32),"") -> 0 | N32: =IF(N$4<>"",COUNTIFS(tbl_HOSP[ОБЩИНА],II_1!N$4,tbl_HOSP[ВИД НА ЛЗ],II_1!$B32),"") -> 0 | O32: =IF(O$4<>"",COUNTIFS(tbl_HOSP[ОБЩИНА],II_1!O$4,tbl_HOSP[ВИД НА ЛЗ],II_1!$B32),"") -> 0 | P32: =IF(P$4<>"",COUNTIFS(tbl_HOSP[ОБЩИНА],II_1!P$4,tbl_HOSP[ВИД НА ЛЗ],II_1!$B32),"") -> 0 | Q32: =IF(Q$4<>"",COUNTIFS(tbl_HOSP[ОБЩИНА],II_1!Q$4,tbl_HOSP[ВИД НА ЛЗ],II_1!$B32),"") -> 0 | R32: =IF(R$4<>"",COUNTIFS(tbl_HOSP[ОБЩИНА],II_1!R$4,tbl_HOSP[ВИД НА ЛЗ],II_1!$B32),"") -> 0 | S32: =IF(S$4<>"",COUNTIFS(tbl_HOSP[ОБЩИНА],II_1!S$4,tbl_HOSP[ВИД НА ЛЗ],II_1!$B32),"") -> 0 | T32: =IF(T$4<>"",COUNTIFS(tbl_HOSP[ОБЩИНА],II_1!T$4,tbl_HOSP[ВИД НА ЛЗ],II_1!$B32),"") -> 0 | U32: =IF(U$4<>"",COUNTIFS(tbl_HOSP[ОБЩИНА],II_1!U$4,tbl_HOSP[ВИД НА ЛЗ],II_1!$B32),"") -> 0 | V32: =IF(V$4<>"",COUNTIFS(tbl_HOSP[ОБЩИНА],II_1!V$4,tbl_HOSP[ВИД НА ЛЗ],II_1!$B32),"") -> 0 | W32: =IF(W$4<>"",COUNTIFS(tbl_HOSP[ОБЩИНА],II_1!W$4,tbl_HOSP[ВИД НА ЛЗ],II_1!$B32),"") -> 0 | X32: =IF(X$4<>"",COUNTIFS(tbl_HOSP[ОБЩИНА],II_1!X$4,tbl_HOSP[ВИД НА ЛЗ],II_1!$B32),"") -> 0 | Y32: =IF(Y$4<>"",COUNTIFS(tbl_HOSP[ОБЩИНА],II_1!Y$4,tbl_HOSP[ВИД НА ЛЗ],II_1!$B32),"") -> 0 | Z32: =IF(Z$4<>"",COUNTIFS(tbl_HOSP[ОБЩИНА],II_1!Z$4,tbl_HOSP[ВИД НА ЛЗ],II_1!$B32),"") -> 0
A33: Център за кожно-венерически заболявания | B33: ЦКВЗ | C33: 0 | D33: 0 | E33: =IF(E$4<>"",COUNTIFS(tbl_HOSP[ОБЩИНА],II_1!E$4,tbl_HOSP[ВИД НА ЛЗ],II_1!$B33),"") -> 0 | F33: =IF(F$4<>"",COUNTIFS(tbl_HOSP[ОБЩИНА],II_1!F$4,tbl_HOSP[ВИД НА ЛЗ],II_1!$B33),"") -> 0 | G33: =IF(G$4<>"",COUNTIFS(tbl_HOSP[ОБЩИНА],II_1!G$4,tbl_HOSP[ВИД НА ЛЗ],II_1!$B33),"") -> 0 | H33: =IF(H$4<>"",COUNTIFS(tbl_HOSP[ОБЩИНА],II_1!H$4,tbl_HOSP[ВИД НА ЛЗ],II_1!$B33),"") -> 0 | I33: =IF(I$4<>"",COUNTIFS(tbl_HOSP[ОБЩИНА],II_1!I$4,tbl_HOSP[ВИД НА ЛЗ],II_1!$B33),"") -> 0 | J33: =IF(J$4<>"",COUNTIFS(tbl_HOSP[ОБЩИНА],II_1!J$4,tbl_HOSP[ВИД НА ЛЗ],II_1!$B33),"") -> 0 | K33: =IF(K$4<>"",COUNTIFS(tbl_HOSP[ОБЩИНА],II_1!K$4,tbl_HOSP[ВИД НА ЛЗ],II_1!$B33),"") -> 0 | L33: =IF(L$4<>"",COUNTIFS(tbl_HOSP[ОБЩИНА],II_1!L$4,tbl_HOSP[ВИД НА ЛЗ],II_1!$B33),"") -> 0 | M33: =IF(M$4<>"",COUNTIFS(tbl_HOSP[ОБЩИНА],II_1!M$4,tbl_HOSP[ВИД НА ЛЗ],II_1!$B33),"") -> 0 | N33: =IF(N$4<>"",COUNTIFS(tbl_HOSP[ОБЩИНА],II_1!N$4,tbl_HOSP[ВИД НА ЛЗ],II_1!$B33),"") -> 0 | O33: =IF(O$4<>"",COUNTIFS(tbl_HOSP[ОБЩИНА],II_1!O$4,tbl_HOSP[ВИД НА ЛЗ],II_1!$B33),"") -> 0 | P33: =IF(P$4<>"",COUNTIFS(tbl_HOSP[ОБЩИНА],II_1!P$4,tbl_HOSP[ВИД НА ЛЗ],II_1!$B33),"") -> 0 | Q33: =IF(Q$4<>"",COUNTIFS(tbl_HOSP[ОБЩИНА],II_1!Q$4,tbl_HOSP[ВИД НА ЛЗ],II_1!$B33),"") -> 0 | R33: =IF(R$4<>"",COUNTIFS(tbl_HOSP[ОБЩИНА],II_1!R$4,tbl_HOSP[ВИД НА ЛЗ],II_1!$B33),"") -> 0 | S33: =IF(S$4<>"",COUNTIFS(tbl_HOSP[ОБЩИНА],II_1!S$4,tbl_HOSP[ВИД НА ЛЗ],II_1!$B33),"") -> 0 | T33: =IF(T$4<>"",COUNTIFS(tbl_HOSP[ОБЩИНА],II_1!T$4,tbl_HOSP[ВИД НА ЛЗ],II_1!$B33),"") -> 0 | U33: =IF(U$4<>"",COUNTIFS(tbl_HOSP[ОБЩИНА],II_1!U$4,tbl_HOSP[ВИД НА ЛЗ],II_1!$B33),"") -> 0 | V33: =IF(V$4<>"",COUNTIFS(tbl_HOSP[ОБЩИНА],II_1!V$4,tbl_HOSP[ВИД НА ЛЗ],II_1!$B33),"") -> 0 | W33: =IF(W$4<>"",COUNTIFS(tbl_HOSP[ОБЩИНА],II_1!W$4,tbl_HOSP[ВИД НА ЛЗ],II_1!$B33),"") -> 0 | X33: =IF(X$4<>"",COUNTIFS(tbl_HOSP[ОБЩИНА],II_1!X$4,tbl_HOSP[ВИД НА ЛЗ],II_1!$B33),"") -> 0 | Y33: =IF(Y$4<>"",COUNTIFS(tbl_HOSP[ОБЩИНА],II_1!Y$4,tbl_HOSP[ВИД НА ЛЗ],II_1!$B33),"") -> 0 | Z33: =IF(Z$4<>"",COUNTIFS(tbl_HOSP[ОБЩИНА],II_1!Z$4,tbl_HOSP[ВИД НА ЛЗ],II_1!$B33),"") -> 0
A34: Дом за медико-социални грижи | B34: ДМСГ | C34: 1 | D34: 0.55 | E34: =IF(E$4<>"",COUNTIFS(tbl_HOSP[ОБЩИНА],II_1!E$4,tbl_HOSP[ВИД НА ЛЗ],II_1!$B34),"") -> 0 | F34: =IF(F$4<>"",COUNTIFS(tbl_HOSP[ОБЩИНА],II_1!F$4,tbl_HOSP[ВИД НА ЛЗ],II_1!$B34),"") -> 0 | G34: =IF(G$4<>"",COUNTIFS(tbl_HOSP[ОБЩИНА],II_1!G$4,tbl_HOSP[ВИД НА ЛЗ],II_1!$B34),"") -> 0 | H34: =IF(H$4<>"",COUNTIFS(tbl_HOSP[ОБЩИНА],II_1!H$4,tbl_HOSP[ВИД НА ЛЗ],II_1!$B34),"") -> 1 | I34: =IF(I$4<>"",COUNTIFS(tbl_HOSP[ОБЩИНА],II_1!I$4,tbl_HOSP[ВИД НА ЛЗ],II_1!$B34),"") -> 0 | J34: =IF(J$4<>"",COUNTIFS(tbl_HOSP[ОБЩИНА],II_1!J$4,tbl_HOSP[ВИД НА ЛЗ],II_1!$B34),"") -> 0 | K34: =IF(K$4<>"",COUNTIFS(tbl_HOSP[ОБЩИНА],II_1!K$4,tbl_HOSP[ВИД НА ЛЗ],II_1!$B34),"") -> 0 | L34: =IF(L$4<>"",COUNTIFS(tbl_HOSP[ОБЩИНА],II_1!L$4,tbl_HOSP[ВИД НА ЛЗ],II_1!$B34),"") -> 0 | M34: =IF(M$4<>"",COUNTIFS(tbl_HOSP[ОБЩИНА],II_1!M$4,tbl_HOSP[ВИД НА ЛЗ],II_1!$B34),"") -> 0 | N34: =IF(N$4<>"",COUNTIFS(tbl_HOSP[ОБЩИНА],II_1!N$4,tbl_HOSP[ВИД НА ЛЗ],II_1!$B34),"") -> 0 | O34: =IF(O$4<>"",COUNTIFS(tbl_HOSP[ОБЩИНА],II_1!O$4,tbl_HOSP[ВИД НА ЛЗ],II_1!$B34),"") -> 0 | P34: =IF(P$4<>"",COUNTIFS(tbl_HOSP[ОБЩИНА],II_1!P$4,tbl_HOSP[ВИД НА ЛЗ],II_1!$B34),"") -> 0 | Q34: =IF(Q$4<>"",COUNTIFS(tbl_HOSP[ОБЩИНА],II_1!Q$4,tbl_HOSP[ВИД НА ЛЗ],II_1!$B34),"") -> 0 | R34: =IF(R$4<>"",COUNTIFS(tbl_HOSP[ОБЩИНА],II_1!R$4,tbl_HOSP[ВИД НА ЛЗ],II_1!$B34),"") -> 0 | S34: =IF(S$4<>"",COUNTIFS(tbl_HOSP[ОБЩИНА],II_1!S$4,tbl_HOSP[ВИД НА ЛЗ],II_1!$B34),"") -> 0 | T34: =IF(T$4<>"",COUNTIFS(tbl_HOSP[ОБЩИНА],II_1!T$4,tbl_HOSP[ВИД НА ЛЗ],II_1!$B34),"") -> 0 | U34: =IF(U$4<>"",COUNTIFS(tbl_HOSP[ОБЩИНА],II_1!U$4,tbl_HOSP[ВИД НА ЛЗ],II_1!$B34),"") -> 0 | V34: =IF(V$4<>"",COUNTIFS(tbl_HOSP[ОБЩИНА],II_1!V$4,tbl_HOSP[ВИД НА ЛЗ],II_1!$B34),"") -> 0 | W34: =IF(W$4<>"",COUNTIFS(tbl_HOSP[ОБЩИНА],II_1!W$4,tbl_HOSP[ВИД НА ЛЗ],II_1!$B34),"") -> 0 | X34: =IF(X$4<>"",COUNTIFS(tbl_HOSP[ОБЩИНА],II_1!X$4,tbl_HOSP[ВИД НА ЛЗ],II_1!$B34),"") -> 0 | Y34: =IF(Y$4<>"",COUNTIFS(tbl_HOSP[ОБЩИНА],II_1!Y$4,tbl_HOSP[ВИД НА ЛЗ],II_1!$B34),"") -> 0 | Z34: =IF(Z$4<>"",COUNTIFS(tbl_HOSP[ОБЩИНА],II_1!Z$4,tbl_HOSP[ВИД НА ЛЗ],II_1!$B34),"") -> 0
A35: Диализен център | B35: ДЦ | C35: 0 | D35: 0 | E35: =IF(E$4<>"",COUNTIFS(tbl_HOSP[ОБЩИНА],II_1!E$4,tbl_HOSP[ВИД НА ЛЗ],II_1!$B35),"") -> 0 | F35: =IF(F$4<>"",COUNTIFS(tbl_HOSP[ОБЩИНА],II_1!F$4,tbl_HOSP[ВИД НА ЛЗ],II_1!$B35),"") -> 0 | G35: =IF(G$4<>"",COUNTIFS(tbl_HOSP[ОБЩИНА],II_1!G$4,tbl_HOSP[ВИД НА ЛЗ],II_1!$B35),"") -> 0 | H35: =IF(H$4<>"",COUNTIFS(tbl_HOSP[ОБЩИНА],II_1!H$4,tbl_HOSP[ВИД НА ЛЗ],II_1!$B35),"") -> 0 | I35: =IF(I$4<>"",COUNTIFS(tbl_HOSP[ОБЩИНА],II_1!I$4,tbl_HOSP[ВИД НА ЛЗ],II_1!$B35),"") -> 0 | J35: =IF(J$4<>"",COUNTIFS(tbl_HOSP[ОБЩИНА],II_1!J$4,tbl_HOSP[ВИД НА ЛЗ],II_1!$B35),"") -> 0 | K35: =IF(K$4<>"",COUNTIFS(tbl_HOSP[ОБЩИНА],II_1!K$4,tbl_HOSP[ВИД НА ЛЗ],II_1!$B35),"") -> 0 | L35: =IF(L$4<>"",COUNTIFS(tbl_HOSP[ОБЩИНА],II_1!L$4,tbl_HOSP[ВИД НА ЛЗ],II_1!$B35),"") -> 0 | M35: =IF(M$4<>"",COUNTIFS(tbl_HOSP[ОБЩИНА],II_1!M$4,tbl_HOSP[ВИД НА ЛЗ],II_1!$B35),"") -> 0 | N35: =IF(N$4<>"",COUNTIFS(tbl_HOSP[ОБЩИНА],II_1!N$4,tbl_HOSP[ВИД НА ЛЗ],II_1!$B35),"") -> 0 | O35: =IF(O$4<>"",COUNTIFS(tbl_HOSP[ОБЩИНА],II_1!O$4,tbl_HOSP[ВИД НА ЛЗ],II_1!$B35),"") -> 0 | P35: =IF(P$4<>"",COUNTIFS(tbl_HOSP[ОБЩИНА],II_1!P$4,tbl_HOSP[ВИД НА ЛЗ],II_1!$B35),"") -> 0 | Q35: =IF(Q$4<>"",COUNTIFS(tbl_HOSP[ОБЩИНА],II_1!Q$4,tbl_HOSP[ВИД НА ЛЗ],II_1!$B35),"") -> 0 | R35: =IF(R$4<>"",COUNTIFS(tbl_HOSP[ОБЩИНА],II_1!R$4,tbl_HOSP[ВИД НА ЛЗ],II_1!$B35),"") -> 0 | S35: =IF(S$4<>"",COUNTIFS(tbl_HOSP[ОБЩИНА],II_1!S$4,tbl_HOSP[ВИД НА ЛЗ],II_1!$B35),"") -> 0 | T35: =IF(T$4<>"",COUNTIFS(tbl_HOSP[ОБЩИНА],II_1!T$4,tbl_HOSP[ВИД НА ЛЗ],II_1!$B35),"") -> 0 | U35: =IF(U$4<>"",COUNTIFS(tbl_HOSP[ОБЩИНА],II_1!U$4,tbl_HOSP[ВИД НА ЛЗ],II_1!$B35),"") -> 0 | V35: =IF(V$4<>"",COUNTIFS(tbl_HOSP[ОБЩИНА],II_1!V$4,tbl_HOSP[ВИД НА ЛЗ],II_1!$B35),"") -> 0 | W35: =IF(W$4<>"",COUNTIFS(tbl_HOSP[ОБЩИНА],II_1!W$4,tbl_HOSP[ВИД НА ЛЗ],II_1!$B35),"") -> 0 | X35: =IF(X$4<>"",COUNTIFS(tbl_HOSP[ОБЩИНА],II_1!X$4,tbl_HOSP[ВИД НА ЛЗ],II_1!$B35),"") -> 0 | Y35: =IF(Y$4<>"",COUNTIFS(tbl_HOSP[ОБЩИНА],II_1!Y$4,tbl_HOSP[ВИД НА ЛЗ],II_1!$B35),"") -> 0 | Z35: =IF(Z$4<>"",COUNTIFS(tbl_HOSP[ОБЩИНА],II_1!Z$4,tbl_HOSP[ВИД НА ЛЗ],II_1!$B35),"") -> 0
A36: Тъкнна банка | B36: ТБ | C36: 0 | D36: 0 | E36: =IF(E$4<>"",COUNTIFS(tbl_HOSP[ОБЩИНА],II_1!E$4,tbl_HOSP[ВИД НА ЛЗ],II_1!$B36),"") -> 0 | F36: =IF(F$4<>"",COUNTIFS(tbl_HOSP[ОБЩИНА],II_1!F$4,tbl_HOSP[ВИД НА ЛЗ],II_1!$B36),"") -> 0 | G36: =IF(G$4<>"",COUNTIFS(tbl_HOSP[ОБЩИНА],II_1!G$4,tbl_HOSP[ВИД НА ЛЗ],II_1!$B36),"") -> 0 | H36: =IF(H$4<>"",COUNTIFS(tbl_HOSP[ОБЩИНА],II_1!H$4,tbl_HOSP[ВИД НА ЛЗ],II_1!$B36),"") -> 0 | I36: =IF(I$4<>"",COUNTIFS(tbl_HOSP[ОБЩИНА],II_1!I$4,tbl_HOSP[ВИД НА ЛЗ],II_1!$B36),"") -> 0 | J36: =IF(J$4<>"",COUNTIFS(tbl_HOSP[ОБЩИНА],II_1!J$4,tbl_HOSP[ВИД НА ЛЗ],II_1!$B36),"") -> 0 | K36: =IF(K$4<>"",COUNTIFS(tbl_HOSP[ОБЩИНА],II_1!K$4,tbl_HOSP[ВИД НА ЛЗ],II_1!$B36),"") -> 0 | L36: =IF(L$4<>"",COUNTIFS(tbl_HOSP[ОБЩИНА],II_1!L$4,tbl_HOSP[ВИД НА ЛЗ],II_1!$B36),"") -> 0 | M36: =IF(M$4<>"",COUNTIFS(tbl_HOSP[ОБЩИНА],II_1!M$4,tbl_HOSP[ВИД НА ЛЗ],II_1!$B36),"") -> 0 | N36: =IF(N$4<>"",COUNTIFS(tbl_HOSP[ОБЩИНА],II_1!N$4,tbl_HOSP[ВИД НА ЛЗ],II_1!$B36),"") -> 0 | O36: =IF(O$4<>"",COUNTIFS(tbl_HOSP[ОБЩИНА],II_1!O$4,tbl_HOSP[ВИД НА ЛЗ],II_1!$B36),"") -> 0 | P36: =IF(P$4<>"",COUNTIFS(tbl_HOSP[ОБЩИНА],II_1!P$4,tbl_HOSP[ВИД НА ЛЗ],II_1!$B36),"") -> 0 | Q36: =IF(Q$4<>"",COUNTIFS(tbl_HOSP[ОБЩИНА],II_1!Q$4,tbl_HOSP[ВИД НА ЛЗ],II_1!$B36),"") -> 0 | R36: =IF(R$4<>"",COUNTIFS(tbl_HOSP[ОБЩИНА],II_1!R$4,tbl_HOSP[ВИД НА ЛЗ],II_1!$B36),"") -> 0 | S36: =IF(S$4<>"",COUNTIFS(tbl_HOSP[ОБЩИНА],II_1!S$4,tbl_HOSP[ВИД НА ЛЗ],II_1!$B36),"") -> 0 | T36: =IF(T$4<>"",COUNTIFS(tbl_HOSP[ОБЩИНА],II_1!T$4,tbl_HOSP[ВИД НА ЛЗ],II_1!$B36),"") -> 0 | U36: =IF(U$4<>"",COUNTIFS(tbl_HOSP[ОБЩИНА],II_1!U$4,tbl_HOSP[ВИД НА ЛЗ],II_1!$B36),"") -> 0 | V36: =IF(V$4<>"",COUNTIFS(tbl_HOSP[ОБЩИНА],II_1!V$4,tbl_HOSP[ВИД НА ЛЗ],II_1!$B36),"") -> 0 | W36: =IF(W$4<>"",COUNTIFS(tbl_HOSP[ОБЩИНА],II_1!W$4,tbl_HOSP[ВИД НА ЛЗ],II_1!$B36),"") -> 0 | X36: =IF(X$4<>"",COUNTIFS(tbl_HOSP[ОБЩИНА],II_1!X$4,tbl_HOSP[ВИД НА ЛЗ],II_1!$B36),"") -> 0 | Y36: =IF(Y$4<>"",COUNTIFS(tbl_HOSP[ОБЩИНА],II_1!Y$4,tbl_HOSP[ВИД НА ЛЗ],II_1!$B36),"") -> 0 | Z36: =IF(Z$4<>"",COUNTIFS(tbl_HOSP[ОБЩИНА],II_1!Z$4,tbl_HOSP[ВИД НА ЛЗ],II_1!$B36),"") -> 0
A37: Хоспис | B37: ХОСПИС | C37: 0 | D37: 0 | E37: =IF(E$4<>"",COUNTIFS(tbl_HOSP[ОБЩИНА],II_1!E$4,tbl_HOSP[ВИД НА ЛЗ],II_1!$B37),"") -> 0 | F37: =IF(F$4<>"",COUNTIFS(tbl_HOSP[ОБЩИНА],II_1!F$4,tbl_HOSP[ВИД НА ЛЗ],II_1!$B37),"") -> 0 | G37: =IF(G$4<>"",COUNTIFS(tbl_HOSP[ОБЩИНА],II_1!G$4,tbl_HOSP[ВИД НА ЛЗ],II_1!$B37),"") -> 0 | H37: =IF(H$4<>"",COUNTIFS(tbl_HOSP[ОБЩИНА],II_1!H$4,tbl_HOSP[ВИД НА ЛЗ],II_1!$B37),"") -> 0 | I37: =IF(I$4<>"",COUNTIFS(tbl_HOSP[ОБЩИНА],II_1!I$4,tbl_HOSP[ВИД НА ЛЗ],II_1!$B37),"") -> 0 | J37: =IF(J$4<>"",COUNTIFS(tbl_HOSP[ОБЩИНА],II_1!J$4,tbl_HOSP[ВИД НА ЛЗ],II_1!$B37),"") -> 0 | K37: =IF(K$4<>"",COUNTIFS(tbl_HOSP[ОБЩИНА],II_1!K$4,tbl_HOSP[ВИД НА ЛЗ],II_1!$B37),"") -> 0 | L37: =IF(L$4<>"",COUNTIFS(tbl_HOSP[ОБЩИНА],II_1!L$4,tbl_HOSP[ВИД НА ЛЗ],II_1!$B37),"") -> 0 | M37: =IF(M$4<>"",COUNTIFS(tbl_HOSP[ОБЩИНА],II_1!M$4,tbl_HOSP[ВИД НА ЛЗ],II_1!$B37),"") -> 0 | N37: =IF(N$4<>"",COUNTIFS(tbl_HOSP[ОБЩИНА],II_1!N$4,tbl_HOSP[ВИД НА ЛЗ],II_1!$B37),"") -> 0 | O37: =IF(O$4<>"",COUNTIFS(tbl_HOSP[ОБЩИНА],II_1!O$4,tbl_HOSP[ВИД НА ЛЗ],II_1!$B37),"") -> 0 | P37: =IF(P$4<>"",COUNTIFS(tbl_HOSP[ОБЩИНА],II_1!P$4,tbl_HOSP[ВИД НА ЛЗ],II_1!$B37),"") -> 0 | Q37: =IF(Q$4<>"",COUNTIFS(tbl_HOSP[ОБЩИНА],II_1!Q$4,tbl_HOSP[ВИД НА ЛЗ],II_1!$B37),"") -> 0 | R37: =IF(R$4<>"",COUNTIFS(tbl_HOSP[ОБЩИНА],II_1!R$4,tbl_HOSP[ВИД НА ЛЗ],II_1!$B37),"") -> 0 | S37: =IF(S$4<>"",COUNTIFS(tbl_HOSP[ОБЩИНА],II_1!S$4,tbl_HOSP[ВИД НА ЛЗ],II_1!$B37),"") -> 0 | T37: =IF(T$4<>"",COUNTIFS(tbl_HOSP[ОБЩИНА],II_1!T$4,tbl_HOSP[ВИД НА ЛЗ],II_1!$B37),"") -> 0 | U37: =IF(U$4<>"",COUNTIFS(tbl_HOSP[ОБЩИНА],II_1!U$4,tbl_HOSP[ВИД НА ЛЗ],II_1!$B37),"") -> 0 | V37: =IF(V$4<>"",COUNTIFS(tbl_HOSP[ОБЩИНА],II_1!V$4,tbl_HOSP[ВИД НА ЛЗ],II_1!$B37),"") -> 0 | W37: =IF(W$4<>"",COUNTIFS(tbl_HOSP[ОБЩИНА],II_1!W$4,tbl_HOSP[ВИД НА ЛЗ],II_1!$B37),"") -> 0 | X37: =IF(X$4<>"",COUNTIFS(tbl_HOSP[ОБЩИНА],II_1!X$4,tbl_HOSP[ВИД НА ЛЗ],II_1!$B37),"") -> 0 | Y37: =IF(Y$4<>"",COUNTIFS(tbl_HOSP[ОБЩИНА],II_1!Y$4,tbl_HOSP[ВИД НА ЛЗ],II_1!$B37),"") -> 0 | Z37: =IF(Z$4<>"",COUNTIFS(tbl_HOSP[ОБЩИНА],II_1!Z$4,tbl_HOSP[ВИД НА ЛЗ],II_1!$B37),"") -> 0

Sheet II_ПИМП
A1: =I_1!$A$1 -> ДОБРИЧ | G1: Обратно към УКАЗАНИЯТА
A2: ИМЕ НА ЛЕЧЕБНОТО ЗАВЕДЕНИЕ | B2: ВИД НА ЛЗ | C2: РЕГ.№ В ЛЗИМПХ | D2: ОБЩИНА | E2: НАСЕЛЕНО МЯСТО | F2: АДРЕС | G2: ДРУГ АДРЕС НА ПРАКТИКАТА
A3: ЕТ "Д-р Цвятко Цветков" | B3: ИППИМП | C3: 0828111002 | D3: ДОБРИЧ | E3: ДОБРИЧ | F3: бул. 25 Септември 68 | K3: ИППИМП
A4: "Цикория-д-р Павлета Илиева-АИППМП" ЕООД | B4: ИППИМП | C4: 0828111003 | D4: ДОБРИЧ | E4: ДОБРИЧ | F4: ул. Димитър Петков 3
A5: "АИППМП - Д-р Миглена Апостолова" ЕООД | B5: ИППИМП | C5: 0828111004 | D5: ДОБРИЧ | E5: ДОБРИЧ | F5: бул. 25 Септември 68
A6: "ИППМП - Медика МВ" ЕООД | B6: ИППИМП | C6: 0828111005 | D6: ДОБРИЧ | E6: ДОБРИЧ | F6: бул. 25 Септември 68
A7: "ГГ Д-р Горанова - АИППМП" ЕООД | B7: ИППИМП | C7: 0828111007 | D7: ДОБРИЧ | E7: ДОБРИЧ | F7: ул. Ил. Макариополски 12
A8: ЕТ "Доктор Лилия Михнева" | B8: ИППИМП | C8: 0828111008 | D8: ДОБРИЧ | E8: ДОБРИЧ | F8: бул. 25 Септември 68
A9: ЕТ "Амбулатория ИППМП д-р Анастасия Трифонова" | B9: ИППИМП | C9: 0828111009 | D9: ДОБРИЧ | E9: ДОБРИЧ | F9: бул. 25 Септември 68
A10: ЕТ "Тодорка Арнаудова - Д-р Радева" | B10: ИППИМП | C10: 0828111010 | D10: ДОБРИЧ | E10: ДОБРИЧ | F10: ул. Димитър Петков 3
A11: "АИППМП - Д-р Юлияна Будакова" ЕООД | B11: ИППИМП | C11: 0828111012 | D11: ДОБРИЧ | E11: ДОБРИЧ | F11: ул. Димитър Петков 3
A12: "Д-р Михаил Денев - 67 - амбулатория за първична извънболнична медицинска помощ" ЕООД | B12: ИППИМП | C12: 0828111013 | D12: ДОБРИЧ | E12: ДОБРИЧ | F12: бул. 25 Септември 68
A13: "Д-р Бодичева - АИППМП" ЕООД | B13: ИППИМП | C13: 0828111015 | D13: ДОБРИЧ | E13: ДОБРИЧ | F13: ул. България 8
A14: ЕТ "АИППМП - Д-р Даниела Димова" | B14: ИППИМП | C14: 0828111016 | D14: ДОБРИЧ | E14: ДОБРИЧ | F14: ул. Димитър Петков 3
A15: "АИППМП - Д-р Явор Иванов Милушев" ЕООД | B15: ИППИМП | C15: 0828111017 | D15: ДОБРИЧ | E15: ДОБРИЧ | F15: ул. Димитър Петков 3
A16: "Д-р Снежа Нейчева Георгиева - ИППМП" ЕООД | B16: ИППИМП | C16: 0828111018 | D16: ДОБРИЧ | E16: ДОБРИЧ | F16: ул. Димитър Петков 3
A17: "Доктор Румяна Николова - ИППМП" ЕООД | B17: ИППИМП | C17: 0828111019 | D17: ДОБРИЧ | E17: ДОБРИЧ | F17: ул. Димитър Петков 3
A18: "ИППМП - Доктор Вачева - Иванка Станчева" ЕООД | B18: ИППИМП | C18: 0828111020 | D18: ДОБРИЧ | E18: ДОБРИЧ | F18: бул. 25 Септември 68
A19: ЕТ "Д-р Милен Минев" | B19: ИППИМП | C19: 0828111021 | D19: ДОБРИЧ | E19: ДОБРИЧ | F19: бул. 25 Септември 68
A20: "Доктор Диманка Радева - ИППМП" ЕООД | B20: ИППИМП | C20: 0828111023 | D20: ДОБРИЧ | E20: ДОБРИЧ | F20: ул. Димитър Петков 3
A21: ЕТ "АИППМП - Д-р Светлана Дакушева" | B21: ИППИМП | C21: 0828111025 | D21: ДОБРИЧ | E21: ДОБРИЧ | F21: бул. 25 Септември 68
A22: "Вита - К" - ЕООД | B22: ИППИМП | C22: 0828111027 | D22: ДОБРИЧ | E22: ДОБРИЧ | F22: ул. Димитър Петков 3
A23: " Индивидуална практика за ПМП д-р Мария Манолова 72" ЕООД | B23: ИППИМП | C23: 0828111033 | D23: ДОБРИЧ | E23: ДОБРИЧ | F23: ул. Димитър Петков 3
A24: ЕТ "Д-р Даниела Демирова" | B24: ИППИМП | C24: 0828111037 | D24: ДОБРИЧ | E24: ДОБРИЧ | F24: ул. Димитър Петков 3
A25: ЕТ "Д-р Лукреция Константинова - ИППМП" | B25: ИППИМП | C25: 0828111038 | D25: ДОБРИЧ | E25: ДОБРИЧ | F25: ул. Димитър Петков 3
A26: "Медикус" - ЕООД | B26: ИППИМП | C26: 0828111039 | D26: ДОБРИЧ | E26: ДОБРИЧ | F26: ул. Димитър Петков 3
A27: Амбулатория за ПМП - д-р Хараламбиева | B27: ИППИМП | C27: 0828111040 | D27: ДОБРИЧ | E27: ДОБРИЧ | F27: бул. Трети март 16 вх В
A28: "Д-р Майя Калчева Николова" - ЕООД | B28: ИППИМП | C28: 0828111041 | D28: ДОБРИЧ | E28: ДОБРИЧ | F28: ул. Димитър Петков 3
A29: "Д-р Милена Димитрова Георгиева" - ЕООД | B29: ИППИМП | C29: 0828111042 | D29: ДОБРИЧ | E29: ДОБРИЧ | F29: ул. Димитър Петков 3
A30: Амбулатория за ПМП - д-р Стойчев | B30: ИППИМП | C30: 0828111046 | D30: ДОБРИЧ | E30: ДОБРИЧ | F30: бул. Трети март 16 вх В
A31: "АПМП - Медика - Д-р Диян Петров" - ЕООД | B31: ИППИМП | C31: 0828111048 | D31: ДОБРИЧ | E31: ДОБРИЧ | F31: ул. Димитър Петков 3
A32: "Д-р Донка Георгиева - ИППМП" ЕООД | B32: ИППИМП | C32: 0828111049 | D32: ДОБРИЧ | E32: ДОБРИЧ | F32: бул. 25 Септември 68
A33: ЕТ "Д-р Таня Великова- ИППМП" | B33: ИППИМП | C33: 0828111052 | D33: ДОБРИЧ | E33: ДОБРИЧ | F33: ул. Димитър Петков 3
A34: "АИППМП - Доктор Йорданка Михайлова" ЕООД | B34: ИППИМП | C34: 0828111062 | D34: ДОБРИЧ | E34: ДОБРИЧ | F34: ул. Димитър Петков 3
A35: ЕТ "Д-р Диян Йорданов" | B35: ИППИМП | C35: 0828111063 | D35: ДОБРИЧ | E35: ДОБРИЧ | F35: ул. Димитър Петков 3
A36: ЕТ "Д-р Красимир Гашков - ИППМП" | B36: ИППИМП | C36: 0828111065 | D36: ДОБРИЧ | E36: ДОБРИЧ | F36: ул. Панайот Хитов 24
A37: Амбулатория за ПМП - д-р Младенова | B37: ИППИМП | C37: 0828111070 | D37: ДОБРИЧ | E37: ДОБРИЧ | F37: ул. Отец Паисий 25
A38: "Д-р Сийка Илиева - ИППМП" ЕООД | B38: ИППИМП | C38: 0828111072 | D38: ДОБРИЧ | E38: ДОБРИЧ | F38: ул. Теменуга 5
A39: Амбулатория за ПМП - д-р Димитрова | B39: ИППИМП | C39: 0828111076 | D39: ДОБРИЧ | E39: ДОБРИЧ | F39: ул. Георги Кирков 14 ет 1 ап 1
A40: "ИППМП-Д-р Златина Колева Георгиева" ЕООД | B40: ИППИМП | C40: 0828111077 | D40: ДОБРИЧ | E40: ДОБРИЧ | F40: бул. 25 Септември 68
A41: "АИППМП Д-р Детелина Тодорова" ЕООД | B41: ИППИМП | C41: 0828111078 | D41: ДОБРИЧ | E41: ДОБРИЧ | F41: ул. Христо Смирненски 2
A42: "ИППМП - Д-р Нели Николушева" ЕООД | B42: ИППИМП | C42: 0828111079 | D42: ДОБРИЧ | E42: ДОБРИЧ | F42: ул. Димитър Петков 5 | G42: с. Овчарово, общ. Добрич-селска
A43: ЕТ "Ели - Д-р Вяра Петрова - ИППМП" | B43: ИППИМП | C43: 0815111001 | D43: ДОБРИЧ-СЕЛСКА | E43: ПЛАЧИДОЛ | F43: с. Плачи дол
A44: ЕТ "Нел - Д-р Нела Паскалева - ИППМП" | B44: ИППИМП | C44: 0815111002 | D44: ДОБРИЧ-СЕЛСКА | E44: ДОНЧЕВО | F44: с. Дончево
A45: ЕТ "АИППМП - Д-р Ивелин Тончев Иванов" | B45: ИППИМП | C45: 0815111003 | D45: ДОБРИЧ-СЕЛСКА | E45: СМОЛНИЦА | F45: с. Смолница
A46: "АИППМП - Доктор Добромир Георгиев Дечев" ЕООД | B46: ИППИМП | C46: 0815111004 | D46: ДОБРИЧ-СЕЛСКА | E46: СТЕФАНОВО | F46: с. Стефаново | G46: с. Батово, общ. Добрич-селска
A47: ЕТ "Даниела - д-р Даниела Йорданова - ИППМП" | B47: ИППИМП | C47: 0815111005 | D47: ДОБРИЧ-СЕЛСКА | E47: ПОБЕДА | F47: с. Победа
A48: "Мултимедикс - Д-р Т. Георгиева - АИППМП" ЕООД | B48: ИППИМП | C48: 0815111010 | D48: ДОБРИЧ-СЕЛСКА | E48: СТОЖЕР | F48: с. Стожер
A49: ЕТ "Д-р Димитър Нинков" | B49: ИППИМП | C49: 0815111024 | D49: ДОБРИЧ-СЕЛСКА | E49: ЖИТНИЦА | F49: с. Житница
A50: "ИППМП - Доктор Боряна Атанасова" ЕООД | B50: ИППИМП | C50: 0815111026 | D50: ДОБРИЧ-СЕЛСКА | E50: ВЕДРИНА | F50: с. Ведрина
A51: ЕТ "ИППМП Д-р Юрий Янев" | B51: ИППИМП | C51: 0815111027 | D51: ДОБРИЧ-СЕЛСКА | E51: БЕНКОВСКИ | F51: с. Бенковски
A52: "Д-р Мария Петрова Георгиева - АИППМП" ЕООД | B52: ИППИМП | C52: 0803111004 | D52: БАЛЧИК | E52: БАЛЧИК | F52: гр. Балчик, ул. Златко Петков 1
A53: "Д-р Йорданка Славеева Коцовска - АИППМП" ЕООД | B53: ИППИМП | C53: 0803111005 | D53: БАЛЧИК | E53: БАЛЧИК | F53: гр. Балчик, ул. Златко Петков 1
A54: "Д-р Филка Андонова - АИППМП" ЕООД | B54: ИППИМП | C54: 0803111006 | D54: БАЛЧИК | E54: БАЛЧИК | F54: гр. Балчик, ул. Златко Петков 1
A55: "Д-р Урал Бекиров - ИППМП - 2014" ЕООД | B55: ИППИМП | C55: 0803111007 | D55: БАЛЧИК | E55: ОБРОЧИЩЕ | F55: с. Оброчище, | G55: ул. Плиска 1, гр. Балчик
A56: ЕТ "Д-р Вилия Балева" | B56: ИППИМП | C56: 0803111009 | D56: БАЛЧИК | E56: ОБРОЧИЩЕ | F56: с. Оброчище
A57: "АИППМП - Доктор Розалина Попова" ЕООД | B57: ИППИМП | C57: 0803111010 | D57: БАЛЧИК | E57: БАЛЧИК | F57: гр. Балчик, ул. Златко Петков 1
A58: ЕТ "Д-р Петър Вълков - ИППМП" | B58: ИППИМП | C58: 0803111011 | D58: БАЛЧИК | E58: БАЛЧИК | F58: гр. Балчик, ул. Златко Петков 1
A59: ЕТ "Д-р Красимира Георгиева - ИППМП" | B59: ИППИМП | C59: 0803111012 | D59: БАЛЧИК | E59: БАЛЧИК | F59: гр. Балчик, ул. Златко Петков 1
A60: "Сокол 2012 - д-р Георги Вичев - АИППМП" ЕООД | B60: ИППИМП | C60: 0803111014 | D60: БАЛЧИК | E60: СОКОЛОВО | F60: с. Соколово, | G60: с. Храброво, община Балчик
A61: ЕТ "Д-р Евгения Арсова - ИППМП" | B61: ИППИМП | C61: 0803111015 | D61: БАЛЧИК | E61: БАЛЧИК | F61: гр. Балчик, ул. Златко Петков 1
A62: "АИППМП-Медикъл Сървис" ЕООД | B62: ИППИМП | C62: 0803111017 | D62: БАЛЧИК | E62: СЕНОКОС | F62: с. Сенокос, | G62: с. Дропла, община Балчик
A63: ЕТ "Д-р Веселин Великов" | B63: ИППИМП | C63: 0803111019 | D63: БАЛЧИК | E63: КРАНЕВО | F63: с. Кранево
A64: "АИПИПМП Доктор Оля Петкова" ЕООД | B64: ИППИМП | C64: 0803111023 | D64: БАЛЧИК | E64: БАЛЧИК | F64: гр. Балчик, ул. Златко Петков 1
A65: "АИППМП - Д-р Йордан Георгиев" ЕООД | B65: ИППИМП | C65: 0812111001 | D65: ГЕНЕРАЛ ТОШЕВО | E65: ГЕНЕРАЛ ТОШЕВО | F65: гр. Ген. Тошево, ул. Иван Вазов 15
A66: "АПИМП - Д-р Мирослав Байчев" ЕООД | B66: ИППИМП | C66: 0812111004 | D66: ГЕНЕРАЛ ТОШЕВО | E66: КРАСЕН | F66: с. Красен, с. Росица
A67: "ИППМП - д-р М. Ангелова" ЕООД | B67: ИППИМП | C67: 0812111005 | D67: ГЕНЕРАЛ ТОШЕВО | E67: ГЕНЕРАЛ ТОШЕВО | F67: гр. Ген. Тошево, ул. Иван Вазов 15
A68: ЕТ "Стомед - Д-р Здравко Иванов - ИППМП" | B68: ИППИМП | C68: 0812111006 | D68: ГЕНЕРАЛ ТОШЕВО | E68: ГЕНЕРАЛ ТОШЕВО | F68: гр. Ген. Тошево, ул. Иван Вазов 15
A69: "АИППМП - Евимед" ЕООД | B69: ИППИМП | C69: 0812111007 | D69: ГЕНЕРАЛ ТОШЕВО | E69: ГЕНЕРАЛ ТОШЕВО | F69: гр. Ген. Тошево, ул. Иван Вазов 15, | G69: с. Петлешково, общ. Ген. Тошево
A70: "Медика - Же.Ст." - ЕООД | B70: ИППИМП | C70: 0812111008 | D70: ГЕНЕРАЛ ТОШЕВО | E70: ГЕНЕРАЛ ТОШЕВО | F70: гр. Ген. Тошево, ул. Иван Вазов 15
A71: ЕТ "Д-р Надя Стефанова - АИПМП" | B71: ИППИМП | C71: 0812111009 | D71: ГЕНЕРАЛ ТОШЕВО | E71: ГЕНЕРАЛ ТОШЕВО | F71: гр. Ген. Тошево, ул. Иван Вазов 15
A72: "ИППМП д-р Катюша Димитрова" ЕООД | B72: ИППИМП | C72: 0812111021 | D72: ГЕНЕРАЛ ТОШЕВО | E72: КАРДАМ | F72: с. Кардам, | G72: ул. Ив. Вазов 15, Ген. Тошево
A73: ЕТ "ИППМП - Д-р Огнян Василев" | B73: ИППИМП | C73: 0812111018 | D73: ГЕНЕРАЛ ТОШЕВО | E73: ВАСИЛЕВО | F73: с. Василево, | G73: с. Вранино, общ. Каварна
A74: ЕТ "Здраве - Д-р Здравка Маринова" | B74: ИППИМП | C74: 0812111015 | D74: ГЕНЕРАЛ ТОШЕВО | E74: ПЧЕЛАРОВО | F74: с. Пчеларово, | G74: гр. Ген. Тошево, ул. Ив. Вазов 15
A75: ЕТ "ИППМП - Д-р Петър Димитров" | B75: ИППИМП | C75: 0812111020 | D75: ГЕНЕРАЛ ТОШЕВО | E75: ЖИТЕН | F75: с. Житен
A76: "ИППИМП - Д-р Евгений Чобанов" ЕООД | B76: ИППИМП | C76: 0817111001 | D76: КАВАРНА | E76: КАВАРНА | F76: гр. Каварна, ул. Васил Левски 36
A77: ЕТ"Д-р Мария Герасимова" | B77: ИППИМП | C77: 0817111002 | D77: КАВАРНА | E77: КАВАРНА | F77: гр. Каварна, ул. Васил Левски 36
A78: "Амбулатория за индивидуална практика за ПМП-Панацеус" ЕООД | B78: ИППИМП | C78: 0817111003 | D78: КАВАРНА | E78: КАВАРНА | F78: гр. Каварна, ул. Васил Левски 36
A79: "АИППМП - Др. Иванка Анастасова" ЕООД | B79: ИППИМП | C79: 0817111015 | D79: КАВАРНА | E79: КАВАРНА | F79: гр. Каварна, ул. Васил Левски 36
A80: ЕТ "ИППМП д-р Анна Ангелова" | B80: ИППИМП | C80: 0817111018 | D80: КАВАРНА | E80: КАВАРНА | F80: гр. Каварна, ул. Панайот Волов 1
A81: ЕТ "Д-р Людмил Гецов" | B81: ИППИМП | C81: 0817111008 | D81: КАВАРНА | E81: КАВАРНА | F81: гр. Каварна, ул. Васил Левски 36
A82: "Индивидуална практика за първична медицинска помощ Хипократ" ЕООД | B82: ИППИМП | C82: 0817111016 | D82: КАВАРНА | E82: КАВАРНА | F82: гр. Каварна, ул. Добри Христов 1 Б
A83: ЕТ"ИППМП-д-р Димитър Милчев" | B83: ИППИМП | C83: 0817111017 | D83: КАВАРНА | E83: БЪЛГАРЕВО | F83: с. Българево
A84: ЕТ "ИППМП - Д-р Йорданка Стоева" | B84: ИППИМП | C84: 0829111001 | D84: ШАБЛА | E84: ШАБЛА | F84: гр. Шабла, ул. Равно поле 37
A85: ЕТ "Доктор Александра Козарева" | B85: ИППИМП | C85: 0829111002 | D85: ШАБЛА | E85: ШАБЛА | F85: гр. Шабла, ул. Равно поле 37
A86: ЕТ "АИПМП - Д-р Илко Нанев" | B86: ИППИМП | C86: 0829111004 | D86: ШАБЛА | E86: ШАБЛА | F86: гр. Шабла, ул. Равно поле 37
A87: "АИППМП - д-р Диан Ангелов" ЕООД | B87: ИППИМП | C87: 0829111009 | D87: ШАБЛА | E87: ДУРАНКУЛАК | F87: с. Дуранкулак, | G87: с. Спасово, община Ген. Тошево
A88: ЕТ "Хебра -99 - Д-р Петър Деветаков - ИППМП" | B88: ИППИМП | C88: 0820111001 | D88: КРУШАРИ | E88: ЛОЗЕНЕЦ | F88: с. Лозенец
A89: "ИППМП - Доктор Бисерка Веселинова" ЕООД | B89: ИППИМП | C89: 0820111002 | D89: КРУШАРИ | E89: КРУШАРИ | F89: с. Крушари
A90: "ИППМП - Доктор Оник Такворов" ЕООД | B90: ИППИМП | C90: 0820111007 | D90: КРУШАРИ | E90: ТЕЛЕРИГ | F90: с. Телериг
A91: ЕТ "Сема - д-р Димитър Симеонов - АИППМП" | B91: ИППИМП | C91: 0820111005 | D91: КРУШАРИ | E91: КОРИТЕН | F91: с. Коритен, | G91: с. Крушари
A92: "АИППМП - Д-р Красимир Гочев" ЕООД | B92: ИППИМП | C92: 0827111002 | D92: ТЕРВЕЛ | E92: ТЕРВЕЛ | F92: гр. Тервел, ул. Стара планина 2
A93: ЕТ "Катинка Боянова - Боко" | B93: ИППИМП | C93: 0827111003 | D93: ТЕРВЕЛ | E93: ОРЛЯК | F93: с. Орляк
A94: ЕТ "Д-р Мохамед Шахпур - ИППМП" | B94: ИППИМП | C94: 0827111009 | D94: ТЕРВЕЛ | E94: ЗЪРНЕВО | F94: с. Зърнево
A95: "Д-р Георги Василев - АИПМП" ЕООД | B95: ИППИМП | C95: 0827111024 | D95: ТЕРВЕЛ | E95: БОЖАН | F95: с. Божан
A96: Амбулатория за ПМП - д-р Славоев | B96: ИППИМП | C96: 0827111023 | D96: ТЕРВЕЛ | E96: БЕЗМЕР | F96: с. Безмер
A97: "Д-р Андрей Вълов - ИППИМП" ЕООД | B97: ИППИМП | C97: 0827111015 | D97: ТЕРВЕЛ | E97: ТЕРВЕЛ | F97: гр. Тервел, ул. Стара планина 2
A98: ЕТ "Д-р Димитричка Димитрова" | B98: ИППИМП | C98: 0827111018 | D98: ТЕРВЕЛ | E98: ТЕРВЕЛ | F98: гр. Тервел, ул. Стара планина 2
A99: "ИППМП - д-р Боряна Иванова" ЕООД | B99: ИППИМП | C99: 0827111025 | D99: ТЕРВЕЛ | E99: ТЕРВЕЛ | F99: гр. Тервел, ул. Стара планина 2, | G99: с. Каблешково, община Тервел
A100: Амбулатория за ПМП - д-р Владов | B100: ИППИМП | C100: 0827111027 | D100: ТЕРВЕЛ | E100: ЖЕГЛАРЦИ | F100: с. Жегларци
A101: Амбулатория за ПМП - д-р Радушева | B101: ИППИМП | C101: 0827111028 | D101: ТЕРВЕЛ | E101: НОВА КАМЕНА | F101: с. Нова Камена
A102: ЕТ"Индивидуална практика за ПМПДМ-Д-р Живка Димитрова" | B102: ИППИМП – ДМ | C102: 0828112001 | D102: ДОБРИЧ | E102: ДОБРИЧ | F102: ул. Даме Груев 6
A103: "Индивидуална практика за ПМПДМ-Д-р Даниел Маринов Донков" ЕООД | B103: ИППИМП – ДМ | C103: 0828112003 | D103: ДОБРИЧ | E103: ДОБРИЧ | F103: ул. Д.Петков 5; | G103: бул.Добруджа 26 вх Ж , ап 1
A104: ЕТ"Индивидуална практика за ПМПДМ-Д-р Мария Личева" | B104: ИППИМП – ДМ | C104: 0828112005 | D104: ДОБРИЧ | E104: ДОБРИЧ | F104: ул. Вардар 30
A105: "ИППДП - Д-р Анита Пелтегова" ЕООД | B105: ИППИМП – ДМ | C105: 0828112006 | D105: ДОБРИЧ | E105: ДОБРИЧ | F105: ул. Д. Петков 5 каб. 206
A106: ЕТ"Индивидуална практика за ПМПДМ-Д-р Ани Бонева" | B106: ИППИМП – ДМ | C106: 0828112007 | D106: ДОБРИЧ | E106: ДОБРИЧ | F106: бул 25 септември 52, вх А
A107: ЕТ"Индивидуална практика за ПМПДМ-Д-р Светлана Иванова" | B107: ИППИМП – ДМ | C107: 0828112008 | D107: ДОБРИЧ | E107: ДОБРИЧ | F107: бул 25 Септември 48 вх.Б ап.2
A108: ЕТ"Индивидуална практика за ПМПДМ-Д-р Юлия Янева" | B108: ИППИМП – ДМ | C108: 0828112009 | D108: ДОБРИЧ | E108: ДОБРИЧ | F108: ул. Д.Петков 5; ул. Райко Цончев 8
A109: "Индивидуална практика за ПМП-ДМ" | B109: ИППИМП – ДМ | C109: 0828112010 | D109: ДОБРИЧ | E109: ДОБРИЧ | F109: ул. Максим Горки 4 ет.1
A110: ЕТ"Индивидуална практика за ПМПДМ-Д-р Галина Кирова" | B110: ИППИМП – ДМ | C110: 0828112011 | D110: ДОБРИЧ | E110: ДОБРИЧ | F110: ул. Димитър Петков 5
A111: ЕТ"Индивидуална практика за ПМПДМ-Д-р Лиляна Желязкова" | B111: ИППИМП – ДМ | C111: 0828112012 | D111: ДОБРИЧ | E111: ДОБРИЧ | F111: ул. Д.Петков 5; ул. Славянска 16 ап. 24
A112: ЕТ"Индивидуална практика за ПМПДМ-Д-р Мария Момчева" | B112: ИППИМП – ДМ | C112: 0828112013 | D112: ДОБРИЧ | E112: ДОБРИЧ | F112: ул. Димитър Петков 5, каб. 234
A113: ЕТ"Индивидуална практика за ПМПДМ-Д-р Марина Стоева" | B113: ИППИМП – ДМ | C113: 0828112014 | D113: ДОБРИЧ | E113: ДОБРИЧ | F113: ул. Д.Петков 5; ул. Кирил и Методий 55, вх А
A114: ЕТ"Индивидуална практика за ПМПДМ-Д-р Анка Пейчева" | B114: ИППИМП – ДМ | C114: 0828112016 | D114: ДОБРИЧ | E114: ДОБРИЧ | F114: ул. Д.Петков 5; ул. Ген. Гурко 11 офис 12
A115: "Индивидуална практика за ПМПДМ-Доктор Даринка Малчева" ЕООД | B115: ИППИМП – ДМ | C115: 0828112017 | D115: ДОБРИЧ | E115: ДОБРИЧ | F115: ул. Хр. Смирненски 10 вх В ет 1
A116: "Индивидуална практика за ПМПДМ-Д-р Д. Симеонова" ЕООД | B116: ИППИМП – ДМ | C116: 0828112018 | D116: ДОБРИЧ | E116: ДОБРИЧ | F116: ул. Димитър Петков 5, каб. 211
A117: ЕТ"Индивидуална практика за ПМПДМ-д-р Марияна Костадинова" | B117: ИППИМП – ДМ | C117: 0828112019 | D117: ДОБРИЧ | E117: ДОБРИЧ | F117: ул. Климент Охридски 29,вх В ап 3, | G117: ул. Д. Петков 5
A118: "Индивидуална практика за ПМП-ДМ" | B118: ИППИМП – ДМ | C118: 0828112020 | D118: ДОБРИЧ | E118: ДОБРИЧ | F118: ул. Райко Цончев 1
A119: "ИППМПДМ - Д-р Емил Давчев" ЕООД | B119: ИППИМП – ДМ | C119: 0828112021 | D119: ДОБРИЧ | E119: ДОБРИЧ | F119: ул. Димитър Петков 5, каб. 324
A120: "Индивидуална практика за ПМП-ДМ" | B120: ИППИМП – ДМ | C120: 0828112022 | D120: ДОБРИЧ | E120: ДОБРИЧ | F120: ул. Д. Петков 5; | G120: ЖК Добротица бл.40 вх Б
A121: "Индивидуална практика за ПМП-ДМ" | B121: ИППИМП – ДМ | C121: 0828112025 | D121: ДОБРИЧ | E121: ДОБРИЧ | F121: ул. Димитър Петков 5
A122: "Индивидуална практика за ПМП-ДМ" | B122: ИППИМП – ДМ | C122: 0828112027 | D122: ДОБРИЧ | E122: ДОБРИЧ | F122: ул. Алеко Константинов 2 вх Б ап.8
A123: ЕТ"Индивидуална практика за ПМПДМ-Д-р Галина Янакиева" | B123: ИППИМП – ДМ | C123: 0828112028 | D123: ДОБРИЧ | E123: ДОБРИЧ | F123: ул. Димитър Петков 5, каб. 228
A124: ЕТ"Индивидуална практика за ПМПДМ-Д-р Маринела Иванова Стефанова" | B124: ИППИМП – ДМ | C124: 0828112031 | D124: ДОБРИЧ | E124: ДОБРИЧ | F124: бул 25 Септември 48 вх.Б ап.2
A125: ЕТ"Индивидуална практика за ПМПДМ-Д-р Наташа Братоева" | B125: ИППИМП – ДМ | C125: 0828112032 | D125: ДОБРИЧ | E125: ДОБРИЧ | F125: ул. Димитър Петков 5
A126: ЕТ"Индивидуална практика за ПМПДМ-Д-р Елеонора Златкова" | B126: ИППИМП – ДМ | C126: 0828112033 | D126: ДОБРИЧ | E126: ДОБРИЧ | F126: ул. Кирил и Методий 24
A127: ЕТ"Индивидуална практика за ПМПДМ-Д-р Божанка Атанасова" | B127: ИППИМП – ДМ | C127: 0828112037 | D127: ДОБРИЧ | E127: ДОБРИЧ | F127: ул. Климент Охридски 53 вх.В
A128: ЕТ"Индивидуална практика за ПМПДМ-Доктор Ганева" ЕООД | B128: ИППИМП – ДМ | C128: 0828112038 | D128: ДОБРИЧ | E128: ДОБРИЧ | F128: бул. 25 Септември 19 Б - партер
A129: ЕТ"Индивидуална практика за ПМПДМ-Д-р Веска Станева" | B129: ИППИМП – ДМ | C129: 0828112039 | D129: ДОБРИЧ | E129: ДОБРИЧ | F129: ул. Димитър Петков 5
A130: "Индивидуална практика за ПМПДМ-Д-р Мария Т. Алексиева" ЕООД | B130: ИППИМП – ДМ | C130: 0828112040 | D130: ДОБРИЧ | E130: ДОБРИЧ | F130: ул. Димитър Петков 5
A131: ЕТ "Индивидуална практика за ПМПДМ-Роза-Лина-д-р Розалина Чавдарова" | B131: ИППИМП – ДМ | C131: 0828112042 | D131: ДОБРИЧ | E131: ДОБРИЧ | F131: ул. Ген. Колев 76
A132: ЕТ"Индивидуална практика за ПМПДМ д-р Ирена Великова-Ренидент" | B132: ИППИМП – ДМ | C132: 0828112043 | D132: ДОБРИЧ | E132: ДОБРИЧ | F132: ул. Петко Д. Петков 2, вх А, ап 1
A133: ЕТ"Индивидуална практика за ПМПДМ-Д-р Сашка Ненова" | B133: ИППИМП – ДМ | C133: 0828112044 | D133: ДОБРИЧ | E133: ДОБРИЧ | F133: ул. Димитър Петков 5, каб. 205
A134: ЕТ"Индивидуална практика за ПМПДМ-Д-р Миглена Димитрова" | B134: ИППИМП – ДМ | C134: 0828112045 | D134: ДОБРИЧ | E134: ДОБРИЧ | F134: ул. Д.Петков 5; | G134: ул. Максим Горки 5 вх Г ап 23
A135: "Индивидуална практика за ПМП-ДМ" | B135: ИППИМП – ДМ | C135: 0828112047 | D135: ДОБРИЧ | E135: ДОБРИЧ | F135: ул. Любен Каравелов 10, вх Б
A136: ЕТ"Индивидуална практика за ПМПДМ-д-р Елина Димова" | B136: ИППИМП – ДМ | C136: 0828112049 | D136: ДОБРИЧ | E136: ДОБРИЧ | F136: ул. Независимост 26 вх А ап. 3
A137: "Индивидуална практика за ПМП-ДМ" | B137: ИППИМП – ДМ | C137: 0828112051 | D137: ДОБРИЧ | E137: ДОБРИЧ | F137: ул. Климент Охридски 29 вх В ап 3
A138: "Индивидуална практика за ПМП-ДМ" | B138: ИППИМП – ДМ | C138: 0828112053 | D138: ДОБРИЧ | E138: ДОБРИЧ | F138: ул. Христо Смирненски 4; | G138: ул. Д. Петков 5, каб. 302
A139: "Индивидуална практика за ПМП-ДМ" | B139: ИППИМП – ДМ | C139: 0828112054 | D139: ДОБРИЧ | E139: ДОБРИЧ | F139: ул. Димитър Петков 5, каб. 315
A140: "Индивидуална практика за ПМП-ДМ" | B140: ИППИМП – ДМ | C140: 0828112055 | D140: ДОБРИЧ | E140: ДОБРИЧ | F140: бул. Добруджа 26 вх Ж ап 1
A141: "Индивидуална практика за ПМП-ДМ" | B141: ИППИМП – ДМ | C141: 0828112056 | D141: ДОБРИЧ | E141: ДОБРИЧ | F141: ул. Отец Паисий 30 Б
A142: "Индивидуална практика за ПМП-ДМ" | B142: ИППИМП – ДМ | C142: 0828112057 | D142: ДОБРИЧ | E142: ДОБРИЧ | F142: ул. Отец Паисий 30 Б
A143: ЕТ"Индивидуална практика за ПМПДМ-Д-р Маргарита Цонева" | B143: ИППИМП – ДМ | C143: 0828112058 | D143: ДОБРИЧ | E143: ДОБРИЧ | F143: ул. Димитър Петков 5 каб. 305
A144: "Индивидуална практика за ПМП-ДМ" | B144: ИППИМП – ДМ | C144: 0828112066 | D144: ДОБРИЧ | E144: ДОБРИЧ | F144: ул. Славянска 27
A145: "Индивидуална практика за ПМП-ДМ" | B145: ИППИМП – ДМ | C145: 0828112067 | D145: ДОБРИЧ | E145: ДОБРИЧ | F145: ул. Славянска 27
A146: ЕТ"Индивидуална практика за ПМПДМ-д-р Маргарита Янакиева" | B146: ИППИМП – ДМ | C146: 0828112071 | D146: ДОБРИЧ | E146: ДОБРИЧ | F146: ЖК Балик бл 21, вх Б, ап 1
A147: ЕТ"Индивидуална практика за ПМПДМ-Ултрадента-д-р Румяна Станчева" | B147: ИППИМП – ДМ | C147: 0828112074 | D147: ДОБРИЧ | E147: ДОБРИЧ | F147: бул. Трети март 8
A148: "Индивидуална практика за ПМП-ДМ" | B148: ИППИМП – ДМ | C148: 0828112075 | D148: ДОБРИЧ | E148: ДОБРИЧ | F148: ул. Никола Петков 9
A149: ЕТ"Индивидуална практика за ПМПДМ-Д-р Камелия Златева" | B149: ИППИМП – ДМ | C149: 0828112077 | D149: ДОБРИЧ | E149: ДОБРИЧ | F149: ул. Д. Петков 5
A150: ЕТ"Индивидуална практика за ПМПДМ-д-р Снежана Петкова" | B150: ИППИМП – ДМ | C150: 0828112079 | D150: ДОБРИЧ | E150: ДОБРИЧ | F150: ул. Кирил и Методий 3 ет 1 ап 3
A151: ЕТ "Индивидуална практика за ПМПДМ - д-р Диана Стоянова" | B151: ИППИМП – ДМ | C151: 0828112080 | D151: ДОБРИЧ | E151: ДОБРИЧ | F151: ул. Отец Паисий 23, ет 2, каб.4
A152: "Индивидуална практика за ПМП-ДМ" | B152: ИППИМП – ДМ | C152: 0828112082 | D152: ДОБРИЧ | E152: ДОБРИЧ | F152: бул.Трети март 23 Б
A153: "Индивидуална практика за ПМПДМ- СИСДЕНТ" ЕООД | B153: ИППИМП – ДМ | C153: 0828112086 | D153: ДОБРИЧ | E153: ДОБРИЧ | F153: ул. Димитър Петков 5
A154: "АИППМПДМ - д-р Д. Тошкова" ЕООД | B154: ИППИМП – ДМ | C154: 0828112087 | D154: ДОБРИЧ | E154: ДОБРИЧ | F154: ул. Димитър Петков 5
A155: ЕТ"Индивидуална практика за ПМПДМ-д-р Калинка Иванова" | B155: ИППИМП – ДМ | C155: 0828112089 | D155: ДОБРИЧ | E155: ДОБРИЧ | F155: ул. Хан Аспарух 10
A156: ЕТ "Индивидуална практика за ПМПДМ-Арес-д-р Тодор Урумов" | B156: ИППИМП – ДМ | C156: 0828112090 | D156: ДОБРИЧ | E156: ДОБРИЧ | F156: ул. Димитър Петков 5
A157: "АИППМПДМ - д-р Л. Станчева" ЕООД | B157: ИППИМП – ДМ | C157: 0828112092 | D157: ДОБРИЧ | E157: ДОБРИЧ | F157: бул. Трети март 8
A158: ЕТ "Индивидуална практика за ПМПДМ-Д-р Тодор Калпакчиев" | B158: ИППИМП – ДМ | C158: 0828112093 | D158: ДОБРИЧ | E158: ДОБРИЧ | F158: ул. Димитър Петков 5
A159: "Индивидуална практика за ПМПДМ-Д-р Нина Милчева" ЕООД | B159: ИППИМП – ДМ | C159: 0828112095 | D159: ДОБРИЧ | E159: ДОБРИЧ | F159: ул. Кирил и Методий 32
A160: "Индивидуална практика за ПМП-ДМ" | B160: ИППИМП – ДМ | C160: 0828112096 | D160: ДОБРИЧ | E160: ДОБРИЧ | F160: ул. Васил Петлешков 32
A161: "АИППМПДМ-Д-р Диана Янкова Тодорова" ЕООД | B161: ИППИМП – ДМ | C161: 0828112099 | D161: ДОБРИЧ | E161: ДОБРИЧ | F161: ул. Иван Хадживълков 3
A162: "Индивидуална практика за ПМП-ДМ" | B162: ИППИМП – ДМ | C162: 0828112100 | D162: ДОБРИЧ | E162: ДОБРИЧ | F162: ул. Димитър Петков 5
A163: "Индивидуална практика за ПДП и ИП за СДП-Д-р Георги Киримов" ЕООД | B163: ИППИМП – ДМ | C163: 0828112101 | D163: ДОБРИЧ | E163: ДОБРИЧ | F163: ул. Димитър Петков 5, каб. 320 и 323
A164: "Индивидуална практика за ПМП-ДМ" | B164: ИППИМП – ДМ | C164: 0828112104 | D164: ДОБРИЧ | E164: ДОБРИЧ | F164: ул. Димитър Петков 5 каб. 306, | G164: с. Смолница, община Добричка
A165: "АПМПИППМПДМ-Доктор Линко Генчев" ЕООД | B165: ИППИМП – ДМ | C165: 0828112105 | D165: ДОБРИЧ | E165: ДОБРИЧ | F165: ул. Ален мак 2, | G165: с. Победа, бул.25 Септември 68
A166: "ИППМПДМ - СИСО - д-р Светослав Мартинов" ЕТ | B166: ИППИМП – ДМ | C166: 0828112106 | D166: ДОБРИЧ | E166: ДОБРИЧ | F166: ул. Хан Аспарух 10
A167: "АИППМПДМ АСДЕНТ 2011" ЕООД | B167: ИППИМП – ДМ | C167: 0828112107 | D167: ДОБРИЧ | E167: ДОБРИЧ | F167: ул. Димитър Петков 5, каб. 212
A168: "ИППМПДМ - Д-р Маргарита Марева" ЕТ | B168: ИППИМП – ДМ | C168: 0828112108 | D168: ДОБРИЧ | E168: ДОБРИЧ | F168: ул. Кап. Андреев 1, | G168: ул. Г. Кирков 72 А
A169: "ИППМПДМ ВАСИЛЕВ-ДЕНТ д-р Георги Василев" ЕООД | B169: ИППИМП – ДМ | C169: 0828112109 | D169: ДОБРИЧ | E169: ДОБРИЧ | F169: ул. Димитър Петков 5, | G169: с. Житница, с. Божурово, с. Ведрина
A170: "ИППДП - Д-р Галина Петкова" ЕООД | B170: ИППИМП – ДМ | C170: 0815112002 | D170: ДОБРИЧ-СЕЛСКА | E170: СТОЖЕР | F170: с. Стожер, | G170: ул. Опълченец Кузман Христов 4 -Добрич, с. Нова Камена, с. Орляк - общ. Тервел
A171: ЕТ "Индивидуална практика за ПМПДМ-д-р Миглена Джундрикова" | B171: ИППИМП – ДМ | C171: 0815112004 | D171: ДОБРИЧ-СЕЛСКА | E171: ВЛАДИМИРОВО | F171: с. Владимирово, | G171: ул. Отец Паисий 23 - Добрич
A172: ЕТ "Индивидуална практика за ПМПДМ-Вени -д-р Пенка Сарандева" | B172: ИППИМП – ДМ | C172: 0815112010 | D172: ДОБРИЧ-СЕЛСКА | E172: СТЕФАНОВО | F172: с. Стефаново, | G172: ЖК Балик, бл 15, вх А, ап 2, ул. Даме Груев 6
A173: "АИППМПДМ д-р Димо Димов - 0124" ЕООД | B173: ИППИМП – ДМ | C173: 0815112011 | D173: ДОБРИЧ-СЕЛСКА | E173: ДОНЧЕВО | F173: с. Дончево
A174: ЕТ "Индивидуална практика за ПМПДМ-Д-р Иванка Митова" | B174: ИППИМП – ДМ | C174: 0803112001 | D174: БАЛЧИК | E174: БАЛЧИК | F174: гр. Балчик, ул.Любен Каравелов 12 вх Б ап 1
A175: ЕТ "Индивидуална практика за ПМПДМ-Д-р Стела Генчева" | B175: ИППИМП – ДМ | C175: 0803112003 | D175: БАЛЧИК | E175: БАЛЧИК | F175: гр. Балчик, ул. Черно море 21
A176: "Д-р Даниела Йотова - АИППМПДМ" ЕООД | B176: ИППИМП – ДМ | C176: 0803112006 | D176: БАЛЧИК | E176: БАЛЧИК | F176: гр. Балчик, ул.Златко Петков 1, каб. 113
A177: ЕТ "Индивидуална практика за ПМПДМ-Д-р Христо Игнатов" | B177: ИППИМП – ДМ | C177: 0803112007 | D177: БАЛЧИК | E177: БАЛЧИК | F177: гр. Балчик, ул.Златко Петков 1, | G177: с. Кранево
A178: ЕТ"Амбулатория за ИППДМ- Мария Господинова - лекар по дентална медицина" | B178: ИППИМП – ДМ | C178: 0803112014 | D178: БАЛЧИК | E178: БАЛЧИК | F178: гр. Балчик, ЖК Балик, бл.18,вх Б,ап 114, | G178: с. Оброчище
A179: ЕТ"Д-р Татяна Заимова - АИПМПДМ" | B179: ИППИМП – ДМ | C179: 0803112015 | D179: БАЛЧИК | E179: БАЛЧИК | F179: гр. Балчик, ул.Любен Каравелов 12 вх Б ап 1, | G179: с. Гурково
A180: "Индивидуална практика за ПМПДМ-Дентал-Д-р Цанка Господинова" ЕООД | B180: ИППИМП – ДМ | C180: 0812112001 | D180: ГЕНЕРАЛ ТОШЕВО | E180: ГЕНЕРАЛ ТОШЕВО | F180: гр. Ген. Тошево, ул. Соф. Врачански 11
A181: ЕТ "Индивидуална практика за ПМПДМ-Доктор Яна Бонева" | B181: ИППИМП – ДМ | C181: 0812112003 | D181: ГЕНЕРАЛ ТОШЕВО | E181: КАРДАМ | F181: с. Кардам, | G181: ул. В. Априлов 20 - Ген. Тошево
A182: ЕТ "Индивидуална практика за ПМПДМ-Д-р Везенкова - Иванка Симеонова" | B182: ИППИМП – ДМ | C182: 0812112005 | D182: ГЕНЕРАЛ ТОШЕВО | E182: ГЕНЕРАЛ ТОШЕВО | F182: гр. Ген. Тошево, ул. Иван Вазов 15
A183: ЕТ "Индивидуална практика за ПМПДМ-Д-р Везенков - Борислав Атанасов" | B183: ИППИМП – ДМ | C183: 0812112006 | D183: ГЕНЕРАЛ ТОШЕВО | E183: ГЕНЕРАЛ ТОШЕВО | F183: гр. Ген. Тошево, ул. Иван Вазов 17
A184: ЕТ"АИППСП Симона 2001 - Ирина Петрова" | B184: ИППИМП – ДМ | C184: 0812112009 | D184: ГЕНЕРАЛ ТОШЕВО | E184: ГЕНЕРАЛ ТОШЕВО | F184: гр. Ген. Тошево, ул. Иван Вазов 15, | G184: с. Преселенци, община Ген.Тошево
A185: ЕТ"Индивидуална практика за ПМПДМ-Д-р Галя Вичева" | B185: ИППИМП – ДМ | C185: 0812112010 | D185: ГЕНЕРАЛ ТОШЕВО | E185: ГЕНЕРАЛ ТОШЕВО | F185: ул. Иван Вазов 15, | G185: ул.К.Андреев 1, ет 1 Добрич
A186: "Индивидуална практика за ПМПДМ-Д-р Р. Стоева" ЕООД | B186: ИППИМП – ДМ | C186: 0812112011 | D186: ГЕНЕРАЛ ТОШЕВО | E186: ГЕНЕРАЛ ТОШЕВО | F186: гр. Ген. Тошево, ул. Георги Сава Раковски 12 А
A187: "Индивидуална практика за ПМПДМ-Д-р Иван Караиванов" | B187: ИППИМП – ДМ | C187: 0812112013 | D187: ГЕНЕРАЛ ТОШЕВО | E187: СПАСОВО | F187: с. Спасово, | G187: с. Василево, община Ген. Тошево
A188: ЕТ"Индивидуална практика за ПМПДМ-Д-р Георги Плешков" | B188: ИППИМП – ДМ | C188: 0817112001 | D188: КАВАРНА | E188: КАВАРНА | F188: гр. Каварна, ул. Гео Милев 4, | G188: ул. Васил Левски 36
A189: "Индивидуална практика за ПМП-ДМ" | B189: ИППИМП – ДМ | C189: 0817112002 | D189: КАВАРНА | E189: КАВАРНА | F189: гр. Каварна, ул. Гео Милев 4
A190: "Индивидуална практика за ПМП-ДМ" | B190: ИППИМП – ДМ | C190: 0817112003 | D190: КАВАРНА | E190: КАВАРНА | F190: гр. Каварна, ул. България 43 вх А ап 1
A191: "Индивидуална практика за ПМП-ДМ" | B191: ИППИМП – ДМ | C191: 0817112005 | D191: КАВАРНА | E191: КАВАРНА | F191: гр. Каварна, ул. Чиракман 16
A192: "Индивидуална практика за ПМП-ДМ" | B192: ИППИМП – ДМ | C192: 0817112006 | D192: КАВАРНА | E192: КАВАРНА | F192: гр. Каварна, ул. Васил Левски 36
A193: ЕТ "Индивидуална практика за ПМПДМ- Д-р Николай Рашков" | B193: ИППИМП – ДМ | C193: 0817112008 | D193: КАВАРНА | E193: КАВАРНА | F193: гр. Каварна, ул. Общински пазар 2
A194: "Индивидуална практика за ПМП-ДМ" | B194: ИППИМП – ДМ | C194: 0817112009 | D194: КАВАРНА | E194: КАВАРНА | F194: гр. Каварна, ул. Чиракман 16
A195: "ИППМПДМ-Биодент-д-р Светлозар Руменов Савов" ЕООД | B195: ИППИМП – ДМ | C195: 0820112001 | D195: КРУШАРИ | E195: КРУШАРИ | F195: с. Крушари
A196: ЕТ"Индивидуална практика за ПМПДМ-д-р Стефка Андонова" | B196: ИППИМП – ДМ | C196: 0829112001 | D196: ШАБЛА | E196: ШАБЛА | F196: гр. Шабла, ул. Равно поле 37, | G196: с. Българево, община Каварна, ул. Добруджа 5,
A197: ЕТ "Индивидуална практика за ПМПДМ-д-р Костадинова-Маринка Рачева" | B197: ИППИМП – ДМ | C197: 0827112001 | D197: ТЕРВЕЛ | E197: ТЕРВЕЛ | F197: гр. Тервел, ул. Христо Ботев 1
A198: ЕТ "Индивидуална практика за ПМПДМ-Росица Комитова" | B198: ИППИМП – ДМ | C198: 0827112004 | D198: ТЕРВЕЛ | E198: ТЕРВЕЛ | F198: гр. Тервел, ул. Хан Аспарух 28, бл Ралица, ет 1, | G198: с. Божан, община Тервел
A199: "Индивидуална практика за ПМП-ДМ" | B199: ИППИМП – ДМ | C199: 0827112008 | D199: ТЕРВЕЛ | E199: ТЕРВЕЛ | F199: гр. Тервел, ул. Цар Калоян 1
A200: Гр. Практика за ПМП "Артемида" | B200: ГППИМП | C200: 0828113001 | D200: ДОБРИЧ | E200: ДОБРИЧ | F200: гр. Добрич, ул.Димитър Петков 3, | G200: с. Ловчанци, общ. Добрич-селска
... 26 more rows

Sheet II_СИМП
A1: =I_1!$A$1 -> ДОБРИЧ | G1: Обратно към УКАЗАНИЯТА
A2: ИМЕ НА ЛЕЧЕБНОТО ЗАВЕДЕНИЕ | B2: ВИД НА ЛЗ | C2: РЕГ.№ В ЛЗИМПХ | D2: ОБЩИНА | E2: НАСЕЛЕНО МЯСТО | F2: АДРЕС | G2: ДРУГ АДРЕС НА ПРАКТИКАТА
A3: Амбулатория за СМП - индив.практика- | B3: ИПСИМП | C3: 0828121005 | D3: ДОБРИЧ | E3: ДОБРИЧ | F3: ул. Независимост 26 вх А
A4: Амбулатория за СМП - индив.практика | B4: ИПСИМП | C4: 0828121009 | D4: ДОБРИЧ | E4: ДОБРИЧ | F4: ул. Ген.Колев 76
A5: ЕТ"Д-р Нина Няголова -ИПСМП-очни болести" | B5: ИПСИМП | C5: 0828121010 | D5: ДОБРИЧ | E5: ДОБРИЧ | F5: бул. 25 Септември 17 вх В
A6: Амбулатория за СМП - индив.практика | B6: ИПСИМП | C6: 0828121019 | D6: ДОБРИЧ | E6: ДОБРИЧ | F6: бул. 25 Септември 17 вх В
A7: Амбулатория за СМП - индив.практика | B7: ИПСИМП | C7: 0828121025 | D7: ДОБРИЧ | E7: ДОБРИЧ | F7: ул. Райко Цончев 8
A8: ЕТ "Д-р Димитър Керанов" | B8: ИПСИМП | C8: 0828121026 | D8: ДОБРИЧ | E8: ДОБРИЧ | F8: бул.25 Септември 23, | G8: ул. Хр. Ботев 1 - Тервел
A9: "АИПСМП по очни болести - д-р Софка Берова" ЕООД | B9: ИПСИМП | C9: 0828121028 | D9: ДОБРИЧ | E9: ДОБРИЧ | F9: бул. Трети март 8
A10: Амбулатория за СМП - индив.практика | B10: ИПСИМП | C10: 0828121032 | D10: ДОБРИЧ | E10: ДОБРИЧ | F10: ул. Екзарх Антим 27
A11: "ИПСМП по детски болести" | B11: ИПСИМП | C11: 0828121034 | D11: ДОБРИЧ | E11: ДОБРИЧ | F11: ул. Захари Стоянов 14
A12: Амбулатория за СМП - индив.практика | B12: ИПСИМП | C12: 0828121035 | D12: ДОБРИЧ | E12: ДОБРИЧ | F12: бул. 25 Септември 45
A13: Амбулатория за СМП - индив.практика | B13: ИПСИМП | C13: 0828121036 | D13: ДОБРИЧ | E13: ДОБРИЧ | F13: бул. 25 Септември 45
A14: Амбулатория за СМП - индив.практика | B14: ИПСИМП | C14: 0828121037 | D14: ДОБРИЧ | E14: ДОБРИЧ | F14: ул. Хан Аспарух 10
A15: Амбулатория за СМП - индив.практика | B15: ИПСИМП | C15: 0828121043 | D15: ДОБРИЧ | E15: ДОБРИЧ | F15: бул. 25 Септември 68
A16: Амбулатория за СМП - индив.практика | B16: ИПСИМП | C16: 0828121046 | D16: ДОБРИЧ | E16: ДОБРИЧ | F16: ул. Абрит 5
A17: Амбулатория за СМП - индив.практика | B17: ИПСИМП | C17: 0828121049 | D17: ДОБРИЧ | E17: ДОБРИЧ | F17: БЦ Добруджа офис 108
A18: Амбулатория за СМП - индив.практика | B18: ИПСИМП | C18: 0828121050 | D18: ДОБРИЧ | E18: ДОБРИЧ | F18: ул. България 13 вх А ап 3
A19: Амбулатория за СМП - индив.практика | B19: ИПСИМП | C19: 0828121051 | D19: ДОБРИЧ | E19: ДОБРИЧ | F19: ул П. Хитов 33 вх А
A20: Амбулатория за СМП - индив.практика | B20: ИПСИМП | C20: 0828121057 | D20: ДОБРИЧ | E20: ДОБРИЧ | F20: ул. Руен 1
A21: Амбулатория за СМП - индив.практика | B21: ИПСИМП | C21: 0828121060 | D21: ДОБРИЧ | E21: ДОБРИЧ | F21: ул. Р. Цончев 1
A22: Амбулатория за СМП - индив.практика | B22: ИПСИМП | C22: 0828121061 | D22: ДОБРИЧ | E22: ДОБРИЧ | F22: ул. Р. Цончев 1
A23: Амбулатория за СМП - индив.практика | B23: ИПСИМП | C23: 0828121066 | D23: ДОБРИЧ | E23: ДОБРИЧ | F23: ул. Марин Дринов 2 вх А ап 4
A24: Амбулатория за СМП - индив.практика | B24: ИПСИМП | C24: 0828121069 | D24: ДОБРИЧ | E24: ДОБРИЧ | F24: ул. Панайо Хитов 24
A25: Амбулатория за СМП - индив.практика | B25: ИПСИМП | C25: 0828121072 | D25: ДОБРИЧ | E25: ДОБРИЧ | F25: ул. Хан Аспарух 10
A26: "Доктор Красимир Стоилов - АИПСМП по АГ" ЕООД | B26: ИПСИМП | C26: 0828121075 | D26: ДОБРИЧ | E26: ДОБРИЧ | F26: ул. Страцин 14
A27: Амбулатория за СМП - индив.практика | B27: ИПСИМП | C27: 0828121080 | D27: ДОБРИЧ | E27: ДОБРИЧ | F27: ул. Независимост 19 ап 14
A28: Амбулатория за СМП - индив.практика | B28: ИПСИМП | C28: 0828121088 | D28: ДОБРИЧ | E28: ДОБРИЧ | F28: ул. Хан Крум 33
A29: Амбулатория за СМП - индив.практика | B29: ИПСИМП | C29: 0828121090 | D29: ДОБРИЧ | E29: ДОБРИЧ | F29: ул. Теменуга 6
A30: Амбулатория за СМП - индив.практика | B30: ИПСИМП | C30: 0828121094 | D30: ДОБРИЧ | E30: ДОБРИЧ | F30: ЖК Добротица 23 вх В ап 5
A31: "Естетик сърджъри -д-р Иван Вълчев-ИПСМП" ЕООД | B31: ИПСИМП | C31: 0828121096 | D31: ДОБРИЧ | E31: ДОБРИЧ | F31: ул. Хан Аспарух 10
A32: Амбулатория за СМП - индив.практика | B32: ИПСИМП | C32: 0828121098 | D32: ДОБРИЧ | E32: ДОБРИЧ | F32: ул. П. Хитов 24
A33: Амбулатория за СМП - индив.практика | B33: ИПСИМП | C33: 0828121103 | D33: ДОБРИЧ | E33: ДОБРИЧ | F33: ул. Хан Аспарух 10
A34: Амбулатория за СМП - индив.практика | B34: ИПСИМП | C34: 0828121104 | D34: ДОБРИЧ | E34: ДОБРИЧ | F34: ул. Хан Аспарух 10
A35: Амбулатория за СМП - индив.практика | B35: ИПСИМП | C35: 0828121105 | D35: ДОБРИЧ | E35: ДОБРИЧ | F35: ул. Отец Паисий 25
A36: Амбулатория за СМП - индив.практика | B36: ИПСИМП | C36: 0828121106 | D36: ДОБРИЧ | E36: ДОБРИЧ | F36: ул. Независимост 14
A37: Амбулатория за СМП - индив.практика | B37: ИПСИМП | C37: 0828121110 | D37: ДОБРИЧ | E37: ДОБРИЧ | F37: ул. Хан Аспарух 18
A38: "ИПСМП - Д-р Галина Златева" ЕООД | B38: ИПСИМП | C38: 0828121113 | D38: ДОБРИЧ | E38: ДОБРИЧ | F38: ул. Хр. Смирненски 2, | G38: ул. Ст. планина 2 - Тервел
A39: Амбулатория за СМП - индив.практика | B39: ИПСИМП | C39: 0828121114 | D39: ДОБРИЧ | E39: ДОБРИЧ | F39: ЖК Балик 46 вх А ап 4
A40: ЕТ "ИПСМП - Д-р Надежда Йорданова" | B40: ИПСИМП | C40: 0828121117 | D40: ДОБРИЧ | E40: ДОБРИЧ | F40: ул П. Хитов 33, вх А
A41: "ИПСМП по психиатрия" | B41: ИПСИМП | C41: 0828121122 | D41: ДОБРИЧ | E41: ДОБРИЧ | F41: ул. Захари Стоянов 14
A42: "ИПСМП по очни болести" | B42: ИПСИМП | C42: 0828121125 | D42: ДОБРИЧ | E42: ДОБРИЧ | F42: ул. Вардар 47
A43: ЕТ "АИПСМП - Д-р Илиян Братованов" | B43: ИПСИМП | C43: 0828121126 | D43: ДОБРИЧ | E43: ДОБРИЧ | F43: ул. Даме Груев 6
A44: Амбулатория за СМП - индив.практика | B44: ИПСИМП | C44: 0828121132 | D44: ДОБРИЧ | E44: ДОБРИЧ | F44: ул. П. Хитов 24
A45: Амбулатория за СМП - индив.практика | B45: ИПСИМП | C45: 0828121133 | D45: ДОБРИЧ | E45: ДОБРИЧ | F45: бул. 25 Септември 68
A46: Амбулатория за СМП - индив.практика | B46: ИПСИМП | C46: 0828121135 | D46: ДОБРИЧ | E46: ДОБРИЧ | F46: ул. Хан Аспарух 10
A47: "ИПСМП по неврохирургия" | B47: ИПСИМП | C47: 0828121136 | D47: ДОБРИЧ | E47: ДОБРИЧ | F47: ул. Захари Стоянов 14
A48: ЕТ "Д-р Пенка Велкова - Велхорм - индивидуална практика за специализирана медицинска помощ"-ЕООД | B48: ИПСИМП | C48: 0828121146 | D48: ДОБРИЧ | E48: ДОБРИЧ | F48: бул. 25 Септември 17 вх В
A49: ЕТ "Д-р Юлия Ангелова - ИПСМП по офталмология" | B49: ИПСИМП | C49: 0828121147 | D49: ДОБРИЧ | E49: ДОБРИЧ | F49: ул. Хан Аспарух 10
A50: Амбулатория за СМП - индив.практика | B50: ИПСИМП | C50: 0828121148 | D50: ДОБРИЧ | E50: ДОБРИЧ | F50: ул. Даме Груев 6
A51: ЕТ "Д-р Даниела Събева - ИПСМП" | B51: ИПСИМП | C51: 0828121149 | D51: ДОБРИЧ | E51: ДОБРИЧ | F51: ул. П. Хитов 33 вх А ап 1, | G51: ул. Ив. Вазов 13-Ген. Тошево
A52: Амбулатория за СМП - индив.практика | B52: ИПСИМП | C52: 0828121151 | D52: ДОБРИЧ | E52: ДОБРИЧ | F52: бул. 25 Септември 17 вх В
A53: Амбулатория за СМП - индив.практика | B53: ИПСИМП | C53: 0828121152 | D53: ДОБРИЧ | E53: ДОБРИЧ | F53: ул. Хан Аспарух 10
A54: "ИПСМП по неврохирургия" | B54: ИПСИМП | C54: 0828121153 | D54: ДОБРИЧ | E54: ДОБРИЧ | F54: ул. Независимост 2
A55: "Д-р Вълчанов-индив. практика за СМП хирургия" ЕООД | B55: ИПСИМП | C55: 0828121155 | D55: ДОБРИЧ | E55: ДОБРИЧ | F55: бул. Добричка епопея 10, вх А, | G55: ул. Ст. планина 2-Тервел
A56: "ИПСМП по вътрешни болести и гастроентерология" | B56: ИПСИМП | C56: 0828121160 | D56: ДОБРИЧ | E56: ДОБРИЧ | F56: ул. Захари Стоянов 14
A57: "ИПСМП по КВБ" | B57: ИПСИМП | C57: 0828121162 | D57: ДОБРИЧ | E57: ДОБРИЧ | F57: ул. Ген.Колев 28 Б
A58: "ИПСМП по ортопедия и травматология" | B58: ИПСИМП | C58: 0828121163 | D58: ДОБРИЧ | E58: ДОБРИЧ | F58: ул. България 8
A59: ЕТ "АИПСМП по оторинология - д-р Росица Стоянова" | B59: ИПСИМП | C59: 0828121164 | D59: ДОБРИЧ | E59: ДОБРИЧ | F59: ул. Панайот Хитов 24, ет 5, каб. 9
A60: "ИПСМП по нервни болести" | B60: ИПСИМП | C60: 0828121165 | D60: ДОБРИЧ | E60: ДОБРИЧ | F60: ул. Димитър Петков 5
A61: "ИПСМП по вътрешни болести" | B61: ИПСИМП | C61: 0828121166 | D61: ДОБРИЧ | E61: ДОБРИЧ | F61: ул. Панайот Хитов 24, каб. 36
A62: "ИПСМП по АГ" | B62: ИПСИМП | C62: 0828121167 | D62: ДОБРИЧ | E62: ДОБРИЧ | F62: ул. Гвардейска 4
A63: "Амбулатория индивидуална практика за СМП-ревматология-д-р Даниела Камбурова" ЕООД | B63: ИПСИМП | C63: 0828121168 | D63: ДОБРИЧ | E63: ДОБРИЧ | F63: ул. Независимост 2, ет. 4, каб. 17
A64: "Спец. индив. мед. практика по дерматол. и венер. д-р Носач" ЕООД | B64: ИПСИМП | C64: 0828121169 | D64: ДОБРИЧ | E64: ДОБРИЧ | F64: ул. Даме Груев 6
A65: "Д-р Мартин Милев - АИПСИМП по АГ" ЕООД | B65: ИПСИМП | C65: 0828121170 | D65: ДОБРИЧ | E65: ДОБРИЧ | F65: бул. 25 Септември 68, каб. 327
A66: "ИПСМП по урология" | B66: ИПСИМП | C66: 0828121171 | D66: ДОБРИЧ | E66: ДОБРИЧ | F66: ул. Захари Стоянов 14
A67: "ИПСМП по пневмология и фтизиатрия" | B67: ИПСИМП | C67: 0828121172 | D67: ДОБРИЧ | E67: ДОБРИЧ | F67: ул. Захари Стоянов 14
A68: "ИПСМП по УНГ" | B68: ИПСИМП | C68: 0828121173 | D68: ДОБРИЧ | E68: ДОБРИЧ | F68: гр. Добрич, ул. Хр. Смирненски 2
A69: "АИПСМП - ВЯРА ДЕРМА - 0905" ЕООД | B69: ИПСИМП | C69: 0828121174 | D69: ДОБРИЧ | E69: ДОБРИЧ | F69: гр. Добрич, ул. Адриана Будевска 6
A70: "ИНДИВИДУАЛНА ПРАКТИКА ЗА СМП ПО ХИРУРГИЯ" | B70: ИПСИМП | C70: 0803121002 | D70: БАЛЧИК | E70: БАЛЧИК | F70: гр. Балчик, ул. Черно море 27
A71: Амбулатория за СМП - индив.практика | B71: ИПСИМП | C71: 0803121005 | D71: БАЛЧИК | E71: БАЛЧИК | F71: гр. Балчик, ул. Независимост 4
A72: Амбулатория за СМП - индив.практика | B72: ИПСИМП | C72: 0803121006 | D72: БАЛЧИК | E72: БАЛЧИК | F72: гр. Балчик, ул. Златко Петков 1
A73: ЕТ "Д-р Димо Димов - ИПСМП" | B73: ИПСИМП | C73: 0803121013 | D73: БАЛЧИК | E73: БАЛЧИК | F73: гр. Балчик, ЖК Балик 6 вх Б ап 18
A74: ЕТ "Д-р Емилия Димова - индив. специализирана акушеро-гинекологична практика" | B74: ИПСИМП | C74: 0803121014 | D74: БАЛЧИК | E74: БАЛЧИК | F74: гр. Балчик, ЖК Балик 6 вх Б ап 18
A75: ЕТ "Д-р Яна Дочева" | B75: ИПСИМП | C75: 0803121015 | D75: БАЛЧИК | E75: БАЛЧИК | F75: гр. Балчик, ЖК Балик 6 вх Б ап 18
A76: "ИПСМП по АГ" | B76: ИПСИМП | C76: 0803121019 | D76: БАЛЧИК | E76: БАЛЧИК | F76: гр. Балчик, ул. Черно море 68
A77: ЕТ "Д-р Ирена Златева - ИС псих.практика" | B77: ИПСИМП | C77: 0803121017 | D77: БАЛЧИК | E77: БАЛЧИК | F77: гр. Балчик, ул. Златко Петков 1
A78: ЕТ "Д-р Дарина Георгиева Павлова - ИПСМП-КВБ" | B78: ИПСИМП | C78: 0803121022 | D78: БАЛЧИК | E78: БАЛЧИК | F78: гр. Балчик ул. Златко Петков 1
A79: ЕТ "Д-р Мариана Прахалчева - ИСХП" | B79: ИПСИМП | C79: 0803121023 | D79: БАЛЧИК | E79: БАЛЧИК | F79: гр. Балчик, ул. Златко Петков 1
A80: ЕТ "Д-р Димитър Димитров - ИСОП" | B80: ИПСИМП | C80: 0803121024 | D80: БАЛЧИК | E80: БАЛЧИК | F80: гр. Балчик, ул. Златко Петков 1
A81: ЕТ "Д-р Никола Златев - ИСКП" | B81: ИПСИМП | C81: 0803121025 | D81: БАЛЧИК | E81: БАЛЧИК | F81: гр. Балчик, ул. Златко Петков 1
A82: ЕТ "Д-р Светомир Михайлов - ИСНП" | B82: ИПСИМП | C82: 0803121026 | D82: БАЛЧИК | E82: БАЛЧИК | F82: гр. Балчик, ул. Златко Петков 1
A83: "ИПСМП ДОКТОР ЦВЕТЕЛИНА ДОНЧЕВА" ЕООД | B83: ИПСИМП | C83: 0803121027 | D83: БАЛЧИК | E83: БАЛЧИК | F83: гр. Балчик, ул. Черно море 27
A84: "Индивидуална практика за СМП по ФРМ" | B84: ИПСИМП | C84: 0803121032 | D84: БАЛЧИК | E84: КРАНЕВО | F84: с. Кранево, ул. Приморска 25, хотел "Терма Палас"
A85: Амбулатория за СМП - индив.практика | B85: ИПСИМП | C85: 0817121003 | D85: КАВАРНА | E85: КАВАРНА | F85: гр. Каварна, ул. Братя Шкорпил 8
A86: ЕТ "Хигия-д-р Донка Колева-СИМП - детски болести" | B86: ИПСИМП | C86: 0817121008 | D86: КАВАРНА | E86: КАВАРНА | F86: гр. Каварна, ул. Добри Христов 1 Б
A87: "ИПСМП по нервни болести" | B87: ИПСИМП | C87: 0817121010 | D87: КАВАРНА | E87: КАВАРНА | F87: гр. Каварна, ул. Стара планина 12
A88: "ИПСМП по АГ-д-р Стойчовски" | B88: ИПСИМП | C88: 0812121008 | D88: ГЕНЕРАЛ ТОШЕВО | E88: ГЕНЕРАЛ ТОШЕВО | F88: гр. Ген. Тошево, ул. Иван Вазов 15, каб. 303
A89: ЕТ "Д-р Здравко Момчев - ИПСМП" | B89: ИПСИМП | C89: 0827121002 | D89: ТЕРВЕЛ | E89: ТЕРВЕЛ | F89: гр. Тервел, ул. Стара планина 2
A90: Амбулатория за СМП - индив.практика | B90: ИПСИМП | C90: 0827121004 | D90: ТЕРВЕЛ | E90: ТЕРВЕЛ | F90: гр. Тервел, ул. Хан Аспарух 28
A91: "Индивидуална практика за ПДП и ИП за СДП-Д-р Георги Киримов" ЕООД | B91: ИПСИДП | C91: 0828122003 | D91: ДОБРИЧ | E91: ДОБРИЧ | F91: ул. Димитър Петков 5
A92: ГПСМП "ЕФ - РА МЕД" - ООД | B92: ГПСИМП | C92: 0828123002 | D92: ДОБРИЧ | E92: ДОБРИЧ | F92: гр. Добрич, ул. Страцин 2 ет 1 ап 1
A93: ГПСМП "Сърце" - ООД | B93: ГПСИМП | C93: 0828123003 | D93: ДОБРИЧ | E93: ДОБРИЧ | F93: гр. Добрич, ул. П.Хитов 24, | G93: ул. Максим Горки 1
A94: МЦ "Добрич" - ЕООД | B94: МЦ | C94: 0828131003 | D94: ДОБРИЧ | E94: ДОБРИЧ | F94: гр. Добрич, ул. П. Хитов 24
A95: МЦ "Фива Феникс" ООД | B95: МЦ | C95: 0828131004 | D95: ДОБРИЧ | E95: ДОБРИЧ | F95: гр. Добрич, ул. Независимост 2 и 3
A96: МЦ "Мибест" ООД | B96: МЦ | C96: 0828131006 | D96: ДОБРИЧ | E96: ДОБРИЧ | F96: гр. Добрич, ул. Димитър Петков 5
A97: МЦ "Хелп" ЕООД | B97: МЦ | C97: 0828131007 | D97: ДОБРИЧ | E97: ДОБРИЧ | F97: бул. 25 Септември 68 ет. 2
A98: МЦ "Балчик" - ЕООД | B98: МЦ | C98: 0803131001 | D98: БАЛЧИК | E98: БАЛЧИК | F98: гр. Балчик, ул. Златко Петков 1
A99: МЦ "Проф. Енчо Калчев" ЕООД | B99: МЦ | C99: 0803131002 | D99: БАЛЧИК | E99: БАЛЧИК | F99: КК Албена, община Балчик
A100: МЦ "Медика-Албена" - ЕАД | B100: МЦ | C100: 0803131005 | D100: БАЛЧИК | E100: БАЛЧИК | F100: КК Албена, община Балчик
A101: МЦ "Енерджи" ЕООД | B101: МЦ | C101: 0803131006 | D101: БАЛЧИК | E101: КРАНЕВО | F101: с. Кранево, ул. Черноморска 45
A102: МЦ "Санико" ООД | B102: МЦ | C102: 0803131007 | D102: БАЛЧИК | E102: КРАНЕВО | F102: с. Кранево, ул. Черноморска 23, хотел Феста
A103: МЦ " Г. Тошево" - ЕООД | B103: МЦ | C103: 0812131001 | D103: ГЕНЕРАЛ ТОШЕВО | E103: ГЕНЕРАЛ ТОШЕВО | F103: гр. Ген. Тошево, ул. Иван Вазов 15
A104: МЦ "Каварна" - ЕООД | B104: МЦ | C104: 0817131001 | D104: КАВАРНА | E104: КАВАРНА | F104: гр. Каварна, ул. Васил Левски 36
A105: МЦ "ЕВРОМЕДИКА - КАВАРНА" - ЕООД | B105: МЦ | C105: 0817131002 | D105: КАВАРНА | E105: КАВАРНА | F105: гр. Каварна, ул. Добри Христов 1 Б
A106: МЦ "Тервел" - ЕООД | B106: МЦ | C106: 0827131002 | D106: ТЕРВЕЛ | E106: ТЕРВЕЛ | F106: гр. Тервел, ул. Стара планина 2
A107: "СЦ Добрич" ЕООД | B107: ДЦ | C107: 0828132003 | D107: ДОБРИЧ | E107: ДОБРИЧ | F107: гр. Добрич, ул. Димитър Петков 5
A108: ДКЦ І - ООД | B108: ДКЦ | C108: 0828134001 | D108: ДОБРИЧ | E108: ДОБРИЧ | F108: гр. Добрич, ул. Димитър Петков 3
A109: ДКЦ ІІ - ЕООД | B109: ДКЦ | C109: 0828134002 | D109: ДОБРИЧ | E109: ДОБРИЧ | F109: гр. Добрич, бул. 25 Септември 68
A110: "СМДЛ ДЕНТАВИЖЪН" - ООД | B110: СМДЛ | C110: 0828141003 | D110: ДОБРИЧ | E110: ДОБРИЧ | F110: гр. Добрич, ул. Димитър Петков 5
A111: "СМДЛ КАРДИАМЕД" - ООД | B111: СМДЛ | C111: 0828141004 | D111: ДОБРИЧ | E111: ДОБРИЧ | F111: гр. Добрич, ул. Панайот Хитов 24, ет. 4
A112: "СМДЛ СТЕЛТ-2013" - ЕООД | B112: СМДЛ | C112: 0828141005 | D112: ДОБРИЧ | E112: ДОБРИЧ | F112: гр. Добрич, ул. Димитър Петков 5
A113: "СМДЛ РАМУС" ООД - МАНИПУЛАЦИОННИ | B113: СМДЛ | C113: 0828141006 | D113: ДОБРИЧ | E113: ДОБРИЧ | F113: гр. Добрич, бул. 25 Септември 45, | G113: гр. Балчик, ул. Борис Янев 17
A114: СМТЛ "Колчев и син" - ООД | B114: СМТЛ | C114: 0828142006 | D114: ДОБРИЧ | E114: ДОБРИЧ | F114: ул. Васил Левски 7
A115: СМТЛ "Иридент 2005" ЕООД | B115: СМТЛ | C115: 0828142007 | D115: ДОБРИЧ | E115: ДОБРИЧ | F115: ул. Хаджи Димитър 38
A116: СМТЛ "Естет" - ООД | B116: СМТЛ | C116: 0828142008 | D116: ДОБРИЧ | E116: ДОБРИЧ | F116: бул. 25 Септември 20 вх А ап 1
A117: СМТЛ "Николай Христов" - ЕООД | B117: СМТЛ | C117: 0828142010 | D117: ДОБРИЧ | E117: ДОБРИЧ | F117: ул. Независимост 18
A118: СМТЛ "Дент-финес 2000" - ООД | B118: СМТЛ | C118: 0828142012 | D118: ДОБРИЧ | E118: ДОБРИЧ | F118: ул. Ген.Колев 16
A119: СМТЛ "Краси-Дент" - ЕООД | B119: СМТЛ | C119: 0828142013 | D119: ДОБРИЧ | E119: ДОБРИЧ | F119: ул. Димитър Петков 5
A120: СМТЛ "ПЕПОДЕНТ" - ЕООД | B120: СМТЛ | C120: 0828142014 | D120: ДОБРИЧ | E120: ДОБРИЧ | F120: ул. Димитър Петков 5
A121: СМТЛ "Пламен Друмев" - ЕООД | B121: СМТЛ | C121: 0828142020 | D121: ДОБРИЧ | E121: ДОБРИЧ | F121: ул. Генерал Гурко 28
A122: СМТЛ "Недялко Иванов" ЕООД | B122: СМТЛ | C122: 0828142021 | D122: ДОБРИЧ | E122: ДОБРИЧ | F122: ул. Цар Симеон 52 вх Б ап 3
A123: СМТЛ "Поли-Иводент Студио" - ООД | B123: СМТЛ | C123: 0828142022 | D123: ДОБРИЧ | E123: ДОБРИЧ | F123: ул. Димитър Петков 5
A124: СМТЛ "Ани-Дент" ЕООД | B124: СМТЛ | C124: 0828142023 | D124: ДОБРИЧ | E124: ДОБРИЧ | F124: ул. Димитър Петков 5
A125: СМТЛ "Дентал-Перфект" - ООД | B125: СМТЛ | C125: 0828142024 | D125: ДОБРИЧ | E125: ДОБРИЧ | F125: ул. Славянска 23 вх Б ап 3
A126: СМТЛ "Ивадент - Ивелина Мирчева" - ЕООД | B126: СМТЛ | C126: 0828142025 | D126: ДОБРИЧ | E126: ДОБРИЧ | F126: ул. Димитър Петков 5
A127: СМТЛ "Дентално студио Генчев" ЕООД | B127: СМТЛ | C127: 0828142026 | D127: ДОБРИЧ | E127: ДОБРИЧ | F127: ул. Генерал Колев 90
A128: СМТЛ "Арт Дентал - 222" ООД | B128: СМТЛ | C128: 0828142027 | D128: ДОБРИЧ | E128: ДОБРИЧ | F128: ул. Ален мак 9
A129: "Медико-техническа лаборатория" - ЕООД | B129: СМТЛ | C129: 0803142003 | D129: БАЛЧИК | E129: БАЛЧИК | F129: гр. Балчик, ул. Златко Петков 1
A130: СМТЛ "Цито-Георги Николов" ЕООД | B130: СМТЛ | C130: 0817142002 | D130: КАВАРНА | E130: КАВАРНА | F130: гр. Каварна, ул. Йордан Йовков 1
A131: СМТЛ "Маердент" - ООД | B131: СМТЛ | C131: 0827142001 | D131: ТЕРВЕЛ | E131: ТЕРВЕЛ | F131: гр. Тервел, ул. Цар Калоян 1 | G131: гр. Добрич, ул. Вардар 26

Sheet II_ЛЗ
A1: =I_1!$A$1 -> ДОБРИЧ | G1: Обратно към УКАЗАНИЯТА
A2: ИМЕ НА ЛЕЧЕБНОТО ЗАВЕДЕНИЕ | B2: ВИД НА ЛЗ | C2: № В РЕГИСТЪРА НА ЛЗБП | D2: ОБЩИНА | E2: НАСЕЛЕНО МЯСТО | F2: АДРЕС | G2: ДРУГ АДРЕС / ФИЛИАЛ | H2: вид ЛЗ
A3: МБАЛ Балчик | B3: МБАЛ | C3: 0803211002 | D3: БАЛЧИК | E3: БАЛЧИК | F3: ул. Д-р Златко Петков 1 | H3: =IFERROR(VLOOKUP(tbl_HOSP[[#This Row],[ВИД НА ЛЗ]],'TYPE LZ'!A:B,2,0),"") -> 1
A4: МБАЛ Добрич | B4: МБАЛ | C4: 0828211001 | D4: ДОБРИЧ | E4: ДОБРИЧ | F4: ул. Панайот Хитов 24 | H4: =IFERROR(VLOOKUP(tbl_HOSP[[#This Row],[ВИД НА ЛЗ]],'TYPE LZ'!A:B,2,0),"") -> 1
A5: МБАЛ Каварна | B5: МБАЛ | C5: 0817211003 | D5: КАВАРНА | E5: КАВАРНА | F5: ул. Панайот Волов 36 | H5: =IFERROR(VLOOKUP(tbl_HOSP[[#This Row],[ВИД НА ЛЗ]],'TYPE LZ'!A:B,2,0),"") -> 1
A6: ЦПЗ Добрич | B6: ЦПЗ | C6: 0828311007 | D6: ДОБРИЧ | E6: ДОБРИЧ | F6: ул. Панайот Хитов 24 | H6: =IFERROR(VLOOKUP(tbl_HOSP[[#This Row],[ВИД НА ЛЗ]],'TYPE LZ'!A:B,2,0),"") -> 1
A7: ДПБ Карвуна | B7: ДБП | C7: 0828242011 | D7: БАЛЧИК | E7: КАРВУНА | F7: с. Карвуна | H7: =IFERROR(VLOOKUP(tbl_HOSP[[#This Row],[ВИД НА ЛЗ]],'TYPE LZ'!A:B,2,0),"") -> 2
A8: СБР Тузлата | B8: СБР | C8: 0803232008 | D8: БАЛЧИК | E8: БАЛЧИК | F8: местност Тузлата | H8: =IFERROR(VLOOKUP(tbl_HOSP[[#This Row],[ВИД НА ЛЗ]],'TYPE LZ'!A:B,2,0),"") -> 2
A9: ДМСГД Добрич | B9: ДМСГ | C9: 0828340010 | D9: ДОБРИЧ | E9: ДОБРИЧ | F9: ЖК Добротица | H9: =IFERROR(VLOOKUP(tbl_HOSP[[#This Row],[ВИД НА ЛЗ]],'TYPE LZ'!A:B,2,0),"") -> 
A10: ЦСМП Добрич | B10: ЦСМП - филиал | C10: 0828310009 | D10: ДОБРИЧ | E10: ДОБРИЧ | F10: ул. Панайот Хитов 24 | H10: =IFERROR(VLOOKUP(tbl_HOSP[[#This Row],[ВИД НА ЛЗ]],'TYPE LZ'!A:B,2,0),"") -> 
H11: =IFERROR(VLOOKUP(tbl_HOSP[[#This Row],[ВИД НА ЛЗ]],'TYPE LZ'!A:B,2,0),"") -> 
H12: =IFERROR(VLOOKUP(tbl_HOSP[[#This Row],[ВИД НА ЛЗ]],'TYPE LZ'!A:B,2,0),"") -> 
H13: =IFERROR(VLOOKUP(tbl_HOSP[[#This Row],[ВИД НА ЛЗ]],'TYPE LZ'!A:B,2,0),"") -> 
H14: =IFERROR(VLOOKUP(tbl_HOSP[[#This Row],[ВИД НА ЛЗ]],'TYPE LZ'!A:B,2,0),"") -> 
H15: =IFERROR(VLOOKUP(tbl_HOSP[[#This Row],[ВИД НА ЛЗ]],'TYPE LZ'!A:B,2,0),"") -> 
H16: =IFERROR(VLOOKUP(tbl_HOSP[[#This Row],[ВИД НА ЛЗ]],'TYPE LZ'!A:B,2,0),"") -> 
H17: =IFERROR(VLOOKUP(tbl_HOSP[[#This Row],[ВИД НА ЛЗ]],'TYPE LZ'!A:B,2,0),"") -> 
H18: =IFERROR(VLOOKUP(tbl_HOSP[[#This Row],[ВИД НА ЛЗ]],'TYPE LZ'!A:B,2,0),"") -> 
H19: =IFERROR(VLOOKUP(tbl_HOSP[[#This Row],[ВИД НА ЛЗ]],'TYPE LZ'!A:B,2,0),"") -> 
H20: =IFERROR(VLOOKUP(tbl_HOSP[[#This Row],[ВИД НА ЛЗ]],'TYPE LZ'!A:B,2,0),"") -> 
H21: =IFERROR(VLOOKUP(tbl_HOSP[[#This Row],[ВИД НА ЛЗ]],'TYPE LZ'!A:B,2,0),"") -> 
H22: =IFERROR(VLOOKUP(tbl_HOSP[[#This Row],[ВИД НА ЛЗ]],'TYPE LZ'!A:B,2,0),"") -> 
H23: =IFERROR(VLOOKUP(tbl_HOSP[[#This Row],[ВИД НА ЛЗ]],'TYPE LZ'!A:B,2,0),"") -> 
H24: =IFERROR(VLOOKUP(tbl_HOSP[[#This Row],[ВИД НА ЛЗ]],'TYPE LZ'!A:B,2,0),"") -> 
H25: =IFERROR(VLOOKUP(tbl_HOSP[[#This Row],[ВИД НА ЛЗ]],'TYPE LZ'!A:B,2,0),"") -> 
H26: =IFERROR(VLOOKUP(tbl_HOSP[[#This Row],[ВИД НА ЛЗ]],'TYPE LZ'!A:B,2,0),"") -> 
H27: =IFERROR(VLOOKUP(tbl_HOSP[[#This Row],[ВИД НА ЛЗ]],'TYPE LZ'!A:B,2,0),"") -> 
H28: =IFERROR(VLOOKUP(tbl_HOSP[[#This Row],[ВИД НА ЛЗ]],'TYPE LZ'!A:B,2,0),"") -> 
H29: =IFERROR(VLOOKUP(tbl_HOSP[[#This Row],[ВИД НА ЛЗ]],'TYPE LZ'!A:B,2,0),"") -> 
H30: =IFERROR(VLOOKUP(tbl_HOSP[[#This Row],[ВИД НА ЛЗ]],'TYPE LZ'!A:B,2,0),"") -> 
H31: =IFERROR(VLOOKUP(tbl_HOSP[[#This Row],[ВИД НА ЛЗ]],'TYPE LZ'!A:B,2,0),"") -> 
H32: =IFERROR(VLOOKUP(tbl_HOSP[[#This Row],[ВИД НА ЛЗ]],'TYPE LZ'!A:B,2,0),"") -> 
H33: =IFERROR(VLOOKUP(tbl_HOSP[[#This Row],[ВИД НА ЛЗ]],'TYPE LZ'!A:B,2,0),"") -> 
H34: =IFERROR(VLOOKUP(tbl_HOSP[[#This Row],[ВИД НА ЛЗ]],'TYPE LZ'!A:B,2,0),"") -> 
H35: =IFERROR(VLOOKUP(tbl_HOSP[[#This Row],[ВИД НА ЛЗ]],'TYPE LZ'!A:B,2,0),"") -> 
H36: =IFERROR(VLOOKUP(tbl_HOSP[[#This Row],[ВИД НА ЛЗ]],'TYPE LZ'!A:B,2,0),"") -> 
H37: =IFERROR(VLOOKUP(tbl_HOSP[[#This Row],[ВИД НА ЛЗ]],'TYPE LZ'!A:B,2,0),"") -> 
H38: =IFERROR(VLOOKUP(tbl_HOSP[[#This Row],[ВИД НА ЛЗ]],'TYPE LZ'!A:B,2,0),"") -> 
H39: =IFERROR(VLOOKUP(tbl_HOSP[[#This Row],[ВИД НА ЛЗ]],'TYPE LZ'!A:B,2,0),"") -> 
H40: =IFERROR(VLOOKUP(tbl_HOSP[[#This Row],[ВИД НА ЛЗ]],'TYPE LZ'!A:B,2,0),"") -> 
H41: =IFERROR(VLOOKUP(tbl_HOSP[[#This Row],[ВИД НА ЛЗ]],'TYPE LZ'!A:B,2,0),"") -> 
H42: =IFERROR(VLOOKUP(tbl_HOSP[[#This Row],[ВИД НА ЛЗ]],'TYPE LZ'!A:B,2,0),"") -> 
H43: =IFERROR(VLOOKUP(tbl_HOSP[[#This Row],[ВИД НА ЛЗ]],'TYPE LZ'!A:B,2,0),"") -> 
H44: =IFERROR(VLOOKUP(tbl_HOSP[[#This Row],[ВИД НА ЛЗ]],'TYPE LZ'!A:B,2,0),"") -> 
H45: =IFERROR(VLOOKUP(tbl_HOSP[[#This Row],[ВИД НА ЛЗ]],'TYPE LZ'!A:B,2,0),"") -> 
H46: =IFERROR(VLOOKUP(tbl_HOSP[[#This Row],[ВИД НА ЛЗ]],'TYPE LZ'!A:B,2,0),"") -> 
H47: =IFERROR(VLOOKUP(tbl_HOSP[[#This Row],[ВИД НА ЛЗ]],'TYPE LZ'!A:B,2,0),"") -> 
H48: =IFERROR(VLOOKUP(tbl_HOSP[[#This Row],[ВИД НА ЛЗ]],'TYPE LZ'!A:B,2,0),"") -> 
H49: =IFERROR(VLOOKUP(tbl_HOSP[[#This Row],[ВИД НА ЛЗ]],'TYPE LZ'!A:B,2,0),"") -> 
H50: =IFERROR(VLOOKUP(tbl_HOSP[[#This Row],[ВИД НА ЛЗ]],'TYPE LZ'!A:B,2,0),"") -> 
H51: =IFERROR(VLOOKUP(tbl_HOSP[[#This Row],[ВИД НА ЛЗ]],'TYPE LZ'!A:B,2,0),"") -> 
H52: =IFERROR(VLOOKUP(tbl_HOSP[[#This Row],[ВИД НА ЛЗ]],'TYPE LZ'!A:B,2,0),"") -> 
H53: =IFERROR(VLOOKUP(tbl_HOSP[[#This Row],[ВИД НА ЛЗ]],'TYPE LZ'!A:B,2,0),"") -> 
H54: =IFERROR(VLOOKUP(tbl_HOSP[[#This Row],[ВИД НА ЛЗ]],'TYPE LZ'!A:B,2,0),"") -> 
H55: =IFERROR(VLOOKUP(tbl_HOSP[[#This Row],[ВИД НА ЛЗ]],'TYPE LZ'!A:B,2,0),"") -> 
H56: =IFERROR(VLOOKUP(tbl_HOSP[[#This Row],[ВИД НА ЛЗ]],'TYPE LZ'!A:B,2,0),"") -> 
H57: =IFERROR(VLOOKUP(tbl_HOSP[[#This Row],[ВИД НА ЛЗ]],'TYPE LZ'!A:B,2,0),"") -> 
H58: =IFERROR(VLOOKUP(tbl_HOSP[[#This Row],[ВИД НА ЛЗ]],'TYPE LZ'!A:B,2,0),"") -> 
H59: =IFERROR(VLOOKUP(tbl_HOSP[[#This Row],[ВИД НА ЛЗ]],'TYPE LZ'!A:B,2,0),"") -> 
H60: =IFERROR(VLOOKUP(tbl_HOSP[[#This Row],[ВИД НА ЛЗ]],'TYPE LZ'!A:B,2,0),"") -> 
H61: =IFERROR(VLOOKUP(tbl_HOSP[[#This Row],[ВИД НА ЛЗ]],'TYPE LZ'!A:B,2,0),"") -> 
H62: =IFERROR(VLOOKUP(tbl_HOSP[[#This Row],[ВИД НА ЛЗ]],'TYPE LZ'!A:B,2,0),"") -> 
H63: =IFERROR(VLOOKUP(tbl_HOSP[[#This Row],[ВИД НА ЛЗ]],'TYPE LZ'!A:B,2,0),"") -> 
H64: =IFERROR(VLOOKUP(tbl_HOSP[[#This Row],[ВИД НА ЛЗ]],'TYPE LZ'!A:B,2,0),"") -> 
H65: =IFERROR(VLOOKUP(tbl_HOSP[[#This Row],[ВИД НА ЛЗ]],'TYPE LZ'!A:B,2,0),"") -> 
H66: =IFERROR(VLOOKUP(tbl_HOSP[[#This Row],[ВИД НА ЛЗ]],'TYPE LZ'!A:B,2,0),"") -> 
H67: =IFERROR(VLOOKUP(tbl_HOSP[[#This Row],[ВИД НА ЛЗ]],'TYPE LZ'!A:B,2,0),"") -> 
H68: =IFERROR(VLOOKUP(tbl_HOSP[[#This Row],[ВИД НА ЛЗ]],'TYPE LZ'!A:B,2,0),"") -> 
H69: =IFERROR(VLOOKUP(tbl_HOSP[[#This Row],[ВИД НА ЛЗ]],'TYPE LZ'!A:B,2,0),"") -> 
H70: =IFERROR(VLOOKUP(tbl_HOSP[[#This Row],[ВИД НА ЛЗ]],'TYPE LZ'!A:B,2,0),"") -> 
H71: =IFERROR(VLOOKUP(tbl_HOSP[[#This Row],[ВИД НА ЛЗ]],'TYPE LZ'!A:B,2,0),"") -> 
H72: =IFERROR(VLOOKUP(tbl_HOSP[[#This Row],[ВИД НА ЛЗ]],'TYPE LZ'!A:B,2,0),"") -> 
H73: =IFERROR(VLOOKUP(tbl_HOSP[[#This Row],[ВИД НА ЛЗ]],'TYPE LZ'!A:B,2,0),"") -> 
H74: =IFERROR(VLOOKUP(tbl_HOSP[[#This Row],[ВИД НА ЛЗ]],'TYPE LZ'!A:B,2,0),"") -> 
H75: =IFERROR(VLOOKUP(tbl_HOSP[[#This Row],[ВИД НА ЛЗ]],'TYPE LZ'!A:B,2,0),"") -> 
H76: =IFERROR(VLOOKUP(tbl_HOSP[[#This Row],[ВИД НА ЛЗ]],'TYPE LZ'!A:B,2,0),"") -> 
H77: =IFERROR(VLOOKUP(tbl_HOSP[[#This Row],[ВИД НА ЛЗ]],'TYPE LZ'!A:B,2,0),"") -> 
H78: =IFERROR(VLOOKUP(tbl_HOSP[[#This Row],[ВИД НА ЛЗ]],'TYPE LZ'!A:B,2,0),"") -> 
H79: =IFERROR(VLOOKUP(tbl_HOSP[[#This Row],[ВИД НА ЛЗ]],'TYPE LZ'!A:B,2,0),"") -> 
H80: =IFERROR(VLOOKUP(tbl_HOSP[[#This Row],[ВИД НА ЛЗ]],'TYPE LZ'!A:B,2,0),"") -> 
H81: =IFERROR(VLOOKUP(tbl_HOSP[[#This Row],[ВИД НА ЛЗ]],'TYPE LZ'!A:B,2,0),"") -> 
H82: =IFERROR(VLOOKUP(tbl_HOSP[[#This Row],[ВИД НА ЛЗ]],'TYPE LZ'!A:B,2,0),"") -> 
H83: =IFERROR(VLOOKUP(tbl_HOSP[[#This Row],[ВИД НА ЛЗ]],'TYPE LZ'!A:B,2,0),"") -> 
H84: =IFERROR(VLOOKUP(tbl_HOSP[[#This Row],[ВИД НА ЛЗ]],'TYPE LZ'!A:B,2,0),"") -> 
H85: =IFERROR(VLOOKUP(tbl_HOSP[[#This Row],[ВИД НА ЛЗ]],'TYPE LZ'!A:B,2,0),"") -> 
H86: =IFERROR(VLOOKUP(tbl_HOSP[[#This Row],[ВИД НА ЛЗ]],'TYPE LZ'!A:B,2,0),"") -> 
H87: =IFERROR(VLOOKUP(tbl_HOSP[[#This Row],[ВИД НА ЛЗ]],'TYPE LZ'!A:B,2,0),"") -> 
H88: =IFERROR(VLOOKUP(tbl_HOSP[[#This Row],[ВИД НА ЛЗ]],'TYPE LZ'!A:B,2,0),"") -> 
H89: =IFERROR(VLOOKUP(tbl_HOSP[[#This Row],[ВИД НА ЛЗ]],'TYPE LZ'!A:B,2,0),"") -> 
H90: =IFERROR(VLOOKUP(tbl_HOSP[[#This Row],[ВИД НА ЛЗ]],'TYPE LZ'!A:B,2,0),"") -> 
H91: =IFERROR(VLOOKUP(tbl_HOSP[[#This Row],[ВИД НА ЛЗ]],'TYPE LZ'!A:B,2,0),"") -> 
H92: =IFERROR(VLOOKUP(tbl_HOSP[[#This Row],[ВИД НА ЛЗ]],'TYPE LZ'!A:B,2,0),"") -> 
H93: =IFERROR(VLOOKUP(tbl_HOSP[[#This Row],[ВИД НА ЛЗ]],'TYPE LZ'!A:B,2,0),"") -> 
H94: =IFERROR(VLOOKUP(tbl_HOSP[[#This Row],[ВИД НА ЛЗ]],'TYPE LZ'!A:B,2,0),"") -> 
H95: =IFERROR(VLOOKUP(tbl_HOSP[[#This Row],[ВИД НА ЛЗ]],'TYPE LZ'!A:B,2,0),"") -> 
H96: =IFERROR(VLOOKUP(tbl_HOSP[[#This Row],[ВИД НА ЛЗ]],'TYPE LZ'!A:B,2,0),"") -> 
H97: =IFERROR(VLOOKUP(tbl_HOSP[[#This Row],[ВИД НА ЛЗ]],'TYPE LZ'!A:B,2,0),"") -> 
H98: =IFERROR(VLOOKUP(tbl_HOSP[[#This Row],[ВИД НА ЛЗ]],'TYPE LZ'!A:B,2,0),"") -> 
H99: =IFERROR(VLOOKUP(tbl_HOSP[[#This Row],[ВИД НА ЛЗ]],'TYPE LZ'!A:B,2,0),"") -> 
H100: =IFERROR(VLOOKUP(tbl_HOSP[[#This Row],[ВИД НА ЛЗ]],'TYPE LZ'!A:B,2,0),"") -> 
H101: =IFERROR(VLOOKUP(tbl_HOSP[[#This Row],[ВИД НА ЛЗ]],'TYPE LZ'!A:B,2,0),"") -> 
H102: =IFERROR(VLOOKUP(tbl_HOSP[[#This Row],[ВИД НА ЛЗ]],'TYPE LZ'!A:B,2,0),"") -> 
H103: =IFERROR(VLOOKUP(tbl_HOSP[[#This Row],[ВИД НА ЛЗ]],'TYPE LZ'!A:B,2,0),"") -> 
H104: =IFERROR(VLOOKUP(tbl_HOSP[[#This Row],[ВИД НА ЛЗ]],'TYPE LZ'!A:B,2,0),"") -> 
H105: =IFERROR(VLOOKUP(tbl_HOSP[[#This Row],[ВИД НА ЛЗ]],'TYPE LZ'!A:B,2,0),"") -> 
H106: =IFERROR(VLOOKUP(tbl_HOSP[[#This Row],[ВИД НА ЛЗ]],'TYPE LZ'!A:B,2,0),"") -> 
H107: =IFERROR(VLOOKUP(tbl_HOSP[[#This Row],[ВИД НА ЛЗ]],'TYPE LZ'!A:B,2,0),"") -> 
H108: =IFERROR(VLOOKUP(tbl_HOSP[[#This Row],[ВИД НА ЛЗ]],'TYPE LZ'!A:B,2,0),"") -> 
H109: =IFERROR(VLOOKUP(tbl_HOSP[[#This Row],[ВИД НА ЛЗ]],'TYPE LZ'!A:B,2,0),"") -> 
H110: =IFERROR(VLOOKUP(tbl_HOSP[[#This Row],[ВИД НА ЛЗ]],'TYPE LZ'!A:B,2,0),"") -> 
H111: =IFERROR(VLOOKUP(tbl_HOSP[[#This Row],[ВИД НА ЛЗ]],'TYPE LZ'!A:B,2,0),"") -> 
H112: =IFERROR(VLOOKUP(tbl_HOSP[[#This Row],[ВИД НА ЛЗ]],'TYPE LZ'!A:B,2,0),"") -> 
H113: =IFERROR(VLOOKUP(tbl_HOSP[[#This Row],[ВИД НА ЛЗ]],'TYPE LZ'!A:B,2,0),"") -> 
H114: =IFERROR(VLOOKUP(tbl_HOSP[[#This Row],[ВИД НА ЛЗ]],'TYPE LZ'!A:B,2,0),"") -> 
H115: =IFERROR(VLOOKUP(tbl_HOSP[[#This Row],[ВИД НА ЛЗ]],'TYPE LZ'!A:B,2,0),"") -> 
H116: =IFERROR(VLOOKUP(tbl_HOSP[[#This Row],[ВИД НА ЛЗ]],'TYPE LZ'!A:B,2,0),"") -> 
H117: =IFERROR(VLOOKUP(tbl_HOSP[[#This Row],[ВИД НА ЛЗ]],'TYPE LZ'!A:B,2,0),"") -> 
H118: =IFERROR(VLOOKUP(tbl_HOSP[[#This Row],[ВИД НА ЛЗ]],'TYPE LZ'!A:B,2,0),"") -> 
H119: =IFERROR(VLOOKUP(tbl_HOSP[[#This Row],[ВИД НА ЛЗ]],'TYPE LZ'!A:B,2,0),"") -> 
H120: =IFERROR(VLOOKUP(tbl_HOSP[[#This Row],[ВИД НА ЛЗ]],'TYPE LZ'!A:B,2,0),"") -> 
H121: =IFERROR(VLOOKUP(tbl_HOSP[[#This Row],[ВИД НА ЛЗ]],'TYPE LZ'!A:B,2,0),"") -> 
H122: =IFERROR(VLOOKUP(tbl_HOSP[[#This Row],[ВИД НА ЛЗ]],'TYPE LZ'!A:B,2,0),"") -> 
H123: =IFERROR(VLOOKUP(tbl_HOSP[[#This Row],[ВИД НА ЛЗ]],'TYPE LZ'!A:B,2,0),"") -> 
H124: =IFERROR(VLOOKUP(tbl_HOSP[[#This Row],[ВИД НА ЛЗ]],'TYPE LZ'!A:B,2,0),"") -> 
H125: =IFERROR(VLOOKUP(tbl_HOSP[[#This Row],[ВИД НА ЛЗ]],'TYPE LZ'!A:B,2,0),"") -> 
H126: =IFERROR(VLOOKUP(tbl_HOSP[[#This Row],[ВИД НА ЛЗ]],'TYPE LZ'!A:B,2,0),"") -> 
H127: =IFERROR(VLOOKUP(tbl_HOSP[[#This Row],[ВИД НА ЛЗ]],'TYPE LZ'!A:B,2,0),"") -> 
H128: =IFERROR(VLOOKUP(tbl_HOSP[[#This Row],[ВИД НА ЛЗ]],'TYPE LZ'!A:B,2,0),"") -> 
H129: =IFERROR(VLOOKUP(tbl_HOSP[[#This Row],[ВИД НА ЛЗ]],'TYPE LZ'!A:B,2,0),"") -> 
H130: =IFERROR(VLOOKUP(tbl_HOSP[[#This Row],[ВИД НА ЛЗ]],'TYPE LZ'!A:B,2,0),"") -> 
H131: =IFERROR(VLOOKUP(tbl_HOSP[[#This Row],[ВИД НА ЛЗ]],'TYPE LZ'!A:B,2,0),"") -> 
H132: =IFERROR(VLOOKUP(tbl_HOSP[[#This Row],[ВИД НА ЛЗ]],'TYPE LZ'!A:B,2,0),"") -> 
H133: =IFERROR(VLOOKUP(tbl_HOSP[[#This Row],[ВИД НА ЛЗ]],'TYPE LZ'!A:B,2,0),"") -> 
H134: =IFERROR(VLOOKUP(tbl_HOSP[[#This Row],[ВИД НА ЛЗ]],'TYPE LZ'!A:B,2,0),"") -> 
H135: =IFERROR(VLOOKUP(tbl_HOSP[[#This Row],[ВИД НА ЛЗ]],'TYPE LZ'!A:B,2,0),"") -> 
H136: =IFERROR(VLOOKUP(tbl_HOSP[[#This Row],[ВИД НА ЛЗ]],'TYPE LZ'!A:B,2,0),"") -> 
H137: =IFERROR(VLOOKUP(tbl_HOSP[[#This Row],[ВИД НА ЛЗ]],'TYPE LZ'!A:B,2,0),"") -> 
H138: =IFERROR(VLOOKUP(tbl_HOSP[[#This Row],[ВИД НА ЛЗ]],'TYPE LZ'!A:B,2,0),"") -> 
H139: =IFERROR(VLOOKUP(tbl_HOSP[[#This Row],[ВИД НА ЛЗ]],'TYPE LZ'!A:B,2,0),"") -> 
H140: =IFERROR(VLOOKUP(tbl_HOSP[[#This Row],[ВИД НА ЛЗ]],'TYPE LZ'!A:B,2,0),"") -> 
H141: =IFERROR(VLOOKUP(tbl_HOSP[[#This Row],[ВИД НА ЛЗ]],'TYPE LZ'!A:B,2,0),"") -> 
H142: =IFERROR(VLOOKUP(tbl_HOSP[[#This Row],[ВИД НА ЛЗ]],'TYPE LZ'!A:B,2,0),"") -> 
H143: =IFERROR(VLOOKUP(tbl_HOSP[[#This Row],[ВИД НА ЛЗ]],'TYPE LZ'!A:B,2,0),"") -> 
H144: =IFERROR(VLOOKUP(tbl_HOSP[[#This Row],[ВИД НА ЛЗ]],'TYPE LZ'!A:B,2,0),"") -> 
H145: =IFERROR(VLOOKUP(tbl_HOSP[[#This Row],[ВИД НА ЛЗ]],'TYPE LZ'!A:B,2,0),"") -> 
H146: =IFERROR(VLOOKUP(tbl_HOSP[[#This Row],[ВИД НА ЛЗ]],'TYPE LZ'!A:B,2,0),"") -> 
H147: =IFERROR(VLOOKUP(tbl_HOSP[[#This Row],[ВИД НА ЛЗ]],'TYPE LZ'!A:B,2,0),"") -> 
H148: =IFERROR(VLOOKUP(tbl_HOSP[[#This Row],[ВИД НА ЛЗ]],'TYPE LZ'!A:B,2,0),"") -> 
H149: =IFERROR(VLOOKUP(tbl_HOSP[[#This Row],[ВИД НА ЛЗ]],'TYPE LZ'!A:B,2,0),"") -> 
H150: =IFERROR(VLOOKUP(tbl_HOSP[[#This Row],[ВИД НА ЛЗ]],'TYPE LZ'!A:B,2,0),"") -> 
H151: =IFERROR(VLOOKUP(tbl_HOSP[[#This Row],[ВИД НА ЛЗ]],'TYPE LZ'!A:B,2,0),"") -> 
H152: =IFERROR(VLOOKUP(tbl_HOSP[[#This Row],[ВИД НА ЛЗ]],'TYPE LZ'!A:B,2,0),"") -> 
H153: =IFERROR(VLOOKUP(tbl_HOSP[[#This Row],[ВИД НА ЛЗ]],'TYPE LZ'!A:B,2,0),"") -> 
H154: =IFERROR(VLOOKUP(tbl_HOSP[[#This Row],[ВИД НА ЛЗ]],'TYPE LZ'!A:B,2,0),"") -> 
H155: =IFERROR(VLOOKUP(tbl_HOSP[[#This Row],[ВИД НА ЛЗ]],'TYPE LZ'!A:B,2,0),"") -> 
H156: =IFERROR(VLOOKUP(tbl_HOSP[[#This Row],[ВИД НА ЛЗ]],'TYPE LZ'!A:B,2,0),"") -> 
H157: =IFERROR(VLOOKUP(tbl_HOSP[[#This Row],[ВИД НА ЛЗ]],'TYPE LZ'!A:B,2,0),"") -> 
H158: =IFERROR(VLOOKUP(tbl_HOSP[[#This Row],[ВИД НА ЛЗ]],'TYPE LZ'!A:B,2,0),"") -> 
H159: =IFERROR(VLOOKUP(tbl_HOSP[[#This Row],[ВИД НА ЛЗ]],'TYPE LZ'!A:B,2,0),"") -> 
H160: =IFERROR(VLOOKUP(tbl_HOSP[[#This Row],[ВИД НА ЛЗ]],'TYPE LZ'!A:B,2,0),"") -> 
H161: =IFERROR(VLOOKUP(tbl_HOSP[[#This Row],[ВИД НА ЛЗ]],'TYPE LZ'!A:B,2,0),"") -> 
H162: =IFERROR(VLOOKUP(tbl_HOSP[[#This Row],[ВИД НА ЛЗ]],'TYPE LZ'!A:B,2,0),"") -> 
H163: =IFERROR(VLOOKUP(tbl_HOSP[[#This Row],[ВИД НА ЛЗ]],'TYPE LZ'!A:B,2,0),"") -> 
H164: =IFERROR(VLOOKUP(tbl_HOSP[[#This Row],[ВИД НА ЛЗ]],'TYPE LZ'!A:B,2,0),"") -> 
H165: =IFERROR(VLOOKUP(tbl_HOSP[[#This Row],[ВИД НА ЛЗ]],'TYPE LZ'!A:B,2,0),"") -> 
H166: =IFERROR(VLOOKUP(tbl_HOSP[[#This Row],[ВИД НА ЛЗ]],'TYPE LZ'!A:B,2,0),"") -> 
H167: =IFERROR(VLOOKUP(tbl_HOSP[[#This Row],[ВИД НА ЛЗ]],'TYPE LZ'!A:B,2,0),"") -> 
H168: =IFERROR(VLOOKUP(tbl_HOSP[[#This Row],[ВИД НА ЛЗ]],'TYPE LZ'!A:B,2,0),"") -> 
H169: =IFERROR(VLOOKUP(tbl_HOSP[[#This Row],[ВИД НА ЛЗ]],'TYPE LZ'!A:B,2,0),"") -> 
H170: =IFERROR(VLOOKUP(tbl_HOSP[[#This Row],[ВИД НА ЛЗ]],'TYPE LZ'!A:B,2,0),"") -> 
H171: =IFERROR(VLOOKUP(tbl_HOSP[[#This Row],[ВИД НА ЛЗ]],'TYPE LZ'!A:B,2,0),"") -> 
H172: =IFERROR(VLOOKUP(tbl_HOSP[[#This Row],[ВИД НА ЛЗ]],'TYPE LZ'!A:B,2,0),"") -> 
H173: =IFERROR(VLOOKUP(tbl_HOSP[[#This Row],[ВИД НА ЛЗ]],'TYPE LZ'!A:B,2,0),"") -> 
H174: =IFERROR(VLOOKUP(tbl_HOSP[[#This Row],[ВИД НА ЛЗ]],'TYPE LZ'!A:B,2,0),"") -> 
H175: =IFERROR(VLOOKUP(tbl_HOSP[[#This Row],[ВИД НА ЛЗ]],'TYPE LZ'!A:B,2,0),"") -> 
H176: =IFERROR(VLOOKUP(tbl_HOSP[[#This Row],[ВИД НА ЛЗ]],'TYPE LZ'!A:B,2,0),"") -> 
H177: =IFERROR(VLOOKUP(tbl_HOSP[[#This Row],[ВИД НА ЛЗ]],'TYPE LZ'!A:B,2,0),"") -> 
H178: =IFERROR(VLOOKUP(tbl_HOSP[[#This Row],[ВИД НА ЛЗ]],'TYPE LZ'!A:B,2,0),"") -> 
H179: =IFERROR(VLOOKUP(tbl_HOSP[[#This Row],[ВИД НА ЛЗ]],'TYPE LZ'!A:B,2,0),"") -> 
H180: =IFERROR(VLOOKUP(tbl_HOSP[[#This Row],[ВИД НА ЛЗ]],'TYPE LZ'!A:B,2,0),"") -> 
H181: =IFERROR(VLOOKUP(tbl_HOSP[[#This Row],[ВИД НА ЛЗ]],'TYPE LZ'!A:B,2,0),"") -> 
H182: =IFERROR(VLOOKUP(tbl_HOSP[[#This Row],[ВИД НА ЛЗ]],'TYPE LZ'!A:B,2,0),"") -> 
H183: =IFERROR(VLOOKUP(tbl_HOSP[[#This Row],[ВИД НА ЛЗ]],'TYPE LZ'!A:B,2,0),"") -> 
H184: =IFERROR(VLOOKUP(tbl_HOSP[[#This Row],[ВИД НА ЛЗ]],'TYPE LZ'!A:B,2,0),"") -> 
H185: =IFERROR(VLOOKUP(tbl_HOSP[[#This Row],[ВИД НА ЛЗ]],'TYPE LZ'!A:B,2,0),"") -> 
H186: =IFERROR(VLOOKUP(tbl_HOSP[[#This Row],[ВИД НА ЛЗ]],'TYPE LZ'!A:B,2,0),"") -> 
H187: =IFERROR(VLOOKUP(tbl_HOSP[[#This Row],[ВИД НА ЛЗ]],'TYPE LZ'!A:B,2,0),"") -> 
H188: =IFERROR(VLOOKUP(tbl_HOSP[[#This Row],[ВИД НА ЛЗ]],'TYPE LZ'!A:B,2,0),"") -> 
H189: =IFERROR(VLOOKUP(tbl_HOSP[[#This Row],[ВИД НА ЛЗ]],'TYPE LZ'!A:B,2,0),"") -> 
H190: =IFERROR(VLOOKUP(tbl_HOSP[[#This Row],[ВИД НА ЛЗ]],'TYPE LZ'!A:B,2,0),"") -> 
H191: =IFERROR(VLOOKUP(tbl_HOSP[[#This Row],[ВИД НА ЛЗ]],'TYPE LZ'!A:B,2,0),"") -> 
H192: =IFERROR(VLOOKUP(tbl_HOSP[[#This Row],[ВИД НА ЛЗ]],'TYPE LZ'!A:B,2,0),"") -> 
H193: =IFERROR(VLOOKUP(tbl_HOSP[[#This Row],[ВИД НА ЛЗ]],'TYPE LZ'!A:B,2,0),"") -> 
H194: =IFERROR(VLOOKUP(tbl_HOSP[[#This Row],[ВИД НА ЛЗ]],'TYPE LZ'!A:B,2,0),"") -> 
H195: =IFERROR(VLOOKUP(tbl_HOSP[[#This Row],[ВИД НА ЛЗ]],'TYPE LZ'!A:B,2,0),"") -> 
H196: =IFERROR(VLOOKUP(tbl_HOSP[[#This Row],[ВИД НА ЛЗ]],'TYPE LZ'!A:B,2,0),"") -> 
H197: =IFERROR(VLOOKUP(tbl_HOSP[[#This Row],[ВИД НА ЛЗ]],'TYPE LZ'!A:B,2,0),"") -> 
H198: =IFERROR(VLOOKUP(tbl_HOSP[[#This Row],[ВИД НА ЛЗ]],'TYPE LZ'!A:B,2,0),"") -> 
H199: =IFERROR(VLOOKUP(tbl_HOSP[[#This Row],[ВИД НА ЛЗ]],'TYPE LZ'!A:B,2,0),"") -> 
H200: =IFERROR(VLOOKUP(tbl_HOSP[[#This Row],[ВИД НА ЛЗ]],'TYPE LZ'!A:B,2,0),"") -> 
... 219 more rows

Sheet III_1
A1: =I_1!$A$1 -> ДОБРИЧ | B1: =VLOOKUP($A$1,I_1!$A$6:$C$299,3,0) -> 182,808 | E1: Обратно към УКАЗАНИЯТА
A2: РАЗДЕЛ III. НЕОБХОДИМ МИНИМАЛЕН БРОЙ ЛЕКАРИ, ЛЕКАРИ ПО ДЕНТАЛНА МЕДИЦИНА И СПЕЦИАЛИСТИ ОТ ПРОФЕСИОНАЛНО НАПРАВЛЕНИЕ „ЗДРАВНИ ГРИЖИ“ В ИЗВЪНБОЛНИЧНАТА МЕДИЦИНСКА ПОМОЩ ПО СПЕЦИАЛНОСТИ
C3: Таблица 1. Необходим минимален брой лекари и лекари по дентална медицина по специалности
A4: СПЕЦИАЛНОСТ | B4: Брой специалисти | C4: на 100 хил. души | D4: Брой методика | E4: Коеф. Методика
A5: ЛЕКАРИ В ПЪРВИЧНАТА ИЗВЪНБОЛНИЧНА ПОМОЩ | B5: =SUM(B6:B7) -> 306 | C5: =B5/($B$1/100000) -> 167.39 | D5: =SUM(D6:D7) -> 305
A6: ОБЩА МЕДИЦИНА | B6: 123 | C6: 67.28 | D6: =ROUND($B$1/100000*E6,0) -> 122 | E6: 66.60
A7: ДЕНТАЛНА МЕДИЦИНА | B7: 183 | C7: 100.11 | D7: =ROUND($B$1/100000*E7,0) -> 183 | E7: 100.00
A8: ЛЕКАРИ В СПЕЦИАЛИЗИРАНАТА ИЗВЪНБОЛНИЧНА ПОМОЩ | B8: =SUM(B9,B48) -> 173 | C8: 94.63 | D8: =SUM(D9,D48) -> 149
A9: ЛЕКАРИ ПО КЛИНИЧНИ СПЕЦИАЛНОСТИ | B9: =SUM(B10:B47) -> 156 | C9: 85.34 | D9: =SUM(D10:D47) -> 135
A10: АКУШЕРСТВО И ГИНЕКОЛОГИЯ | B10: 14 | C10: 7.66 | D10: =ROUND($B$1/100000*E10,0) -> 13 | E10: 7.31
A11: АНЕСТЕЗИОЛОГИЯ И ИНТЕНЗИВНО ЛЕЧЕНИЕ | B11: 1 | C11: 0.55 | D11: 0 | E11: 0.07
A12: ВЪТРЕШНИ БОЛЕСТИ | B12: 2 | C12: 1.09 | D12: 1 | E12: 0.51
A13: ГАСТРОЕНТЕРОЛОГИЯ | B13: 4 | C13: 2.19 | D13: 3 | E13: 1.79
A14: ЕНДОКРИНОЛОГИЯ И БОЛЕСТИ НА ОБМЯНАТА | B14: 9 | C14: 4.92 | D14: 9 | E14: 4.70
A15: ИНФЕКЦИОЗНИ БОЛЕСТИ | C15: 0 | D15: 0 | E15: 0.13
A16: КАРДИОЛОГИЯ | B16: 23 | C16: 12.58 | D16: 23 | E16: 12.71
A17: КЛИНИЧНА АЛЕРГОЛОГИЯ | B17: 1 | C17: 0.55 | D17: 1 | E17: 0.57
A18: КЛИНИЧНА ТОКСИКОЛОГИЯ | C18: 0 | D18: 0 | E18: 0.01
A19: КЛИНИЧНА ХЕМАТОЛОГИЯ | B19: 1 | C19: 0.55 | D19: 0 | E19: 0.24
A20: КОЖНИ И ВЕНЕРИЧЕСКИ БОЛЕСТИ | B20: 6 | C20: 3.28 | D20: 5 | E20: 2.74
A21: МЕДИЦИНСКА ОНКОЛОГИЯ | B21: 1 | C21: 0.55 | D21: 0 | E21: 0.11
A22: МЕДИЦИНСКА ПАРАЗИТОЛОГИЯ | B22: 1 | C22: 0.55 | D22: 0 | E22: 0.03
A23: НЕРВНИ БОЛЕСТИ | B23: 14 | C23: 7.66 | D23: 13 | E23: 6.86
A24: НЕФРОЛОГИЯ | B24: 3 | C24: 1.64 | D24: 2 | E24: 1.09
A25: ОРТОПЕДИЯ И ТРАВМАТОЛОГИЯ | B25: 8 | C25: 4.38 | D25: 8 | E25: 4.33
A26: ОЧНИ БОЛЕСТИ | B26: 14 | C26: 7.66 | D26: 14 | E26: 7.39
A27: ПНЕВМОЛОГИЯ И ФТИЗИАТРИЯ | B27: 4 | C27: 2.19 | D27: 3 | E27: 1.80
A28: ПСИХИАТРИЯ | B28: 4 | C28: 2.19 | D28: 3 | E28: 1.79
A29: РЕВМАТОЛОГИЯ | B29: 1 | C29: 0.55 | D29: 1 | E29: 0.54
A30: УРОЛОГИЯ | B30: 4 | C30: 2.19 | D30: 3 | E30: 1.64
A31: УШНО-НОСНО-ГЪРЛЕНИ БОЛЕСТИ | B31: 8 | C31: 4.38 | D31: 7 | E31: 3.93
A32: ФИЗИКАЛНА И РЕХАБИЛИТАЦИОННА МЕДИЦИНА | B32: 4 | C32: 2.19 | D32: 3 | E32: 1.41
A33: ГРЪДНА ХИРУРГИЯ | C33: 0 | D33: 0 | E33: 0.03
A34: НЕВРОХИРУРГИЯ | B34: 1 | C34: 0.55 | D34: 0 | E34: 0.10
A35: СЪДОВА ХИРУРГИЯ, АНГИОЛОГИЯ | B35: 1 | C35: 0.55 | D35: 1 | E35: 0.52
A36: ХИРУРГИЯ | B36: 7 | C36: 3.83 | D36: 6 | E36: 3.21
A37: ПЕДИАТРИЯ | B37: 16 | C37: =B37/($B$1/100000) -> 8.75 | D37: 16 | E37: 8.87
A38: ДЕТСКА ГАСТРОЕНТЕРОЛОГИЯ | C38: 0 | D38: 0 | E38: 0.04
A39: ДЕТСКА ЕНДОКРИНОЛОГИЯ И БОЛЕСТИ НА ОБМЯНАТА | B39: 1 | C39: 0.55 | D39: 0 | E39: 0.11
A40: ДЕТСКА КАРДИОЛОГИЯ | B40: 1 | C40: 0.55 | D40: 0 | E40: 0.20
A41: ДЕТСКА КЛИНИЧНА ХЕМАТОЛОГИЯ И ОНКОЛОГИЯ | C41: 0 | D41: 0 | E41: 0.01
A42: ДЕТСКА НЕВРОЛОГИЯ | B42: 1 | C42: 0.55 | D42: 0 | E42: 0.11
A43: ДЕТСКА НЕФРОЛОГИЯ | B43: 1 | C43: 0.55 | D43: 0 | E43: 0.10
A44: ДЕТСКА ПНЕВМОЛОГИЯ И ФТИЗИАТРИЯ | C44: 0 | D44: 0 | E44: 0.21
A45: ДЕТСКА ПСИХИАТРИЯ | C45: 0 | D45: 0 | E45: 0.03
A46: ДЕТСКА РЕВМАТОЛОГИЯ | C46: 0 | D46: 0 | E46: 0.01
A47: ДЕТСКА ХИРУРГИЯ | C47: 0 | D47: 0 | E47: 0.01
A48: ЛЕКАРИ, ОСЪЩЕСТВЯВАЩИ МЕДИКО-ДИАГНОСТИЧНИ ДЕЙНОСТИ ПО СПЕЦИАЛНОСТИ | B48: =SUM(B49:B56) -> 17 | C48: 9.30 | D48: =SUM(D49:D56) -> 14
A49: ВИРУСОЛОГИЯ | B49: 2 | C49: 1.09 | D49: =ROUND($B$1/100000*E49,0) -> 2 | E49: 1.00
A50: КЛИНИЧНА ИМУНОЛОГИЯ | C50: 0 | D50: 0 | E50: 0.20
A51: ТРАНСФУЗИОННА ХЕМАТОЛОГИЯ – ИМУНОХЕМАТОЛОГИЧНИ ИЗСЛЕДВАНИЯ | B51: 1 | C51: 0.55 | D51: 1 | E51: 0.50
A52: КЛИНИЧНА ЛАБОРАТОРИЯ | B52: 5 | C52: 2.74 | D52: 4 | E52: 2.00
A53: КЛИНИЧНА МИКРОБИОЛОГИЯ | B53: 2 | C53: 1.09 | D53: 2 | E53: 1.00
A54: МЕДИЦИНСКА ПАРАЗИТОЛОГИЯ | B54: 1 | C54: 0.55 | D54: 0 | E54: 0.03
A55: ОБЩА И КЛИНИЧНА ПАТОЛОГИЯ | B55: 1 | C55: 0.55 | D55: 1 | E55: 0.50
A56: ОБРАЗНА ДИАГНОСТИКА | B56: 5 | C56: 2.74 | D56: 4 | E56: 2.00
A57: ОБЩ БРОЙ ЛЕКАРИ | B57: =SUM(B5,B8) -> 479 | C57: 262.02 | D57: =SUM(D5,D8) -> 454
A58: ЛЕКАРИ ПО ДЕНТАЛНА МЕДИЦИНА ПО СПЕЦИАЛНОСТИ | B58: =SUM(B59:B66) -> 40 | C58: 21.88 | D58: =SUM(D59:D66) -> 39
A59: ОРТОДОНТИЯ | B59: 2 | C59: 1.09 | D59: =ROUND($B$1/100000*E59,0) -> 2 | E59: 1.00
A60: ПРОТЕТИЧНА ДЕНТАЛНА МЕДИЦИНА | B60: 4 | C60: 2.19 | D60: 4 | E60: 2.00
A61: ПАРОДОНТОЛОГИЯ И ЗАБОЛЯВАНИЯ НА ОРАЛНАТА ЛИГАВИЦА | B61: 5 | C61: 2.74 | D61: 5 | E61: 3.00
A62: ДЕТСКА ДЕНТАЛНА МЕДИЦИНА | B62: 11 | C62: 6.02 | D62: 10 | E62: 5.40
A63: ОПЕРАТИВНО ЗЪБОЛЕЧЕНИЕ И ЕНДОДОНТИЯ | B63: 9 | C63: 4.92 | D63: 9 | E63: 5.00
A64: ОРАЛНА ХИРУРГИЯ | B64: 9 | C64: 4.92 | D64: 9 | E64: 5.00
A65: ДЕНТАЛНА КЛИНИЧНА АЛЕРГОЛОГИЯ | C65: 0 | D65: 0 | E65: 0.20
A66: ДЕНТАЛНА ОБРАЗНА ДИАГНОСТИКА | C66: 0 | D66: 0 | E66: 0.20

Sheet III_2
A1: =I_1!$A$1 -> ДОБРИЧ | B1: =VLOOKUP($A$1,I_1!$A$6:$C$299,3,0) -> 182,808 | C1: Обратно към УКАЗАНИЯТА
A2: РАЗДЕЛ III. НЕОБХОДИМ МИНИМАЛЕН БРОЙ ЛЕКАРИ, ЛЕКАРИ ПО ДЕНТАЛНА МЕДИЦИНА И СПЕЦИАЛИСТИ ОТ ПРОФЕСИОНАЛНО НАПРАВЛЕНИЕ „ЗДРАВНИ ГРИЖИ“ В ИЗВЪНБОЛНИЧНАТА МЕДИЦИНСКА ПОМОЩ ПО СПЕЦИАЛНОСТИ
C3: Таблица 2. Необходим минимален брой специалисти от професионално направление „Здравни грижи“
A4: СПЕЦИАЛНОСТ | B4: Брой специалисти | C4: на 100 хил. души
A5: МЕДИЦИНСКИ СЕСТРИ | B5: 178 | C5: =B5/($B$1/100000) -> 97.37
A6: АКУШЕРКИ | B6: 35 | C6: 19.15
A7: ФЕЛДШЕРИ | B7: 17 | C7: 9.30
A8: РЕХАБИЛИТАТОРИ | B8: 28 | C8: 15.32
A9: КЛИНИЧНИ ЛАБОРАНТИ | B9: 45 | C9: 24.62
A10: РЕНТГЕНОВИ ЛАБОРАНТИ | B10: 15 | C10: 8.21
A11: ОБЩ БРОЙ СПЕЦИАЛИСТИ ПО ЗДРАВНИ ГРИЖИ | B11: =SUM(B5:B10) -> 318 | C11: 173.95

Sheet IV_1
A1: =I_1!$A$1 -> ДОБРИЧ | B1: =VLOOKUP($A$1,I_1!$A$6:$C$299,3,0) -> 182,808 | E1: Обратно към УКАЗАНИЯТА
A2: РАЗДЕЛ IV. БРОЙ НА ПРАКТИКУВАЩИТЕ ЛЕКАРИ, ЛЕКАРИ ПО ДЕНТАЛНА МЕДИЦИНА ПО СПЕЦИАЛНОСТИ И СПЕЦИАЛИСТИТЕ ОТ ПРОФЕСИОНАЛНО НАПРАВЛЕНИЕ „ЗДРАВНИ ГРИЖИ“ В ИЗВЪНБОЛНИЧНАТА МЕДИЦИНСКА ПОМОЩ
E3: Таблица 1. Брой на практикуващите лекари и лекари по дентална медицина по специалности
A4: СПЕЦИАЛНОСТ | B4: Практикуващи само в ИМП | C4: Практикуващи и в ЛЗБП | D4: ОБЩО | E4: на 100 хил. души население
A5: ЛЕКАРИ ПО КЛИНИЧНИ СПЕЦИАЛНОСТИ | B5: =SUM(B6:B45) -> 249 | C5: =SUM(C6:C45) -> 84 | D5: 333 | E5: =SUM(D5)/($B$1/100000) -> 182.16
A6: АКУШЕРСТВО И ГИНЕКОЛОГИЯ | B6: 13 | C6: 9 | D6: =SUM(B6:C6) -> 22 | E6: =SUM(D6)/($B$1/100000) -> 12.03
A7: АНЕСТЕЗИОЛОГИЯ И ИНТЕНЗИВНО ЛЕЧЕНИЕ | C7: 2 | D7: 2 | E7: 1.09
A8: ВЪТРЕШНИ БОЛЕСТИ | B8: 5 | C8: 1 | D8: 6 | E8: 3.28
A9: ГАСТРОЕНТЕРОЛОГИЯ | B9: 2 | C9: 3 | D9: 5 | E9: 2.74
A10: ЕНДОКРИНОЛОГИЯ И БОЛЕСТИ НА ОБМЯНАТА | B10: 5 | C10: 2 | D10: 7 | E10: 3.83
A11: ИНФЕКЦИОЗНИ БОЛЕСТИ | C11: 1 | D11: 1 | E11: 0.55
A12: КАРДИОЛОГИЯ | B12: 7 | C12: 9 | D12: 16 | E12: 8.75
A13: КЛИНИЧНА АЛЕРГОЛОГИЯ | B13: 1 | D13: 1 | E13: 0.55
A14: КЛИНИЧНА ТОКСИКОЛОГИЯ | D14: 0 | E14: 0
A15: КЛИНИЧНА ХЕМАТОЛОГИЯ | C15: 1 | D15: 1 | E15: 0.55
A16: КОЖНИ И ВЕНЕРИЧЕСКИ БОЛЕСТИ | B16: 7 | C16: 3 | D16: 10 | E16: 5.47
A17: МЕДИЦИНСКА ОНКОЛОГИЯ | C17: 2 | D17: 2 | E17: 1.09
A18: МЕДИЦИНСКА ПАРАЗИТОЛОГИЯ | D18: 0 | E18: 0
A19: НЕРВНИ БОЛЕСТИ | B19: 14 | C19: 7 | D19: 21 | E19: 11.49
A20: НЕФРОЛОГИЯ | B20: 1 | C20: 2 | D20: 3 | E20: 1.64
A21: ОРТОПЕДИЯ И ТРАВМАТОЛОГИЯ | B21: 3 | C21: 3 | D21: 6 | E21: 3.28
A22: ОЧНИ БОЛЕСТИ | B22: 12 | C22: 2 | D22: 14 | E22: 7.66
A23: ПНЕВМОЛОГИЯ И ФТИЗИАТРИЯ | B23: 3 | C23: 2 | D23: 5 | E23: 2.74
A24: ПСИХИАТРИЯ | B24: 3 | C24: 7 | D24: 10 | E24: 5.47
A25: РЕВМАТОЛОГИЯ | B25: 1 | C25: 1 | D25: 2 | E25: 1.09
A26: УРОЛОГИЯ | B26: 1 | C26: 3 | D26: 4 | E26: 2.19
A27: УШНО-НОСНО-ГЪРЛЕНИ БОЛЕСТИ | B27: 9 | C27: 2 | D27: 11 | E27: 6.02
A28: ФИЗИКАЛНА И РЕХАБИЛИТАЦИОННА МЕДИЦИНА | B28: 4 | C28: 2 | D28: 6 | E28: 3.28
A29: ГРЪДНА ХИРУРГИЯ | D29: 0 | E29: 0
A30: НЕВРОХИРУРГИЯ | C30: 3 | D30: 3 | E30: 1.64
A31: СЪДОВА ХИРУРГИЯ, АНГИОЛОГИЯ | D31: 0 | E31: 0
A32: ХИРУРГИЯ | B32: 7 | C32: 9 | D32: 16 | E32: 8.75
A33: ПЕДИАТРИЯ | B33: 10 | C33: 6 | D33: 16 | E33: 8.75
A34: ДЕТСКА ГАСТРОЕНТЕРОЛОГИЯ | D34: 0 | E34: 0
A35: ДЕТСКА ЕНДОКРИНОЛОГИЯ И БОЛЕСТИ НА ОБМЯНАТА | C35: 1 | D35: 1 | E35: 0.55
A36: ДЕТСКА КАРДИОЛОГИЯ | C36: 1 | D36: 1 | E36: 0.55
A37: ДЕТСКА КЛИНИЧНА ХЕМАТОЛОГИЯ И ОНКОЛОГИЯ | D37: 0 | E37: 0
A38: ДЕТСКА НЕВРОЛОГИЯ | B38: 1 | D38: 1 | E38: 0.55
A39: ДЕТСКА НЕФРОЛОГИЯ | B39: 1 | D39: 1 | E39: 0.55
A40: ДЕТСКА ПНЕВМОЛОГИЯ И ФТИЗИАТРИЯ | D40: 0 | E40: 0
A41: ДЕТСКА ПСИХИАТРИЯ | D41: 0 | E41: 0
A42: ДЕТСКА РЕВМАТОЛОГИЯ | D42: 0 | E42: 0
A43: ДЕТСКА ХИРУРГИЯ | D43: 0 | E43: 0
A44: ОБЩА МЕДИЦИНА | B44: 59 | D44: =SUM(B44:C44) -> 59 | E44: 32.27
A45: ОБЩОПРАКТИКУВАЩИ ЛЕКАРИ БЕЗ СПЕЦИАЛНОСТ | B45: 80 | D45: =SUM(B45:C45) -> 80 | E45: 43.76
A46: ЛЕКАРИ, ОСЪЩЕСТВЯВАЩИ МЕДИКО-ДИАГНОСТИЧНИ ДЕЙНОСТИ ПО СПЕЦИАЛНОСТИ | B46: =SUM(B47:B54) -> 25 | C46: =SUM(C47:C54) -> 4 | D46: =SUM(D47:D54) -> 29 | E46: 15.86
A47: ВИРУСОЛОГИЯ | B47: 2 | D47: =SUM(B47:C47) -> 2 | E47: 1.09
A48: КЛИНИЧНА ИМУНОЛОГИЯ | D48: 0 | E48: 0
A49: ТРАНСФУЗИОННА ХЕМАТОЛОГИЯ – ИМУНОХЕМАТОЛОГИЧНИ ИЗСЛЕДВАНИЯ | C49: 1 | D49: 1 | E49: 0.55
A50: КЛИНИЧНА ЛАБОРАТОРИЯ | B50: 7 | C50: 2 | D50: 9 | E50: 4.92
A51: КЛИНИЧНА МИКРОБИОЛОГИЯ | B51: 4 | D51: 4 | E51: 2.19
A52: МЕДИЦИНСКА ПАРАЗИТОЛОГИЯ | B52: 1 | D52: 1 | E52: 0.55
A53: ОБЩА И КЛИНИЧНА ПАТОЛОГИЯ | B53: 1 | D53: 1 | E53: 0.55
A54: ОБРАЗНА ДИАГНОСТИКА | B54: 10 | C54: 1 | D54: 11 | E54: 6.02
A55: ОБЩ БРОЙ ЛЕКАРИ | B55: =SUM(,B46,B5) -> 274 | C55: =SUM(,C46,C5) -> 88 | D55: 362 | E55: 198.02
A56: ЛЕКАРИ ПО ДЕНТАЛНА МЕДИЦИНА ПО СПЕЦИАЛНОСТИ | B56: =SUM(B57:B65) -> 62 | C56: =SUM(C57:C65) -> 0 | D56: 62 | E56: 33.92
A57: ОБЩА ДЕНТАЛНА МЕДИЦИНА | B57: 61 | D57: 61 | E57: 33.37
A58: ОРТОДОНТИЯ | D58: 0 | E58: 0
A59: ПРОТЕТИЧНА ДЕНТАЛНА МЕДИЦИНА | D59: 0 | E59: 0
A60: ПАРОДОНТОЛОГИЯ И ЗАБОЛЯВАНИЯ НА ОРАЛНАТА ЛИГАВИЦА | D60: 0 | E60: 0
A61: ДЕТСКА ДЕНТАЛНА МЕДИЦИНА | D61: 0 | E61: 0
A62: ОПЕРАТИВНО ЗЪБОЛЕЧЕНИЕ И ЕНДОДОНТИЯ | D62: 0 | E62: 0
A63: ОРАЛНА ХИРУРГИЯ | B63: 1 | D63: 1 | E63: 0.55
A64: ДЕНТАЛНА КЛИНИЧНА АЛЕРГОЛОГИЯ | D64: 0 | E64: 0
A65: ДЕНТАЛНА ОБРАЗНА ДИАГНОСТИКА | D65: 0 | E65: 0
A66: ДЕНТАЛНИ ЛЕКАРИ БЕЗ СПЕЦИАЛНОСТ | B66: 69 | D66: 69 | E66: 37.74

Sheet IV_2
A1: =I_1!$A$1 -> ДОБРИЧ | B1: =VLOOKUP($A$1,I_1!$A$6:$C$299,3,0) -> 182,808 | E1: Обратно към УКАЗАНИЯТА
A2: РАЗДЕЛ IV. БРОЙ НА ПРАКТИКУВАЩИТЕ ЛЕКАРИ, ЛЕКАРИ ПО ДЕНТАЛНА МЕДИЦИНА ПО СПЕЦИАЛНОСТИ И СПЕЦИАЛИСТИТЕ ОТ ПРОФЕСИОНАЛНО НАПРАВЛЕНИЕ „ЗДРАВНИ ГРИЖИ“ В ИЗВЪНБОЛНИЧНАТА МЕДИЦИНСКА ПОМОЩ
E3: Таблица 2. Брой на специалистите от професионално направление „Здравни грижи“
A4: СПЕЦИАЛНОСТ | B4: Брой в ПИМП | C4: Брой в СИМП | D4: ОБЩО | E4: на 100 хил. души
A5: МЕДИЦИНСКИ СЕСТРИ | B5: 67 | C5: 59 | D5: =SUM(B5:C5) -> 126 | E5: =D5/($B$1/100000) -> 68.92
A6: АКУШЕРКИ | B6: 9 | C6: 6 | D6: 15 | E6: 8.21
A7: ФЕЛДШЕРИ | B7: 7 | C7: 1 | D7: 8 | E7: 4.38
A8: РЕХАБИЛИТАТОРИ | C8: 18 | D8: 18 | E8: 9.85
A9: КЛИНИЧНИ ЛАБОРАНТИ | B9: 3 | C9: 26 | D9: 29 | E9: 15.86
A10: РЕНТГЕНОВИ ЛАБОРАНТИ | C10: 7 | D10: 7 | E10: 3.83
A11: ОБЩ БРОЙ СПЕЦИАЛИСТИ ПО ЗДРАВНИ ГРИЖИ | B11: =SUM(B5:B10) -> 86 | C11: =SUM(C5:C10) -> 117 | D11: =SUM(D5:D10) -> 203 | E11: 111.05

Sheet V_1
B1: =I_1!$A$1 -> ДОБРИЧ | C1: =VLOOKUP($B$1,I_1!$A$6:$C$299,3,0) -> 182,808 | F1: Обратно към УКАЗАНИЯТА
B2: РАЗДЕЛ V. БРОЙ НА СЪЩЕСТВУВАЩИТЕ ЛЕГЛА ЗА БОЛНИЧНО ЛЕЧЕНИЕ И ОСЪЩЕСТВЯВАНИТЕ МЕДИЦИНСКИ ДЕЙНОСТИ ПО ВИДОВЕ И РАЗПРЕДЕЛЕНИЕТО ИМ ПО ЛЕЧЕБНИ ЗАВЕДЕНИЯ И ПО НИВА НА КОМПЕТЕНТНОСТ НА СЪОТВЕТНИТЕ СТРУКТУРИ
F3: Таблица 1. Брой на съществуващите легла за болнично лечение по видове
B4: ВИДОВЕ ЛЕГЛА | C4: ="В ЛЗ за активно лечение"&CHAR(10)&"/МБАЛ,СБАЛ,КОЦ,ЦПЗ,ЦКВЗ/"&CHAR(10)&V_2a!D2 -> В ЛЗ за активно лечение /МБАЛ,СБАЛ,КОЦ,ЦПЗ,ЦКВЗ/ 4 | D4: ="В други ЛЗ"&CHAR(10)&"/БПЛР,БПЛ,СБР,ДБП/"&CHAR(10)&V_2a!E2 -> В други ЛЗ /БПЛР,БПЛ,СБР,ДБП/ 2 | E4: ОБЩО | F4: на 1000 души
B5: АКТИВНИ | C5: =SUM(C6:C10) -> 454 | D5: =SUM(D6:D10) -> 0 | E5: =SUM(E6:E10) -> 454 | F5: =E5/($C$1/1000) -> 2.48
A6: 1 | B6: ИНТЕНЗИВНИ | C6: =SUMIF(V_2a!$B$6:$B$58,V_1!$A6,V_2a!$D$6:$D$58) -> 8 | D6: =SUMIF(V_2a!$B$6:$B$58,V_1!$A6,V_2a!$E$6:$E$58) -> 0 | E6: =SUM(C6:D6) -> 8 | F6: =E6/($C$1/1000) -> 0.04
A7: 2 | B7: ТЕРАПЕВТИЧНИ | C7: =SUMIF(V_2a!$B$6:$B$58,V_1!$A7,V_2a!$D$6:$D$58) -> 236 | D7: =SUMIF(V_2a!$B$6:$B$58,V_1!$A7,V_2a!$E$6:$E$58) -> 0 | E7: =SUM(C7:D7) -> 236 | F7: 1.29
A8: 3 | B8: ХИРУРГИЧНИ | C8: =SUMIF(V_2a!$B$6:$B$58,V_1!$A8,V_2a!$D$6:$D$58) -> 91 | D8: =SUMIF(V_2a!$B$6:$B$58,V_1!$A8,V_2a!$E$6:$E$58) -> 0 | E8: 91 | F8: 0.50
A9: 4 | B9: ПЕДИАТРИЧНИ | C9: =SUMIF(V_2a!$B$6:$B$58,V_1!$A9,V_2a!$D$6:$D$58) -> 71 | D9: =SUMIF(V_2a!$B$6:$B$58,V_1!$A9,V_2a!$E$6:$E$58) -> 0 | E9: 71 | F9: 0.39
A10: 5 | B10: АКУШЕРО-ГИНЕКОЛОГИЧНИ | C10: =SUMIF(V_2a!$B$6:$B$58,V_1!$A10,V_2a!$D$6:$D$58) -> 48 | D10: =SUMIF(V_2a!$B$6:$B$58,V_1!$A10,V_2a!$E$6:$E$58) -> 0 | E10: 48 | F10: 0.26
B11: ДРУГИ | C11: =SUM(C12:C14) -> 108 | D11: =SUM(D12:D14) -> 150 | E11: =SUM(E12:E14) -> 258 | F11: 1.41
A12: 6 | B12: ДЪЛГОСРОЧНИ ГРИЖИ /ПРОДЪЛЖИТЕЛНО ЛЕЧЕНИЕ И ПАЛИАТИВНИ ГРИЖИ/ | C12: =SUMIF(V_2a!$B$6:$B$58,V_1!$A12,V_2a!$D$6:$D$58) -> 0 | D12: =SUMIF(V_2a!$B$6:$B$58,V_1!$A12,V_2a!$E$6:$E$58) -> 0 | E12: 0 | F12: 0
A13: 7 | B13: ПСИХИАТРИЧНИ | C13: =SUMIF(V_2a!$B$6:$B$58,V_1!$A13,V_2a!$D$6:$D$58) -> 90 | D13: =SUMIF(V_2a!$B$6:$B$58,V_1!$A13,V_2a!$E$6:$E$58) -> 90 | E13: 180 | F13: 0.98
A14: 8 | B14: ФИЗИОТЕРАПИЯ И РЕХАБИЛИТАЦИЯ | C14: =SUMIF(V_2a!$B$6:$B$58,V_1!$A14,V_2a!$D$6:$D$58) -> 18 | D14: =SUMIF(V_2a!$B$6:$B$58,V_1!$A14,V_2a!$E$6:$E$58) -> 60 | E14: 78 | F14: 0.43
B15: ОБЩО | C15: =SUM(C11,C5) -> 562 | D15: =SUM(D11,D5) -> 150 | E15: =SUM(E11,E5) -> 712 | F15: 3.89

Sheet V_2
B1: =I_1!$A$1 -> ДОБРИЧ | F1: Обратно към УКАЗАНИЯТА
B2: РАЗДЕЛ V. БРОЙ НА СЪЩЕСТВУВАЩИТЕ ЛЕГЛА ЗА БОЛНИЧНО ЛЕЧЕНИЕ И ОСЪЩЕСТВЯВАНИТЕ МЕДИЦИНСКИ ДЕЙНОСТИ ПО ВИДОВЕ И РАЗПРЕДЕЛЕНИЕТО ИМ ПО ЛЕЧЕБНИ ЗАВЕДЕНИЯ И ПО НИВА НА КОМПЕТЕНТНОСТ НА СЪОТВЕТНИТЕ СТРУКТУРИ
F3: Таблица 2. Осъществявани медицински дейности по видове, лечебни заведения и нива на компетентност
C4: ОБЩО ЗА ОБЛАСТТА
B5: Медицински дейности по видове | C5: I ниво | D5: II ниво | E5: III ниво | F5: ОБЩО
B6: Общо легла | C6: =SUM(C7,C9,C27,C40,C52,C56) -> 329 | D6: =SUM(D7,D9,D27,D40,D52,D56) -> 298 | E6: =SUM(E7,E9,E27,E40,E52,E56) -> 85 | F6: =SUM(C6:E6) -> 712
A7: 1 | B7: Интензивни | C7: =SUM(C8) -> 0 | D7: =SUM(D8) -> 0 | E7: =SUM(E8) -> 8 | F7: =SUM(F8) -> 8
A8: 2 | B8: АНЕСТЕЗИОЛОГИЯ И ИНТЕНЗИВНО ЛЕЧЕНИЕ | C8: =SUMPRODUCT((V_2a!$A$6:$A$76=V_2!$A8)*(V_2a!$F$3:AO$3=V_2!C$5)*(V_2a!$F6:AO6)) -> 0 | D8: =SUMPRODUCT((V_2a!$A$6:$A$76=V_2!$A8)*(V_2a!$F$3:AP$3=V_2!D$5)*(V_2a!$F6:AP6)) -> 0 | E8: =SUMPRODUCT((V_2a!$A$6:$A$76=V_2!$A8)*(V_2a!$F$3:AQ$3=V_2!E$5)*(V_2a!$F6:AQ6)) -> 8 | F8: =SUM(C8:E8) -> 8
A9: 3 | B9: Терапевтични | C9: =SUM(C10:C26) -> 69 | D9: =SUM(D10:D26) -> 137 | E9: =SUM(E10:E26) -> 30 | F9: =SUM(F10:F26) -> 236
A10: 4 | B10: ВЪТРЕШНИ БОЛЕСТИ - НЕПРОФИЛИРАНИ | C10: =SUMPRODUCT((V_2a!$A$6:$A$76=V_2!$A10)*(V_2a!$F$3:AO$3=V_2!C$5)*(V_2a!$F8:AO8)) -> 3 | D10: =SUMPRODUCT((V_2a!$A$6:$A$76=V_2!$A10)*(V_2a!$F$3:AP$3=V_2!D$5)*(V_2a!$F8:AP8)) -> 5 | E10: =SUMPRODUCT((V_2a!$A$6:$A$76=V_2!$A10)*(V_2a!$F$3:AQ$3=V_2!E$5)*(V_2a!$F8:AQ8)) -> 0 | F10: 8
A11: 5 | B11: ГАСТРОЕНТЕРОЛОГИЯ | C11: =SUMPRODUCT((V_2a!$A$6:$A$76=V_2!$A11)*(V_2a!$F$3:AO$3=V_2!C$5)*(V_2a!$F9:AO9)) -> 0 | D11: =SUMPRODUCT((V_2a!$A$6:$A$76=V_2!$A11)*(V_2a!$F$3:AP$3=V_2!D$5)*(V_2a!$F9:AP9)) -> 20 | E11: =SUMPRODUCT((V_2a!$A$6:$A$76=V_2!$A11)*(V_2a!$F$3:AQ$3=V_2!E$5)*(V_2a!$F9:AQ9)) -> 0 | F11: 20
A12: 6 | B12: ЕНДОКРИНОЛОГИЯ И БОЛЕСТИ НА ОБМЯНАТА | C12: =SUMPRODUCT((V_2a!$A$6:$A$76=V_2!$A12)*(V_2a!$F$3:AO$3=V_2!C$5)*(V_2a!$F10:AO10)) -> 5 | D12: =SUMPRODUCT((V_2a!$A$6:$A$76=V_2!$A12)*(V_2a!$F$3:AP$3=V_2!D$5)*(V_2a!$F10:AP10)) -> 15 | E12: =SUMPRODUCT((V_2a!$A$6:$A$76=V_2!$A12)*(V_2a!$F$3:AQ$3=V_2!E$5)*(V_2a!$F10:AQ10)) -> 0 | F12: 20
A13: 7 | B13: ИНФЕКЦИОЗНИ БОЛЕСТИ | C13: =SUMPRODUCT((V_2a!$A$6:$A$76=V_2!$A13)*(V_2a!$F$3:AO$3=V_2!C$5)*(V_2a!$F11:AO11)) -> 0 | D13: =SUMPRODUCT((V_2a!$A$6:$A$76=V_2!$A13)*(V_2a!$F$3:AP$3=V_2!D$5)*(V_2a!$F11:AP11)) -> 11 | E13: =SUMPRODUCT((V_2a!$A$6:$A$76=V_2!$A13)*(V_2a!$F$3:AQ$3=V_2!E$5)*(V_2a!$F11:AQ11)) -> 0 | F13: 11
A14: 8 | B14: КАРДИОЛОГИЯ | C14: =SUMPRODUCT((V_2a!$A$6:$A$76=V_2!$A14)*(V_2a!$F$3:AO$3=V_2!C$5)*(V_2a!$F12:AO12)) -> 17 | D14: =SUMPRODUCT((V_2a!$A$6:$A$76=V_2!$A14)*(V_2a!$F$3:AP$3=V_2!D$5)*(V_2a!$F12:AP12)) -> 0 | E14: =SUMPRODUCT((V_2a!$A$6:$A$76=V_2!$A14)*(V_2a!$F$3:AQ$3=V_2!E$5)*(V_2a!$F12:AQ12)) -> 30 | F14: 47
A15: 9 | B15: КЛИНИЧНА АЛЕРГОЛОГИЯ | C15: =SUMPRODUCT((V_2a!$A$6:$A$76=V_2!$A15)*(V_2a!$F$3:AO$3=V_2!C$5)*(V_2a!$F13:AO13)) -> 0 | D15: =SUMPRODUCT((V_2a!$A$6:$A$76=V_2!$A15)*(V_2a!$F$3:AP$3=V_2!D$5)*(V_2a!$F13:AP13)) -> 0 | E15: =SUMPRODUCT((V_2a!$A$6:$A$76=V_2!$A15)*(V_2a!$F$3:AQ$3=V_2!E$5)*(V_2a!$F13:AQ13)) -> 0 | F15: 0
A16: 10 | B16: КЛИНИЧНА ИМУНОЛОГИЯ | C16: =SUMPRODUCT((V_2a!$A$6:$A$76=V_2!$A16)*(V_2a!$F$3:AO$3=V_2!C$5)*(V_2a!$F14:AO14)) -> 0 | D16: =SUMPRODUCT((V_2a!$A$6:$A$76=V_2!$A16)*(V_2a!$F$3:AP$3=V_2!D$5)*(V_2a!$F14:AP14)) -> 0 | E16: =SUMPRODUCT((V_2a!$A$6:$A$76=V_2!$A16)*(V_2a!$F$3:AQ$3=V_2!E$5)*(V_2a!$F14:AQ14)) -> 0 | F16: 0
A17: 11 | B17: КЛИНИЧНА ТОКСИКОЛОГИЯ | C17: =SUMPRODUCT((V_2a!$A$6:$A$76=V_2!$A17)*(V_2a!$F$3:AO$3=V_2!C$5)*(V_2a!$F15:AO15)) -> 0 | D17: =SUMPRODUCT((V_2a!$A$6:$A$76=V_2!$A17)*(V_2a!$F$3:AP$3=V_2!D$5)*(V_2a!$F15:AP15)) -> 2 | E17: =SUMPRODUCT((V_2a!$A$6:$A$76=V_2!$A17)*(V_2a!$F$3:AQ$3=V_2!E$5)*(V_2a!$F15:AQ15)) -> 0 | F17: 2
A18: 12 | B18: КЛИНИЧНА ХЕМАТОЛОГИЯ | C18: =SUMPRODUCT((V_2a!$A$6:$A$76=V_2!$A18)*(V_2a!$F$3:AO$3=V_2!C$5)*(V_2a!$F16:AO16)) -> 2 | D18: =SUMPRODUCT((V_2a!$A$6:$A$76=V_2!$A18)*(V_2a!$F$3:AP$3=V_2!D$5)*(V_2a!$F16:AP16)) -> 0 | E18: =SUMPRODUCT((V_2a!$A$6:$A$76=V_2!$A18)*(V_2a!$F$3:AQ$3=V_2!E$5)*(V_2a!$F16:AQ16)) -> 0 | F18: 2
A19: 13 | B19: КОЖНИ И ВЕНЕРИЧЕСКИ БОЛЕСТИ | C19: =SUMPRODUCT((V_2a!$A$6:$A$76=V_2!$A19)*(V_2a!$F$3:AO$3=V_2!C$5)*(V_2a!$F17:AO17)) -> 0 | D19: =SUMPRODUCT((V_2a!$A$6:$A$76=V_2!$A19)*(V_2a!$F$3:AP$3=V_2!D$5)*(V_2a!$F17:AP17)) -> 10 | E19: =SUMPRODUCT((V_2a!$A$6:$A$76=V_2!$A19)*(V_2a!$F$3:AQ$3=V_2!E$5)*(V_2a!$F17:AQ17)) -> 0 | F19: 10
A20: 14 | B20: ЛЪЧЕЛЕЧЕНИЕ | C20: =SUMPRODUCT((V_2a!$A$6:$A$76=V_2!$A20)*(V_2a!$F$3:AO$3=V_2!C$5)*(V_2a!$F18:AO18)) -> 0 | D20: =SUMPRODUCT((V_2a!$A$6:$A$76=V_2!$A20)*(V_2a!$F$3:AP$3=V_2!D$5)*(V_2a!$F18:AP18)) -> 0 | E20: =SUMPRODUCT((V_2a!$A$6:$A$76=V_2!$A20)*(V_2a!$F$3:AQ$3=V_2!E$5)*(V_2a!$F18:AQ18)) -> 0 | F20: 0
A21: 15 | B21: МЕДИЦИНСКА ОНКОЛОГИЯ | C21: =SUMPRODUCT((V_2a!$A$6:$A$76=V_2!$A21)*(V_2a!$F$3:AO$3=V_2!C$5)*(V_2a!$F19:AO19)) -> 0 | D21: =SUMPRODUCT((V_2a!$A$6:$A$76=V_2!$A21)*(V_2a!$F$3:AP$3=V_2!D$5)*(V_2a!$F19:AP19)) -> 10 | E21: =SUMPRODUCT((V_2a!$A$6:$A$76=V_2!$A21)*(V_2a!$F$3:AQ$3=V_2!E$5)*(V_2a!$F19:AQ19)) -> 0 | F21: 10
A22: 16 | B22: НУКЛЕАРНА МЕДИЦИНА | C22: =SUMPRODUCT((V_2a!$A$6:$A$76=V_2!$A22)*(V_2a!$F$3:AO$3=V_2!C$5)*(V_2a!$F20:AO20)) -> 0 | D22: =SUMPRODUCT((V_2a!$A$6:$A$76=V_2!$A22)*(V_2a!$F$3:AP$3=V_2!D$5)*(V_2a!$F20:AP20)) -> 0 | E22: =SUMPRODUCT((V_2a!$A$6:$A$76=V_2!$A22)*(V_2a!$F$3:AQ$3=V_2!E$5)*(V_2a!$F20:AQ20)) -> 0 | F22: 0
A23: 17 | B23: НЕРВНИ БОЛЕСТИ | C23: =SUMPRODUCT((V_2a!$A$6:$A$76=V_2!$A23)*(V_2a!$F$3:AO$3=V_2!C$5)*(V_2a!$F21:AO21)) -> 35 | D23: =SUMPRODUCT((V_2a!$A$6:$A$76=V_2!$A23)*(V_2a!$F$3:AP$3=V_2!D$5)*(V_2a!$F21:AP21)) -> 24 | E23: =SUMPRODUCT((V_2a!$A$6:$A$76=V_2!$A23)*(V_2a!$F$3:AQ$3=V_2!E$5)*(V_2a!$F21:AQ21)) -> 0 | F23: 59
A24: 18 | B24: НЕФРОЛОГИЯ | C24: =SUMPRODUCT((V_2a!$A$6:$A$76=V_2!$A24)*(V_2a!$F$3:AO$3=V_2!C$5)*(V_2a!$F22:AO22)) -> 0 | D24: =SUMPRODUCT((V_2a!$A$6:$A$76=V_2!$A24)*(V_2a!$F$3:AP$3=V_2!D$5)*(V_2a!$F22:AP22)) -> 15 | E24: =SUMPRODUCT((V_2a!$A$6:$A$76=V_2!$A24)*(V_2a!$F$3:AQ$3=V_2!E$5)*(V_2a!$F22:AQ22)) -> 0 | F24: 15
A25: 19 | B25: ПНЕВМОЛОГИЯ И ФТИЗИАТРИЯ | C25: =SUMPRODUCT((V_2a!$A$6:$A$76=V_2!$A25)*(V_2a!$F$3:AO$3=V_2!C$5)*(V_2a!$F23:AO23)) -> 7 | D25: =SUMPRODUCT((V_2a!$A$6:$A$76=V_2!$A25)*(V_2a!$F$3:AP$3=V_2!D$5)*(V_2a!$F23:AP23)) -> 18 | E25: =SUMPRODUCT((V_2a!$A$6:$A$76=V_2!$A25)*(V_2a!$F$3:AQ$3=V_2!E$5)*(V_2a!$F23:AQ23)) -> 0 | F25: 25
A26: 20 | B26: РЕВМАТОЛОГИЯ | C26: =SUMPRODUCT((V_2a!$A$6:$A$76=V_2!$A26)*(V_2a!$F$3:AO$3=V_2!C$5)*(V_2a!$F24:AO24)) -> 0 | D26: =SUMPRODUCT((V_2a!$A$6:$A$76=V_2!$A26)*(V_2a!$F$3:AP$3=V_2!D$5)*(V_2a!$F24:AP24)) -> 7 | E26: =SUMPRODUCT((V_2a!$A$6:$A$76=V_2!$A26)*(V_2a!$F$3:AQ$3=V_2!E$5)*(V_2a!$F24:AQ24)) -> 0 | F26: 7
A27: 21 | B27: Хирургични | C27: =SUM(C28:C39) -> 24 | D27: =SUM(D28:D39) -> 48 | E27: 19 | F27: 91
A28: 22 | B28: ГРЪДНА ХИРУРГИЯ | C28: =SUMPRODUCT((V_2a!$A$6:$A$76=V_2!$A28)*(V_2a!$F$3:AO$3=V_2!C$5)*(V_2a!$F26:AO26)) -> 0 | D28: =SUMPRODUCT((V_2a!$A$6:$A$76=V_2!$A28)*(V_2a!$F$3:AP$3=V_2!D$5)*(V_2a!$F26:AP26)) -> 0 | E28: =SUMPRODUCT((V_2a!$A$6:$A$76=V_2!$A28)*(V_2a!$F$3:AQ$3=V_2!E$5)*(V_2a!$F26:AQ26)) -> 0 | F28: 0
A29: 23 | B29: ДЕТСКА ХИРУРГИЯ | C29: =SUMPRODUCT((V_2a!$A$6:$A$76=V_2!$A29)*(V_2a!$F$3:AO$3=V_2!C$5)*(V_2a!$F27:AO27)) -> 0 | D29: =SUMPRODUCT((V_2a!$A$6:$A$76=V_2!$A29)*(V_2a!$F$3:AP$3=V_2!D$5)*(V_2a!$F27:AP27)) -> 0 | E29: =SUMPRODUCT((V_2a!$A$6:$A$76=V_2!$A29)*(V_2a!$F$3:AQ$3=V_2!E$5)*(V_2a!$F27:AQ27)) -> 0 | F29: 0
A30: 24 | B30: КАРДИОХИРУРГИЯ | C30: =SUMPRODUCT((V_2a!$A$6:$A$76=V_2!$A30)*(V_2a!$F$3:AO$3=V_2!C$5)*(V_2a!$F28:AO28)) -> 0 | D30: =SUMPRODUCT((V_2a!$A$6:$A$76=V_2!$A30)*(V_2a!$F$3:AP$3=V_2!D$5)*(V_2a!$F28:AP28)) -> 0 | E30: =SUMPRODUCT((V_2a!$A$6:$A$76=V_2!$A30)*(V_2a!$F$3:AQ$3=V_2!E$5)*(V_2a!$F28:AQ28)) -> 0 | F30: 0
A31: 25 | B31: ЛИЦЕВО-ЧЕЛЮСТНА ХИРУРГИЯ | C31: =SUMPRODUCT((V_2a!$A$6:$A$76=V_2!$A31)*(V_2a!$F$3:AO$3=V_2!C$5)*(V_2a!$F29:AO29)) -> 0 | D31: =SUMPRODUCT((V_2a!$A$6:$A$76=V_2!$A31)*(V_2a!$F$3:AP$3=V_2!D$5)*(V_2a!$F29:AP29)) -> 0 | E31: =SUMPRODUCT((V_2a!$A$6:$A$76=V_2!$A31)*(V_2a!$F$3:AQ$3=V_2!E$5)*(V_2a!$F29:AQ29)) -> 0 | F31: 0
A32: 26 | B32: НЕВРОХИРУРГИЯ | C32: =SUMPRODUCT((V_2a!$A$6:$A$76=V_2!$A32)*(V_2a!$F$3:AO$3=V_2!C$5)*(V_2a!$F30:AO30)) -> 0 | D32: =SUMPRODUCT((V_2a!$A$6:$A$76=V_2!$A32)*(V_2a!$F$3:AP$3=V_2!D$5)*(V_2a!$F30:AP30)) -> 10 | E32: =SUMPRODUCT((V_2a!$A$6:$A$76=V_2!$A32)*(V_2a!$F$3:AQ$3=V_2!E$5)*(V_2a!$F30:AQ30)) -> 0 | F32: 10
A33: 27 | B33: ОРТОПЕДИЯ И ТРАВМАТОЛОГИЯ | C33: =SUMPRODUCT((V_2a!$A$6:$A$76=V_2!$A33)*(V_2a!$F$3:AO$3=V_2!C$5)*(V_2a!$F31:AO31)) -> 0 | D33: =SUMPRODUCT((V_2a!$A$6:$A$76=V_2!$A33)*(V_2a!$F$3:AP$3=V_2!D$5)*(V_2a!$F31:AP31)) -> 0 | E33: =SUMPRODUCT((V_2a!$A$6:$A$76=V_2!$A33)*(V_2a!$F$3:AQ$3=V_2!E$5)*(V_2a!$F31:AQ31)) -> 19 | F33: 19
A34: 28 | B34: ОЧНИ БОЛЕСТИ | C34: =SUMPRODUCT((V_2a!$A$6:$A$76=V_2!$A34)*(V_2a!$F$3:AO$3=V_2!C$5)*(V_2a!$F32:AO32)) -> 0 | D34: =SUMPRODUCT((V_2a!$A$6:$A$76=V_2!$A34)*(V_2a!$F$3:AP$3=V_2!D$5)*(V_2a!$F32:AP32)) -> 5 | E34: =SUMPRODUCT((V_2a!$A$6:$A$76=V_2!$A34)*(V_2a!$F$3:AQ$3=V_2!E$5)*(V_2a!$F32:AQ32)) -> 0 | F34: 5
A35: 29 | B35: ПЛАСТИЧНО-ВЪЗСТАНОВИТЕЛНА ХИРУРГИЯ | C35: =SUMPRODUCT((V_2a!$A$6:$A$76=V_2!$A35)*(V_2a!$F$3:AO$3=V_2!C$5)*(V_2a!$F33:AO33)) -> 0 | D35: =SUMPRODUCT((V_2a!$A$6:$A$76=V_2!$A35)*(V_2a!$F$3:AP$3=V_2!D$5)*(V_2a!$F33:AP33)) -> 0 | E35: =SUMPRODUCT((V_2a!$A$6:$A$76=V_2!$A35)*(V_2a!$F$3:AQ$3=V_2!E$5)*(V_2a!$F33:AQ33)) -> 0 | F35: 0
A36: 30 | B36: СЪДОВА ХИРУРГИЯ | C36: =SUMPRODUCT((V_2a!$A$6:$A$76=V_2!$A36)*(V_2a!$F$3:AO$3=V_2!C$5)*(V_2a!$F34:AO34)) -> 0 | D36: =SUMPRODUCT((V_2a!$A$6:$A$76=V_2!$A36)*(V_2a!$F$3:AP$3=V_2!D$5)*(V_2a!$F34:AP34)) -> 0 | E36: =SUMPRODUCT((V_2a!$A$6:$A$76=V_2!$A36)*(V_2a!$F$3:AQ$3=V_2!E$5)*(V_2a!$F34:AQ34)) -> 0 | F36: 0
A37: 31 | B37: УРОЛОГИЯ | C37: =SUMPRODUCT((V_2a!$A$6:$A$76=V_2!$A37)*(V_2a!$F$3:AO$3=V_2!C$5)*(V_2a!$F35:AO35)) -> 0 | D37: =SUMPRODUCT((V_2a!$A$6:$A$76=V_2!$A37)*(V_2a!$F$3:AP$3=V_2!D$5)*(V_2a!$F35:AP35)) -> 8 | E37: =SUMPRODUCT((V_2a!$A$6:$A$76=V_2!$A37)*(V_2a!$F$3:AQ$3=V_2!E$5)*(V_2a!$F35:AQ35)) -> 0 | F37: 8
A38: 32 | B38: УШНО-НОСНО-ГЪРЛЕНИ БОЛЕСТИ | C38: =SUMPRODUCT((V_2a!$A$6:$A$76=V_2!$A38)*(V_2a!$F$3:AO$3=V_2!C$5)*(V_2a!$F36:AO36)) -> 0 | D38: =SUMPRODUCT((V_2a!$A$6:$A$76=V_2!$A38)*(V_2a!$F$3:AP$3=V_2!D$5)*(V_2a!$F36:AP36)) -> 5 | E38: =SUMPRODUCT((V_2a!$A$6:$A$76=V_2!$A38)*(V_2a!$F$3:AQ$3=V_2!E$5)*(V_2a!$F36:AQ36)) -> 0 | F38: 5
A39: 33 | B39: ХИРУРГИЯ | C39: =SUMPRODUCT((V_2a!$A$6:$A$76=V_2!$A39)*(V_2a!$F$3:AO$3=V_2!C$5)*(V_2a!$F37:AO37)) -> 24 | D39: =SUMPRODUCT((V_2a!$A$6:$A$76=V_2!$A39)*(V_2a!$F$3:AP$3=V_2!D$5)*(V_2a!$F37:AP37)) -> 20 | E39: =SUMPRODUCT((V_2a!$A$6:$A$76=V_2!$A39)*(V_2a!$F$3:AQ$3=V_2!E$5)*(V_2a!$F37:AQ37)) -> 0 | F39: 44
A40: 34 | B40: Педиатрични | C40: =SUM(C41:C51) -> 26 | D40: =SUM(D41:D51) -> 45 | E40: =SUM(E41:E51) -> 0 | F40: =SUM(F41:F51) -> 71
A41: 35 | B41: НЕОНАТОЛОГИЯ | C41: =SUMPRODUCT((V_2a!$A$6:$A$76=V_2!$A41)*(V_2a!$F$3:AO$3=V_2!C$5)*(V_2a!$F39:AO39)) -> 3 | D41: =SUMPRODUCT((V_2a!$A$6:$A$76=V_2!$A41)*(V_2a!$F$3:AP$3=V_2!D$5)*(V_2a!$F39:AP39)) -> 20 | E41: =SUMPRODUCT((V_2a!$A$6:$A$76=V_2!$A41)*(V_2a!$F$3:AQ$3=V_2!E$5)*(V_2a!$F39:AQ39)) -> 0 | F41: 23
A42: 36 | B42: ПЕДИАТРИЯ | C42: =SUMPRODUCT((V_2a!$A$6:$A$76=V_2!$A42)*(V_2a!$F$3:AO$3=V_2!C$5)*(V_2a!$F40:AO40)) -> 23 | D42: =SUMPRODUCT((V_2a!$A$6:$A$76=V_2!$A42)*(V_2a!$F$3:AP$3=V_2!D$5)*(V_2a!$F40:AP40)) -> 25 | E42: =SUMPRODUCT((V_2a!$A$6:$A$76=V_2!$A42)*(V_2a!$F$3:AQ$3=V_2!E$5)*(V_2a!$F40:AQ40)) -> 0 | F42: 48
A43: 37 | B43: ДЕТСКА ГАСТРОЕНТЕРОЛОГИЯ | C43: =SUMPRODUCT((V_2a!$A$6:$A$76=V_2!$A43)*(V_2a!$F$3:AO$3=V_2!C$5)*(V_2a!$F41:AO41)) -> 0 | D43: =SUMPRODUCT((V_2a!$A$6:$A$76=V_2!$A43)*(V_2a!$F$3:AP$3=V_2!D$5)*(V_2a!$F41:AP41)) -> 0 | E43: =SUMPRODUCT((V_2a!$A$6:$A$76=V_2!$A43)*(V_2a!$F$3:AQ$3=V_2!E$5)*(V_2a!$F41:AQ41)) -> 0 | F43: 0
A44: 38 | B44: ДЕТСКА ЕНДОКРИНОЛОГИЯ И БОЛЕСТИ НА ОБМЯНАТА | C44: =SUMPRODUCT((V_2a!$A$6:$A$76=V_2!$A44)*(V_2a!$F$3:AO$3=V_2!C$5)*(V_2a!$F42:AO42)) -> 0 | D44: =SUMPRODUCT((V_2a!$A$6:$A$76=V_2!$A44)*(V_2a!$F$3:AP$3=V_2!D$5)*(V_2a!$F42:AP42)) -> 0 | E44: =SUMPRODUCT((V_2a!$A$6:$A$76=V_2!$A44)*(V_2a!$F$3:AQ$3=V_2!E$5)*(V_2a!$F42:AQ42)) -> 0 | F44: 0
A45: 39 | B45: ДЕТСКА КАРДИОЛОГИЯ | C45: =SUMPRODUCT((V_2a!$A$6:$A$76=V_2!$A45)*(V_2a!$F$3:AO$3=V_2!C$5)*(V_2a!$F43:AO43)) -> 0 | D45: =SUMPRODUCT((V_2a!$A$6:$A$76=V_2!$A45)*(V_2a!$F$3:AP$3=V_2!D$5)*(V_2a!$F43:AP43)) -> 0 | E45: =SUMPRODUCT((V_2a!$A$6:$A$76=V_2!$A45)*(V_2a!$F$3:AQ$3=V_2!E$5)*(V_2a!$F43:AQ43)) -> 0 | F45: 0
A46: 40 | B46: ДЕТСКА КЛИНИЧНА ХЕМАТОЛОГИЯ И ОНКОЛОГИЯ | C46: =SUMPRODUCT((V_2a!$A$6:$A$76=V_2!$A46)*(V_2a!$F$3:AO$3=V_2!C$5)*(V_2a!$F44:AO44)) -> 0 | D46: =SUMPRODUCT((V_2a!$A$6:$A$76=V_2!$A46)*(V_2a!$F$3:AP$3=V_2!D$5)*(V_2a!$F44:AP44)) -> 0 | E46: =SUMPRODUCT((V_2a!$A$6:$A$76=V_2!$A46)*(V_2a!$F$3:AQ$3=V_2!E$5)*(V_2a!$F44:AQ44)) -> 0 | F46: 0
A47: 41 | B47: ДЕТСКА НЕВРОЛОГИЯ | C47: =SUMPRODUCT((V_2a!$A$6:$A$76=V_2!$A47)*(V_2a!$F$3:AO$3=V_2!C$5)*(V_2a!$F45:AO45)) -> 0 | D47: =SUMPRODUCT((V_2a!$A$6:$A$76=V_2!$A47)*(V_2a!$F$3:AP$3=V_2!D$5)*(V_2a!$F45:AP45)) -> 0 | E47: =SUMPRODUCT((V_2a!$A$6:$A$76=V_2!$A47)*(V_2a!$F$3:AQ$3=V_2!E$5)*(V_2a!$F45:AQ45)) -> 0 | F47: 0
A48: 42 | B48: ДЕТСКА НЕФРОЛОГИЯ И ХЕМОДИАЛИЗА | C48: =SUMPRODUCT((V_2a!$A$6:$A$76=V_2!$A48)*(V_2a!$F$3:AO$3=V_2!C$5)*(V_2a!$F46:AO46)) -> 0 | D48: =SUMPRODUCT((V_2a!$A$6:$A$76=V_2!$A48)*(V_2a!$F$3:AP$3=V_2!D$5)*(V_2a!$F46:AP46)) -> 0 | E48: =SUMPRODUCT((V_2a!$A$6:$A$76=V_2!$A48)*(V_2a!$F$3:AQ$3=V_2!E$5)*(V_2a!$F46:AQ46)) -> 0 | F48: 0
A49: 44 | B49: ДЕТСКА ПНЕВМОЛОГИЯ И ФТИЗИАТРИЯ | C49: =SUMPRODUCT((V_2a!$A$6:$A$76=V_2!$A49)*(V_2a!$F$3:AO$3=V_2!C$5)*(V_2a!$F47:AO47)) -> 0 | D49: =SUMPRODUCT((V_2a!$A$6:$A$76=V_2!$A49)*(V_2a!$F$3:AP$3=V_2!D$5)*(V_2a!$F47:AP47)) -> 0 | E49: =SUMPRODUCT((V_2a!$A$6:$A$76=V_2!$A49)*(V_2a!$F$3:AQ$3=V_2!E$5)*(V_2a!$F47:AQ47)) -> 0 | F49: 0
A50: 45 | B50: ДЕТСКА ПСИХИАТРИЯ | C50: =SUMPRODUCT((V_2a!$A$6:$A$76=V_2!$A50)*(V_2a!$F$3:AO$3=V_2!C$5)*(V_2a!$F48:AO48)) -> 0 | D50: =SUMPRODUCT((V_2a!$A$6:$A$76=V_2!$A50)*(V_2a!$F$3:AP$3=V_2!D$5)*(V_2a!$F48:AP48)) -> 0 | E50: =SUMPRODUCT((V_2a!$A$6:$A$76=V_2!$A50)*(V_2a!$F$3:AQ$3=V_2!E$5)*(V_2a!$F48:AQ48)) -> 0 | F50: 0
A51: 46 | B51: ДЕТСКА РЕВМАТОЛОГИЯ | C51: =SUMPRODUCT((V_2a!$A$6:$A$76=V_2!$A51)*(V_2a!$F$3:AO$3=V_2!C$5)*(V_2a!$F49:AO49)) -> 0 | D51: =SUMPRODUCT((V_2a!$A$6:$A$76=V_2!$A51)*(V_2a!$F$3:AP$3=V_2!D$5)*(V_2a!$F49:AP49)) -> 0 | E51: =SUMPRODUCT((V_2a!$A$6:$A$76=V_2!$A51)*(V_2a!$F$3:AQ$3=V_2!E$5)*(V_2a!$F49:AQ49)) -> 0 | F51: 0
A52: 47 | B52: Акушеро-гинекологични | C52: =SUM(C53:C55) -> 20 | D52: =SUM(D53:D55) -> 0 | E52: 28 | F52: 48
A53: 48 | B53: АКУШЕРСТВО | C53: =SUMPRODUCT((V_2a!$A$6:$A$76=V_2!$A53)*(V_2a!$F$3:AO$3=V_2!C$5)*(V_2a!$F51:AO51)) -> 5 | D53: =SUMPRODUCT((V_2a!$A$6:$A$76=V_2!$A53)*(V_2a!$F$3:AP$3=V_2!D$5)*(V_2a!$F51:AP51)) -> 0 | E53: =SUMPRODUCT((V_2a!$A$6:$A$76=V_2!$A53)*(V_2a!$F$3:AQ$3=V_2!E$5)*(V_2a!$F51:AQ51)) -> 15 | F53: 20
A54: 49 | B54: ГИНЕКОЛОГИЯ | C54: =SUMPRODUCT((V_2a!$A$6:$A$76=V_2!$A54)*(V_2a!$F$3:AO$3=V_2!C$5)*(V_2a!$F52:AO52)) -> 6 | D54: =SUMPRODUCT((V_2a!$A$6:$A$76=V_2!$A54)*(V_2a!$F$3:AP$3=V_2!D$5)*(V_2a!$F52:AP52)) -> 0 | E54: =SUMPRODUCT((V_2a!$A$6:$A$76=V_2!$A54)*(V_2a!$F$3:AQ$3=V_2!E$5)*(V_2a!$F52:AQ52)) -> 8 | F54: 14
A55: 50 | B55: ПАТОЛОГИЧНА БРЕМЕННОСТ | C55: =SUMPRODUCT((V_2a!$A$6:$A$76=V_2!$A55)*(V_2a!$F$3:AO$3=V_2!C$5)*(V_2a!$F53:AO53)) -> 9 | D55: =SUMPRODUCT((V_2a!$A$6:$A$76=V_2!$A55)*(V_2a!$F$3:AP$3=V_2!D$5)*(V_2a!$F53:AP53)) -> 0 | E55: =SUMPRODUCT((V_2a!$A$6:$A$76=V_2!$A55)*(V_2a!$F$3:AQ$3=V_2!E$5)*(V_2a!$F53:AQ53)) -> 5 | F55: 14
A56: 51 | B56: Други | C56: =SUM(C57:C60) -> 190 | D56: =SUM(D57:D60) -> 68 | E56: 0 | F56: 258
A57: 52 | B57: ПСИХИАТРИЯ | C57: =SUMPRODUCT((V_2a!$A$6:$A$76=V_2!$A57)*(V_2a!$F$3:AO$3=V_2!C$5)*(V_2a!$F55:AO55)) -> 180 | D57: =SUMPRODUCT((V_2a!$A$6:$A$76=V_2!$A57)*(V_2a!$F$3:AP$3=V_2!D$5)*(V_2a!$F55:AP55)) -> 0 | E57: =SUMPRODUCT((V_2a!$A$6:$A$76=V_2!$A57)*(V_2a!$F$3:AQ$3=V_2!E$5)*(V_2a!$F55:AQ55)) -> 0 | F57: 180
A58: 53 | B58: ФИЗИКАЛНА И РЕХАБИЛИТАЦИОННА МЕДИЦИНА | C58: =SUMPRODUCT((V_2a!$A$6:$A$76=V_2!$A58)*(V_2a!$F$3:AO$3=V_2!C$5)*(V_2a!$F56:AO56)) -> 10 | D58: =SUMPRODUCT((V_2a!$A$6:$A$76=V_2!$A58)*(V_2a!$F$3:AP$3=V_2!D$5)*(V_2a!$F56:AP56)) -> 68 | E58: =SUMPRODUCT((V_2a!$A$6:$A$76=V_2!$A58)*(V_2a!$F$3:AQ$3=V_2!E$5)*(V_2a!$F56:AQ56)) -> 0 | F58: 78
A59: 54 | B59: ПРОДЪЛЖИТЕЛНО ЛЕЧЕНИЕ | C59: =SUMPRODUCT((V_2a!$A$6:$A$76=V_2!$A59)*(V_2a!$F$3:AO$3=V_2!C$5)*(V_2a!$F57:AO57)) -> 0 | D59: =SUMPRODUCT((V_2a!$A$6:$A$76=V_2!$A59)*(V_2a!$F$3:I$3=V_2!D$5)*(V_2a!$F57:I57)) -> 0 | E59: =SUMPRODUCT((V_2a!$A$6:$A$76=V_2!$A59)*(V_2a!$F$3:I$3=V_2!E$5)*(V_2a!$F57:I57)) -> 0 | F59: 0
A60: 55 | B60: ПАЛИАТИВНИ ГРИЖИ | C60: =SUMPRODUCT((V_2a!$A$6:$A$76=V_2!$A60)*(V_2a!$F$3:AO$3=V_2!C$5)*(V_2a!$F58:AO58)) -> 0 | D60: =SUMPRODUCT((V_2a!$A$6:$A$76=V_2!$A60)*(V_2a!$F$3:I$3=V_2!D$5)*(V_2a!$F58:I58)) -> 0 | E60: =SUMPRODUCT((V_2a!$A$6:$A$76=V_2!$A60)*(V_2a!$F$3:I$3=V_2!E$5)*(V_2a!$F58:I58)) -> 0 | F60: 0
A61: 56 | B61: Структури без легла | C61: =SUM(C62:C78) -> 36 | D61: =SUM(D62:D78) -> 18 | E61: 1 | F61: 55
A62: 57 | B62: СПЕШНА МЕДИЦИНА | C62: =SUMPRODUCT((V_2a!$A$6:$A$76=V_2!$A62)*(V_2a!$F$3:AO$3=V_2!C$5)*(V_2a!$F60:AO60)) -> 0 | D62: =SUMPRODUCT((V_2a!$A$6:$A$76=V_2!$A62)*(V_2a!$F$3:AP$3=V_2!D$5)*(V_2a!$F60:AP60)) -> 1 | E62: =SUMPRODUCT((V_2a!$A$6:$A$76=V_2!$A62)*(V_2a!$F$3:AQ$3=V_2!E$5)*(V_2a!$F60:AQ60)) -> 0 | F62: 1
A63: 58 | B63: ДИАЛИЗНО ЛЕЧЕНИЕ (БРОЙ ПОСТОВЕ) | C63: =SUMPRODUCT((V_2a!$A$6:$A$76=V_2!$A63)*(V_2a!$F$3:AO$3=V_2!C$5)*(V_2a!$F61:AO61)) -> 0 | D63: =SUMPRODUCT((V_2a!$A$6:$A$76=V_2!$A63)*(V_2a!$F$3:AP$3=V_2!D$5)*(V_2a!$F61:AP61)) -> 13 | E63: =SUMPRODUCT((V_2a!$A$6:$A$76=V_2!$A63)*(V_2a!$F$3:AQ$3=V_2!E$5)*(V_2a!$F61:AQ61)) -> 0 | F63: 13
A64: 59 | B64: ПСИХИАТРИЯ - ДНЕВЕН СТАЦИОНАР (БРОЙ МЕСТА) | C64: =SUMPRODUCT((V_2a!$A$6:$A$76=V_2!$A64)*(V_2a!$F$3:AO$3=V_2!C$5)*(V_2a!$F62:AO62)) -> 30 | D64: =SUMPRODUCT((V_2a!$A$6:$A$76=V_2!$A64)*(V_2a!$F$3:I$3=V_2!D$5)*(V_2a!$F62:I62)) -> 0 | E64: =SUMPRODUCT((V_2a!$A$6:$A$76=V_2!$A64)*(V_2a!$F$3:I$3=V_2!E$5)*(V_2a!$F62:I62)) -> 0 | F64: 30
A65: 60 | B65: ЛЪЧЕЛЕЧЕНИЕ | C65: =SUMPRODUCT((V_2a!$A$6:$A$76=V_2!$A65)*(V_2a!$F$3:AO$3=V_2!C$5)*(V_2a!$F63:AO63)) -> 0 | D65: =SUMPRODUCT((V_2a!$A$6:$A$76=V_2!$A65)*(V_2a!$F$3:AP$3=V_2!D$5)*(V_2a!$F63:AP63)) -> 0 | E65: =SUMPRODUCT((V_2a!$A$6:$A$76=V_2!$A65)*(V_2a!$F$3:AQ$3=V_2!E$5)*(V_2a!$F63:AQ63)) -> 0 | F65: 0
A66: 61 | B66: НУКЛЕАРНА МЕДИЦИНА | C66: =SUMPRODUCT((V_2a!$A$6:$A$76=V_2!$A66)*(V_2a!$F$3:AO$3=V_2!C$5)*(V_2a!$F64:AO64)) -> 0 | D66: =SUMPRODUCT((V_2a!$A$6:$A$76=V_2!$A66)*(V_2a!$F$3:AP$3=V_2!D$5)*(V_2a!$F64:AP64)) -> 0 | E66: =SUMPRODUCT((V_2a!$A$6:$A$76=V_2!$A66)*(V_2a!$F$3:AQ$3=V_2!E$5)*(V_2a!$F64:AQ64)) -> 0 | F66: 0
A67: 62 | B67: ФИЗИКАЛНА И РЕХАБИЛИТАЦИОННА МЕДИЦИНА | C67: =SUMPRODUCT((V_2a!$A$6:$A$76=V_2!$A67)*(V_2a!$F$3:AO$3=V_2!C$5)*(V_2a!$F65:AO65)) -> 1 | D67: =SUMPRODUCT((V_2a!$A$6:$A$76=V_2!$A67)*(V_2a!$F$3:AP$3=V_2!D$5)*(V_2a!$F65:AP65)) -> 0 | E67: =SUMPRODUCT((V_2a!$A$6:$A$76=V_2!$A67)*(V_2a!$F$3:AQ$3=V_2!E$5)*(V_2a!$F65:AQ65)) -> 0 | F67: 1
A68: 63 | B68: ВИРУСОЛОГИЧНА ЛАБОРАТОРИЯ | C68: =SUMPRODUCT((V_2a!$A$6:$A$76=V_2!$A68)*(V_2a!$F$3:AO$3=V_2!C$5)*(V_2a!$F66:AO66)) -> 0 | D68: =SUMPRODUCT((V_2a!$A$6:$A$76=V_2!$A68)*(V_2a!$F$3:AP$3=V_2!D$5)*(V_2a!$F66:AP66)) -> 0 | E68: =SUMPRODUCT((V_2a!$A$6:$A$76=V_2!$A68)*(V_2a!$F$3:AQ$3=V_2!E$5)*(V_2a!$F66:AQ66)) -> 0 | F68: 0
A69: 64 | B69: КЛИНИЧНА ЛАБОРАТОРИЯ | C69: =SUMPRODUCT((V_2a!$A$6:$A$76=V_2!$A69)*(V_2a!$F$3:AO$3=V_2!C$5)*(V_2a!$F67:AO67)) -> 1 | D69: =SUMPRODUCT((V_2a!$A$6:$A$76=V_2!$A69)*(V_2a!$F$3:AP$3=V_2!D$5)*(V_2a!$F67:AP67)) -> 2 | E69: =SUMPRODUCT((V_2a!$A$6:$A$76=V_2!$A69)*(V_2a!$F$3:AQ$3=V_2!E$5)*(V_2a!$F67:AQ67)) -> 0 | F69: 3
A70: 65 | B70: ЛАБОРАТОРИЯ ПО КЛИНИЧНА ИМУНОЛОГИЯ | C70: =SUMPRODUCT((V_2a!$A$6:$A$76=V_2!$A70)*(V_2a!$F$3:AO$3=V_2!C$5)*(V_2a!$F68:AO68)) -> 0 | D70: =SUMPRODUCT((V_2a!$A$6:$A$76=V_2!$A70)*(V_2a!$F$3:AP$3=V_2!D$5)*(V_2a!$F68:AP68)) -> 0 | E70: =SUMPRODUCT((V_2a!$A$6:$A$76=V_2!$A70)*(V_2a!$F$3:AQ$3=V_2!E$5)*(V_2a!$F68:AQ68)) -> 0 | F70: 0
A71: 66 | B71: МЕДИЦИНСКА ГЕНЕТИКА | C71: =SUMPRODUCT((V_2a!$A$6:$A$76=V_2!$A71)*(V_2a!$F$3:AO$3=V_2!C$5)*(V_2a!$F69:AO69)) -> 0 | D71: =SUMPRODUCT((V_2a!$A$6:$A$76=V_2!$A71)*(V_2a!$F$3:I$3=V_2!D$5)*(V_2a!$F69:I69)) -> 0 | E71: =SUMPRODUCT((V_2a!$A$6:$A$76=V_2!$A71)*(V_2a!$F$3:I$3=V_2!E$5)*(V_2a!$F69:I69)) -> 0 | F71: =SUM(C71:E71) -> 0
A72: 67 | B72: МЕДИЦИНСКА ПАРАЗИТОЛОГИЯ | C72: =SUMPRODUCT((V_2a!$A$6:$A$76=V_2!$A72)*(V_2a!$F$3:AO$3=V_2!C$5)*(V_2a!$F70:AO70)) -> 0 | D72: =SUMPRODUCT((V_2a!$A$6:$A$76=V_2!$A72)*(V_2a!$F$3:AP$3=V_2!D$5)*(V_2a!$F70:AP70)) -> 0 | E72: =SUMPRODUCT((V_2a!$A$6:$A$76=V_2!$A72)*(V_2a!$F$3:AQ$3=V_2!E$5)*(V_2a!$F70:AQ70)) -> 0 | F72: 0
A73: 68 | B73: МИКРОБИОЛОГИЧНА ЛАБОРАТОРИЯ | C73: =SUMPRODUCT((V_2a!$A$6:$A$76=V_2!$A73)*(V_2a!$F$3:AO$3=V_2!C$5)*(V_2a!$F71:AO71)) -> 0 | D73: =SUMPRODUCT((V_2a!$A$6:$A$76=V_2!$A73)*(V_2a!$F$3:AP$3=V_2!D$5)*(V_2a!$F71:AP71)) -> 1 | E73: =SUMPRODUCT((V_2a!$A$6:$A$76=V_2!$A73)*(V_2a!$F$3:AQ$3=V_2!E$5)*(V_2a!$F71:AQ71)) -> 0 | F73: 1
A74: 69 | B74: ТОКСИКOЛОГИЧНА ЛАБОРАТОРИЯ | C74: =SUMPRODUCT((V_2a!$A$6:$A$76=V_2!$A74)*(V_2a!$F$3:AO$3=V_2!C$5)*(V_2a!$F72:AO72)) -> 0 | D74: =SUMPRODUCT((V_2a!$A$6:$A$76=V_2!$A74)*(V_2a!$F$3:AP$3=V_2!D$5)*(V_2a!$F72:AP72)) -> 0 | E74: =SUMPRODUCT((V_2a!$A$6:$A$76=V_2!$A74)*(V_2a!$F$3:AQ$3=V_2!E$5)*(V_2a!$F72:AQ72)) -> 0 | F74: 0
A75: 70 | B75: ОБРАЗНА ДИАГНОСТИКА | C75: =SUMPRODUCT((V_2a!$A$6:$A$76=V_2!$A75)*(V_2a!$F$3:AO$3=V_2!C$5)*(V_2a!$F73:AO73)) -> 2 | D75: =SUMPRODUCT((V_2a!$A$6:$A$76=V_2!$A75)*(V_2a!$F$3:AP$3=V_2!D$5)*(V_2a!$F73:AP73)) -> 1 | E75: =SUMPRODUCT((V_2a!$A$6:$A$76=V_2!$A75)*(V_2a!$F$3:AQ$3=V_2!E$5)*(V_2a!$F73:AQ73)) -> 0 | F75: 3
A76: 71 | B76: ТРАНСФУЗИОННА ХЕМАТОЛОГИЯ | C76: =SUMPRODUCT((V_2a!$A$6:$A$76=V_2!$A76)*(V_2a!$F$3:AO$3=V_2!C$5)*(V_2a!$F74:AO74)) -> 0 | D76: =SUMPRODUCT((V_2a!$A$6:$A$76=V_2!$A76)*(V_2a!$F$3:AP$3=V_2!D$5)*(V_2a!$F74:AP74)) -> 0 | E76: =SUMPRODUCT((V_2a!$A$6:$A$76=V_2!$A76)*(V_2a!$F$3:AQ$3=V_2!E$5)*(V_2a!$F74:AQ74)) -> 1 | F76: 1
A77: 72 | B77: ОБЩА И КЛИНИЧНА ПАТОЛОГИЯ | C77: =SUMPRODUCT((V_2a!$A$6:$A$76=V_2!$A77)*(V_2a!$F$3:AO$3=V_2!C$5)*(V_2a!$F75:AO75)) -> 1 | D77: =SUMPRODUCT((V_2a!$A$6:$A$76=V_2!$A77)*(V_2a!$F$3:I$3=V_2!D$5)*(V_2a!$F75:I75)) -> 0 | E77: =SUMPRODUCT((V_2a!$A$6:$A$76=V_2!$A77)*(V_2a!$F$3:I$3=V_2!E$5)*(V_2a!$F75:I75)) -> 0 | F77: 1
A78: 73 | B78: СЪДЕБНА МЕДИЦИНА | C78: =SUMPRODUCT((V_2a!$A$6:$A$76=V_2!$A78)*(V_2a!$F$3:AO$3=V_2!C$5)*(V_2a!$F76:AO76)) -> 1 | D78: =SUMPRODUCT((V_2a!$A$6:$A$76=V_2!$A78)*(V_2a!$F$3:I$3=V_2!D$5)*(V_2a!$F76:I76)) -> 0 | E78: =SUMPRODUCT((V_2a!$A$6:$A$76=V_2!$A78)*(V_2a!$F$3:I$3=V_2!E$5)*(V_2a!$F76:I76)) -> 0 | F78: 1

Sheet V_2a
C1: =I_1!$A$1 -> ДОБРИЧ | D1: 1 | E1: 2 | I1: =IFERROR(VLOOKUP(F2,tbl_HOSP[#Data],8,0),"Моля, изберете ЛЗ от списъка") -> 1 | M1: =IFERROR(VLOOKUP(J2,tbl_HOSP[#Data],8,0),"Моля, изберете ЛЗ от списъка") -> 1 | Q1: =IFERROR(VLOOKUP(N2,tbl_HOSP[#Data],8,0),"Моля, изберете ЛЗ от списъка") -> 1 | U1: =IFERROR(VLOOKUP(R2,tbl_HOSP[#Data],8,0),"Моля, изберете ЛЗ от списъка") -> 1 | Y1: =IFERROR(VLOOKUP(V2,tbl_HOSP[#Data],8,0),"Моля, изберете ЛЗ от списъка") -> 2 | AC1: =IFERROR(VLOOKUP(Z2,tbl_HOSP[#Data],8,0),"Моля, изберете ЛЗ от списъка") -> 2
C2: ="Регистрирали сте "&(COUNTIF(II_ЛЗ!$H:$H,"=1"))&" ЛЗ за активно лечение и "&CHAR(32)&(COUNTIF(II_ЛЗ!$H:$H,"=2"))&" други ЛЗ" -> Регистрирали сте 4 ЛЗ за активно лечение и 2 други ЛЗ | D2: =COUNTIF($F$1:AO$1,D$1) -> 4 | E2: =COUNTIF($F$1:AP$1,E$1) -> 2 | F2: МБАЛ Добрич | J2: МБАЛ Балчик | N2: МБАЛ Каварна | R2: ЦПЗ Добрич | V2: ДПБ Карвуна | Z2: СБР Тузлата
B3: Видове легла | C3: Медицински дейности по видове | D3: ОБЩО | E3: ОБЩО | F3: I ниво | G3: II ниво | H3: III ниво | I3: ОБЩО | J3: I ниво | K3: II ниво | L3: III ниво | M3: ОБЩО | N3: I ниво | O3: II ниво | P3: III ниво | Q3: ОБЩО | R3: I ниво | S3: II ниво | T3: III ниво | U3: ОБЩО | V3: I ниво | W3: II ниво | X3: III ниво | Y3: ОБЩО | Z3: I ниво | AA3: II ниво | AB3: III ниво | AC3: ОБЩО
C4: Общо легла | F4: =SUM(F5,F7,F25,F38,F50,F54) -> 2 | G4: =SUM(G5,G7,G25,G38,G50,G54) -> 233 | H4: =SUM(H5,H7,H25,H38,H50,H54) -> 85 | I4: =SUM(F4:H4) -> 320 | J4: =SUM(J5,J7,J25,J38,J50,J54) -> 87 | K4: =SUM(K5,K7,K25,K38,K50,K54) -> 5 | L4: =SUM(L5,L7,L25,L38,L50,L54) -> 0 | M4: =SUM(J4:L4) -> 92 | N4: =SUM(N5,N7,N25,N38,N50,N54) -> 60 | O4: =SUM(O5,O7,O25,O38,O50,O54) -> 0 | P4: =SUM(P5,P7,P25,P38,P50,P54) -> 0 | Q4: =SUM(N4:P4) -> 60 | R4: =SUM(R5,R7,R25,R38,R50,R54) -> 90 | S4: =SUM(S5,S7,S25,S38,S50,S54) -> 0 | T4: =SUM(T5,T7,T25,T38,T50,T54) -> 0 | U4: =SUM(R4:T4) -> 90 | V4: =SUM(V5,V7,V25,V38,V50,V54) -> 90 | W4: =SUM(W5,W7,W25,W38,W50,W54) -> 0 | X4: =SUM(X5,X7,X25,X38,X50,X54) -> 0 | Y4: =SUM(V4:X4) -> 90 | Z4: =SUM(Z5,Z7,Z25,Z38,Z50,Z54) -> 0 | AA4: =SUM(AA5,AA7,AA25,AA38,AA50,AA54) -> 60 | AB4: =SUM(AB5,AB7,AB25,AB38,AB50,AB54) -> 0 | AC4: =SUM(Z4:AB4) -> 60
A5: 1 | C5: Интензивни | F5: =F6 -> 0 | G5: =G6 -> 0 | H5: =H6 -> 8 | I5: =SUM(F5:H5) -> 8 | J5: =J6 -> 0 | K5: =K6 -> 0 | L5: =L6 -> 0 | M5: =SUM(J5:L5) -> 0 | N5: =N6 -> 0 | O5: =O6 -> 0 | P5: =P6 -> 0 | Q5: =SUM(N5:P5) -> 0 | R5: =R6 -> 0 | S5: =S6 -> 0 | T5: =T6 -> 0 | U5: =SUM(R5:T5) -> 0 | V5: =V6 -> 0 | W5: =W6 -> 0 | X5: =X6 -> 0 | Y5: =SUM(V5:X5) -> 0 | Z5: =Z6 -> 0 | AA5: =AA6 -> 0 | AB5: =AB6 -> 0 | AC5: =SUM(Z5:AB5) -> 0
A6: 2 | B6: 1 | C6: АНЕСТЕЗИОЛОГИЯ И ИНТЕНЗИВНО ЛЕЧЕНИЕ | D6: =SUMIFS($F6:AO6,$F$3:AO$3,D$3,$F$1:AO$1,D$1) -> 8 | E6: =SUMIFS($F6:AP6,$F$3:AP$3,E$3,$F$1:AP$1,E$1) -> 0 | H6: 8 | I6: =SUM(F6:H6) -> 8 | M6: =SUM(J6:L6) -> 0 | Q6: =SUM(N6:P6) -> 0 | U6: =SUM(R6:T6) -> 0 | Y6: =SUM(V6:X6) -> 0 | AC6: =SUM(Z6:AB6) -> 0
A7: 3 | C7: Терапевтични | D7: =SUMIFS($F7:AO7,$F$3:AO$3,D$3,$F$1:AO$1,D$1) -> 236 | E7: =SUMIFS($F7:AP7,$F$3:AP$3,E$3,$F$1:AP$1,E$1) -> 0 | F7: =SUM(F8:F24) -> 2 | G7: =SUM(G8:G24) -> 132 | H7: =SUM(H8:H24) -> 30 | I7: 164 | J7: =SUM(J8:J24) -> 38 | K7: =SUM(K8:K24) -> 5 | L7: =SUM(L8:L24) -> 0 | M7: 43 | N7: =SUM(N8:N24) -> 29 | O7: =SUM(O8:O24) -> 0 | P7: =SUM(P8:P24) -> 0 | Q7: 29 | R7: =SUM(R8:R24) -> 0 | S7: =SUM(S8:S24) -> 0 | T7: =SUM(T8:T24) -> 0 | U7: 0 | V7: =SUM(V8:V24) -> 0 | W7: =SUM(W8:W24) -> 0 | X7: =SUM(X8:X24) -> 0 | Y7: 0 | Z7: =SUM(Z8:Z24) -> 0 | AA7: =SUM(AA8:AA24) -> 0 | AB7: =SUM(AB8:AB24) -> 0 | AC7: 0
A8: 4 | B8: 2 | C8: ВЪТРЕШНИ БОЛЕСТИ - НЕПРОФИЛИРАНИ | D8: =SUMIFS($F8:AO8,$F$3:AO$3,D$3,$F$1:AO$1,D$1) -> 8 | E8: =SUMIFS($F8:AP8,$F$3:AP$3,E$3,$F$1:AP$1,E$1) -> 0 | I8: 0 | K8: 5 | M8: 5 | N8: 3 | Q8: 3 | U8: 0 | Y8: 0 | AC8: 0
A9: 5 | B9: 2 | C9: ГАСТРОЕНТЕРОЛОГИЯ | D9: =SUMIFS($F9:AO9,$F$3:AO$3,D$3,$F$1:AO$1,D$1) -> 20 | E9: =SUMIFS($F9:AP9,$F$3:AP$3,E$3,$F$1:AP$1,E$1) -> 0 | G9: 20 | I9: 20 | M9: 0 | Q9: 0 | U9: 0 | Y9: 0 | AC9: 0
A10: 6 | B10: 2 | C10: ЕНДОКРИНОЛОГИЯ И БОЛЕСТИ НА ОБМЯНАТА | D10: =SUMIFS($F10:AO10,$F$3:AO$3,D$3,$F$1:AO$1,D$1) -> 20 | E10: =SUMIFS($F10:AP10,$F$3:AP$3,E$3,$F$1:AP$1,E$1) -> 0 | G10: 15 | I10: 15 | J10: 5 | M10: 5 | Q10: 0 | U10: 0 | Y10: 0 | AC10: 0
A11: 7 | B11: 2 | C11: ИНФЕКЦИОЗНИ БОЛЕСТИ | D11: =SUMIFS($F11:AO11,$F$3:AO$3,D$3,$F$1:AO$1,D$1) -> 11 | E11: =SUMIFS($F11:AP11,$F$3:AP$3,E$3,$F$1:AP$1,E$1) -> 0 | G11: 11 | I11: 11 | M11: 0 | Q11: 0 | U11: 0 | Y11: 0 | AC11: 0
A12: 8 | B12: 2 | C12: КАРДИОЛОГИЯ | D12: =SUMIFS($F12:AO12,$F$3:AO$3,D$3,$F$1:AO$1,D$1) -> 47 | E12: =SUMIFS($F12:AP12,$F$3:AP$3,E$3,$F$1:AP$1,E$1) -> 0 | H12: 30 | I12: 30 | J12: 8 | M12: 8 | N12: 9 | Q12: 9 | U12: 0 | Y12: 0 | AC12: 0
A13: 9 | B13: 2 | C13: КЛИНИЧНА АЛЕРГОЛОГИЯ | D13: =SUMIFS($F13:AO13,$F$3:AO$3,D$3,$F$1:AO$1,D$1) -> 0 | E13: =SUMIFS($F13:AP13,$F$3:AP$3,E$3,$F$1:AP$1,E$1) -> 0 | I13: 0 | M13: 0 | Q13: 0 | U13: 0 | Y13: 0 | AC13: 0
A14: 10 | B14: 2 | C14: КЛИНИЧНА ИМУНОЛОГИЯ | D14: =SUMIFS($F14:AO14,$F$3:AO$3,D$3,$F$1:AO$1,D$1) -> 0 | E14: =SUMIFS($F14:AP14,$F$3:AP$3,E$3,$F$1:AP$1,E$1) -> 0 | I14: 0 | M14: 0 | Q14: 0 | U14: 0 | Y14: 0 | AC14: 0
A15: 11 | B15: 2 | C15: КЛИНИЧНА ТОКСИКОЛОГИЯ | D15: =SUMIFS($F15:AO15,$F$3:AO$3,D$3,$F$1:AO$1,D$1) -> 2 | E15: =SUMIFS($F15:AP15,$F$3:AP$3,E$3,$F$1:AP$1,E$1) -> 0 | G15: 2 | I15: 2 | M15: 0 | Q15: 0 | U15: 0 | Y15: 0 | AC15: 0
A16: 12 | B16: 2 | C16: КЛИНИЧНА ХЕМАТОЛОГИЯ | D16: =SUMIFS($F16:AO16,$F$3:AO$3,D$3,$F$1:AO$1,D$1) -> 2 | E16: =SUMIFS($F16:AP16,$F$3:AP$3,E$3,$F$1:AP$1,E$1) -> 0 | F16: 2 | I16: 2 | M16: 0 | Q16: 0 | U16: 0 | Y16: 0 | AC16: 0
A17: 13 | B17: 2 | C17: КОЖНИ И ВЕНЕРИЧЕСКИ БОЛЕСТИ | D17: =SUMIFS($F17:AO17,$F$3:AO$3,D$3,$F$1:AO$1,D$1) -> 10 | E17: =SUMIFS($F17:AP17,$F$3:AP$3,E$3,$F$1:AP$1,E$1) -> 0 | G17: 10 | I17: 10 | M17: 0 | Q17: 0 | U17: 0 | Y17: 0 | AC17: 0
A18: 14 | B18: 2 | C18: ЛЪЧЕЛЕЧЕНИЕ | D18: =SUMIFS($F18:AO18,$F$3:AO$3,D$3,$F$1:AO$1,D$1) -> 0 | E18: =SUMIFS($F18:AP18,$F$3:AP$3,E$3,$F$1:AP$1,E$1) -> 0 | I18: 0 | M18: 0 | Q18: 0 | U18: 0 | Y18: 0 | AC18: 0
A19: 15 | B19: 2 | C19: МЕДИЦИНСКА ОНКОЛОГИЯ | D19: =SUMIFS($F19:AO19,$F$3:AO$3,D$3,$F$1:AO$1,D$1) -> 10 | E19: =SUMIFS($F19:AP19,$F$3:AP$3,E$3,$F$1:AP$1,E$1) -> 0 | G19: 10 | I19: 10 | M19: 0 | Q19: 0 | U19: 0 | Y19: 0 | AC19: 0
A20: 16 | B20: 2 | C20: НУКЛЕАРНА МЕДИЦИНА | D20: =SUMIFS($F20:AO20,$F$3:AO$3,D$3,$F$1:AO$1,D$1) -> 0 | E20: =SUMIFS($F20:AP20,$F$3:AP$3,E$3,$F$1:AP$1,E$1) -> 0
A21: 17 | B21: 2 | C21: НЕРВНИ БОЛЕСТИ | D21: =SUMIFS($F21:AO21,$F$3:AO$3,D$3,$F$1:AO$1,D$1) -> 59 | E21: =SUMIFS($F21:AP21,$F$3:AP$3,E$3,$F$1:AP$1,E$1) -> 0 | G21: 24 | I21: 24 | J21: 18 | M21: 18 | N21: 17 | Q21: 17 | U21: 0 | Y21: 0 | AC21: 0
A22: 18 | B22: 2 | C22: НЕФРОЛОГИЯ | D22: =SUMIFS($F22:AO22,$F$3:AO$3,D$3,$F$1:AO$1,D$1) -> 15 | E22: =SUMIFS($F22:AP22,$F$3:AP$3,E$3,$F$1:AP$1,E$1) -> 0 | G22: 15 | I22: 15 | M22: 0 | Q22: 0 | U22: 0 | Y22: 0 | AC22: 0
A23: 19 | B23: 2 | C23: ПНЕВМОЛОГИЯ И ФТИЗИАТРИЯ | D23: =SUMIFS($F23:AO23,$F$3:AO$3,D$3,$F$1:AO$1,D$1) -> 25 | E23: =SUMIFS($F23:AP23,$F$3:AP$3,E$3,$F$1:AP$1,E$1) -> 0 | G23: 18 | I23: 18 | J23: 7 | M23: 7 | Q23: 0 | U23: 0 | Y23: 0 | AC23: 0
A24: 20 | B24: 2 | C24: РЕВМАТОЛОГИЯ | D24: =SUMIFS($F24:AO24,$F$3:AO$3,D$3,$F$1:AO$1,D$1) -> 7 | E24: =SUMIFS($F24:AP24,$F$3:AP$3,E$3,$F$1:AP$1,E$1) -> 0 | G24: 7 | I24: 7 | M24: 0 | Q24: 0 | U24: 0 | Y24: 0 | AC24: 0
A25: 21 | C25: Хирургични | D25: =SUMIFS($F25:AO25,$F$3:AO$3,D$3,$F$1:AO$1,D$1) -> 91 | E25: =SUMIFS($F25:AP25,$F$3:AP$3,E$3,$F$1:AP$1,E$1) -> 0 | F25: =SUM(F26:F37) -> 0 | G25: =SUM(G26:G37) -> 48 | H25: =SUM(H26:H37) -> 19 | I25: 67 | J25: =SUM(J26:J37) -> 14 | K25: =SUM(K26:K37) -> 0 | L25: =SUM(L26:L37) -> 0 | M25: 14 | N25: =SUM(N26:N37) -> 10 | O25: =SUM(O26:O37) -> 0 | P25: =SUM(P26:P37) -> 0 | Q25: 10 | R25: =SUM(R26:R37) -> 0 | S25: =SUM(S26:S37) -> 0 | T25: =SUM(T26:T37) -> 0 | U25: 0 | V25: =SUM(V26:V37) -> 0 | W25: =SUM(W26:W37) -> 0 | X25: =SUM(X26:X37) -> 0 | Y25: 0 | Z25: =SUM(Z26:Z37) -> 0 | AA25: =SUM(AA26:AA37) -> 0 | AB25: =SUM(AB26:AB37) -> 0 | AC25: 0
A26: 22 | B26: 3 | C26: ГРЪДНА ХИРУРГИЯ | D26: =SUMIFS($F26:AO26,$F$3:AO$3,D$3,$F$1:AO$1,D$1) -> 0 | E26: =SUMIFS($F26:AP26,$F$3:AP$3,E$3,$F$1:AP$1,E$1) -> 0 | I26: 0 | M26: 0 | Q26: 0 | U26: 0 | Y26: 0 | AC26: 0
A27: 23 | B27: =B26 -> 3 | C27: ДЕТСКА ХИРУРГИЯ | D27: =SUMIFS($F27:AO27,$F$3:AO$3,D$3,$F$1:AO$1,D$1) -> 0 | E27: =SUMIFS($F27:AP27,$F$3:AP$3,E$3,$F$1:AP$1,E$1) -> 0 | I27: 0 | M27: 0 | Q27: 0 | U27: 0 | Y27: 0 | AC27: 0
A28: 24 | B28: 3 | C28: КАРДИОХИРУРГИЯ | D28: =SUMIFS($F28:AO28,$F$3:AO$3,D$3,$F$1:AO$1,D$1) -> 0 | E28: =SUMIFS($F28:AP28,$F$3:AP$3,E$3,$F$1:AP$1,E$1) -> 0 | I28: 0 | M28: 0 | Q28: 0 | U28: 0 | Y28: 0 | AC28: 0
A29: 25 | B29: 3 | C29: ЛИЦЕВО-ЧЕЛЮСТНА ХИРУРГИЯ | D29: =SUMIFS($F29:AO29,$F$3:AO$3,D$3,$F$1:AO$1,D$1) -> 0 | E29: =SUMIFS($F29:AP29,$F$3:AP$3,E$3,$F$1:AP$1,E$1) -> 0 | I29: 0 | M29: 0 | Q29: 0 | U29: 0 | Y29: 0 | AC29: 0
A30: 26 | B30: 3 | C30: НЕВРОХИРУРГИЯ | D30: =SUMIFS($F30:AO30,$F$3:AO$3,D$3,$F$1:AO$1,D$1) -> 10 | E30: =SUMIFS($F30:AP30,$F$3:AP$3,E$3,$F$1:AP$1,E$1) -> 0 | G30: 10 | I30: 10 | M30: 0 | Q30: 0 | U30: 0 | Y30: 0 | AC30: 0
A31: 27 | B31: 3 | C31: ОРТОПЕДИЯ И ТРАВМАТОЛОГИЯ | D31: =SUMIFS($F31:AO31,$F$3:AO$3,D$3,$F$1:AO$1,D$1) -> 19 | E31: =SUMIFS($F31:AP31,$F$3:AP$3,E$3,$F$1:AP$1,E$1) -> 0 | H31: 19 | I31: 19 | M31: 0 | Q31: 0 | U31: 0 | Y31: 0 | AC31: 0
A32: 28 | B32: 3 | C32: ОЧНИ БОЛЕСТИ | D32: =SUMIFS($F32:AO32,$F$3:AO$3,D$3,$F$1:AO$1,D$1) -> 5 | E32: =SUMIFS($F32:AP32,$F$3:AP$3,E$3,$F$1:AP$1,E$1) -> 0 | G32: 5 | I32: 5 | M32: 0 | Q32: 0 | U32: 0 | Y32: 0 | AC32: 0
A33: 29 | B33: 3 | C33: ПЛАСТИЧНО-ВЪЗСТАНОВИТЕЛНА ХИРУРГИЯ | D33: =SUMIFS($F33:AO33,$F$3:AO$3,D$3,$F$1:AO$1,D$1) -> 0 | E33: =SUMIFS($F33:AP33,$F$3:AP$3,E$3,$F$1:AP$1,E$1) -> 0 | I33: 0 | M33: 0 | Q33: 0 | U33: 0 | Y33: 0 | AC33: 0
A34: 30 | B34: 3 | C34: СЪДОВА ХИРУРГИЯ | D34: =SUMIFS($F34:AO34,$F$3:AO$3,D$3,$F$1:AO$1,D$1) -> 0 | E34: =SUMIFS($F34:AP34,$F$3:AP$3,E$3,$F$1:AP$1,E$1) -> 0 | I34: 0 | M34: 0 | Q34: 0 | U34: 0 | Y34: 0 | AC34: 0
A35: 31 | B35: 3 | C35: УРОЛОГИЯ | D35: =SUMIFS($F35:AO35,$F$3:AO$3,D$3,$F$1:AO$1,D$1) -> 8 | E35: =SUMIFS($F35:AP35,$F$3:AP$3,E$3,$F$1:AP$1,E$1) -> 0 | G35: 8 | I35: 8 | M35: 0 | Q35: 0 | U35: 0 | Y35: 0 | AC35: 0
A36: 32 | B36: 3 | C36: УШНО-НОСНО-ГЪРЛЕНИ БОЛЕСТИ | D36: =SUMIFS($F36:AO36,$F$3:AO$3,D$3,$F$1:AO$1,D$1) -> 5 | E36: =SUMIFS($F36:AP36,$F$3:AP$3,E$3,$F$1:AP$1,E$1) -> 0 | G36: 5 | I36: 5 | M36: 0 | Q36: 0 | U36: 0 | Y36: 0 | AC36: 0
A37: 33 | B37: 3 | C37: ХИРУРГИЯ | D37: =SUMIFS($F37:AO37,$F$3:AO$3,D$3,$F$1:AO$1,D$1) -> 44 | E37: =SUMIFS($F37:AP37,$F$3:AP$3,E$3,$F$1:AP$1,E$1) -> 0 | G37: 20 | I37: 20 | J37: 14 | M37: 14 | N37: 10 | Q37: 10 | U37: 0 | Y37: 0 | AC37: 0
A38: 34 | C38: Педиатрични | D38: =SUMIFS($F38:AO38,$F$3:AO$3,D$3,$F$1:AO$1,D$1) -> 71 | E38: =SUMIFS($F38:AP38,$F$3:AP$3,E$3,$F$1:AP$1,E$1) -> 0 | F38: =SUM(F39:F49) -> 0 | G38: 45 | H38: 0 | I38: 45 | J38: 14 | K38: 0 | L38: 0 | M38: 14 | N38: 12 | O38: 0 | P38: 0 | Q38: 12 | R38: 0 | S38: 0 | T38: 0 | U38: 0 | V38: 0 | W38: 0 | X38: 0 | Y38: 0 | Z38: 0 | AA38: 0 | AB38: 0 | AC38: 0
A39: 35 | B39: 4 | C39: НЕОНАТОЛОГИЯ | D39: =SUMIFS($F39:AO39,$F$3:AO$3,D$3,$F$1:AO$1,D$1) -> 23 | E39: =SUMIFS($F39:AP39,$F$3:AP$3,E$3,$F$1:AP$1,E$1) -> 0 | G39: 20 | I39: =SUM(F39:H39) -> 20 | J39: 2 | M39: =SUM(J39:L39) -> 2 | N39: 1 | Q39: =SUM(N39:P39) -> 1 | U39: =SUM(R39:T39) -> 0 | Y39: =SUM(V39:X39) -> 0 | AC39: =SUM(Z39:AB39) -> 0
A40: 36 | B40: =B39 -> 4 | C40: ПЕДИАТРИЯ | D40: =SUMIFS($F40:AO40,$F$3:AO$3,D$3,$F$1:AO$1,D$1) -> 48 | E40: =SUMIFS($F40:AP40,$F$3:AP$3,E$3,$F$1:AP$1,E$1) -> 0 | G40: 25 | I40: =SUM(F40:H40) -> 25 | J40: 12 | M40: =SUM(J40:L40) -> 12 | N40: 11 | Q40: =SUM(N40:P40) -> 11 | U40: =SUM(R40:T40) -> 0 | Y40: =SUM(V40:X40) -> 0 | AC40: =SUM(Z40:AB40) -> 0
A41: 37 | B41: 4 | C41: ДЕТСКА ГАСТРОЕНТЕРОЛОГИЯ | D41: =SUMIFS($F41:AO41,$F$3:AO$3,D$3,$F$1:AO$1,D$1) -> 0 | E41: =SUMIFS($F41:AP41,$F$3:AP$3,E$3,$F$1:AP$1,E$1) -> 0 | I41: 0 | M41: 0 | Q41: 0 | U41: 0 | Y41: 0 | AC41: 0
A42: 38 | B42: 4 | C42: ДЕТСКА ЕНДОКРИНОЛОГИЯ И БОЛЕСТИ НА ОБМЯНАТА | D42: =SUMIFS($F42:AO42,$F$3:AO$3,D$3,$F$1:AO$1,D$1) -> 0 | E42: =SUMIFS($F42:AP42,$F$3:AP$3,E$3,$F$1:AP$1,E$1) -> 0 | I42: 0 | M42: 0 | Q42: 0 | U42: 0 | Y42: 0 | AC42: 0
A43: 39 | B43: 4 | C43: ДЕТСКА КАРДИОЛОГИЯ | D43: =SUMIFS($F43:AO43,$F$3:AO$3,D$3,$F$1:AO$1,D$1) -> 0 | E43: =SUMIFS($F43:AP43,$F$3:AP$3,E$3,$F$1:AP$1,E$1) -> 0 | I43: 0 | M43: 0 | Q43: 0 | U43: 0 | Y43: 0 | AC43: 0
A44: 40 | B44: 4 | C44: ДЕТСКА КЛИНИЧНА ХЕМАТОЛОГИЯ И ОНКОЛОГИЯ | D44: =SUMIFS($F44:AO44,$F$3:AO$3,D$3,$F$1:AO$1,D$1) -> 0 | E44: =SUMIFS($F44:AP44,$F$3:AP$3,E$3,$F$1:AP$1,E$1) -> 0 | I44: 0 | M44: 0 | Q44: 0 | U44: 0 | Y44: 0 | AC44: 0
A45: 41 | B45: 4 | C45: ДЕТСКА НЕВРОЛОГИЯ | D45: =SUMIFS($F45:AO45,$F$3:AO$3,D$3,$F$1:AO$1,D$1) -> 0 | E45: =SUMIFS($F45:AP45,$F$3:AP$3,E$3,$F$1:AP$1,E$1) -> 0 | I45: 0 | M45: 0 | Q45: 0 | U45: 0 | Y45: 0 | AC45: 0
A46: 42 | B46: 4 | C46: ДЕТСКА НЕФРОЛОГИЯ И ХЕМОДИАЛИЗА | D46: =SUMIFS($F46:AO46,$F$3:AO$3,D$3,$F$1:AO$1,D$1) -> 0 | E46: =SUMIFS($F46:AP46,$F$3:AP$3,E$3,$F$1:AP$1,E$1) -> 0 | I46: 0 | M46: 0 | Q46: 0 | U46: 0 | Y46: 0 | AC46: 0
A47: 44 | B47: 4 | C47: ДЕТСКА ПНЕВМОЛОГИЯ И ФТИЗИАТРИЯ | D47: =SUMIFS($F47:AO47,$F$3:AO$3,D$3,$F$1:AO$1,D$1) -> 0 | E47: =SUMIFS($F47:AP47,$F$3:AP$3,E$3,$F$1:AP$1,E$1) -> 0 | I47: 0 | M47: 0 | Q47: 0 | U47: 0 | Y47: 0 | AC47: 0
A48: 45 | B48: 4 | C48: ДЕТСКА ПСИХИАТРИЯ | D48: =SUMIFS($F48:AO48,$F$3:AO$3,D$3,$F$1:AO$1,D$1) -> 0 | E48: =SUMIFS($F48:AP48,$F$3:AP$3,E$3,$F$1:AP$1,E$1) -> 0 | I48: 0 | M48: 0 | Q48: 0 | U48: 0 | Y48: 0 | AC48: 0
A49: 46 | B49: 4 | C49: ДЕТСКА РЕВМАТОЛОГИЯ | D49: =SUMIFS($F49:AO49,$F$3:AO$3,D$3,$F$1:AO$1,D$1) -> 0 | E49: =SUMIFS($F49:AP49,$F$3:AP$3,E$3,$F$1:AP$1,E$1) -> 0 | I49: 0 | M49: 0 | Q49: 0 | U49: 0 | Y49: 0 | AC49: 0
A50: 47 | C50: Акушеро-гинекологични | D50: =SUMIFS($F50:AO50,$F$3:AO$3,D$3,$F$1:AO$1,D$1) -> 48 | E50: =SUMIFS($F50:AP50,$F$3:AP$3,E$3,$F$1:AP$1,E$1) -> 0 | F50: =SUM(F51:F53) -> 0 | G50: =SUM(G51:G53) -> 0 | H50: =SUM(H51:H53) -> 28 | I50: 28 | J50: =SUM(J51:J53) -> 11 | K50: =SUM(K51:K53) -> 0 | L50: =SUM(L51:L53) -> 0 | M50: 11 | N50: =SUM(N51:N53) -> 9 | O50: =SUM(O51:O53) -> 0 | P50: =SUM(P51:P53) -> 0 | Q50: 9 | R50: =SUM(R51:R53) -> 0 | S50: =SUM(S51:S53) -> 0 | T50: =SUM(T51:T53) -> 0 | U50: 0 | V50: =SUM(V51:V53) -> 0 | W50: =SUM(W51:W53) -> 0 | X50: =SUM(X51:X53) -> 0 | Y50: 0 | Z50: =SUM(Z51:Z53) -> 0 | AA50: =SUM(AA51:AA53) -> 0 | AB50: =SUM(AB51:AB53) -> 0 | AC50: 0
A51: 48 | B51: 5 | C51: АКУШЕРСТВО | D51: =SUMIFS($F51:AO51,$F$3:AO$3,D$3,$F$1:AO$1,D$1) -> 20 | E51: =SUMIFS($F51:AP51,$F$3:AP$3,E$3,$F$1:AP$1,E$1) -> 0 | H51: 15 | I51: 15 | J51: 3 | M51: 3 | N51: 2 | Q51: 2 | U51: 0 | Y51: 0 | AC51: 0
A52: 49 | B52: =B51 -> 5 | C52: ГИНЕКОЛОГИЯ | D52: =SUMIFS($F52:AO52,$F$3:AO$3,D$3,$F$1:AO$1,D$1) -> 14 | E52: =SUMIFS($F52:AP52,$F$3:AP$3,E$3,$F$1:AP$1,E$1) -> 0 | H52: 8 | I52: 8 | J52: 3 | M52: 3 | N52: 3 | Q52: 3 | U52: 0 | Y52: 0 | AC52: 0
A53: 50 | B53: =B52 -> 5 | C53: ПАТОЛОГИЧНА БРЕМЕННОСТ | D53: =SUMIFS($F53:AO53,$F$3:AO$3,D$3,$F$1:AO$1,D$1) -> 14 | E53: =SUMIFS($F53:AP53,$F$3:AP$3,E$3,$F$1:AP$1,E$1) -> 0 | H53: 5 | I53: 5 | J53: 5 | M53: 5 | N53: 4 | Q53: 4 | U53: 0 | Y53: 0 | AC53: 0
A54: 51 | C54: Други | D54: =SUMIFS($F54:AO54,$F$3:AO$3,D$3,$F$1:AO$1,D$1) -> 108 | E54: =SUMIFS($F54:AP54,$F$3:AP$3,E$3,$F$1:AP$1,E$1) -> 150 | F54: =SUM(F55:F58) -> 0 | G54: 8 | H54: 0 | I54: 8 | J54: 10 | K54: 0 | L54: 0 | M54: 10 | N54: 0 | O54: 0 | P54: 0 | Q54: 0 | R54: 90 | S54: 0 | T54: 0 | U54: 90 | V54: 90 | W54: 0 | X54: 0 | Y54: 90 | Z54: 0 | AA54: 60 | AB54: 0 | AC54: 60
A55: 52 | B55: 7 | C55: ПСИХИАТРИЯ | D55: =SUMIFS($F55:AO55,$F$3:AO$3,D$3,$F$1:AO$1,D$1) -> 90 | E55: =SUMIFS($F55:AP55,$F$3:AP$3,E$3,$F$1:AP$1,E$1) -> 90 | I55: 0 | M55: 0 | Q55: 0 | R55: 90 | U55: 90 | V55: 90 | Y55: 90 | AC55: 0
A56: 53 | B56: 8 | C56: ФИЗИКАЛНА И РЕХАБИЛИТАЦИОННА МЕДИЦИНА | D56: =SUMIFS($F56:AO56,$F$3:AO$3,D$3,$F$1:AO$1,D$1) -> 18 | E56: =SUMIFS($F56:AP56,$F$3:AP$3,E$3,$F$1:AP$1,E$1) -> 60 | G56: 8 | I56: 8 | J56: 10 | M56: 10 | Q56: 0 | U56: 0 | Y56: 0 | AA56: 60 | AC56: 60
A57: 54 | B57: 6 | C57: ПРОДЪЛЖИТЕЛНО ЛЕЧЕНИЕ | D57: =SUMIFS($F57:AO57,$F$3:AO$3,D$3,$F$1:AO$1,D$1) -> 0 | E57: =SUMIFS($F57:AP57,$F$3:AP$3,E$3,$F$1:AP$1,E$1) -> 0 | I57: =SUM(F57:H57) -> 0 | M57: =SUM(J57:L57) -> 0 | Q57: =SUM(N57:P57) -> 0 | U57: =SUM(R57:T57) -> 0 | Y57: =SUM(V57:X57) -> 0 | AC57: =SUM(Z57:AB57) -> 0
A58: 55 | B58: 6 | C58: ПАЛИАТИВНИ ГРИЖИ | D58: =SUMIFS($F58:AO58,$F$3:AO$3,D$3,$F$1:AO$1,D$1) -> 0 | E58: =SUMIFS($F58:AP58,$F$3:AP$3,E$3,$F$1:AP$1,E$1) -> 0 | I58: =SUM(F58:H58) -> 0 | M58: =SUM(J58:L58) -> 0 | Q58: =SUM(N58:P58) -> 0 | U58: =SUM(R58:T58) -> 0 | Y58: =SUM(V58:X58) -> 0 | AC58: =SUM(Z58:AB58) -> 0
A59: 56 | C59: Структури без легла | D59: =SUMIFS($F59:AO59,$F$3:AO$3,D$3,$F$1:AO$1,D$1) -> 55 | E59: =SUMIFS($F59:AP59,$F$3:AP$3,E$3,$F$1:AP$1,E$1) -> 0 | F59: =SUM(F60:F76) -> 2 | G59: 17 | H59: 1 | I59: 20 | J59: 1 | K59: 1 | L59: 0 | M59: 2 | N59: 3 | O59: 0 | P59: 0 | Q59: 3 | R59: 30 | S59: 0 | T59: 0 | U59: 30 | V59: 0 | W59: 0 | X59: 0 | Y59: 0 | Z59: 0 | AA59: 0 | AB59: 0 | AC59: 0
A60: 57 | C60: СПЕШНА МЕДИЦИНА | D60: =SUMIFS($F60:AO60,$F$3:AO$3,D$3,$F$1:AO$1,D$1) -> 1 | E60: =SUMIFS($F60:AP60,$F$3:AP$3,E$3,$F$1:AP$1,E$1) -> 0 | G60: 1 | I60: =SUM(F60:H60) -> 1 | M60: =SUM(J60:L60) -> 0 | Q60: =SUM(N60:P60) -> 0 | U60: =SUM(R60:T60) -> 0 | Y60: =SUM(V60:X60) -> 0 | AC60: =SUM(Z60:AB60) -> 0
A61: 58 | C61: ДИАЛИЗНО ЛЕЧЕНИЕ (БРОЙ ПОСТОВЕ) | D61: =SUMIFS($F61:AO61,$F$3:AO$3,D$3,$F$1:AO$1,D$1) -> 13 | E61: =SUMIFS($F61:AP61,$F$3:AP$3,E$3,$F$1:AP$1,E$1) -> 0 | G61: 13 | I61: 13 | M61: 0 | Q61: 0 | U61: 0 | Y61: 0 | AC61: 0
A62: 59 | C62: ПСИХИАТРИЯ - ДНЕВЕН СТАЦИОНАР (БРОЙ МЕСТА) | D62: =SUMIFS($F62:AO62,$F$3:AO$3,D$3,$F$1:AO$1,D$1) -> 30 | E62: =SUMIFS($F62:AP62,$F$3:AP$3,E$3,$F$1:AP$1,E$1) -> 0 | I62: =SUM(F62:H62) -> 0 | M62: =SUM(J62:L62) -> 0 | Q62: =SUM(N62:P62) -> 0 | R62: 30 | U62: =SUM(R62:T62) -> 30 | Y62: =SUM(V62:X62) -> 0 | AC62: =SUM(Z62:AB62) -> 0
A63: 60 | C63: ЛЪЧЕЛЕЧЕНИЕ | D63: =SUMIFS($F63:AO63,$F$3:AO$3,D$3,$F$1:AO$1,D$1) -> 0 | E63: =SUMIFS($F63:AP63,$F$3:AP$3,E$3,$F$1:AP$1,E$1) -> 0 | I63: 0 | M63: 0 | Q63: 0 | U63: 0 | Y63: 0 | AC63: 0
A64: 61 | C64: НУКЛЕАРНА МЕДИЦИНА | D64: =SUMIFS($F64:AO64,$F$3:AO$3,D$3,$F$1:AO$1,D$1) -> 0 | E64: =SUMIFS($F64:AP64,$F$3:AP$3,E$3,$F$1:AP$1,E$1) -> 0 | I64: 0 | M64: 0 | Q64: 0 | U64: 0 | Y64: 0 | AC64: 0
A65: 62 | C65: ФИЗИКАЛНА И РЕХАБИЛИТАЦИОННА МЕДИЦИНА | D65: =SUMIFS($F65:AO65,$F$3:AO$3,D$3,$F$1:AO$1,D$1) -> 1 | E65: =SUMIFS($F65:AP65,$F$3:AP$3,E$3,$F$1:AP$1,E$1) -> 0 | I65: 0 | M65: 0 | N65: 1 | Q65: 1 | U65: 0 | Y65: 0 | AC65: 0
A66: 63 | C66: ВИРУСОЛОГИЧНА ЛАБОРАТОРИЯ | D66: =SUMIFS($F66:AO66,$F$3:AO$3,D$3,$F$1:AO$1,D$1) -> 0 | E66: =SUMIFS($F66:AP66,$F$3:AP$3,E$3,$F$1:AP$1,E$1) -> 0 | I66: 0 | M66: 0 | Q66: 0 | U66: 0 | Y66: 0 | AC66: 0
A67: 64 | C67: КЛИНИЧНА ЛАБОРАТОРИЯ | D67: =SUMIFS($F67:AO67,$F$3:AO$3,D$3,$F$1:AO$1,D$1) -> 3 | E67: =SUMIFS($F67:AP67,$F$3:AP$3,E$3,$F$1:AP$1,E$1) -> 0 | G67: 1 | I67: =SUM(F67:H67) -> 1 | K67: 1 | M67: =SUM(J67:L67) -> 1 | N67: 1 | Q67: =SUM(N67:P67) -> 1 | U67: =SUM(R67:T67) -> 0 | Y67: =SUM(V67:X67) -> 0 | AC67: =SUM(Z67:AB67) -> 0
A68: 65 | C68: ЛАБОРАТОРИЯ ПО КЛИНИЧНА ИМУНОЛОГИЯ | D68: =SUMIFS($F68:AO68,$F$3:AO$3,D$3,$F$1:AO$1,D$1) -> 0 | E68: =SUMIFS($F68:AP68,$F$3:AP$3,E$3,$F$1:AP$1,E$1) -> 0 | I68: 0 | M68: 0 | Q68: 0 | U68: 0 | Y68: 0 | AC68: 0
A69: 66 | C69: МЕДИЦИНСКА ГЕНЕТИКА | D69: =SUMIFS($F69:AO69,$F$3:AO$3,D$3,$F$1:AO$1,D$1) -> 0 | E69: =SUMIFS($F69:AP69,$F$3:AP$3,E$3,$F$1:AP$1,E$1) -> 0 | I69: =SUM(F69:H69) -> 0 | M69: 0 | Q69: 0 | U69: 0 | Y69: 0 | AC69: 0
A70: 67 | C70: МЕДИЦИНСКА ПАРАЗИТОЛОГИЯ | D70: =SUMIFS($F70:AO70,$F$3:AO$3,D$3,$F$1:AO$1,D$1) -> 0 | E70: =SUMIFS($F70:AP70,$F$3:AP$3,E$3,$F$1:AP$1,E$1) -> 0 | I70: 0 | M70: =SUM(J70:L70) -> 0 | Q70: =SUM(N70:P70) -> 0 | U70: =SUM(R70:T70) -> 0 | Y70: =SUM(V70:X70) -> 0 | AC70: =SUM(Z70:AB70) -> 0
A71: 68 | C71: МИКРОБИОЛОГИЧНА ЛАБОРАТОРИЯ | D71: =SUMIFS($F71:AO71,$F$3:AO$3,D$3,$F$1:AO$1,D$1) -> 1 | E71: =SUMIFS($F71:AP71,$F$3:AP$3,E$3,$F$1:AP$1,E$1) -> 0 | G71: 1 | I71: 1 | M71: 0 | Q71: 0 | U71: 0 | Y71: 0 | AC71: 0
A72: 69 | C72: ТОКСИКOЛОГИЧНА ЛАБОРАТОРИЯ | D72: =SUMIFS($F72:AO72,$F$3:AO$3,D$3,$F$1:AO$1,D$1) -> 0 | E72: =SUMIFS($F72:AP72,$F$3:AP$3,E$3,$F$1:AP$1,E$1) -> 0 | I72: 0 | M72: 0 | Q72: 0 | U72: 0 | Y72: 0 | AC72: 0
A73: 70 | C73: ОБРАЗНА ДИАГНОСТИКА | D73: =SUMIFS($F73:AO73,$F$3:AO$3,D$3,$F$1:AO$1,D$1) -> 3 | E73: =SUMIFS($F73:AP73,$F$3:AP$3,E$3,$F$1:AP$1,E$1) -> 0 | G73: 1 | I73: 1 | J73: 1 | M73: 1 | N73: 1 | Q73: 1 | U73: 0 | Y73: 0 | AC73: 0
A74: 71 | C74: ТРАНСФУЗИОННА ХЕМАТОЛОГИЯ | D74: =SUMIFS($F74:AO74,$F$3:AO$3,D$3,$F$1:AO$1,D$1) -> 1 | E74: =SUMIFS($F74:AP74,$F$3:AP$3,E$3,$F$1:AP$1,E$1) -> 0 | H74: 1 | I74: =SUM(F74:H74) -> 1 | M74: =SUM(J74:L74) -> 0 | Q74: =SUM(N74:P74) -> 0 | U74: =SUM(R74:T74) -> 0 | Y74: =SUM(V74:X74) -> 0 | AC74: =SUM(Z74:AB74) -> 0
A75: 72 | C75: ОБЩА И КЛИНИЧНА ПАТОЛОГИЯ | D75: =SUMIFS($F75:AO75,$F$3:AO$3,D$3,$F$1:AO$1,D$1) -> 1 | E75: =SUMIFS($F75:AP75,$F$3:AP$3,E$3,$F$1:AP$1,E$1) -> 0 | F75: 1 | I75: 1 | M75: 0 | Q75: 0 | U75: 0 | Y75: 0 | AC75: 0
A76: 73 | C76: СЪДЕБНА МЕДИЦИНА | D76: =SUMIFS($F76:AO76,$F$3:AO$3,D$3,$F$1:AO$1,D$1) -> 1 | E76: =SUMIFS($F76:AP76,$F$3:AP$3,E$3,$F$1:AP$1,E$1) -> 0 | F76: 1 | I76: 1 | M76: 0 | Q76: 0 | U76: 0 | Y76: 0 | AC76: 0

Sheet VI
A1: =I_1!$A$1 -> ДОБРИЧ
A2: РАЗДЕЛ I. ВИД, БРОЙ И РАЗПРЕДЕЛЕНИЕ НА ИЗВЪРШВАНИТЕ В ОБЛАСТТА ВИСОКОТЕХНОЛОГИЧНИ МЕТОДИ ЗА ДИАГНОСТИКА И ЛЕЧЕНИЕ И НАЛИЧНАТА ЗА ТЯХНОТО ПРИЛАГАНЕ ВИСОКОТЕХНОЛОГИЧНА МЕДИЦИНСКА АПАРАТУРА В ОБЛАСТТА
B3: Таблица 1. Високотехнологични дейности и апаратура по вид, брой и разпределение
A4: Вид високотехнологични дейности | B4: Вид високотехнологична апаратура | C4: Наличен брой | D4: МБАЛ Добрич | E4: МБАЛ Балчик
A5: Позитрон-емисионна томография | B5: PET-CT | C5: =SUM($D5:AF5) -> 0
A6: Емисионна компютърна томография | B6: SPECT-CT | C6: =SUM($D6:AF6) -> 0
A7: Магнитно-резонансна компютърна томография | B7: МРТ ≥ 1,5 Тесла | C7: =SUM($D7:AF7) -> 0
A8: Компютърна томография | B8: Спирален КТ ≥ 32-срезов | C8: =SUM($D8:AF8) -> 0 | D8: 0
A9: Ендоваскуларно лечение, в т.ч. на екстракраниални (коронарни, каротидни, периферни съдове) на интракраниални съдове | B9: Ангиограф | C9: =SUM($D9:AF9) -> 1 | D9: 1
A10: Роботизирана хирургия | B10: Ендоскопска роботизирана система | C10: =SUM($D10:AF10) -> 0
A11: Лъчелечение | B11: Линеен ускорител | C11: =SUM($D11:AF11) -> 0
A12: Лъчелечение с модулиран интензитет | B12: Линеен ускорител с възможности за модулиран интензитет | C12: =SUM($D12:AF12) -> 0
A13: Радиохирурургия | B13: Линеен ускорител или друга апаратура за радихирургия | C13: =SUM($D13:AF13) -> 0
A14: Брахитерапия | B14: Апаратура за брахитерапия | C14: =SUM($D14:AF14) -> 0
A15: Трансплантация на сърце | B15: - | C15: =SUM($D15:AF15) -> 0
A16: Трансплантация на бял дроб | B16: - | C16: =SUM($D16:AF16) -> 0
A17: Трансплантация на черен дроб | B17: - | C17: =SUM($D17:AF17) -> 0
A18: Трансплантация на бъбрек | B18: - | C18: =SUM($D18:AF18) -> 0
A19: Трансплантация на панкреас | B19: - | C19: =SUM($D19:AF19) -> 0
A20: Трансплантация на хемопоетични стволови клетки | B20: - | C20: =SUM($D20:AF20) -> 0
A21: In vitro методи за асистирана репродукция | B21: - | C21: =SUM($D21:AF21) -> 0

Sheet ПРИЛОЖЕНИЕ 2 - 1
B1: =I_1!$A$1 -> ДОБРИЧ | D1: =VLOOKUP($B$1,I_1!$A$6:$C$299,3,0) -> 182,808 | F1: Обратно към УКАЗАНИЯТА
D2: Таблица 1. Предложение за разпределението на брой легла по видове
B3: ВИДОВЕ ЛЕГЛА | C3: ОБЩО ЗА ОБЛАСТТА - предложение | D3: на 1000 души | E3: MAX | F3: Наличности в момента
B4: АКТИВНИ | C4: =SUM(C5:C9) -> 644 | D4: =C4/($D$1/1000) -> 3.52 | E4: =VLOOKUP($B$1,'Справка легла в ЛЗ'!$A:$AA,10,0) -> 710 | F4: =V_1!E5 -> 454
A5: 1 | B5: ИНТЕНЗИВНИ | C5: =SUMIF('ПРИЛОЖЕНИЕ 2 - 2'!A:A,'ПРИЛОЖЕНИЕ 2 - 1'!A5,'ПРИЛОЖЕНИЕ 2 - 2'!F:F) -> 35 | D5: =C5/($D$1/1000) -> 0.19 | E5: =VLOOKUP($B$1,'Справка легла в ЛЗ'!A3:X30,12,0) -> 50 | F5: =V_1!E6 -> 8
A6: 2 | B6: ТЕРАПЕВТИЧНИ | C6: =SUMIF('ПРИЛОЖЕНИЕ 2 - 2'!A:A,'ПРИЛОЖЕНИЕ 2 - 1'!A6,'ПРИЛОЖЕНИЕ 2 - 2'!F:F) -> 337 | D6: 1.84 | E6: =VLOOKUP($B$1,'Справка легла в ЛЗ'!$A:$AA,14,0) -> 426 | F6: =V_1!E7 -> 236
A7: 3 | B7: ХИРУРГИЧНИ | C7: =SUMIF('ПРИЛОЖЕНИЕ 2 - 2'!A:A,'ПРИЛОЖЕНИЕ 2 - 1'!A7,'ПРИЛОЖЕНИЕ 2 - 2'!F:F) -> 134 | D7: 0.73 | E7: =VLOOKUP($B$1,'Справка легла в ЛЗ'!$A:$AA,18,0) -> 178 | F7: =V_1!E8 -> 91
A8: 4 | B8: ПЕДИАТРИЧНИ | C8: =SUMIF('ПРИЛОЖЕНИЕ 2 - 2'!A:A,'ПРИЛОЖЕНИЕ 2 - 1'!A8,'ПРИЛОЖЕНИЕ 2 - 2'!F:F) -> 71 | D8: 0.39 | E8: =VLOOKUP($B$1,'Справка легла в ЛЗ'!$A:$AA,16,0) -> 107 | F8: =V_1!E9 -> 71
A9: 5 | B9: АКУШЕРО-ГИНЕКОЛОГИЧНИ | C9: =SUMIF('ПРИЛОЖЕНИЕ 2 - 2'!A:A,'ПРИЛОЖЕНИЕ 2 - 1'!A9,'ПРИЛОЖЕНИЕ 2 - 2'!F:F) -> 67 | D9: 0.37 | E9: =VLOOKUP($B$1,'Справка легла в ЛЗ'!$A:$AA,20,0) -> 107 | F9: =V_1!E10 -> 48
B10: ДРУГИ | C10: =SUM(C11:C13) -> 428 | D10: 2.34 | F10: =V_1!E11 -> 258
A11: 6 | B11: ДЪЛГОСРОЧНИ ГРИЖИ /ПРОДЪЛЖИТЕЛНО ЛЕЧЕНИЕ И ПАЛИАТИВНИ ГРИЖИ/ | C11: =SUMIF('ПРИЛОЖЕНИЕ 2 - 2'!A:A,'ПРИЛОЖЕНИЕ 2 - 1'!A11,'ПРИЛОЖЕНИЕ 2 - 2'!F:F) -> 140 | D11: 0.77 | E11: =VLOOKUP($B$1,'Справка легла в ЛЗ'!$A:$AA,21,0) -> 140 | F11: =V_1!E12 -> 0
A12: 7 | B12: ПСИХИАТРИЧНИ | C12: =SUMIF('ПРИЛОЖЕНИЕ 2 - 2'!A:A,'ПРИЛОЖЕНИЕ 2 - 1'!A12,'ПРИЛОЖЕНИЕ 2 - 2'!F:F) -> 180 | D12: 0.98 | E12: =VLOOKUP($B$1,'Справка легла в ЛЗ'!$A:$AA,22,0) -> 118 | F12: =V_1!E13 -> 180
A13: 8 | B13: ФИЗИОТЕРАПИЯ И РЕХАБИЛИТАЦИЯ | C13: =SUMIF('ПРИЛОЖЕНИЕ 2 - 2'!A:A,'ПРИЛОЖЕНИЕ 2 - 1'!A13,'ПРИЛОЖЕНИЕ 2 - 2'!F:F) -> 108 | D13: 0.59 | E13: =VLOOKUP($B$1,'Справка легла в ЛЗ'!$A:$AA,23,0) -> 108 | F13: =V_1!E14 -> 78
B14: ОБЩО | C14: =SUM(C10,C4) -> 1,072 | D14: 5.86 | F14: =V_1!E15 -> 712

Sheet ПРИЛОЖЕНИЕ 2 - 2
B1: =I_1!$A$1 -> ДОБРИЧ | N1: Обратно към УКАЗАНИЯТА
F2: Таблица 2. Предложение за разпределението на брой легла по медицински специалности и нива на компетентност
C3: ОБЩО ЗА ОБЛАСТТА - предложение | G3: Макс.легла | H3: Съотношение нива | K3: ОБЩО ЗА ОБЛАСТТА - наличности
A4: Видове легла | B4: Медицински дейности по видове | C4: I ниво | D4: II ниво | E4: III ниво | F4: ОБЩО | H4: I ниво | I4: II ниво | J4: III ниво | K4: I ниво | L4: II ниво | M4: III ниво | N4: ОБЩО
B5: Интензивни | C5: =SUM(C6) -> 0 | D5: =SUM(D6) -> 27 | E5: 8 | F5: 35 | G5: =VLOOKUP(B5,'ПРИЛОЖЕНИЕ 2 - 1'!B:E,4,0) -> 50 | I5: 75% | J5: 25% | K5: =V_2!C7 -> 0 | L5: =V_2!D7 -> 0 | M5: =V_2!E7 -> 8 | N5: =V_2!F7 -> 8
A6: 1 | B6: АНЕСТЕЗИОЛОГИЯ И ИНТЕНЗИВНО ЛЕЧЕНИЕ | D6: 27 | E6: 8 | F6: =SUM(C6:E6) -> 35 | K6: =V_2!C8 -> 0 | L6: =V_2!D8 -> 0 | M6: =V_2!E8 -> 8 | N6: =V_2!F8 -> 8
B7: Терапевтични | C7: =SUM(C8:C24) -> 171 | D7: =SUM(D8:D24) -> 151 | E7: 15 | F7: 337 | G7: =VLOOKUP(B7,'ПРИЛОЖЕНИЕ 2 - 1'!B:E,4,0) -> 426 | H7: 40% | I7: 40% | J7: 20% | K7: =V_2!C9 -> 69 | L7: =V_2!D9 -> 137 | M7: =V_2!E9 -> 30 | N7: =V_2!F9 -> 236
A8: 2 | B8: ВЪТРЕШНИ БОЛЕСТИ - НЕПРОФИЛИРАНИ | C8: 12 | D8: 3 | F8: =SUM(C8:E8) -> 15 | K8: =V_2!C10 -> 3 | L8: =V_2!D10 -> 5 | M8: =V_2!E10 -> 0 | N8: =V_2!F10 -> 8
A9: 2 | B9: ГАСТРОЕНТЕРОЛОГИЯ | C9: 15 | D9: 15 | F9: 30 | K9: =V_2!C11 -> 0 | L9: =V_2!D11 -> 20 | M9: =V_2!E11 -> 0 | N9: =V_2!F11 -> 20
A10: 2 | B10: ЕНДОКРИНОЛОГИЯ И БОЛЕСТИ НА ОБМЯНАТА | C10: 15 | D10: 16 | F10: 31 | K10: =V_2!C12 -> 5 | L10: =V_2!D12 -> 15 | M10: =V_2!E12 -> 0 | N10: =V_2!F12 -> 20
A11: 2 | B11: ИНФЕКЦИОЗНИ БОЛЕСТИ | C11: 10 | D11: 11 | F11: 21 | K11: =V_2!C13 -> 0 | L11: =V_2!D13 -> 11 | M11: =V_2!E13 -> 0 | N11: =V_2!F13 -> 11
A12: 2 | B12: КАРДИОЛОГИЯ | C12: 25 | D12: 15 | E12: 15 | F12: 55 | K12: =V_2!C14 -> 17 | L12: =V_2!D14 -> 0 | M12: =V_2!E14 -> 30 | N12: =V_2!F14 -> 47
A13: 2 | B13: КЛИНИЧНА АЛЕРГОЛОГИЯ | F13: 0 | K13: =V_2!C15 -> 0 | L13: =V_2!D15 -> 0 | M13: =V_2!E15 -> 0 | N13: =V_2!F15 -> 0
A14: 2 | B14: КЛИНИЧНА ИМУНОЛОГИЯ | F14: 0 | K14: =V_2!C16 -> 0 | L14: =V_2!D16 -> 0 | M14: =V_2!E16 -> 0 | N14: =V_2!F16 -> 0
A15: 2 | B15: КЛИНИЧНА ТОКСИКОЛОГИЯ | D15: 7 | F15: 7 | K15: =V_2!C17 -> 0 | L15: =V_2!D17 -> 2 | M15: =V_2!E17 -> 0 | N15: =V_2!F17 -> 2
A16: 2 | B16: КЛИНИЧНА ХЕМАТОЛОГИЯ | C16: 7 | F16: 7 | K16: =V_2!C18 -> 2 | L16: =V_2!D18 -> 0 | M16: =V_2!E18 -> 0 | N16: =V_2!F18 -> 2
A17: 2 | B17: КОЖНИ И ВЕНЕРИЧЕСКИ БОЛЕСТИ | D17: 10 | F17: 10 | K17: =V_2!C19 -> 0 | L17: =V_2!D19 -> 10 | M17: =V_2!E19 -> 0 | N17: =V_2!F19 -> 10
A18: 2 | B18: ЛЪЧЕЛЕЧЕНИЕ | F18: 0 | K18: =V_2!C20 -> 0 | L18: =V_2!D20 -> 0 | M18: =V_2!E20 -> 0 | N18: =V_2!F20 -> 0
A19: 2 | B19: МЕДИЦИНСКА ОНКОЛОГИЯ | C19: 15 | D19: 10 | F19: 25 | K19: =V_2!C21 -> 0 | L19: =V_2!D21 -> 10 | M19: =V_2!E21 -> 0 | N19: =V_2!F21 -> 10
A20: 2 | B20: НУКЛЕАРНА МЕДИЦИНА | F20: 0 | K20: =V_2!C22 -> 0 | L20: =V_2!D22 -> 0 | M20: =V_2!E22 -> 0 | N20: =V_2!F22 -> 0
A21: 2 | B21: НЕРВНИ БОЛЕСТИ | C21: 40 | D21: 24 | F21: 64 | K21: =V_2!C23 -> 35 | L21: =V_2!D23 -> 24 | M21: =V_2!E23 -> 0 | N21: =V_2!F23 -> 59
A22: 2 | B22: НЕФРОЛОГИЯ | C22: 15 | D22: 15 | F22: 30 | K22: =V_2!C24 -> 0 | L22: =V_2!D24 -> 15 | M22: =V_2!E24 -> 0 | N22: =V_2!F24 -> 15
A23: 2 | B23: ПНЕВМОЛОГИЯ И ФТИЗИАТРИЯ | C23: 10 | D23: 18 | F23: 28 | K23: =V_2!C25 -> 7 | L23: =V_2!D25 -> 18 | M23: =V_2!E25 -> 0 | N23: =V_2!F25 -> 25
A24: 2 | B24: РЕВМАТОЛОГИЯ | C24: 7 | D24: 7 | F24: 14 | K24: =V_2!C26 -> 0 | L24: =V_2!D26 -> 7 | M24: =V_2!E26 -> 0 | N24: =V_2!F26 -> 7
B25: Хирургични | C25: =SUM(C26:C37) -> 39 | D25: =SUM(D26:D37) -> 82 | E25: 13 | F25: 134 | G25: =VLOOKUP(B25,'ПРИЛОЖЕНИЕ 2 - 1'!B:E,4,0) -> 178 | H25: 10% | I25: 60% | J25: 30% | K25: =V_2!C27 -> 24 | L25: =V_2!D27 -> 48 | M25: =V_2!E27 -> 19 | N25: =V_2!F27 -> 91
A26: 3 | B26: ГРЪДНА ХИРУРГИЯ | F26: =SUM(C26:E26) -> 0 | K26: =V_2!C28 -> 0 | L26: =V_2!D28 -> 0 | M26: =V_2!E28 -> 0 | N26: =V_2!F28 -> 0
A27: =A26 -> 3 | B27: ДЕТСКА ХИРУРГИЯ | F27: 0 | K27: =V_2!C29 -> 0 | L27: =V_2!D29 -> 0 | M27: =V_2!E29 -> 0 | N27: =V_2!F29 -> 0
A28: 3 | B28: КАРДИОХИРУРГИЯ | F28: 0 | K28: =V_2!C30 -> 0 | L28: =V_2!D30 -> 0 | M28: =V_2!E30 -> 0 | N28: =V_2!F30 -> 0
A29: 3 | B29: ЛИЦЕВО-ЧЕЛЮСТНА ХИРУРГИЯ | F29: 0 | K29: =V_2!C31 -> 0 | L29: =V_2!D31 -> 0 | M29: =V_2!E31 -> 0 | N29: =V_2!F31 -> 0
A30: 3 | B30: НЕВРОХИРУРГИЯ | D30: 10 | F30: 10 | K30: =V_2!C32 -> 0 | L30: =V_2!D32 -> 10 | M30: =V_2!E32 -> 0 | N30: =V_2!F32 -> 10
A31: 3 | B31: ОРТОПЕДИЯ И ТРАВМАТОЛОГИЯ | C31: 3 | D31: 15 | E31: 7 | F31: 25 | K31: =V_2!C33 -> 0 | L31: =V_2!D33 -> 0 | M31: =V_2!E33 -> 19 | N31: =V_2!F33 -> 19
A32: 3 | B32: ОЧНИ БОЛЕСТИ | D32: 7 | F32: 7 | K32: =V_2!C34 -> 0 | L32: =V_2!D34 -> 5 | M32: =V_2!E34 -> 0 | N32: =V_2!F34 -> 5
A33: 3 | B33: ПЛАСТИЧНО-ВЪЗСТАНОВИТЕЛНА ХИРУРГИЯ | F33: 0 | K33: =V_2!C35 -> 0 | L33: =V_2!D35 -> 0 | M33: =V_2!E35 -> 0 | N33: =V_2!F35 -> 0
A34: 3 | B34: СЪДОВА ХИРУРГИЯ | F34: 0 | K34: =V_2!C36 -> 0 | L34: =V_2!D36 -> 0 | M34: =V_2!E36 -> 0 | N34: =V_2!F36 -> 0
A35: 3 | B35: УРОЛОГИЯ | C35: 7 | D35: 13 | F35: 20 | K35: =V_2!C37 -> 0 | L35: =V_2!D37 -> 8 | M35: =V_2!E37 -> 0 | N35: =V_2!F37 -> 8
A36: 3 | B36: УШНО-НОСНО-ГЪРЛЕНИ БОЛЕСТИ | C36: 5 | D36: 7 | F36: 12 | K36: =V_2!C38 -> 0 | L36: =V_2!D38 -> 5 | M36: =V_2!E38 -> 0 | N36: =V_2!F38 -> 5
A37: 3 | B37: ХИРУРГИЯ | C37: 24 | D37: 30 | E37: 6 | F37: 60 | K37: =V_2!C39 -> 24 | L37: =V_2!D39 -> 20 | M37: =V_2!E39 -> 0 | N37: =V_2!F39 -> 44
B38: Педиатрични | C38: =SUM(C39:C49) -> 36 | D38: =SUM(D39:D49) -> 35 | E38: =SUM(E39:E49) -> 0 | F38: =SUM(F39:F49) -> 71 | G38: =VLOOKUP(B38,'ПРИЛОЖЕНИЕ 2 - 1'!B:E,4,0) -> 107 | H38: 50% | I38: 40% | J38: 10% | K38: =V_2!C40 -> 26 | L38: =V_2!D40 -> 45 | M38: =V_2!E40 -> 0 | N38: =V_2!F40 -> 71
A39: 4 | B39: НЕОНАТОЛОГИЯ | C39: 8 | D39: 15 | F39: =SUM(C39:E39) -> 23 | H39: 60% | I39: 30% | J39: 10% | K39: =V_2!C41 -> 3 | L39: =V_2!D41 -> 20 | M39: =V_2!E41 -> 0 | N39: =V_2!F41 -> 23
A40: =A39 -> 4 | B40: ПЕДИАТРИЯ | C40: 28 | D40: 20 | F40: 48 | K40: =V_2!C42 -> 23 | L40: =V_2!D42 -> 25 | M40: =V_2!E42 -> 0 | N40: =V_2!F42 -> 48
A41: 4 | B41: ДЕТСКА ГАСТРОЕНТЕРОЛОГИЯ | F41: 0 | K41: =V_2!C43 -> 0 | L41: =V_2!D43 -> 0 | M41: =V_2!E43 -> 0 | N41: =V_2!F43 -> 0
A42: 4 | B42: ДЕТСКА ЕНДОКРИНОЛОГИЯ И БОЛЕСТИ НА ОБМЯНАТА | F42: 0 | K42: =V_2!C44 -> 0 | L42: =V_2!D44 -> 0 | M42: =V_2!E44 -> 0 | N42: =V_2!F44 -> 0
A43: 4 | B43: ДЕТСКА КАРДИОЛОГИЯ | F43: 0 | K43: =V_2!C45 -> 0 | L43: =V_2!D45 -> 0 | M43: =V_2!E45 -> 0 | N43: =V_2!F45 -> 0
A44: 4 | B44: ДЕТСКА КЛИНИЧНА ХЕМАТОЛОГИЯ И ОНКОЛОГИЯ | F44: 0 | K44: =V_2!C46 -> 0 | L44: =V_2!D46 -> 0 | M44: =V_2!E46 -> 0 | N44: =V_2!F46 -> 0
A45: 4 | B45: ДЕТСКА НЕВРОЛОГИЯ | F45: 0 | K45: =V_2!C47 -> 0 | L45: =V_2!D47 -> 0 | M45: =V_2!E47 -> 0 | N45: =V_2!F47 -> 0
A46: 4 | B46: ДЕТСКА НЕФРОЛОГИЯ И ХЕМОДИАЛИЗА | F46: 0 | K46: =V_2!C48 -> 0 | L46: =V_2!D48 -> 0 | M46: =V_2!E48 -> 0 | N46: =V_2!F48 -> 0
A47: 4 | B47: ДЕТСКА ПНЕВМОЛОГИЯ И ФТИЗИАТРИЯ | F47: 0 | K47: =V_2!C49 -> 0 | L47: =V_2!D49 -> 0 | M47: =V_2!E49 -> 0 | N47: =V_2!F49 -> 0
A48: 4 | B48: ДЕТСКА ПСИХИАТРИЯ | F48: 0 | K48: =V_2!C50 -> 0 | L48: =V_2!D50 -> 0 | M48: =V_2!E50 -> 0 | N48: =V_2!F50 -> 0
A49: 4 | B49: ДЕТСКА РЕВМАТОЛОГИЯ | F49: 0 | K49: =V_2!C51 -> 0 | L49: =V_2!D51 -> 0 | M49: =V_2!E51 -> 0 | N49: =V_2!F51 -> 0
B50: Акушеро-гинекологични | C50: =SUM(C51:C53) -> 42 | D50: =SUM(D51:D53) -> 20 | E50: 5 | F50: 67 | G50: =VLOOKUP(B50,'ПРИЛОЖЕНИЕ 2 - 1'!B:E,4,0) -> 107 | H50: 40% | I50: 50% | J50: 10% | K50: =V_2!C52 -> 20 | L50: =V_2!D52 -> 0 | M50: =V_2!E52 -> 28 | N50: =V_2!F52 -> 48
A51: 5 | B51: АКУШЕРСТВО | C51: 20 | F51: =SUM(C51:E51) -> 20 | K51: =V_2!C53 -> 5 | L51: =V_2!D53 -> 0 | M51: =V_2!E53 -> 15 | N51: =V_2!F53 -> 20
A52: =A51 -> 5 | B52: ГИНЕКОЛОГИЯ | C52: 13 | D52: 15 | E52: 5 | F52: 33 | K52: =V_2!C54 -> 6 | L52: =V_2!D54 -> 0 | M52: =V_2!E54 -> 8 | N52: =V_2!F54 -> 14
A53: =A52 -> 5 | B53: ПАТОЛОГИЧНА БРЕМЕННОСТ | C53: 9 | D53: 5 | F53: 14 | K53: =V_2!C55 -> 9 | L53: =V_2!D55 -> 0 | M53: =V_2!E55 -> 5 | N53: =V_2!F55 -> 14
B54: Други | C54: =SUM(C55:C58) -> 348 | D54: =SUM(D55:D58) -> 80 | E54: 0 | F54: 428 | G54: =SUM(G55:G57) -> 366 | K54: =V_2!C56 -> 190 | L54: =V_2!D56 -> 68 | M54: =V_2!E56 -> 0 | N54: =V_2!F56 -> 258
A55: 7 | B55: ПСИХИАТРИЯ | C55: 180 | F55: =SUM(C55:E55) -> 180 | G55: ='ПРИЛОЖЕНИЕ 2 - 1'!E12 -> 118 | K55: =V_2!C57 -> 180 | L55: =V_2!D57 -> 0 | M55: =V_2!E57 -> 0 | N55: =V_2!F57 -> 180
A56: 8 | B56: ФИЗИКАЛНА И РЕХАБИЛИТАЦИОННА МЕДИЦИНА | C56: 28 | D56: 80 | F56: 108 | G56: ='ПРИЛОЖЕНИЕ 2 - 1'!E13 -> 108 | K56: =V_2!C58 -> 10 | L56: =V_2!D58 -> 68 | M56: =V_2!E58 -> 0 | N56: =V_2!F58 -> 78
A57: 6 | B57: ПРОДЪЛЖИТЕЛНО ЛЕЧЕНИЕ | C57: 140 | F57: 140 | G57: ='ПРИЛОЖЕНИЕ 2 - 1'!E11 -> 140 | K57: =V_2!C59 -> 0 | L57: =V_2!D59 -> 0 | M57: =V_2!E59 -> 0 | N57: =V_2!F59 -> 0
A58: 6 | B58: ПАЛИАТИВНИ ГРИЖИ | F58: 0 | K58: =V_2!C60 -> 0 | L58: =V_2!D60 -> 0 | M58: =V_2!E60 -> 0 | N58: =V_2!F60 -> 0
B59: Структури без легла | C59: =SUM(C60:C76) -> 36 | D59: =SUM(D60:D76) -> 18 | E59: 1 | F59: 55 | K59: =V_2!C61 -> 36 | L59: =V_2!D61 -> 18 | M59: =V_2!E61 -> 1 | N59: =V_2!F61 -> 55
B60: СПЕШНА МЕДИЦИНА | D60: 1 | F60: =SUM(C60:E60) -> 1 | K60: =V_2!C62 -> 0 | L60: =V_2!D62 -> 1 | M60: =V_2!E62 -> 0 | N60: =V_2!F62 -> 1
B61: ДИАЛИЗНО ЛЕЧЕНИЕ (БРОЙ ПОСТОВЕ) | D61: 13 | F61: 13 | K61: =V_2!C63 -> 0 | L61: =V_2!D63 -> 13 | M61: =V_2!E63 -> 0 | N61: =V_2!F63 -> 13
B62: ПСИХИАТРИЯ - ДНЕВЕН СТАЦИОНАР (БРОЙ МЕСТА) | C62: 30 | F62: 30 | K62: =V_2!C64 -> 30 | L62: =V_2!D64 -> 0 | M62: =V_2!E64 -> 0 | N62: =V_2!F64 -> 30
B63: ЛЪЧЕЛЕЧЕНИЕ | F63: 0 | K63: =V_2!C65 -> 0 | L63: =V_2!D65 -> 0 | M63: =V_2!E65 -> 0 | N63: =V_2!F65 -> 0
B64: НУКЛЕАРНА МЕДИЦИНА | F64: 0 | K64: =V_2!C66 -> 0 | L64: =V_2!D66 -> 0 | M64: =V_2!E66 -> 0 | N64: =V_2!F66 -> 0
B65: ФИЗИКАЛНА И РЕХАБИЛИТАЦИОННА МЕДИЦИНА | C65: 1 | F65: 1 | K65: =V_2!C67 -> 1 | L65: =V_2!D67 -> 0 | M65: =V_2!E67 -> 0 | N65: =V_2!F67 -> 1
B66: ВИРУСОЛОГИЧНА ЛАБОРАТОРИЯ | F66: 0 | K66: =V_2!C68 -> 0 | L66: =V_2!D68 -> 0 | M66: =V_2!E68 -> 0 | N66: =V_2!F68 -> 0
B67: КЛИНИЧНА ЛАБОРАТОРИЯ | C67: 1 | D67: 2 | F67: 3 | K67: =V_2!C69 -> 1 | L67: =V_2!D69 -> 2 | M67: =V_2!E69 -> 0 | N67: =V_2!F69 -> 3
B68: ЛАБОРАТОРИЯ ПО КЛИНИЧНА ИМУНОЛОГИЯ | F68: 0 | K68: =V_2!C70 -> 0 | L68: =V_2!D70 -> 0 | M68: =V_2!E70 -> 0 | N68: =V_2!F70 -> 0
B69: МЕДИЦИНСКА ГЕНЕТИКА | F69: 0 | K69: =V_2!C71 -> 0 | L69: =V_2!D71 -> 0 | M69: =V_2!E71 -> 0 | N69: =V_2!F71 -> 0
B70: МЕДИЦИНСКА ПАРАЗИТОЛОГИЯ | F70: 0 | K70: =V_2!C72 -> 0 | L70: =V_2!D72 -> 0 | M70: =V_2!E72 -> 0 | N70: =V_2!F72 -> 0
B71: МИКРОБИОЛОГИЧНА ЛАБОРАТОРИЯ | D71: 1 | F71: 1 | K71: =V_2!C73 -> 0 | L71: =V_2!D73 -> 1 | M71: =V_2!E73 -> 0 | N71: =V_2!F73 -> 1
B72: ТОКСИКOЛОГИЧНА ЛАБОРАТОРИЯ | F72: 0 | K72: =V_2!C74 -> 0 | L72: =V_2!D74 -> 0 | M72: =V_2!E74 -> 0 | N72: =V_2!F74 -> 0
B73: ОБРАЗНА ДИАГНОСТИКА | C73: 2 | D73: 1 | F73: 3 | K73: =V_2!C75 -> 2 | L73: =V_2!D75 -> 1 | M73: =V_2!E75 -> 0 | N73: =V_2!F75 -> 3
B74: ТРАНСФУЗИОННА ХЕМАТОЛОГИЯ | E74: 1 | F74: 1 | K74: =V_2!C76 -> 0 | L74: =V_2!D76 -> 0 | M74: =V_2!E76 -> 1 | N74: =V_2!F76 -> 1
B75: ОБЩА И КЛИНИЧНА ПАТОЛОГИЯ | C75: 1 | F75: 1 | K75: =V_2!C77 -> 1 | L75: =V_2!D77 -> 0 | M75: =V_2!E77 -> 0 | N75: =V_2!F77 -> 1
B76: СЪДЕБНА МЕДИЦИНА | C76: 1 | F76: 1 | K76: =V_2!C78 -> 1 | L76: =V_2!D78 -> 0 | M76: =V_2!E78 -> 0 | N76: =V_2!F78 -> 1

Sheet Справка легла в ЛЗ (hidden)
C1: Брой легла за активно и интензивно лечение при осигуре-ност 4,0 на 1000 население | D1: Интегра-лен кориги-ращ коефици-ент на база здравно - демограф-ски показате-ли | E1: Коригиран брой легла за активно и интензивно лечение чрез интегрален показател на основни здравно-демограф-ски показатели | F1: Коригиращ коефици-ент при използвае-мост на активните и интензивни легла 70% | G1: Коригиран брой легла за активно и интензивно лечение от К2 при използва-емост 70% на активните и интензивни легла | H1: Кориги-ращ коефи-циент за преминали болни за активно интензив-но лечение | I1: Коригиращ брой легла за активно и интензивно лечение от К2 с коригиращ коефи-циент за преминали болни за активно и интензивно лечение | J1: Необходим брой легла за активно и интензивно лечение, съгласно Методиката | K1: ИНТЕНЗИВНИ | M1: ТЕРАПЕВТИЧНИ | O1: ПЕДИАТРИЧНИ | Q1: ХИРУРГИЧНИ | S1: АКУШЕРО-ГИНЕКОЛОГИЧНИ | U1: ДЪЛГОСРОЧНИ ГРИЖИ | V1: ПСИХИАТРИЧНИ | W1: ФИЗИОТЕРАПИЯ И РЕХАБИЛИТАЦИЯ | X1: Общо
A2: Области | B2: население | C2: К1 | D2: S | E2: К2=K1*S | F2: S3 | G2: К4=K2*S3 | H2: S4 | I2: К5=К4*S4 | J2: К6=K4+К5 | K2: 5% | L2: 7% | M2: 50% | N2: 60% | O2: 10% | P2: 15% | Q2: 20% | R2: 25% | S2: 10% | T2: 15% | U2: 13% | V2: 11% | W2: 10%
A3: БЛАГОЕВГРАД | B3: 315,577 | C3: =ROUND((B3/1000)*4,0) -> 1262 | D3: 0.911 | E3: =ROUND(C3*D3,0) -> 1150 | F3: 1.003 | G3: =ROUND(E3*F3,0) -> 1153 | H3: 0.0318 | I3: =ROUND(G3*H3,0) -> 37 | J3: =G3+I3 -> 1190 | K3: =ROUND($J3*K$2,0) -> 60 | L3: 83 | M3: 595 | N3: 714 | O3: 119 | P3: 179 | Q3: 238 | R3: 298 | S3: 119 | T3: 179 | U3: =ROUND($J3/66%*U$2,0) -> 234 | V3: =ROUND($J3/66%*V$2,0) -> 198 | W3: 180 | X3: =SUM(J3,U3:W3) -> 1802
A4: БУРГАС | B4: 414,184 | C4: 1657 | D4: 0.941 | E4: =ROUND(C4*D4,0) -> 1559 | F4: 1.021 | G4: =ROUND(E4*F4,0) -> 1592 | H4: 0.0436 | I4: =ROUND(G4*H4,0) -> 69 | J4: =G4+I4 -> 1661 | K4: 83 | L4: 116 | M4: 831 | N4: 997 | O4: 166 | P4: 249 | Q4: 332 | R4: 415 | S4: 166 | T4: 249 | U4: =ROUND($J4/66%*U$2,0) -> 327 | V4: 277 | W4: 252 | X4: =SUM(J4,U4:W4) -> 2517
A5: ВАРНА | B5: 473,804 | C5: 1895 | D5: 0.92 | E5: 1743 | F5: 1.015 | G5: 1769 | H5: 0.0629 | I5: 111 | J5: 1880 | K5: 94 | L5: 132 | M5: 940 | N5: 1128 | O5: 188 | P5: 282 | Q5: 376 | R5: 470 | S5: 188 | T5: 282 | U5: 370 | V5: 313 | W5: 285 | X5: 2848
A6: ВЕЛИКО ТЪРНОВО | B6: 247,782 | C6: 991 | D6: 0.939 | E6: 931 | F6: 0.845 | G6: 787 | H6: 0.0227 | I6: 18 | J6: 805 | K6: 40 | L6: 56 | M6: 403 | N6: 483 | O6: 81 | P6: 121 | Q6: 161 | R6: 201 | S6: 81 | T6: 121 | U6: 159 | V6: 134 | W6: 122 | X6: 1220
A7: ВИДИН | B7: 93,361 | C7: 373 | D7: 1.156 | E7: 431 | F7: 0.931 | G7: 401 | H7: 0.0075 | I7: 3 | J7: 404 | K7: 20 | L7: 28 | M7: 202 | N7: 242 | O7: 40 | P7: 61 | Q7: 81 | R7: 101 | S7: 40 | T7: 61 | U7: 80 | V7: 67 | W7: 61 | X7: 612
A8: ВРАЦА | B8: 175,169 | C8: 701 | D8: 1.164 | E8: 816 | F8: 0.985 | G8: 804 | H8: 0.026 | I8: 21 | J8: 825 | K8: 41 | L8: 58 | M8: 413 | N8: 495 | O8: 83 | P8: 124 | Q8: 165 | R8: 206 | S8: 83 | T8: 124 | U8: 163 | V8: 138 | W8: 125 | X8: 1251
A9: ГАБРОВО | B9: 116,351 | C9: 465 | D9: 0.905 | E9: 421 | F9: 1.031 | G9: 434 | H9: 0.0162 | I9: 7 | J9: 441 | K9: 22 | L9: 31 | M9: 221 | N9: 265 | O9: 44 | P9: 66 | Q9: 88 | R9: 110 | S9: 44 | T9: 66 | U9: 87 | V9: 74 | W9: 67 | X9: 669
A10: ДОБРИЧ | B10: 182,808 | C10: 731 | D10: 0.924 | E10: 675 | F10: 1.038 | G10: 701 | H10: 0.0125 | I10: 9 | J10: 710 | K10: 36 | L10: 50 | M10: 355 | N10: 426 | O10: 71 | P10: 107 | Q10: 142 | R10: 178 | S10: 71 | T10: 107 | U10: 140 | V10: 118 | W10: 108 | X10: 1076
A11: КЪРДЖАЛИ | B11: 152,053 | C11: 608 | D11: 1.062 | E11: 646 | F11: 0.965 | G11: 623 | H11: 0.0131 | I11: 8 | J11: 631 | K11: 32 | L11: 44 | M11: 316 | N11: 379 | O11: 63 | P11: 95 | Q11: 126 | R11: 158 | S11: 63 | T11: 95 | U11: 124 | V11: 105 | W11: 96 | X11: 956
A12: КЮСТЕНДИЛ | B12: 127,969 | C12: 512 | D12: 1.049 | E12: 537 | F12: 0.921 | G12: 495 | H12: 0.0153 | I12: 8 | J12: 503 | K12: 25 | L12: 35 | M12: 252 | N12: 302 | O12: 50 | P12: 75 | Q12: 101 | R12: 126 | S12: 50 | T12: 75 | U12: 99 | V12: 84 | W12: 76 | X12: 762
A13: ЛОВЕЧ | B13: 133,513 | C13: 534 | D13: 1.097 | E13: 586 | F13: 1.053 | G13: 617 | H13: 0.0148 | I13: 9 | J13: 626 | K13: 31 | L13: 44 | M13: 313 | N13: 376 | O13: 63 | P13: 94 | Q13: 125 | R13: 157 | S13: 63 | T13: 94 | U13: 123 | V13: 104 | W13: 95 | X13: 948
A14: МОНТАНА | B14: 139,350 | C14: 557 | D14: 1.14 | E14: 635 | F14: 1.078 | G14: 685 | H14: 0.0183 | I14: 13 | J14: 698 | K14: 35 | L14: 49 | M14: 349 | N14: 419 | O14: 70 | P14: 105 | Q14: 140 | R14: 175 | S14: 70 | T14: 105 | U14: 137 | V14: 116 | W14: 106 | X14: 1057
A15: ПАЗАРДЖИК | B15: 266,549 | C15: 1066 | D15: 1.05 | E15: 1119 | F15: 0.926 | G15: 1036 | H15: 0.0386 | I15: 40 | J15: 1076 | K15: 54 | L15: 75 | M15: 538 | N15: 646 | O15: 108 | P15: 161 | Q15: 215 | R15: 269 | S15: 108 | T15: 161 | U15: 212 | V15: 179 | W15: 163 | X15: 1630
A16: ПЕРНИК | B16: 127,048 | C16: 508 | D16: 0.967 | E16: 491 | F16: 0.837 | G16: 411 | H16: 0.0074 | I16: 3 | J16: 414 | K16: 21 | L16: 29 | M16: 207 | N16: 248 | O16: 41 | P16: 62 | Q16: 83 | R16: 104 | S16: 41 | T16: 62 | U16: 82 | V16: 69 | W16: 63 | X16: 628
A17: ПЛЕВЕН | B17: 255,749 | C17: 1023 | D17: 1.121 | E17: 1147 | F17: 0.918 | G17: 1053 | H17: 0.041 | I17: 43 | J17: 1096 | K17: 55 | L17: 77 | M17: 548 | N17: 658 | O17: 110 | P17: 164 | Q17: 219 | R17: 274 | S17: 110 | T17: 164 | U17: 216 | V17: 183 | W17: 166 | X17: 1661
A18: ПЛОВДИВ | B18: 675,586 | C18: 2702 | D18: 1.014 | E18: 2740 | F18: 1.051 | G18: 2880 | H18: 0.1531 | I18: 441 | J18: 3321 | K18: 166 | L18: 232 | M18: 1661 | N18: 1993 | O18: 332 | P18: 498 | Q18: 664 | R18: 830 | S18: 332 | T18: 498 | U18: 654 | V18: 554 | W18: 503 | X18: 5032
A19: РАЗГРАД | B19: 119,048 | C19: 476 | D19: 1.033 | E19: 492 | F19: 1.06 | G19: 522 | H19: 0.0123 | I19: 6 | J19: 528 | K19: =ROUND($J19*K$2,0) -> 26 | L19: 37 | M19: 264 | N19: 317 | O19: 53 | P19: 79 | Q19: 106 | R19: 132 | S19: 53 | T19: 79 | U19: 104 | V19: 88 | W19: 80 | X19: 800
A20: РУСЕ | B20: 227,685 | C20: 911 | D20: 1.008 | E20: 918 | F20: 1.096 | G20: 1006 | H20: 0.0313 | I20: 31 | J20: 1037 | K20: 52 | L20: 73 | M20: 519 | N20: 622 | O20: 104 | P20: 156 | Q20: 207 | R20: 259 | S20: 104 | T20: 156 | U20: 204 | V20: 173 | W20: 157 | X20: 1571
A21: СИЛИСТРА | B21: 114,670 | C21: 459 | D21: 1.165 | E21: 535 | F21: 1.078 | G21: 577 | H21: 0.0121 | I21: 7 | J21: 584 | K21: 29 | L21: 41 | M21: 292 | N21: 350 | O21: 58 | P21: 88 | Q21: 117 | R21: 146 | S21: 58 | T21: 88 | U21: 115 | V21: 97 | W21: 88 | X21: 884
A22: СЛИВЕН | B22: 192,644 | C22: 771 | D22: 1.208 | E22: 931 | F22: 1.041 | G22: 969 | H22: 0.0249 | I22: 24 | J22: 993 | K22: 50 | L22: 70 | M22: 497 | N22: 596 | O22: 99 | P22: 149 | Q22: 199 | R22: 248 | S22: 99 | T22: 149 | U22: 196 | V22: 166 | W22: 150 | X22: 1505
A23: СМОЛЯН | B23: 113,984 | C23: 456 | D23: 0.849 | E23: 387 | F23: 1.072 | G23: 415 | H23: 0.0122 | I23: 5 | J23: 420 | K23: 21 | L23: 29 | M23: 210 | N23: 252 | O23: 42 | P23: 63 | Q23: 84 | R23: 105 | S23: 42 | T23: 63 | U23: 83 | V23: 70 | W23: 64 | X23: 637
A24: СОФИЯ (СТОЛИЦА) | B24: 1,316,557 | C24: 5266 | D24: 0.902 | E24: 4750 | F24: 1.002 | G24: 4760 | H24: 0.2347 | I24: 1117 | J24: 5877 | K24: 294 | L24: 411 | M24: 2939 | N24: 3526 | O24: 588 | P24: 882 | Q24: 1175 | R24: 1469 | S24: 588 | T24: 882 | U24: 1158 | V24: 980 | W24: 890 | X24: 8905
A25: СОФИЯ | B25: 238,061 | C25: 952 | D25: 1.086 | E25: 1034 | F25: 1.048 | G25: 1084 | H25: 0.0362 | I25: 39 | J25: 1123 | K25: 56 | L25: 79 | M25: 562 | N25: 674 | O25: 112 | P25: 168 | Q25: 225 | R25: 281 | S25: 112 | T25: 168 | U25: 221 | V25: 187 | W25: 170 | X25: 1701
A26: СТАРА ЗАГОРА | B26: 325,963 | C26: 1304 | D26: 1.034 | E26: 1348 | F26: 0.879 | G26: 1185 | H26: 0.0405 | I26: 48 | J26: 1233 | K26: 62 | L26: 86 | M26: 617 | N26: 740 | O26: 123 | P26: 185 | Q26: 247 | R26: 308 | S26: 123 | T26: 185 | U26: 243 | V26: 206 | W26: 187 | X26: 1869
A27: ТЪРГОВИЩЕ | B27: 116,420 | C27: 466 | D27: 0.943 | E27: 439 | F27: 1.028 | G27: 451 | H27: 0.0152 | I27: 7 | J27: 458 | K27: 23 | L27: 32 | M27: 229 | N27: 275 | O27: 46 | P27: 69 | Q27: 92 | R27: 115 | S27: 46 | T27: 69 | U27: 90 | V27: 76 | W27: 69 | X27: 693
A28: ХАСКОВО | B28: 237,664 | C28: 951 | D28: 1.062 | E28: 1010 | F28: 1.019 | G28: 1029 | H28: 0.0263 | I28: 27 | J28: 1056 | K28: 53 | L28: 74 | M28: 528 | N28: 634 | O28: 106 | P28: 158 | Q28: 211 | R28: 264 | S28: 106 | T28: 158 | U28: 208 | V28: 176 | W28: 160 | X28: 1600
A29: ШУМЕН | B29: 176,925 | C29: 708 | D29: 1.072 | E29: 759 | F29: 1.113 | G29: 845 | H29: 0.0173 | I29: 15 | J29: 860 | K29: 43 | L29: 60 | M29: 430 | N29: 516 | O29: 86 | P29: 129 | Q29: 172 | R29: 215 | S29: 86 | T29: 129 | U29: 169 | V29: 143 | W29: 130 | X29: 1302
A30: ЯМБОЛ | B30: 125,724 | C30: 503 | D30: 1.088 | E30: 547 | F30: 0.939 | G30: 514 | H30: 0.0121 | I30: 6 | J30: 520 | K30: 26 | L30: 36 | M30: 260 | N30: 312 | O30: 52 | P30: 78 | Q30: 104 | R30: 130 | S30: 52 | T30: 78 | U30: 102 | V30: 87 | W30: 79 | X30: 788

Sheet block (hidden)
D1: =IFERROR(VLOOKUP(A2,tbl_HOSP[#Data],8,0),"Моля, изберете ЛЗ от списъка") -> Моля, изберете ЛЗ от списъка
A2: ИМЕ НА ЛЕЧЕБНОТО ЗАВЕДЕНИЕ
A3: I ниво | B3: II ниво | C3: III ниво | D3: ОБЩО
A4: =SUM(A5,A7,A25,A38,A50,A54) -> 0 | B4: =SUM(B5,B7,B25,B38,B50,B54) -> 0 | C4: =SUM(C5,C7,C25,C38,C50,C54) -> 0 | D4: =SUM(A4:C4) -> 0 | H4: ИМЕ НА ЛЕЧЕБНОТО ЗАВЕДЕНИЕ
A5: =A6 -> 0 | B5: =B6 -> 0 | C5: =C6 -> 0 | D5: =SUM(A5:C5) -> 0
D6: =SUM(A6:C6) -> 0
A7: =SUM(A8:A24) -> 0 | B7: =SUM(B8:B24) -> 0 | C7: =SUM(C8:C24) -> 0 | D7: 0
D8: 0
D9: 0
D10: 0
D11: 0
D12: 0
D13: 0
D14: 0
D15: 0
D16: 0
D17: 0
D18: 0
D19: 0
D21: 0
D22: 0
D23: 0
D24: 0
A25: =SUM(A26:A37) -> 0 | B25: =SUM(B26:B37) -> 0 | C25: =SUM(C26:C37) -> 0 | D25: 0
D26: 0
D27: 0
D28: 0
D29: 0
D30: 0
D31: 0
D32: 0
D33: 0
D34: 0
D35: 0
D36: 0
D37: 0
A38: =SUM(A39:A49) -> 0 | B38: =SUM(B39:B49) -> 0 | C38: =SUM(C39:C49) -> 0 | D38: =SUM(D39:D49) -> 0
D39: =SUM(A39:C39) -> 0
D40: =SUM(A40:C40) -> 0
D41: 0
D42: 0
D43: 0
D44: 0
D45: 0
D46: 0
D47: 0
D48: 0
D49: 0
A50: =SUM(A51:A53) -> 0 | B50: =SUM(B51:B53) -> 0 | C50: =SUM(C51:C53) -> 0 | D50: 0
D51: 0
D52: 0
D53: 0
A54: =SUM(A55:A58) -> 0 | B54: 0 | C54: 0 | D54: 0
D55: 0
D56: 0
D57: =SUM(A57:C57) -> 0
D58: =SUM(A58:C58) -> 0
A59: =SUM(A60:A76) -> 0 | B59: 0 | C59: 0 | D59: 0
D60: =SUM(A60:C60) -> 0
D61: 0
D62: =SUM(A62:C62) -> 0
D63: 0
D64: 0
D65: 0
D66: 0
D67: =SUM(A67:C67) -> 0
D68: 0
D69: =SUM(A69:C69) -> 0
D70: 0
D71: 0
D72: 0
D73: 0
D74: =SUM(A74:C74) -> 0
D75: 0
D76: 0

Sheet Ek_obl (hidden)
A1: Obl_code | B1: Obl_name | C1: OBL | D1: ekatte | E1: region | F1: document | G1: abc | H1: RZI | I1: Column1
A2: BLG | B2: Благоевград | C2: =UPPER(TRIM(B2)) -> БЛАГОЕВГРАД | D2: 04279 | E2: BG41 | F2: 1483 | G2: 1 | H2: =TEXT(G2,"00") -> 01 | I2: =tbl_Obl[[#This Row],[OBL]] -> БЛАГОЕВГРАД
A3: BGS | B3: Бургас | C3: БУРГАС | D3: 07079 | E3: BG34 | F3: 1678 | G3: 2 | H3: 02 | I3: =tbl_Obl[[#This Row],[OBL]] -> БУРГАС
A4: VAR | B4: Варна | C4: ВАРНА | D4: 10135 | E4: BG33 | F4: 1483 | G4: 3 | H4: 03 | I4: =tbl_Obl[[#This Row],[OBL]] -> ВАРНА
A5: VTR | B5: Велико Търново | C5: ВЕЛИКО ТЪРНОВО | D5: 10447 | E5: BG32 | F5: 1483 | G5: 4 | H5: 04 | I5: =tbl_Obl[[#This Row],[OBL]] -> ВЕЛИКО ТЪРНОВО
A6: VID | B6: Видин | C6: ВИДИН | D6: 10971 | E6: BG31 | F6: 1483 | G6: 5 | H6: 05 | I6: =tbl_Obl[[#This Row],[OBL]] -> ВИДИН
A7: VRC | B7: Враца | C7: ВРАЦА | D7: 12259 | E7: BG31 | F7: 1483 | G7: 6 | H7: 06 | I7: =tbl_Obl[[#This Row],[OBL]] -> ВРАЦА
A8: GAB | B8: Габрово | C8: ГАБРОВО | D8: 14218 | E8: BG32 | F8: 1483 | G8: 7 | H8: 07 | I8: =tbl_Obl[[#This Row],[OBL]] -> ГАБРОВО
A9: DOB | B9: Добрич | C9: ДОБРИЧ | D9: 72624 | E9: BG33 | F9: 1483 | G9: 8 | H9: 08 | I9: =tbl_Obl[[#This Row],[OBL]] -> ДОБРИЧ
A10: KRZ | B10: Кърджали | C10: КЪРДЖАЛИ | D10: 40909 | E10: BG42 | F10: 1483 | G10: 9 | H10: 09 | I10: =tbl_Obl[[#This Row],[OBL]] -> КЪРДЖАЛИ
A11: KNL | B11: Кюстендил | C11: КЮСТЕНДИЛ | D11: 41112 | E11: BG41 | F11: 1483 | G11: 10 | H11: 10 | I11: =tbl_Obl[[#This Row],[OBL]] -> КЮСТЕНДИЛ
A12: LOV | B12: Ловеч | C12: ЛОВЕЧ | D12: 43952 | E12: BG31 | F12: 1483 | G12: 11 | H12: 11 | I12: =tbl_Obl[[#This Row],[OBL]] -> ЛОВЕЧ
A13: MON | B13: Монтана | C13: МОНТАНА | D13: 48489 | E13: BG31 | F13: 1483 | G13: 12 | H13: 12 | I13: =tbl_Obl[[#This Row],[OBL]] -> МОНТАНА
A14: PAZ | B14: Пазарджик | C14: ПАЗАРДЖИК | D14: 55155 | E14: BG42 | F14: 1862 | G14: 13 | H14: 13 | I14: =tbl_Obl[[#This Row],[OBL]] -> ПАЗАРДЖИК
A15: PER | B15: Перник | C15: ПЕРНИК | D15: 55871 | E15: BG41 | F15: 1483 | G15: 14 | H15: 14 | I15: =tbl_Obl[[#This Row],[OBL]] -> ПЕРНИК
A16: PVN | B16: Плевен | C16: ПЛЕВЕН | D16: 56722 | E16: BG31 | F16: 1483 | G16: 15 | H16: 15 | I16: =tbl_Obl[[#This Row],[OBL]] -> ПЛЕВЕН
A17: PDV | B17: Пловдив | C17: ПЛОВДИВ | D17: 56784 | E17: BG42 | F17: 1483 | G17: 16 | H17: 16 | I17: =tbl_Obl[[#This Row],[OBL]] -> ПЛОВДИВ
A18: RAZ | B18: Разград | C18: РАЗГРАД | D18: 61710 | E18: BG32 | F18: 1483 | G18: 17 | H18: 17 | I18: =tbl_Obl[[#This Row],[OBL]] -> РАЗГРАД
A19: RSE | B19: Русе | C19: РУСЕ | D19: 63427 | E19: BG32 | F19: 1500 | G19: 18 | H19: 18 | I19: =tbl_Obl[[#This Row],[OBL]] -> РУСЕ
A20: SLS | B20: Силистра | C20: СИЛИСТРА | D20: 66425 | E20: BG32 | F20: 1483 | G20: 19 | H20: 19 | I20: =tbl_Obl[[#This Row],[OBL]] -> СИЛИСТРА
A21: SLV | B21: Сливен | C21: СЛИВЕН | D21: 67338 | E21: BG34 | F21: 1483 | G21: 20 | H21: 20 | I21: =tbl_Obl[[#This Row],[OBL]] -> СЛИВЕН
A22: SML | B22: Смолян | C22: СМОЛЯН | D22: 67653 | E22: BG42 | F22: 1483 | G22: 21 | H22: 21 | I22: =tbl_Obl[[#This Row],[OBL]] -> СМОЛЯН
A23: SFO | B23: София | C23: СОФИЯ | D23: 68134 | E23: BG41 | F23: 1483 | G23: 22 | H23: 22 | I23: =tbl_Obl[[#This Row],[OBL]] -> СОФИЯ
A24: SOF | B24: София (столица) | C24: СОФИЯ (СТОЛИЦА) | D24: 68134 | E24: BG41 | F24: 1483 | G24: 23 | H24: 23 | I24: =tbl_Obl[[#This Row],[OBL]] -> СОФИЯ (СТОЛИЦА)
A25: SZR | B25: Стара Загора | C25: СТАРА ЗАГОРА | D25: 68850 | E25: BG34 | F25: 1483 | G25: 24 | H25: 24 | I25: =tbl_Obl[[#This Row],[OBL]] -> СТАРА ЗАГОРА
A26: TGV | B26: Търговище | C26: ТЪРГОВИЩЕ | D26: 73626 | E26: BG33 | F26: 1483 | G26: 25 | H26: 25 | I26: =tbl_Obl[[#This Row],[OBL]] -> ТЪРГОВИЩЕ
A27: HKV | B27: Хасково | C27: ХАСКОВО | D27: 77195 | E27: BG42 | F27: 1483 | G27: 26 | H27: 26 | I27: =tbl_Obl[[#This Row],[OBL]] -> ХАСКОВО
A28: SHU | B28: Шумен | C28: ШУМЕН | D28: 83510 | E28: BG33 | F28: 1483 | G28: 27 | H28: 27 | I28: =tbl_Obl[[#This Row],[OBL]] -> ШУМЕН
A29: JAM | B29: Ямбол | C29: ЯМБОЛ | D29: 87374 | E29: BG34 | F29: 1483 | G29: 28 | H29: 28 | I29: =tbl_Obl[[#This Row],[OBL]] -> ЯМБОЛ

Sheet Ek_obst (hidden)
A1: Obl_code | B1: OBL | C1: Obst_code | D1: ekatte | E1: Obst_name | F1: OBST | G1: category | H1: document | I1: abc | J1: Column1
A2: =LEFT(C2,3) -> BLG | B2: БЛАГОЕВГРАД | C2: BLG01 | D2: 02676 | E2: Банско | F2: =UPPER(TRIM(E2)) -> БАНСКО | G2: 3 | H2: 1825 | I2: 12 | J2: =COUNTIF(tbl_Obst[OBL],tbl_Obst[[#This Row],[OBL]]) -> 14
A3: BLG | B3: БЛАГОЕВГРАД | C3: BLG02 | D3: 03504 | E3: Белица | F3: БЕЛИЦА | G3: 4 | H3: 1825 | I3: 15 | J3: =COUNTIF(tbl_Obst[OBL],tbl_Obst[[#This Row],[OBL]]) -> 14
A4: BLG | B4: БЛАГОЕВГРАД | C4: BLG03 | D4: 04279 | E4: Благоевград | F4: БЛАГОЕВГРАД | G4: 1 | H4: 1825 | I4: 20 | J4: =COUNTIF(tbl_Obst[OBL],tbl_Obst[[#This Row],[OBL]]) -> 14
A5: BLG | B5: БЛАГОЕВГРАД | C5: BLG11 | D5: 17395 | E5: Гоце Делчев | F5: ГОЦЕ ДЕЛЧЕВ | G5: 2 | H5: 1825 | I5: 61 | J5: =COUNTIF(tbl_Obst[OBL],tbl_Obst[[#This Row],[OBL]]) -> 14
A6: BLG | B6: БЛАГОЕВГРАД | C6: BLG13 | D6: 18366 | E6: Гърмен | F6: ГЪРМЕН | G6: 4 | H6: 1825 | I6: 66 | J6: =COUNTIF(tbl_Obst[OBL],tbl_Obst[[#This Row],[OBL]]) -> 14
A7: BLG | B7: БЛАГОЕВГРАД | C7: BLG28 | D7: 14492 | E7: Кресна | F7: КРЕСНА | G7: 3 | H7: 1831 | I7: 117 | J7: =COUNTIF(tbl_Obst[OBL],tbl_Obst[[#This Row],[OBL]]) -> 14
A8: BLG | B8: БЛАГОЕВГРАД | C8: BLG33 | D8: 56126 | E8: Петрич | F8: ПЕТРИЧ | G8: 2 | H8: 1825 | I8: 169 | J8: =COUNTIF(tbl_Obst[OBL],tbl_Obst[[#This Row],[OBL]]) -> 14
A9: BLG | B9: БЛАГОЕВГРАД | C9: BLG37 | D9: 61813 | E9: Разлог | F9: РАЗЛОГ | G9: 2 | H9: 1825 | I9: 185 | J9: =COUNTIF(tbl_Obst[OBL],tbl_Obst[[#This Row],[OBL]]) -> 14
A10: BLG | B10: БЛАГОЕВГРАД | C10: BLG40 | D10: 65334 | E10: Сандански | F10: САНДАНСКИ | G10: 2 | H10: 1825 | I10: 198 | J10: =COUNTIF(tbl_Obst[OBL],tbl_Obst[[#This Row],[OBL]]) -> 14
A11: BLG | B11: БЛАГОЕВГРАД | C11: BLG42 | D11: 65440 | E11: Сатовча | F11: САТОВЧА | G11: 4 | H11: 1825 | I11: 200 | J11: =COUNTIF(tbl_Obst[OBL],tbl_Obst[[#This Row],[OBL]]) -> 14
A12: BLG | B12: БЛАГОЕВГРАД | C12: BLG44 | D12: 66460 | E12: Симитли | F12: СИМИТЛИ | G12: 3 | H12: 1825 | I12: 208 | J12: =COUNTIF(tbl_Obst[OBL],tbl_Obst[[#This Row],[OBL]]) -> 14
A13: BLG | B13: БЛАГОЕВГРАД | C13: BLG49 | D13: 69969 | E13: Струмяни | F13: СТРУМЯНИ | G13: 4 | H13: 1825 | I13: 225 | J13: =COUNTIF(tbl_Obst[OBL],tbl_Obst[[#This Row],[OBL]]) -> 14
A14: BLG | B14: БЛАГОЕВГРАД | C14: BLG52 | D14: 77058 | E14: Хаджидимово | F14: ХАДЖИДИМОВО | G14: 4 | H14: 1825 | I14: 242 | J14: =COUNTIF(tbl_Obst[OBL],tbl_Obst[[#This Row],[OBL]]) -> 14
A15: BLG | B15: БЛАГОЕВГРАД | C15: BLG53 | D15: 87338 | E15: Якоруда | F15: ЯКОРУДА | G15: 4 | H15: 1825 | I15: 263 | J15: =COUNTIF(tbl_Obst[OBL],tbl_Obst[[#This Row],[OBL]]) -> 14
A16: BGS | B16: БУРГАС | C16: BGS01 | D16: 00151 | E16: Айтос | F16: АЙТОС | G16: 3 | H16: 1825 | I16: 2 | J16: =COUNTIF(tbl_Obst[OBL],tbl_Obst[[#This Row],[OBL]]) -> 13
A17: BGS | B17: БУРГАС | C17: BGS04 | D17: 07079 | E17: Бургас | F17: БУРГАС | G17: 1 | H17: 1883 | I17: 37 | J17: =COUNTIF(tbl_Obst[OBL],tbl_Obst[[#This Row],[OBL]]) -> 13
A18: BGS | B18: БУРГАС | C18: BGS08 | D18: 35883 | E18: Камено | F18: КАМЕНО | G18: 4 | H18: 1825 | I18: 103 | J18: =COUNTIF(tbl_Obst[OBL],tbl_Obst[[#This Row],[OBL]]) -> 13
A19: BGS | B19: БУРГАС | C19: BGS09 | D19: 36525 | E19: Карнобат | F19: КАРНОБАТ | G19: 3 | H19: 1825 | I19: 106 | J19: =COUNTIF(tbl_Obst[OBL],tbl_Obst[[#This Row],[OBL]]) -> 13
A20: BGS | B20: БУРГАС | C20: BGS12 | D20: 46663 | E20: Малко Търново | F20: МАЛКО ТЪРНОВО | G20: 4 | H20: 1825 | I20: 140 | J20: =COUNTIF(tbl_Obst[OBL],tbl_Obst[[#This Row],[OBL]]) -> 13
A21: BGS | B21: БУРГАС | C21: BGS15 | D21: 51500 | E21: Несебър | F21: НЕСЕБЪР | G21: 2 | H21: 1825 | I21: 152 | J21: =COUNTIF(tbl_Obst[OBL],tbl_Obst[[#This Row],[OBL]]) -> 13
A22: BGS | B22: БУРГАС | C22: BGS17 | D22: 57491 | E22: Поморие | F22: ПОМОРИЕ | G22: 2 | H22: 1825 | I22: 175 | J22: =COUNTIF(tbl_Obst[OBL],tbl_Obst[[#This Row],[OBL]]) -> 13
A23: BGS | B23: БУРГАС | C23: BGS27 | D23: 58356 | E23: Приморско | F23: ПРИМОРСКО | G23: 3 | H23: 1825 | I23: 179 | J23: =COUNTIF(tbl_Obst[OBL],tbl_Obst[[#This Row],[OBL]]) -> 13
A24: BGS | B24: БУРГАС | C24: BGS18 | D24: 63224 | E24: Руен | F24: РУЕН | G24: 4 | H24: 1844 | I24: 192 | J24: =COUNTIF(tbl_Obst[OBL],tbl_Obst[[#This Row],[OBL]]) -> 13
A25: BGS | B25: БУРГАС | C25: BGS21 | D25: 67800 | E25: Созопол | F25: СОЗОПОЛ | G25: 3 | H25: 1825 | I25: 215 | J25: =COUNTIF(tbl_Obst[OBL],tbl_Obst[[#This Row],[OBL]]) -> 13
A26: BGS | B26: БУРГАС | C26: BGS06 | D26: 17974 | E26: Средец | F26: СРЕДЕЦ | G26: 3 | H26: 1825 | I26: 218 | J26: =COUNTIF(tbl_Obst[OBL],tbl_Obst[[#This Row],[OBL]]) -> 13
A27: BGS | B27: БУРГАС | C27: BGS23 | D27: 70247 | E27: Сунгурларе | F27: СУНГУРЛАРЕ | G27: 3 | H27: 1847 | I27: 227 | J27: =COUNTIF(tbl_Obst[OBL],tbl_Obst[[#This Row],[OBL]]) -> 13
A28: BGS | B28: БУРГАС | C28: BGS13 | D28: 48619 | E28: Царево | F28: ЦАРЕВО | G28: 3 | H28: 1825 | I28: 249 | J28: =COUNTIF(tbl_Obst[OBL],tbl_Obst[[#This Row],[OBL]]) -> 13
A29: VAR | B29: ВАРНА | C29: VAR01 | D29: 00084 | E29: Аврен | F29: АВРЕН | G29: 4 | H29: 1825 | I29: 1 | J29: =COUNTIF(tbl_Obst[OBL],tbl_Obst[[#This Row],[OBL]]) -> 12
A30: VAR | B30: ВАРНА | C30: VAR02 | D30: 00182 | E30: Аксаково | F30: АКСАКОВО | G30: 3 | H30: 1825 | I30: 3 | J30: =COUNTIF(tbl_Obst[OBL],tbl_Obst[[#This Row],[OBL]]) -> 12
A31: VAR | B31: ВАРНА | C31: VAR04 | D31: 03719 | E31: Белослав | F31: БЕЛОСЛАВ | G31: 4 | H31: 1825 | I31: 18 | J31: =COUNTIF(tbl_Obst[OBL],tbl_Obst[[#This Row],[OBL]]) -> 12
A32: VAR | B32: ВАРНА | C32: VAR05 | D32: 07598 | E32: Бяла | F32: БЯЛА | G32: 4 | H32: 1825 | I32: 39 | J32: =COUNTIF(tbl_Obst[OBL],tbl_Obst[[#This Row],[OBL]]) -> 12
A33: VAR | B33: ВАРНА | C33: VAR06 | D33: 10135 | E33: Варна | F33: ВАРНА | G33: 1 | H33: 1825 | I33: 41 | J33: =COUNTIF(tbl_Obst[OBL],tbl_Obst[[#This Row],[OBL]]) -> 12
A34: VAR | B34: ВАРНА | C34: VAR08 | D34: 10865 | E34: Ветрино | F34: ВЕТРИНО | G34: 5 | H34: 1825 | I34: 47 | J34: =COUNTIF(tbl_Obst[OBL],tbl_Obst[[#This Row],[OBL]]) -> 12
A35: VAR | B35: ВАРНА | C35: VAR09 | D35: 12574 | E35: Вълчи дол | F35: ВЪЛЧИ ДОЛ | G35: 4 | H35: 1825 | I35: 51 | J35: =COUNTIF(tbl_Obst[OBL],tbl_Obst[[#This Row],[OBL]]) -> 12
A36: VAR | B36: ВАРНА | C36: VAR14 | D36: 20482 | E36: Девня | F36: ДЕВНЯ | G36: 3 | H36: 1825 | I36: 69 | J36: =COUNTIF(tbl_Obst[OBL],tbl_Obst[[#This Row],[OBL]]) -> 12
A37: VAR | B37: ВАРНА | C37: VAR13 | D37: 21912 | E37: Долни чифлик | F37: ДОЛНИ ЧИФЛИК | G37: 3 | H37: 1825 | I37: 78 | J37: =COUNTIF(tbl_Obst[OBL],tbl_Obst[[#This Row],[OBL]]) -> 12
A38: VAR | B38: ВАРНА | C38: VAR16 | D38: 24565 | E38: Дългопол | F38: ДЪЛГОПОЛ | G38: 4 | H38: 1825 | I38: 84 | J38: =COUNTIF(tbl_Obst[OBL],tbl_Obst[[#This Row],[OBL]]) -> 12
A39: VAR | B39: ВАРНА | C39: VAR24 | D39: 58503 | E39: Провадия | F39: ПРОВАДИЯ | G39: 3 | H39: 1825 | I39: 180 | J39: =COUNTIF(tbl_Obst[OBL],tbl_Obst[[#This Row],[OBL]]) -> 12
A40: VAR | B40: ВАРНА | C40: VAR26 | D40: 70175 | E40: Суворово | F40: СУВОРОВО | G40: 4 | H40: 1825 | I40: 226 | J40: =COUNTIF(tbl_Obst[OBL],tbl_Obst[[#This Row],[OBL]]) -> 12
A41: VTR | B41: ВЕЛИКО ТЪРНОВО | C41: VTR04 | D41: 10447 | E41: Велико Търново | F41: ВЕЛИКО ТЪРНОВО | G41: 1 | H41: 1825 | I41: 43 | J41: =COUNTIF(tbl_Obst[OBL],tbl_Obst[[#This Row],[OBL]]) -> 10
A42: VTR | B42: ВЕЛИКО ТЪРНОВО | C42: VTR06 | D42: 16359 | E42: Горна Оряховица | F42: ГОРНА ОРЯХОВИЦА | G42: 2 | H42: 1825 | I42: 60 | J42: =COUNTIF(tbl_Obst[OBL],tbl_Obst[[#This Row],[OBL]]) -> 10
A43: VTR | B43: ВЕЛИКО ТЪРНОВО | C43: VTR13 | D43: 27190 | E43: Елена | F43: ЕЛЕНА | G43: 3 | H43: 1825 | I43: 85 | J43: =COUNTIF(tbl_Obst[OBL],tbl_Obst[[#This Row],[OBL]]) -> 10
A44: VTR | B44: ВЕЛИКО ТЪРНОВО | C44: VTR14 | D44: 30962 | E44: Златарица | F44: ЗЛАТАРИЦА | G44: 5 | H44: 1825 | I44: 91 | J44: =COUNTIF(tbl_Obst[OBL],tbl_Obst[[#This Row],[OBL]]) -> 10
A45: VTR | B45: ВЕЛИКО ТЪРНОВО | C45: VTR20 | D45: 44793 | E45: Лясковец | F45: ЛЯСКОВЕЦ | G45: 4 | H45: 1825 | I45: 136 | J45: =COUNTIF(tbl_Obst[OBL],tbl_Obst[[#This Row],[OBL]]) -> 10
A46: VTR | B46: ВЕЛИКО ТЪРНОВО | C46: VTR22 | D46: 55052 | E46: Павликени | F46: ПАВЛИКЕНИ | G46: 3 | H46: 1825 | I46: 164 | J46: =COUNTIF(tbl_Obst[OBL],tbl_Obst[[#This Row],[OBL]]) -> 10
A47: VTR | B47: ВЕЛИКО ТЪРНОВО | C47: VTR26 | D47: 57354 | E47: Полски Тръмбеш | F47: ПОЛСКИ ТРЪМБЕШ | G47: 4 | H47: 1825 | I47: 174 | J47: =COUNTIF(tbl_Obst[OBL],tbl_Obst[[#This Row],[OBL]]) -> 10
A48: VTR | B48: ВЕЛИКО ТЪРНОВО | C48: VTR28 | D48: 65766 | E48: Свищов | F48: СВИЩОВ | G48: 2 | H48: 1825 | I48: 202 | J48: =COUNTIF(tbl_Obst[OBL],tbl_Obst[[#This Row],[OBL]]) -> 10
A49: VTR | B49: ВЕЛИКО ТЪРНОВО | C49: VTR31 | D49: 69633 | E49: Стражица | F49: СТРАЖИЦА | G49: 3 | H49: 1825 | I49: 222 | J49: =COUNTIF(tbl_Obst[OBL],tbl_Obst[[#This Row],[OBL]]) -> 10
A50: VTR | B50: ВЕЛИКО ТЪРНОВО | C50: VTR32 | D50: 70295 | E50: Сухиндол | F50: СУХИНДОЛ | G50: 5 | H50: 1825 | I50: 228 | J50: =COUNTIF(tbl_Obst[OBL],tbl_Obst[[#This Row],[OBL]]) -> 10
A51: VID | B51: ВИДИН | C51: VID01 | D51: 03616 | E51: Белоградчик | F51: БЕЛОГРАДЧИК | G51: 3 | H51: 1825 | I51: 17 | J51: =COUNTIF(tbl_Obst[OBL],tbl_Obst[[#This Row],[OBL]]) -> 11
A52: VID | B52: ВИДИН | C52: VID03 | D52: 05195 | E52: Бойница | F52: БОЙНИЦА | G52: 5 | H52: 1830 | I52: 24 | J52: =COUNTIF(tbl_Obst[OBL],tbl_Obst[[#This Row],[OBL]]) -> 11
A53: VID | B53: ВИДИН | C53: VID06 | D53: 06224 | E53: Брегово | F53: БРЕГОВО | G53: 5 | H53: 1825 | I53: 33 | J53: =COUNTIF(tbl_Obst[OBL],tbl_Obst[[#This Row],[OBL]]) -> 11
A54: VID | B54: ВИДИН | C54: VID09 | D54: 10971 | E54: Видин | F54: ВИДИН | G54: 1 | H54: 1825 | I54: 48 | J54: =COUNTIF(tbl_Obst[OBL],tbl_Obst[[#This Row],[OBL]]) -> 11
A55: VID | B55: ВИДИН | C55: VID15 | D55: 17645 | E55: Грамада | F55: ГРАМАДА | G55: 5 | H55: 1825 | I55: 62 | J55: =COUNTIF(tbl_Obst[OBL],tbl_Obst[[#This Row],[OBL]]) -> 11
A56: VID | B56: ВИДИН | C56: VID16 | D56: 21097 | E56: Димово | F56: ДИМОВО | G56: 5 | H56: 1825 | I56: 72 | J56: =COUNTIF(tbl_Obst[OBL],tbl_Obst[[#This Row],[OBL]]) -> 11
A57: VID | B57: ВИДИН | C57: VID22 | D57: 40525 | E57: Кула | F57: КУЛА | G57: 4 | H57: 1825 | I57: 124 | J57: =COUNTIF(tbl_Obst[OBL],tbl_Obst[[#This Row],[OBL]]) -> 11
A58: VID | B58: ВИДИН | C58: VID25 | D58: 46245 | E58: Макреш | F58: МАКРЕШ | G58: 5 | H58: 1825 | I58: 139 | J58: =COUNTIF(tbl_Obst[OBL],tbl_Obst[[#This Row],[OBL]]) -> 11
A59: VID | B59: ВИДИН | C59: VID30 | D59: 52180 | E59: Ново село | F59: НОВО СЕЛО | G59: 5 | H59: 1825 | I59: 158 | J59: =COUNTIF(tbl_Obst[OBL],tbl_Obst[[#This Row],[OBL]]) -> 11
A60: VID | B60: ВИДИН | C60: VID33 | D60: 63255 | E60: Ружинци | F60: РУЖИНЦИ | G60: 5 | H60: 1825 | I60: 193 | J60: =COUNTIF(tbl_Obst[OBL],tbl_Obst[[#This Row],[OBL]]) -> 11
A61: VID | B61: ВИДИН | C61: VID37 | D61: 81757 | E61: Чупрене | F61: ЧУПРЕНЕ | G61: 5 | H61: 1826 | I61: 258 | J61: =COUNTIF(tbl_Obst[OBL],tbl_Obst[[#This Row],[OBL]]) -> 11
A62: VRC | B62: ВРАЦА | C62: VRC05 | D62: 05548 | E62: Борован | F62: БОРОВАН | G62: 5 | H62: 1825 | I62: 28 | J62: =COUNTIF(tbl_Obst[OBL],tbl_Obst[[#This Row],[OBL]]) -> 10
A63: VRC | B63: ВРАЦА | C63: VRC08 | D63: 07702 | E63: Бяла Слатина | F63: БЯЛА СЛАТИНА | G63: 3 | H63: 1825 | I63: 40 | J63: =COUNTIF(tbl_Obst[OBL],tbl_Obst[[#This Row],[OBL]]) -> 10
A64: VRC | B64: ВРАЦА | C64: VRC10 | D64: 12259 | E64: Враца | F64: ВРАЦА | G64: 1 | H64: 1848 | I64: 49 | J64: =COUNTIF(tbl_Obst[OBL],tbl_Obst[[#This Row],[OBL]]) -> 10
A65: VRC | B65: ВРАЦА | C65: VRC20 | D65: 37798 | E65: Козлодуй | F65: КОЗЛОДУЙ | G65: 2 | H65: 1825 | I65: 111 | J65: =COUNTIF(tbl_Obst[OBL],tbl_Obst[[#This Row],[OBL]]) -> 10
A66: =LEFT(C66,3) -> VRC | B66: ВРАЦА | C66: VRC21 | D66: 39846 | E66: Криводол | F66: =UPPER(TRIM(E66)) -> КРИВОДОЛ | G66: 5 | H66: 1825 | I66: 118 | J66: =COUNTIF(tbl_Obst[OBL],tbl_Obst[[#This Row],[OBL]]) -> 10
A67: VRC | B67: ВРАЦА | C67: VRC27 | D67: 47714 | E67: Мездра | F67: МЕЗДРА | G67: 3 | H67: 1825 | I67: 143 | J67: =COUNTIF(tbl_Obst[OBL],tbl_Obst[[#This Row],[OBL]]) -> 10
A68: VRC | B68: ВРАЦА | C68: VRC28 | D68: 48043 | E68: Мизия | F68: МИЗИЯ | G68: 4 | H68: 1825 | I68: 144 | J68: =COUNTIF(tbl_Obst[OBL],tbl_Obst[[#This Row],[OBL]]) -> 10
A69: VRC | B69: ВРАЦА | C69: VRC31 | D69: 54020 | E69: Оряхово | F69: ОРЯХОВО | G69: 3 | H69: 1825 | I69: 162 | J69: =COUNTIF(tbl_Obst[OBL],tbl_Obst[[#This Row],[OBL]]) -> 10
A70: VRC | B70: ВРАЦА | C70: VRC32 | D70: 62997 | E70: Роман | F70: РОМАН | G70: 4 | H70: 1825 | I70: 190 | J70: =COUNTIF(tbl_Obst[OBL],tbl_Obst[[#This Row],[OBL]]) -> 10
A71: VRC | B71: ВРАЦА | C71: VRC35 | D71: 77102 | E71: Хайредин | F71: ХАЙРЕДИН | G71: 5 | H71: 1825 | I71: 243 | J71: =COUNTIF(tbl_Obst[OBL],tbl_Obst[[#This Row],[OBL]]) -> 10
A72: GAB | B72: ГАБРОВО | C72: GAB05 | D72: 14218 | E72: Габрово | F72: ГАБРОВО | G72: 1 | H72: 1825 | I72: 54 | J72: =COUNTIF(tbl_Obst[OBL],tbl_Obst[[#This Row],[OBL]]) -> 4
A73: GAB | B73: ГАБРОВО | C73: GAB12 | D73: 23947 | E73: Дряново | F73: ДРЯНОВО | G73: 3 | H73: 1825 | I73: 81 | J73: =COUNTIF(tbl_Obst[OBL],tbl_Obst[[#This Row],[OBL]]) -> 4
A74: GAB | B74: ГАБРОВО | C74: GAB29 | D74: 65927 | E74: Севлиево | F74: СЕВЛИЕВО | G74: 2 | H74: 1849 | I74: 204 | J74: =COUNTIF(tbl_Obst[OBL],tbl_Obst[[#This Row],[OBL]]) -> 4
A75: GAB | B75: ГАБРОВО | C75: GAB35 | D75: 73403 | E75: Трявна | F75: ТРЯВНА | G75: 3 | H75: 1825 | I75: 237 | J75: =COUNTIF(tbl_Obst[OBL],tbl_Obst[[#This Row],[OBL]]) -> 4
A76: DOB | B76: ДОБРИЧ | C76: DOB03 | D76: 02508 | E76: Балчик | F76: БАЛЧИК | G76: 2 | H76: 1825 | I76: 10 | J76: =COUNTIF(tbl_Obst[OBL],tbl_Obst[[#This Row],[OBL]]) -> 8
A77: DOB | B77: ДОБРИЧ | C77: DOB12 | D77: 14711 | E77: Генерал Тошево | F77: ГЕНЕРАЛ ТОШЕВО | G77: 3 | H77: 1825 | I77: 55 | J77: =COUNTIF(tbl_Obst[OBL],tbl_Obst[[#This Row],[OBL]]) -> 8
A78: DOB | B78: ДОБРИЧ | C78: DOB28 | D78: 72624 | E78: Добрич | F78: ДОБРИЧ | G78: 1 | H78: 1825 | I78: 74 | J78: =COUNTIF(tbl_Obst[OBL],tbl_Obst[[#This Row],[OBL]]) -> 8
A79: DOB | B79: ДОБРИЧ | C79: DOB15 | D79: 72624 | E79: Добрич-селска | F79: ДОБРИЧ-СЕЛСКА | G79: 3 | H79: 1825 | I79: 73 | J79: =COUNTIF(tbl_Obst[OBL],tbl_Obst[[#This Row],[OBL]]) -> 8
A80: DOB | B80: ДОБРИЧ | C80: DOB17 | D80: 35064 | E80: Каварна | F80: КАВАРНА | G80: 3 | H80: 1825 | I80: 99 | J80: =COUNTIF(tbl_Obst[OBL],tbl_Obst[[#This Row],[OBL]]) -> 8
A81: DOB | B81: ДОБРИЧ | C81: DOB20 | D81: 40097 | E81: Крушари | F81: КРУШАРИ | G81: 4 | H81: 1825 | I81: 121 | J81: =COUNTIF(tbl_Obst[OBL],tbl_Obst[[#This Row],[OBL]]) -> 8
A82: DOB | B82: ДОБРИЧ | C82: DOB27 | D82: 72271 | E82: Тервел | F82: ТЕРВЕЛ | G82: 3 | H82: 1825 | I82: 231 | J82: =COUNTIF(tbl_Obst[OBL],tbl_Obst[[#This Row],[OBL]]) -> 8
A83: DOB | B83: ДОБРИЧ | C83: DOB29 | D83: 83017 | E83: Шабла | F83: ШАБЛА | G83: 3 | H83: 1825 | I83: 259 | J83: =COUNTIF(tbl_Obst[OBL],tbl_Obst[[#This Row],[OBL]]) -> 8
A84: KRZ | B84: КЪРДЖАЛИ | C84: KRZ02 | D84: 00607 | E84: Ардино | F84: АРДИНО | G84: 4 | H84: 1825 | I84: 8 | J84: =COUNTIF(tbl_Obst[OBL],tbl_Obst[[#This Row],[OBL]]) -> 7
A85: KRZ | B85: КЪРДЖАЛИ | C85: KRZ08 | D85: 20746 | E85: Джебел | F85: ДЖЕБЕЛ | G85: 4 | H85: 1834 | I85: 70 | J85: =COUNTIF(tbl_Obst[OBL],tbl_Obst[[#This Row],[OBL]]) -> 7
A86: KRZ | B86: КЪРДЖАЛИ | C86: KRZ14 | D86: 36926 | E86: Кирково | F86: КИРКОВО | G86: 4 | H86: 1825 | I86: 108 | J86: =COUNTIF(tbl_Obst[OBL],tbl_Obst[[#This Row],[OBL]]) -> 7
A87: KRZ | B87: КЪРДЖАЛИ | C87: KRZ15 | D87: 39970 | E87: Крумовград | F87: КРУМОВГРАД | G87: 3 | H87: 1825 | I87: 120 | J87: =COUNTIF(tbl_Obst[OBL],tbl_Obst[[#This Row],[OBL]]) -> 7
A88: KRZ | B88: КЪРДЖАЛИ | C88: KRZ16 | D88: 40909 | E88: Кърджали | F88: КЪРДЖАЛИ | G88: 1 | H88: 1825 | I88: 125 | J88: =COUNTIF(tbl_Obst[OBL],tbl_Obst[[#This Row],[OBL]]) -> 7
A89: KRZ | B89: КЪРДЖАЛИ | C89: KRZ21 | D89: 48996 | E89: Момчилград | F89: МОМЧИЛГРАД | G89: 3 | H89: 1825 | I89: 147 | J89: =COUNTIF(tbl_Obst[OBL],tbl_Obst[[#This Row],[OBL]]) -> 7
A90: KRZ | B90: КЪРДЖАЛИ | C90: KRZ35 | D90: 81236 | E90: Черноочене | F90: ЧЕРНООЧЕНЕ | G90: 5 | H90: 1825 | I90: 255 | J90: =COUNTIF(tbl_Obst[OBL],tbl_Obst[[#This Row],[OBL]]) -> 7
A91: KNL | B91: КЮСТЕНДИЛ | C91: KNL04 | D91: 04501 | E91: Бобов дол | F91: БОБОВ ДОЛ | G91: 3 | H91: 1825 | I91: 21 | J91: =COUNTIF(tbl_Obst[OBL],tbl_Obst[[#This Row],[OBL]]) -> 9
A92: KNL | B92: КЮСТЕНДИЛ | C92: KNL05 | D92: 04532 | E92: Бобошево | F92: БОБОШЕВО | G92: 5 | H92: 1825 | I92: 22 | J92: =COUNTIF(tbl_Obst[OBL],tbl_Obst[[#This Row],[OBL]]) -> 9
A93: KNL | B93: КЮСТЕНДИЛ | C93: KNL48 | D93: 68789 | E93: Дупница | F93: ДУПНИЦА | G93: 2 | H93: 1825 | I93: 83 | J93: =COUNTIF(tbl_Obst[OBL],tbl_Obst[[#This Row],[OBL]]) -> 9
A94: KNL | B94: КЮСТЕНДИЛ | C94: KNL27 | D94: 39116 | E94: Кочериново | F94: КОЧЕРИНОВО | G94: 4 | H94: 1825 | I94: 116 | J94: =COUNTIF(tbl_Obst[OBL],tbl_Obst[[#This Row],[OBL]]) -> 9
A95: KNL | B95: КЮСТЕНДИЛ | C95: KNL29 | D95: 41112 | E95: Кюстендил | F95: КЮСТЕНДИЛ | G95: 1 | H95: 1825 | I95: 126 | J95: =COUNTIF(tbl_Obst[OBL],tbl_Obst[[#This Row],[OBL]]) -> 9
A96: KNL | B96: КЮСТЕНДИЛ | C96: KNL31 | D96: 51216 | E96: Невестино | F96: НЕВЕСТИНО | G96: 5 | H96: 1825 | I96: 150 | J96: =COUNTIF(tbl_Obst[OBL],tbl_Obst[[#This Row],[OBL]]) -> 9
A97: KNL | B97: КЮСТЕНДИЛ | C97: KNL38 | D97: 62671 | E97: Рила | F97: РИЛА | G97: 4 | H97: 1825 | I97: 188 | J97: =COUNTIF(tbl_Obst[OBL],tbl_Obst[[#This Row],[OBL]]) -> 9
A98: KNL | B98: КЮСТЕНДИЛ | C98: KNL41 | D98: 65365 | E98: Сапарева баня | F98: САПАРЕВА БАНЯ | G98: 4 | H98: 1825 | I98: 199 | J98: =COUNTIF(tbl_Obst[OBL],tbl_Obst[[#This Row],[OBL]]) -> 9
A99: KNL | B99: КЮСТЕНДИЛ | C99: KNL50 | D99: 73047 | E99: Трекляно | F99: ТРЕКЛЯНО | G99: 5 | H99: 1825 | I99: 234 | J99: =COUNTIF(tbl_Obst[OBL],tbl_Obst[[#This Row],[OBL]]) -> 9
A100: LOV | B100: ЛОВЕЧ | C100: LOV02 | D100: 52218 | E100: Априлци | F100: АПРИЛЦИ | G100: 5 | H100: 1825 | I100: 7 | J100: =COUNTIF(tbl_Obst[OBL],tbl_Obst[[#This Row],[OBL]]) -> 8
A101: LOV | B101: ЛОВЕЧ | C101: LOV17 | D101: 43476 | E101: Летница | F101: ЛЕТНИЦА | G101: 4 | H101: 1825 | I101: 129 | J101: =COUNTIF(tbl_Obst[OBL],tbl_Obst[[#This Row],[OBL]]) -> 8
A102: LOV | B102: ЛОВЕЧ | C102: LOV18 | D102: 43952 | E102: Ловеч | F102: ЛОВЕЧ | G102: 1 | H102: 1825 | I102: 130 | J102: =COUNTIF(tbl_Obst[OBL],tbl_Obst[[#This Row],[OBL]]) -> 8
A103: LOV | B103: ЛОВЕЧ | C103: LOV19 | D103: 44327 | E103: Луковит | F103: ЛУКОВИТ | G103: 3 | H103: 1825 | I103: 133 | J103: =COUNTIF(tbl_Obst[OBL],tbl_Obst[[#This Row],[OBL]]) -> 8
A104: LOV | B104: ЛОВЕЧ | C104: LOV33 | D104: 72343 | E104: Тетевен | F104: ТЕТЕВЕН | G104: 3 | H104: 1825 | I104: 232 | J104: =COUNTIF(tbl_Obst[OBL],tbl_Obst[[#This Row],[OBL]]) -> 8
A105: LOV | B105: ЛОВЕЧ | C105: LOV34 | D105: 73198 | E105: Троян | F105: ТРОЯН | G105: 2 | H105: 1827 | I105: 235 | J105: =COUNTIF(tbl_Obst[OBL],tbl_Obst[[#This Row],[OBL]]) -> 8
A106: LOV | B106: ЛОВЕЧ | C106: LOV36 | D106: 75054 | E106: Угърчин | F106: УГЪРЧИН | G106: 4 | H106: 1885 | I106: 241 | J106: =COUNTIF(tbl_Obst[OBL],tbl_Obst[[#This Row],[OBL]]) -> 8
A107: LOV | B107: ЛОВЕЧ | C107: LOV38 | D107: 87014 | E107: Ябланица | F107: ЯБЛАНИЦА | G107: 4 | H107: 1825 | I107: 261 | J107: =COUNTIF(tbl_Obst[OBL],tbl_Obst[[#This Row],[OBL]]) -> 8
A108: MON | B108: МОНТАНА | C108: MON02 | D108: 03928 | E108: Берковица | F108: БЕРКОВИЦА | G108: 3 | H108: 1825 | I108: 19 | J108: =COUNTIF(tbl_Obst[OBL],tbl_Obst[[#This Row],[OBL]]) -> 11
A109: MON | B109: МОНТАНА | C109: MON04 | D109: 05236 | E109: Бойчиновци | F109: БОЙЧИНОВЦИ | G109: 5 | H109: 1825 | I109: 25 | J109: =COUNTIF(tbl_Obst[OBL],tbl_Obst[[#This Row],[OBL]]) -> 11
A110: MON | B110: МОНТАНА | C110: MON07 | D110: 06570 | E110: Брусарци | F110: БРУСАРЦИ | G110: 5 | H110: 1825 | I110: 36 | J110: =COUNTIF(tbl_Obst[OBL],tbl_Obst[[#This Row],[OBL]]) -> 11
A111: MON | B111: МОНТАНА | C111: MON11 | D111: 12543 | E111: Вълчедръм | F111: ВЪЛЧЕДРЪМ | G111: 4 | H111: 1825 | I111: 50 | J111: =COUNTIF(tbl_Obst[OBL],tbl_Obst[[#This Row],[OBL]]) -> 11
A112: MON | B112: МОНТАНА | C112: MON12 | D112: 12961 | E112: Вършец | F112: ВЪРШЕЦ | G112: 4 | H112: 1825 | I112: 53 | J112: =COUNTIF(tbl_Obst[OBL],tbl_Obst[[#This Row],[OBL]]) -> 11
A113: MON | B113: МОНТАНА | C113: MON14 | D113: 14773 | E113: Георги Дамяново | F113: ГЕОРГИ ДАМЯНОВО | G113: 5 | H113: 1825 | I113: 56 | J113: =COUNTIF(tbl_Obst[OBL],tbl_Obst[[#This Row],[OBL]]) -> 11
A114: MON | B114: МОНТАНА | C114: MON24 | D114: 44238 | E114: Лом | F114: ЛОМ | G114: 2 | H114: 1825 | I114: 132 | J114: =COUNTIF(tbl_Obst[OBL],tbl_Obst[[#This Row],[OBL]]) -> 11
A115: MON | B115: МОНТАНА | C115: MON26 | D115: 47593 | E115: Медковец | F115: МЕДКОВЕЦ | G115: 5 | H115: 1825 | I115: 142 | J115: =COUNTIF(tbl_Obst[OBL],tbl_Obst[[#This Row],[OBL]]) -> 11
A116: MON | B116: МОНТАНА | C116: MON29 | D116: 48489 | E116: Монтана | F116: МОНТАНА | G116: 1 | H116: 1825 | I116: 148 | J116: =COUNTIF(tbl_Obst[OBL],tbl_Obst[[#This Row],[OBL]]) -> 11
A117: MON | B117: МОНТАНА | C117: MON36 | D117: 81390 | E117: Чипровци | F117: ЧИПРОВЦИ | G117: 4 | H117: 1825 | I117: 256 | J117: =COUNTIF(tbl_Obst[OBL],tbl_Obst[[#This Row],[OBL]]) -> 11
A118: MON | B118: МОНТАНА | C118: MON38 | D118: 87299 | E118: Якимово | F118: ЯКИМОВО | G118: 5 | H118: 1825 | I118: 262 | J118: =COUNTIF(tbl_Obst[OBL],tbl_Obst[[#This Row],[OBL]]) -> 11
A119: PAZ | B119: ПАЗАРДЖИК | C119: PAZ03 | D119: 02837 | E119: Батак | F119: БАТАК | G119: 4 | H119: 1825 | I119: 13 | J119: =COUNTIF(tbl_Obst[OBL],tbl_Obst[[#This Row],[OBL]]) -> 12
A120: PAZ | B120: ПАЗАРДЖИК | C120: PAZ04 | D120: 03592 | E120: Белово | F120: БЕЛОВО | G120: 4 | H120: 1825 | I120: 16 | J120: =COUNTIF(tbl_Obst[OBL],tbl_Obst[[#This Row],[OBL]]) -> 12
A121: PAZ | B121: ПАЗАРДЖИК | C121: PAZ06 | D121: 06207 | E121: Брацигово | F121: БРАЦИГОВО | G121: 4 | H121: 1825 | I121: 32 | J121: =COUNTIF(tbl_Obst[OBL],tbl_Obst[[#This Row],[OBL]]) -> 12
A122: PAZ | B122: ПАЗАРДЖИК | C122: PAZ08 | D122: 10450 | E122: Велинград | F122: ВЕЛИНГРАД | G122: 2 | H122: 1862 | I122: 44 | J122: =COUNTIF(tbl_Obst[OBL],tbl_Obst[[#This Row],[OBL]]) -> 12
A123: PAZ | B123: ПАЗАРДЖИК | C123: PAZ14 | D123: 43369 | E123: Лесичово | F123: ЛЕСИЧОВО | G123: 5 | H123: 1825 | I123: 128 | J123: =COUNTIF(tbl_Obst[OBL],tbl_Obst[[#This Row],[OBL]]) -> 12
A124: PAZ | B124: ПАЗАРДЖИК | C124: PAZ19 | D124: 55155 | E124: Пазарджик | F124: ПАЗАРДЖИК | G124: 1 | H124: 1825 | I124: 165 | J124: =COUNTIF(tbl_Obst[OBL],tbl_Obst[[#This Row],[OBL]]) -> 12
A125: PAZ | B125: ПАЗАРДЖИК | C125: PAZ20 | D125: 55302 | E125: Панагюрище | F125: ПАНАГЮРИЩЕ | G125: 2 | H125: 1825 | I125: 166 | J125: =COUNTIF(tbl_Obst[OBL],tbl_Obst[[#This Row],[OBL]]) -> 12
A126: PAZ | B126: ПАЗАРДЖИК | C126: PAZ21 | D126: 56277 | E126: Пещера | F126: ПЕЩЕРА | G126: 3 | H126: 1825 | I126: 170 | J126: =COUNTIF(tbl_Obst[OBL],tbl_Obst[[#This Row],[OBL]]) -> 12
A127: PAZ | B127: ПАЗАРДЖИК | C127: PAZ24 | D127: 62004 | E127: Ракитово | F127: РАКИТОВО | G127: 4 | H127: 1825 | I127: 186 | J127: =COUNTIF(tbl_Obst[OBL],tbl_Obst[[#This Row],[OBL]]) -> 12
A128: PAZ | B128: ПАЗАРДЖИК | C128: PAZ29 | D128: 66264 | E128: Септември | F128: СЕПТЕМВРИ | G128: 3 | H128: 1825 | I128: 205 | J128: =COUNTIF(tbl_Obst[OBL],tbl_Obst[[#This Row],[OBL]]) -> 12
A129: PAZ | B129: ПАЗАРДЖИК | C129: PAZ32 | D129: 69835 | E129: Стрелча | F129: СТРЕЛЧА | G129: 4 | H129: 1825 | I129: 224 | J129: =COUNTIF(tbl_Obst[OBL],tbl_Obst[[#This Row],[OBL]]) -> 12
A130: =LEFT(C130,3) -> PAZ | B130: ПАЗАРДЖИК | C130: PAZ39 | D130: 70648 | E130: Сърница | F130: =UPPER(TRIM(E130)) -> СЪРНИЦА | G130: 4 | H130: 1862 | J130: =COUNTIF(tbl_Obst[OBL],tbl_Obst[[#This Row],[OBL]]) -> 12
A131: PER | B131: ПЕРНИК | C131: PER08 | D131: 06286 | E131: Брезник | F131: БРЕЗНИК | G131: 3 | H131: 1825 | I131: 34 | J131: =COUNTIF(tbl_Obst[OBL],tbl_Obst[[#This Row],[OBL]]) -> 6
A132: PER | B132: ПЕРНИК | C132: PER19 | D132: 30778 | E132: Земен | F132: ЗЕМЕН | G132: 4 | H132: 1825 | I132: 90 | J132: =COUNTIF(tbl_Obst[OBL],tbl_Obst[[#This Row],[OBL]]) -> 6
A133: PER | B133: ПЕРНИК | C133: PER22 | D133: 37513 | E133: Ковачевци | F133: КОВАЧЕВЦИ | G133: 5 | H133: 1825 | I133: 110 | J133: =COUNTIF(tbl_Obst[OBL],tbl_Obst[[#This Row],[OBL]]) -> 6
A134: PER | B134: ПЕРНИК | C134: PER32 | D134: 55871 | E134: Перник | F134: ПЕРНИК | G134: 1 | H134: 1825 | I134: 167 | J134: =COUNTIF(tbl_Obst[OBL],tbl_Obst[[#This Row],[OBL]]) -> 6
A135: PER | B135: ПЕРНИК | C135: PER36 | D135: 61577 | E135: Радомир | F135: РАДОМИР | G135: 3 | H135: 1825 | I135: 183 | J135: =COUNTIF(tbl_Obst[OBL],tbl_Obst[[#This Row],[OBL]]) -> 6
A136: PER | B136: ПЕРНИК | C136: PER51 | D136: 73273 | E136: Трън | F136: A | G136: 3 | H136: 1825 | I136: 236 | J136: =COUNTIF(tbl_Obst[OBL],tbl_Obst[[#This Row],[OBL]]) -> 6
A137: PVN | B137: ПЛЕВЕН | C137: PVN03 | D137: 03366 | E137: Белене | F137: БЕЛЕНЕ | G137: 3 | H137: 1825 | I137: 14 | J137: =COUNTIF(tbl_Obst[OBL],tbl_Obst[[#This Row],[OBL]]) -> 11
A138: PVN | B138: ПЛЕВЕН | C138: PVN08 | D138: 18099 | E138: Гулянци | F138: ГУЛЯНЦИ | G138: 4 | H138: 1825 | I138: 63 | J138: =COUNTIF(tbl_Obst[OBL],tbl_Obst[[#This Row],[OBL]]) -> 11
